Workbook

Sheet dummy_database (hidden)
A2: From Natutal Resources, Start or Crop budget | H2: =title23 -> Oil content (%) | I2: CV(MJ/kg) | J2: =title305 -> Density (kg/l) | K2: =title306 -> Meal | L2: =title78 -> Oil extraction efficiency | M2: =title307 -> Residual Oil in cake | N2: =title308 -> Pretreament
A3: From Economic input datasheet
B4: Oilseed 1 | C4: Oilseed 2 | D4: Oilseed 3 | E4: Oilseed 4 | G4: =title28 -> Jatropha | H4: 0.5459 | I4: 39.6 | J4: 0.914 | K4: no | L4: 0.8 | M4: 0.05 | N4: 0.05
G5: =title27 -> Coconut | H5: 0.42 | I5: 41 | K5: no | L5: 0.6 | M5: 0.05 | N5: 0.3
A6: =title297 -> Ammount (t per year) | B6: 2500 | C6: 3000 | D6: 3500 | E6: 1000 | G6: =title29 -> Oil palm | H6: 0.5418 | I6: =+AVERAGE(39,41) -> 40 | K6: no | L6: 0.4 | M6: 0.1 | N6: 0.3
A7: =title298 -> Feedstock yield (t per ha) | B7: 80 | C7: 90 | D7: 100 | E7: 110 | G7: =title30 -> Rapeseed | H7: 0.1406 | I7: 35 | J7: 0.915 | K7: =title148 -> yes | L7: 0.8 | M7: 0.07 | N7: 0.1
A8: =title299 -> Market Price (USD/t) | B8: 350 | C8: 400 | D8: 450 | E8: 500 | G8: =title31 -> Soybeans | H8: 0.209 | I8: 42.8 | K8: =title148 -> yes | L8: 0.8 | M8: 0.05 | N8: 0.05
A9: =title300 -> Production Costs-intermediate yield (USD/t) | B9: 400 | C9: 450 | D9: 500 | E9: 550 | G9: =title32 -> Sunflower | H9: 0.53185 | I9: 39 | K9: =title148 -> yes | L9: 0.8 | M9: 0.07 | N9: 0.05
A10: =title301 -> Meal Price (USD/t) | B10: 400 | C10: 400 | D10: 400 | E10: 400 | G10: =title48 -> Diesel | I10: 42.6
G11: =title309 -> Wood (dry) | I11: 19.8
G12: =title310 -> Charcoal | I12: 32
G13: =title311 -> Kerosene | I13: 46
A14: =title302 -> Unskilled labour wage | B14: 1 | C14: USD/Person/h | G14: =title312 -> Gas Oil
A15: =title303 -> Skilled labour wage | B15: 1.5 | C15: USD/Person/h
A16: =title304 -> Price Fuel | B16: 2 | C16: USD/L
B23: =1225*2332 -> 2856700 | C23: =+B23-B24 -> 233200
B24: =1823500+800000 -> 2623500
A27: List of electrical devices | B27: Standard Capacity (W) | C27: Duty cycle | D27: Quantity | E27: Average operating time (h/day) | F27: Approximate No. of days the appliance is used per month | G27: Total capacity Requirement (W) | H27: Total capacity Requirement (kWh/day) | I27: No. of kWh of electricity used per month
A28: TV Color 25 Inch | B28: 110 | C28: 1 | D28: 0 | E28: 0 | F28: 30 | G28: =IF(AND(E28>0,D28>0,E28<=COST_OIL1!$I$15),B28*D28,0) -> 0 | H28: =G28*E28*C28/1000 -> 0 | I28: =+H28*G28 -> 0
A29: TV Color 14 Inch | B29: 60 | C29: 1 | D29: 1 | E29: 8 | F29: 30 | G29: =IF(AND(E29>0,D29>0,E29<=COST_OIL1!$I$15),B29*D29,0) -> 0 | H29: 0 | I29: =+H29*G29 -> 0
A30: Computer | B30: 236.5 | C30: 1 | D30: 1 | E30: 8 | F30: 30 | G30: =IF(AND(E30>0,D30>0,E30<=COST_OIL1!$I$15),B30*D30,0) -> 0 | H30: 0 | I30: 0
A31: Fan 16 inch | B31: 40 | C31: 1 | D31: 1 | E31: 8 | F31: 30 | G31: =IF(AND(E31>0,D31>0,E31<=COST_OIL1!$I$15),B31*D31,0) -> 0 | H31: 0 | I31: 0
A32: Air Conditioner (9,000 BTU) | B32: 880 | C32: 1 | D32: 0 | E32: 7 | F32: 30 | G32: =IF(AND(E32>0,D32>0,E32<=COST_OIL1!$I$15),B32*D32,0) -> 0 | H32: 0 | I32: 0
A33: Electrical Iron | B33: 1000 | C33: 1 | D33: 0 | E33: 0 | F33: 30 | G33: =IF(AND(E33>0,D33>0,E33<=COST_OIL1!$I$15),B33*D33,0) -> 0 | H33: 0 | I33: 0
A34: Rice Cooking | B34: 530 | C34: 1 | D34: 0 | E34: 0 | F34: 30 | G34: =IF(AND(E34>0,D34>0,E34<=COST_OIL1!$I$15),B34*D34,0) -> 0 | H34: 0 | I34: 0
A35: Microwave | B35: 1200 | C35: 1 | D35: 0 | E35: 0 | F35: 30 | G35: =IF(AND(E35>0,D35>0,E35<=COST_OIL1!$I$15),B35*D35,0) -> 0 | H35: 0 | I35: 0
A36: Clothes washer 5 kg | B36: 305 | C36: 0.8 | D36: 0 | E36: 0 | F36: 30 | G36: =IF(AND(E36>0,D36>0,E36<=COST_OIL1!$I$15),B36*D36,0) -> 0 | H36: 0 | I36: 0
A37: Electrical Boiler | B37: 650 | C37: 1 | D37: 0 | E37: 0 | F37: 30 | G37: =IF(AND(E37>0,D37>0,E37<=COST_OIL1!$I$15),B37*D37,0) -> 0 | H37: 0 | I37: 0
A38: Refrigerator | B38: 390 | C38: 0.3 | D38: 0 | E38: 0 | F38: 30 | G38: =IF(AND(E38>0,D38>0,E38<=COST_OIL1!$I$15),B38*D38,0) -> 0 | H38: 0 | I38: 0
A39: Electrical water shower | B39: 4000 | C39: 1 | D39: 0 | E39: 0 | F39: 30 | G39: =IF(AND(E39>0,D39>0,E39<=COST_OIL1!$I$15),B39*D39,0) -> 0 | H39: 0 | I39: 0
A40: Fluorescent Lamp (Ceiling T5) | B40: 28 | C40: 1 | D40: 3 | E40: 3 | F40: 30 | G40: =IF(AND(E40>0,D40>0,E40<=COST_OIL1!$I$15),B40*D40,0) -> 0 | H40: 0 | I40: 0
A41: Compact Fluorescent Lamp T5 | B41: 14 | C41: 1 | D41: 2 | E41: 3 | F41: 30 | G41: =IF(AND(E41>0,D41>0,E41<=COST_OIL1!$I$15),B41*D41,0) -> 0 | H41: 0 | I41: 0
A42: User defined Appliance | B42: 300 | C42: 1 | D42: 0 | E42: 0 | F42: 30 | G42: =IF(AND(E42>0,D42>0,E42<=COST_OIL1!$I$15),B42*D42,0) -> 0 | H42: 0 | I42: 0
F43: Totals | G43: =SUM(G28:G42) -> 0 | H43: =SUM(H28:H42) -> 0 | I43: =SUM(I28:I42) -> 0

Sheet label (hidden)
B2: Selection | C2: =VLOOKUP(START!B2,$A$3:$C$5,3,FALSE) -> 1
A3: EN | B3: English | C3: 1
A4: FR | B4: French | C4: 2
A5: ES | B5: Spanish | C5: 3
A7: ID | B7: English | C7: French | D7: Spanish | E7: Typeof | F7: Ref | G7: Name
A8: 1 | B8: 1 | C8: 2 | D8: 3
A9: 2 | B9: SVO and Rural Electrification Description | C9: Description du HVB et de l’Électrification Rurale | D9: AVC y Descripción de la Electrificación Rural | E9: label | F9: =HLOOKUP($C$2,$B$8:$D9,$A9,FALSE) -> SVO and Rural Electrification Description | G9: =$E9&$A9 -> label2
A10: 3 | B10: Data Entry | C10: Saisie de Données | D10: Datos de Entrada | E10: label | F10: =HLOOKUP($C$2,$B$8:$D10,$A10,FALSE) -> Data Entry | G10: label3
A11: 4 | B11: NEXT >> Energy Demand | C11: SUIVANT >> Demande d'Énergie | D11: SIGUIENTE >> Demanda de Energía | E11: label | F11: =HLOOKUP($C$2,$B$8:$D11,$A11,FALSE) -> NEXT >> Energy Demand | G11: label4
A12: 5 | B12: << BACK Start | C12: << RETOUR Début | D12: << VOLVER Inicio | E12: label | F12: =HLOOKUP($C$2,$B$8:$D12,$A12,FALSE) -> << BACK Start | G12: label5
A13: 6 | B13: Energy Demand | C13: Demande d'Énergie | D13: Demanda de Energía | E13: label | F13: =HLOOKUP($C$2,$B$8:$D13,$A13,FALSE) -> Energy Demand | G13: label6
A14: 7 | B14: NEXT >> Data Entry | C14: SUIVANT >> Saisie de Données | D14: SIGUIENTE >> Datos de Entrada | E14: label | F14: =HLOOKUP($C$2,$B$8:$D14,$A14,FALSE) -> NEXT >> Data Entry | G14: label7
A15: 8 | B15: Clear data | C15: Effacer les données | D15: Borrar datos | E15: label | F15: =HLOOKUP($C$2,$B$8:$D15,$A15,FALSE) -> Clear data | G15: label8
A16: 9 | B16: Load Default Values | C16: Charger les Valeurs par Défaut | D16: Cargar Valores por Defecto | E16: label | F16: =HLOOKUP($C$2,$B$8:$D16,$A16,FALSE) -> Load Default Values | G16: label9
A17: 10 | B17: Production Cost 1 | C17: Coût de Production 1 | D17: Costo de Producción 1 | E17: label | F17: =HLOOKUP($C$2,$B$8:$D17,$A17,FALSE) -> Production Cost 1 | G17: label10
A18: 11 | B18: Production Cost 2 | C18: Coût de Production 2 | D18: Costo de Producción 2 | E18: label | F18: =HLOOKUP($C$2,$B$8:$D18,$A18,FALSE) -> Production Cost 2 | G18: label11
A19: 12 | B19: Production Cost 3 | C19: Coût de Production 3 | D19: Costo de Producción 3 | E19: label | F19: =HLOOKUP($C$2,$B$8:$D19,$A19,FALSE) -> Production Cost 3 | G19: label12
A20: 13 | B20: Production Cost 4 | C20: Coût de Production 4 | D20: Costo de Producción 4 | E20: label | F20: =HLOOKUP($C$2,$B$8:$D20,$A20,FALSE) -> Production Cost 4 | G20: label13
A21: 14 | B21: Storage Calculator 1 | C21: Calculateur de Stockage 1 | D21: Calculadora de Almacenamiento 1 | E21: label | F21: =HLOOKUP($C$2,$B$8:$D21,$A21,FALSE) -> Storage Calculator 1 | G21: label14
A22: 15 | B22: Storage Calculator 2 | C22: Calculateur de Stockage 2 | D22: Calculadora de Almacenamiento 2 | E22: label | F22: =HLOOKUP($C$2,$B$8:$D22,$A22,FALSE) -> Storage Calculator 2 | G22: label15
A23: 16 | B23: Storage Calculator 3 | C23: Calculateur de Stockage 3 | D23: Calculadora de Almacenamiento 3 | E23: label | F23: =HLOOKUP($C$2,$B$8:$D23,$A23,FALSE) -> Storage Calculator 3 | G23: label16
A24: 17 | B24: Storage Calculator 4 | C24: Calculateur de Stockage 4 | D24: Calculadora de Almacenamiento 4 | E24: label | F24: =HLOOKUP($C$2,$B$8:$D24,$A24,FALSE) -> Storage Calculator 4 | G24: label17
A25: 18 | B25: Electricity Price Calculator | C25: Calculateur de Prix d’Électricité | D25: Definición del precio de electricidad | E25: label | F25: =HLOOKUP($C$2,$B$8:$D25,$A25,FALSE) -> Electricity Price Calculator | G25: label18
A26: 19 | B26: NEXT >> Summary of Results Comparative | C26: SUIVANT >> Résumé des Résultats Comparatifs | D26: SIGUIENTE >> Resumen de Resultados Comparativos | E26: label | F26: =HLOOKUP($C$2,$B$8:$D26,$A26,FALSE) -> NEXT >> Summary of Results Comparative | G26: label19
A27: 20 | B27: NEXT >> Summary of Results by Feedstock | C27: SUIVANT >> Résumé des Résultats par Matière Première | D27: SIGUIENTE >> Resumen de Resultados por Materia Prima | E27: label | F27: =HLOOKUP($C$2,$B$8:$D27,$A27,FALSE) -> NEXT >> Summary of Results by Feedstock | G27: label20
A28: 21 | B28: << BACK Data Entry | C28: << RETOUR Saisie de Données | D28: << VOLVER Datos de Entrada | E28: label | F28: =HLOOKUP($C$2,$B$8:$D28,$A28,FALSE) -> << BACK Data Entry | G28: label21
A29: 22 | B29: Financial Analysis 10 kW | C29: Analyse Financière de 10 kW | D29: Análisis Financiero 10 kW | E29: label | F29: =HLOOKUP($C$2,$B$8:$D29,$A29,FALSE) -> Financial Analysis 10 kW | G29: label22
A30: 23 | B30: Financial Analysis 40 kW | C30: Analyse Financière de 40 kW | D30: Análisis Financiero 40 kW | E30: label | F30: =HLOOKUP($C$2,$B$8:$D30,$A30,FALSE) -> Financial Analysis 40 kW | G30: label23
A31: 24 | B31: Financial Analysis 100 kW | C31: Analyse Financière de 100 kW | D31: Análisis Financiero 100 kW | E31: label | F31: =HLOOKUP($C$2,$B$8:$D31,$A31,FALSE) -> Financial Analysis 100 kW | G31: label24
A32: 25 | B32: Create a PDF report | C32: Créer un rapport PDF | D32: Crear un Reporte en PDF | E32: label | F32: =HLOOKUP($C$2,$B$8:$D32,$A32,FALSE) -> Create a PDF report | G32: label25
A33: 26 | B33: << BACK Production Cost 1 | C33: << RETOUR Coût de Production 1 | D33: << VOLVER Costo de Producción 1 | E33: label | F33: =HLOOKUP($C$2,$B$8:$D33,$A33,FALSE) -> << BACK Production Cost 1 | G33: label26
A34: 27 | B34: << BACK Production Cost 2 | C34: << RETOUR Coût de Production 2 | D34: << VOLVER Costo de Producción 2 | E34: label | F34: =HLOOKUP($C$2,$B$8:$D34,$A34,FALSE) -> << BACK Production Cost 2 | G34: label27
A35: 28 | B35: << BACK Production Cost 3 | C35: << RETOUR Coût de Production 3 | D35: << VOLVER Costo de Producción 3 | E35: label | F35: =HLOOKUP($C$2,$B$8:$D35,$A35,FALSE) -> << BACK Production Cost 3 | G35: label28
A36: 29 | B36: << BACK Production Cost 4 | C36: << RETOUR Coût de Production 4 | D36: << VOLVER Costo de Producción 4 | E36: label | F36: =HLOOKUP($C$2,$B$8:$D36,$A36,FALSE) -> << BACK Production Cost 4 | G36: label29
A37: 30 | B37: Hide this sheet | C37: Cachez cette feuille | D37: Ocultar esta Hoja | E37: label | F37: =HLOOKUP($C$2,$B$8:$D37,$A37,FALSE) -> Hide this sheet | G37: label30

Sheet START
B2: EN
C22: =title3 -> Disclaimer
C23: =title4 -> FAO declines all responsibility for errors or deficiencies in the database or software or in the documentation accompanying it, for program maintenance and upgrading as well as for any damage that may arise from them. FAO also declines any responsibility for updating the data and assumes no responsibility for errors and omissions in the data provided. Users are, however, kindly asked to report any errors or deficiencies in this product to FAO. The choices of calculation made in this tool are those of the author(s) and do not necessarily reflect the views and choices of the Food and Agriculture Organization of the United Nations.
C28: © FAO, 2014

Sheet Process Description
C3: =title5 -> SVO PRODUCTION FOR RURAL ELECTRIFICATION
U20: =title6 -> Distribution line to households (isolated grid connection)

Sheet Rural Electricity Price (hidden)
C3: ELECTRICITY PRICE CALCULATOR FOR ISOLATED AND RURAL AREAS
C6: Instructions | F6: =title17 -> Use white cells to input data | J6: =title18 -> Grey cells are used for calculations
C8: Current Electricity Technology | J8: Costing parameters
C10: Typical diesel generator capacity | H10: kW | J10: National Diesel Price | M10: =+'Data Entry Needs'!$D$33 -> 0 | N10: USD/L
C11: =title81 -> Operating hours per day | H11: h | J11: Transportation Cost of diesel | N11: USD/t/km
C12: Operating days per year | H12: day | J12: Transportation Distance | N12: km
C13: Typical efficiency | H13: % | J13: Labor and Maintenance Costs | N13: USD/kWh
C14: Calculated diesel consumption | G14: =+$G$10*$G$11*($G$12/100)*G13/(42.8*0.837/3.6) -> 0 | H14: L/year | J14: Equipment Cost | N14: USD
C16: Total production cost of electricity
C18: Concept | H18: Units | J18: =title37 -> Comparative production cost of electricity | M18: =ROUND(IFERROR($G$23/($G$10*$G$11*($G$12/100)*G13),0),2) -> 0 | N18: USD/kWh
C19: Diesel Cost | G19: =+ROUND(G14*M10,0) -> 0 | H19: =title144 -> USD/year
C20: Transportation Cost | G20: =+M11*G14*0.84*M12/1000 -> 0 | H20: =title144 -> USD/year
C21: Labor and Maintenance Costs | G21: =+$G$10*$G$11*$G$12*($G$13/100)*$M$13 -> 0 | H21: =title144 -> USD/year
C22: Investment Costs | G22: =+M14 -> 0 | H22: =title144 -> USD/year
C23: Total production cost of electricity | G23: =SUM(G19:G22) -> 0 | H23: =title144 -> USD/year

Sheet Energy Demand
C3: =title13 -> ENERGY DEMAND FOR RURAL ELECTRIFICATION - SVO
C6: =title14 -> Electricity Demand per Household
G7: =title16 -> Value calculated in the Country Status module
C8: =title15 -> Electricity consumption per household (kWh/month)
C12: Price of Electricity | E12: =+'Data Entry Needs'!$AB$80 -> 0 | F12: USD/kWh | G12: =title97 -> Capacities (kW of power generation)
C13: Annual increasing rate of price | E13: =+'Data Entry Needs'!$AB$89 -> 0 | F13: USD/kWh | G13: =+COST_OIL1!$G$30 -> 10 | I13: =+COST_OIL1!$I$30 -> 40 | K13: =+COST_OIL1!$K$30 -> 100
C14: Revenue without Policy subsidy | E14: =title39 -> Unit | F14: =title103 -> Unit Price | G14: Quantity | H14: Total | I14: Quantity | J14: Total | K14: Quantity | L14: Total
F15: =title104 -> (USD/unit) | G15: (Units) | H15: (USD/year) | I15: (Units) | J15: (USD/year) | K15: (Units) | L15: (USD/year)
C16: Power generation | E16: kWh/year | F16: =+$E$12 -> 0 | G16: =+COST_OIL1!$G$87 -> 0 | H16: =$F16*G16 -> 0 | I16: =+COST_OIL1!$I$87 -> 0 | J16: =$F16*I16 -> 0 | K16: =+COST_OIL1!$K$87 -> 0 | L16: =$F16*K16 -> 0
C17: Electricity-Self use | E17: kWh/year | F17: =F16 -> 0 | G17: =+COST_OIL1!$G$88 -> 0 | H17: =$F17*G17 -> 0 | I17: =+COST_OIL1!$I$88 -> 0 | J17: =$F17*I17 -> 0 | K17: =+COST_OIL1!$K$88 -> 0 | L17: =$F17*K17 -> 0
C18: =title82 -> Power loss in distribution network | E18: kWh/year | F18: =F16 -> 0 | G18: =+COST_OIL1!$G$89 -> 0 | H18: =$F18*G18 -> 0 | I18: =+COST_OIL1!$I$89 -> 0 | J18: =$F18*I18 -> 0 | K18: =+COST_OIL1!$K$89 -> 0 | L18: =$F18*K18 -> 0
C19: =+IF(VLOOKUP('Data Entry Needs'!$D$9,dummy_database!$G$2:$K$13,5,FALSE)="yes","Meal (by-product)","") ->  | E19: =+IF(VLOOKUP('Data Entry Needs'!$D$9,dummy_database!$G$2:$K$13,5,FALSE)="yes","t/year","") ->  | F19: =+IF(VLOOKUP('Data Entry Needs'!$D$9,dummy_database!$G$2:$K$13,5,FALSE)="yes",COST_OIL1!$E$14,"") ->  | G19: =+IF(VLOOKUP('Data Entry Needs'!$D$9,dummy_database!$G$2:$K$13,5,FALSE)="yes",COST_OIL1!$G$36*(100%-COST_OIL1!$E$13)+COST_OIL1!G$36*COST_OIL1!$E$13*COST_OIL1!$I$13,"") ->  | H19: =+IF(VLOOKUP('Data Entry Needs'!$D$9,dummy_database!$G$2:$K$13,5,FALSE)="yes",COST_OIL1!$E$14*G19,"") ->  | I19: =+IF(VLOOKUP('Data Entry Needs'!$D$9,dummy_database!$G$2:$K$13,5,FALSE)="yes",COST_OIL1!$I$36*(100%-COST_OIL1!$E$13)+COST_OIL1!I$36*COST_OIL1!$E$13*COST_OIL1!$I$13,"") ->  | J19: =+IF(VLOOKUP('Data Entry Needs'!$D$9,dummy_database!$G$2:$K$13,5,FALSE)="yes",COST_OIL1!$E$14*I19,"") ->  | K19: =+IF(VLOOKUP('Data Entry Needs'!$D$9,dummy_database!$G$2:$K$13,5,FALSE)="yes",COST_OIL1!$K$36*(100%-COST_OIL1!$E$13)+COST_OIL1!K$36*COST_OIL1!$E$13*COST_OIL1!$I$13,"") ->  | L19: =+IF(VLOOKUP('Data Entry Needs'!$D$9,dummy_database!$G$2:$K$13,5,FALSE)="yes",COST_OIL1!$E$14*K19,"") -> 
C20: =title102 -> Subtotal | H20: =SUM(H16:H19) ->  | J20: =SUM(J16:J18) -> 0 | L20: =SUM(L16:L19) -> 
C22: =("Potential Revenue of electricity production from "&'Data Entry Needs'!$E$9) -> Potential Revenue of electricity production from Please Select
C24: Price of Electricity | E24: =+'Data Entry Needs'!$AB$80 -> 0 | F24: USD/kWh | G24: =title97 -> Capacities (kW of power generation)
C25: Annual increasing rate of price | E25: =+'Data Entry Needs'!$AB$89 -> 0 | F25: USD/kWh | G25: =+COST_OIL1!$G$30 -> 10 | I25: =+COST_OIL1!$I$30 -> 40 | K25: =+COST_OIL1!$K$30 -> 100
C26: Revenue without Policy subsidy | E26: =title39 -> Unit | F26: =title103 -> Unit Price | G26: Quantity | H26: Total | I26: Quantity | J26: Total | K26: Quantity | L26: Total
F27: =title104 -> (USD/unit) | G27: (Units) | H27: (USD/year) | I27: (Units) | J27: (USD/year) | K27: (Units) | L27: (USD/year)
C28: Power generation | E28: kWh/year | F28: =+$E$12 -> 0 | G28: =+COST_OIL2!$G$87 -> 0 | H28: =$F28*G28 -> 0 | I28: =+COST_OIL2!$I$87 -> 0 | J28: =$F28*I28 -> 0 | K28: =+COST_OIL2!$K$87 -> 0 | L28: =$F28*K28 -> 0
C29: Electricity-Self use | E29: kWh/year | F29: =F28 -> 0 | G29: =+COST_OIL2!$G$88 -> 0 | H29: =$F29*G29 -> 0 | I29: =+COST_OIL2!$I$88 -> 0 | J29: =$F29*I29 -> 0 | K29: =+COST_OIL2!$K$88 -> 0 | L29: =$F29*K29 -> 0
C30: =title82 -> Power loss in distribution network | E30: kWh/year | F30: =F28 -> 0 | G30: =+COST_OIL2!$G$89 -> 0 | H30: =$F30*G30 -> 0 | I30: =+COST_OIL2!$I$89 -> 0 | J30: =$F30*I30 -> 0 | K30: =+COST_OIL2!$K$89 -> 0 | L30: =$F30*K30 -> 0
C31: =+IF(VLOOKUP('Data Entry Needs'!$E$9,dummy_database!$G$2:$K$13,5,FALSE)="yes","Meal (by-product)","") ->  | E31: =+IF(VLOOKUP('Data Entry Needs'!$E$9,dummy_database!$G$2:$K$13,5,FALSE)="yes","t/year","") ->  | F31: =+IF(VLOOKUP('Data Entry Needs'!$E$9,dummy_database!$G$2:$K$13,5,FALSE)="yes",COST_OIL2!$E$14,"") ->  | G31: =+IF(VLOOKUP('Data Entry Needs'!$E$9,dummy_database!$G$2:$K$13,5,FALSE)="yes",COST_OIL2!$G$36*(100%-COST_OIL2!$E$13)+COST_OIL2!G$36*COST_OIL2!$E$13*COST_OIL2!$I$13,"") ->  | H31: =+IF(VLOOKUP('Data Entry Needs'!$E$9,dummy_database!$G$2:$K$13,5,FALSE)="yes",COST_OIL2!$E$14*G31,"") ->  | I31: =+IF(VLOOKUP('Data Entry Needs'!$E$9,dummy_database!$G$2:$K$13,5,FALSE)="yes",COST_OIL2!$I$36*(100%-COST_OIL2!$E$13)+COST_OIL2!I$36*COST_OIL2!$E$13*COST_OIL2!$I$13,"") ->  | J31: =+IF(VLOOKUP('Data Entry Needs'!$E$9,dummy_database!$G$2:$K$13,5,FALSE)="yes",COST_OIL2!$E$14*I31,"") ->  | K31: =+IF(VLOOKUP('Data Entry Needs'!$E$9,dummy_database!$G$2:$K$13,5,FALSE)="yes",COST_OIL2!$K$36*(100%-COST_OIL2!$E$13)+COST_OIL2!K$36*COST_OIL2!$E$13*COST_OIL2!$I$13,"") ->  | L31: =+IF(VLOOKUP('Data Entry Needs'!$E$9,dummy_database!$G$2:$K$13,5,FALSE)="yes",COST_OIL2!$E$14*K31,"") -> 
C32: =title102 -> Subtotal | H32: =SUM(H28:H31) ->  | J32: =SUM(J28:J30) -> 0 | L32: =SUM(L28:L31) -> 
C34: =("Potential Revenue of electricity production from "&'Data Entry Needs'!$F$9) -> Potential Revenue of electricity production from Please Select
C36: Price of Electricity | E36: =+'Data Entry Needs'!$AB$80 -> 0 | F36: USD/kWh | G36: =title97 -> Capacities (kW of power generation)
C37: Annual increasing rate of price | E37: =+'Data Entry Needs'!$AB$89 -> 0 | F37: USD/kWh | G37: =+COST_OIL1!$G$30 -> 10 | I37: =+COST_OIL1!$I$30 -> 40 | K37: =+COST_OIL1!$K$30 -> 100
C38: Revenue without Policy subsidy | E38: =title39 -> Unit | F38: =title103 -> Unit Price | G38: Quantity | H38: Total | I38: Quantity | J38: Total | K38: Quantity | L38: Total
F39: =title104 -> (USD/unit) | G39: (Units) | H39: (USD/year) | I39: (Units) | J39: (USD/year) | K39: (Units) | L39: (USD/year)
C40: Power generation | E40: kWh/year | F40: =+$E$12 -> 0 | G40: =+COST_OIL3!$G$87 -> 0 | H40: =$F40*G40 -> 0 | I40: =+COST_OIL3!$I$87 -> 0 | J40: =$F40*I40 -> 0 | K40: =+COST_OIL3!$K$87 -> 0 | L40: =$F40*K40 -> 0
C41: Electricity-Self use | E41: kWh/year | F41: =F40 -> 0 | G41: =+COST_OIL3!$G$88 -> 0 | H41: =$F41*G41 -> 0 | I41: =+COST_OIL3!$I$88 -> 0 | J41: =$F41*I41 -> 0 | K41: =+COST_OIL3!$K$88 -> 0 | L41: =$F41*K41 -> 0
C42: =title82 -> Power loss in distribution network | E42: kWh/year | F42: =F40 -> 0 | G42: =+COST_OIL3!$G$89 -> 0 | H42: =$F42*G42 -> 0 | I42: =+COST_OIL3!$I$89 -> 0 | J42: =$F42*I42 -> 0 | K42: =+COST_OIL3!$K$89 -> 0 | L42: =$F42*K42 -> 0
C43: =+IF(VLOOKUP('Data Entry Needs'!$F$9,dummy_database!$G$2:$K$13,5,FALSE)="yes","Meal (by-product)","") ->  | E43: =+IF(VLOOKUP('Data Entry Needs'!$F$9,dummy_database!$G$2:$K$13,5,FALSE)="yes","t/year","") ->  | F43: =+IF(VLOOKUP('Data Entry Needs'!$F$9,dummy_database!$G$2:$K$13,5,FALSE)="yes",COST_OIL3!$E$14,"") ->  | G43: =+IF(VLOOKUP('Data Entry Needs'!$F$9,dummy_database!$G$2:$K$13,5,FALSE)="yes",COST_OIL3!$G$36*(100%-COST_OIL3!$F$13)+COST_OIL3!G$36*COST_OIL3!$F$13*COST_OIL3!$I$13,"") ->  | H43: =+IF(VLOOKUP('Data Entry Needs'!$F$9,dummy_database!$G$2:$K$13,5,FALSE)="yes",COST_OIL3!$E$14*G43,"") ->  | I43: =+IF(VLOOKUP('Data Entry Needs'!$F$9,dummy_database!$G$2:$K$13,5,FALSE)="yes",COST_OIL3!$I$36*(100%-COST_OIL3!$F$13)+COST_OIL3!I$36*COST_OIL3!$F$13*COST_OIL3!$I$13,"") ->  | J43: =+IF(VLOOKUP('Data Entry Needs'!$F$9,dummy_database!$G$2:$K$13,5,FALSE)="yes",COST_OIL3!$E$14*I43,"") ->  | K43: =+IF(VLOOKUP('Data Entry Needs'!$F$9,dummy_database!$G$2:$K$13,5,FALSE)="yes",COST_OIL3!$K$36*(100%-COST_OIL3!$F$13)+COST_OIL3!K$36*COST_OIL3!$F$13*COST_OIL3!$I$13,"") ->  | L43: =+IF(VLOOKUP('Data Entry Needs'!$F$9,dummy_database!$G$2:$K$13,5,FALSE)="yes",COST_OIL3!$E$14*K43,"") -> 
C44: =title102 -> Subtotal | H44: =SUM(H40:H43) ->  | J44: =SUM(J40:J42) -> 0 | L44: =SUM(L40:L43) -> 
C46: =("Potential Revenue of electricity production from "&'Data Entry Needs'!$G$9) -> Potential Revenue of electricity production from Please Select
C48: Price of Electricity | E48: =+'Data Entry Needs'!$AB$80 -> 0 | F48: USD/kWh | G48: =title97 -> Capacities (kW of power generation)
C49: Annual increasing rate of price | E49: =+'Data Entry Needs'!$AB$89 -> 0 | F49: USD/kWh | G49: =+COST_OIL1!$G$30 -> 10 | I49: =+COST_OIL1!$I$30 -> 40 | K49: =+COST_OIL1!$K$30 -> 100
C50: Revenue without Policy subsidy | E50: =title39 -> Unit | F50: =title103 -> Unit Price | G50: Quantity | H50: Total | I50: Quantity | J50: Total | K50: Quantity | L50: Total
F51: =title104 -> (USD/unit) | G51: (Units) | H51: (USD/year) | I51: (Units) | J51: (USD/year) | K51: (Units) | L51: (USD/year)
C52: Power generation | E52: kWh/year | F52: =+$E$12 -> 0 | G52: =+COST_OIL4!$G$87 -> 0 | H52: =$F52*G52 -> 0 | I52: =+COST_OIL4!$I$87 -> 0 | J52: =$F52*I52 -> 0 | K52: =+COST_OIL4!$K$87 -> 0 | L52: =$F52*K52 -> 0
C53: Electricity-Self use | E53: kWh/year | F53: =F52 -> 0 | G53: =+COST_OIL4!$G$88 -> 0 | H53: =$F53*G53 -> 0 | I53: =+COST_OIL4!$I$88 -> 0 | J53: =$F53*I53 -> 0 | K53: =+COST_OIL4!$K$88 -> 0 | L53: =$F53*K53 -> 0
C54: =title82 -> Power loss in distribution network | E54: kWh/year | F54: =F52 -> 0 | G54: =+COST_OIL4!$G$89 -> 0 | H54: =$F54*G54 -> 0 | I54: =+COST_OIL4!$I$89 -> 0 | J54: =$F54*I54 -> 0 | K54: =+COST_OIL4!$K$89 -> 0 | L54: =$F54*K54 -> 0
C55: =+IF(VLOOKUP('Data Entry Needs'!$G$9,dummy_database!$G$2:$K$13,5,FALSE)="yes","Meal (by-product)","") ->  | E55: =+IF(VLOOKUP('Data Entry Needs'!$G$9,dummy_database!$G$2:$K$13,5,FALSE)="yes","t/year","") ->  | F55: =+IF(VLOOKUP('Data Entry Needs'!$G$9,dummy_database!$G$2:$K$13,5,FALSE)="yes",COST_OIL4!$E$14,"") ->  | G55: =+IF(VLOOKUP('Data Entry Needs'!$G$9,dummy_database!$G$2:$K$13,5,FALSE)="yes",COST_OIL4!$G$36*(100%-COST_OIL4!$F$13)+COST_OIL4!G$36*COST_OIL4!$F$13*COST_OIL4!$I$13,"") ->  | H55: =+IF(VLOOKUP('Data Entry Needs'!$G$9,dummy_database!$G$2:$K$13,5,FALSE)="yes",COST_OIL4!$E$14*G55,"") ->  | I55: =+IF(VLOOKUP('Data Entry Needs'!$G$9,dummy_database!$G$2:$K$13,5,FALSE)="yes",COST_OIL4!$I$36*(100%-COST_OIL4!$F$13)+COST_OIL4!I$36*COST_OIL4!$F$13*COST_OIL4!$I$13,"") ->  | J55: =+IF(VLOOKUP('Data Entry Needs'!$G$9,dummy_database!$G$2:$K$13,5,FALSE)="yes",COST_OIL4!$E$14*I55,"") ->  | K55: =+IF(VLOOKUP('Data Entry Needs'!$G$9,dummy_database!$G$2:$K$13,5,FALSE)="yes",COST_OIL4!$K$36*(100%-COST_OIL4!$F$13)+COST_OIL4!K$36*COST_OIL4!$F$13*COST_OIL4!$I$13,"") ->  | L55: =+IF(VLOOKUP('Data Entry Needs'!$G$9,dummy_database!$G$2:$K$13,5,FALSE)="yes",COST_OIL4!$E$14*K55,"") -> 
C56: =title102 -> Subtotal | H56: =SUM(H52:H55) ->  | J56: =SUM(J52:J54) -> 0 | L56: =SUM(L52:L55) -> 

Sheet STORAGE_OIL1 (hidden)
C3: =UPPER("storage calculator FOR SVO+RURAL ELECTRICITY AND/OR HEAT FROM "&'Data Entry Needs'!$D$9) -> STORAGE CALCULATOR FOR SVO+RURAL ELECTRICITY AND/OR HEAT FROM PLEASE SELECT
C6: Biomass safety stock rate definition
F8: Electricity Production Capacities (kW)
D9: =title39 -> Unit | F9: 10 | I9: 40 | L9: 100
C10: Biomass consumption | D10: t/year | F10: =+COST_OIL1!$G$36 ->  | I10: =+COST_OIL1!$I$36 ->  | L10: =+COST_OIL1!$K$36 -> 
D11: t/month | F11: =F10/12 ->  | I11: =I10/12 ->  | L11: =L10/12 -> 
D12: t/day | F12: =F10/365 ->  | I12: =I10/365 ->  | L12: =L10/365 -> 
C14: Biomass production within a specific distance | D14: t/year | F14: =+COST_OIL1!$E$10 -> 0 | I14: =+F14 -> 0 | L14: =+I14 -> 0
C16: Biomass safety stock rate | F16: =+F17/100 -> 0.3 | I16: =+I17/100 -> 0.3 | L16: =+L17/100 -> 0.3
F17: 30 | I17: 30 | L17: 30
C18: Biomass stock pile capacity | D18: t | F18: =+MAX(F25:F36) ->  | I18: =+MAX(I25:I36) ->  | L18: =+MAX(L25:L36) -> 
C20: Maximum storage definition
F22: Electricity Production Capacities (kW)
F23: =+F9 -> 10 | I23: =+I9 -> 40 | L23: =+L9 -> 100 | AD23: Depletion time definition
C24: Harvest Month Selection | D24: Storage Month | E24: Monthly Consumption (t/month) | F24: Biomass Stored (t) | G24: Biomass Stored (t) | H24: Biomass Stored (t) | I24: Biomass Stored (t) | J24: Biomass Stored (t) | K24: Biomass Stored (t) | L24: Biomass Stored (t) | M24: Storage Depletion (t/month) | AB24: Harvest Period | AC24: Harvest Period | AD24: Depletion term | AE24: Depletion month | AF24: EQ term | AG24: Depletion time | AH24: Storage term | AI24: Storage month | AJ24: EQ term | AK24: Storage time
C25: January | D25: =+IF($AC25=0,0,IF($AC25>$AC36,1,IF($AC25=$AC36,$D36+1,IF($AC36>$AC25,0)))) -> 0 | E25: =+F$11 ->  | F25: =+ROUNDUP(IF(AND($D$25=1,$D$36=0,$D$26=0),$F$11*$AG25+$F$11*$F$16,IF(D25>0,($AG25*$F$11/$AK25)*$D25+$F$11*$F$16,0)),1) -> 0 | G25: =IF(AND($D$25=1,$D$36=0,$D$26=0),$F$11*$AG25+$G$36,IF($D25>0,IFERROR(($AG25*$F$11/$AK25)*$D25,"")+$F$11*$F$16,IF($D25=0,G36-E25))) ->  | H25: =+I$11 ->  | I25: =+ROUNDUP(IF(AND($D$25=1,$D$36=0,$D$26=0),$I$11*$AG25+$I$11*$I$16,IF(D25>0,($AG25*$I$11/$AK25)*$D25+$I$11*$I$16,0)),1) -> 0 | J25: =IF(AND($D$25=1,$D$36=0,$D$26=0),$I$11*$AG25+$J$36,IF($D25>0,IFERROR(($AG25*$I$11/$AK25)*$D25,"")+$I$11*$I$16,IF($D25=0,J36-H25))) ->  | K25: =+L$11 ->  | L25: =+ROUNDUP(IF(AND($D$25=1,$D$36=0,$D$26=0),$L$11*$AG25+$L$11*$L$16,IF($D25>0,($AG25*$L$11/$AK25)*$D25+$L$11*$L$16,0)),1) -> 0 | M25: =IF(AND($D$25=1,$D$36=0,$D$26=0),$L$11*$AG25+$M$36,IF($D25>0,IFERROR(($AG25*$L$11/$AK25)*$D25,"")+$L$11*$L$16,IF($D25=0,M36-K25))) ->  | AB25: FALSE | AC25: =+N(AB25) -> 0 | AD25: =+IF(AND(AC26>AC25,AC25=0),"Last"&AF25,"") ->  | AE25: =+IF($AC25=1,0,IF($AC25<$AC36,1,IF($AC25=$AC36,$AE36+1,IF($AC36>$AC25,1)))) -> 5 | AF25: 1 | AG25: =IFERROR(VLOOKUP("LAST"&AF25,$AD$25:$AE$36,2,FALSE),AK25) -> 6 | AH25: =+IF(AND(AI25>AI26,AI26=0),"Last"&AJ25,"") ->  | AI25: =+IF($AC25=0,0,IF($AC25>$AC36,1,IF($AC25=$AC36,$AI36+1,IF($AC36>$AC25,0)))) -> 0 | AJ25: 1 | AK25: =IFERROR(VLOOKUP("LAST"&AJ25,$AH$25:$AI$36,2,FALSE),VLOOKUP("LAST"&1,$AH$25:$AI$36,2,FALSE)) -> 1
C26: February | D26: =+IF($AC26=0,0,IF($AC26>$AC25,1,IF($AC26=$AC25,$D25+1,IF($AC25>$AC26,0)))) -> 0 | F26: =ROUNDUP(IF(D26>0,($AG26*$F$11/$AK26)*$D26+$F$11*$F$16,0),1) -> 0 | G26: =+IF($D26>0,IFERROR(($AG26*$F$11/$AK26)*$D26,"")+$F$11*$F$16,IF($D26=0,G25-E26)) ->  | I26: =ROUNDUP(IF(D26>0,($AG26*$I$11/$AK26)*$D26+$I$11*$I$16,0),1) -> 0 | J26: =+IF($D26>0,IFERROR(($AG26*$I$11/$AK26)*$D26,"")+$I$11*$I$16,IF($D26=0,J25-H26)) ->  | L26: =ROUNDUP(IF($D26>0,($AG26*$L$11/$AK26)*$D26+$L$11*$L$16,0),1) -> 0 | M26: =+IF($D26>0,IFERROR(($AG26*$L$11/$AK26)*$D26,"")+$L$11*$L$16,IF($D26=0,M25-K26)) ->  | AB26: FALSE | AC26: =+N(AB26) -> 0 | AD26: =+IF(AND(AC27>AC26,AC26=0),"Last"&AF26,"") -> Last1 | AE26: =+IF($AC26=1,0,IF($AC26<$AC25,1,IF($AC26=$AC25,$AE25+1,IF($AC25>$AC26,1)))) -> 6 | AF26: =+IF($AE25>$AE26,$AF25+1,$AF25) -> 1 | AG26: =IFERROR(VLOOKUP("LAST"&AF26,$AD$25:$AE$36,2,FALSE),$AG$25) -> 6 | AH26: =+IF(AND(AI26>AI27,AI27=0),"Last"&AJ26,"") ->  | AI26: =+IF($AC26=0,0,IF($AC26>$AC25,1,IF($AC26=$AC25,$AI25+1,IF($AC25>$AC26,0)))) -> 0 | AJ26: =+IF($AI25>$AI26,$AJ25+1,$AJ25) -> 1 | AK26: =IFERROR(VLOOKUP("LAST"&AJ26,$AH$25:$AI$36,2,FALSE),VLOOKUP("LAST"&1,$AH$25:$AI$36,2,FALSE)) -> 1
C27: March | D27: 1 | AB27: TRUE | AC27: 1 | AD27: =+IF(AND(AC28>AC27,AC27=0),"Last"&AF27,"") ->  | AE27: 0 | AF27: =+IF($AE26>$AE27,$AF26+1,$AF26) -> 2 | AG27: 4 | AH27: =+IF(AND(AI27>AI28,AI28=0),"Last"&AJ27,"") -> Last1 | AI27: =+IF($AC27=0,0,IF($AC27>$AC26,1,IF($AC27=$AC26,$AI26+1,IF($AC26>$AC27,0)))) -> 1 | AJ27: =+IF($AI26>$AI27,$AJ26+1,$AJ26) -> 1 | AK27: 1
C28: April | D28: 0 | F28: 0 | I28: 0 | L28: 0 | AB28: FALSE | AC28: 0 | AD28: =+IF(AND(AC29>AC28,AC28=0),"Last"&AF28,"") ->  | AE28: 1 | AF28: =+IF($AE27>$AE28,$AF27+1,$AF27) -> 2 | AG28: 4 | AH28: =+IF(AND(AI28>AI29,AI29=0),"Last"&AJ28,"") ->  | AI28: 0 | AJ28: 2 | AK28: 1
C29: May | D29: 0 | F29: 0 | I29: 0 | L29: 0 | AB29: FALSE | AC29: 0 | AE29: 2 | AF29: 2 | AG29: 4 | AH29: =+IF(AND(AI29>AI30,AI30=0),"Last"&AJ29,"") ->  | AI29: 0 | AJ29: 2 | AK29: 1
C30: June | D30: 0 | F30: 0 | I30: 0 | L30: 0 | AB30: FALSE | AC30: 0 | AE30: 3 | AF30: 2 | AG30: 4 | AI30: 0 | AJ30: 2 | AK30: 1
C31: July | D31: 0 | F31: 0 | I31: 0 | L31: 0 | AB31: FALSE | AC31: 0 | AD31: Last2 | AE31: 4 | AF31: 2 | AG31: 4 | AI31: 0 | AJ31: 2 | AK31: 1
C32: August | D32: 1 | AB32: TRUE | AC32: 1 | AE32: 0 | AF32: 3 | AG32: 6 | AH32: Last2 | AI32: 1 | AJ32: 2 | AK32: 1
C33: September | D33: 0 | F33: 0 | I33: 0 | L33: 0 | AB33: FALSE | AC33: 0 | AE33: 1 | AF33: 3 | AG33: 6 | AI33: 0 | AJ33: 3 | AK33: 1
C34: October | D34: 0 | F34: 0 | I34: 0 | L34: 0 | AB34: FALSE | AC34: 0 | AE34: 2 | AF34: 3 | AG34: 6 | AI34: 0 | AJ34: 3 | AK34: 1
C35: November | D35: 0 | F35: 0 | I35: 0 | L35: 0 | AB35: FALSE | AC35: 0 | AE35: 3 | AF35: 3 | AG35: 6 | AI35: 0 | AJ35: 3 | AK35: 1
C36: December | D36: 0 | F36: 0 | I36: 0 | L36: 0 | AB36: FALSE | AC36: 0 | AD36: =+IF(AND(AC25>AC36,AC36=0),"Last"&AF36,"") ->  | AE36: 4 | AF36: =+IF($AE35>$AE36,$AF35+1,$AF35) -> 3 | AG36: =IFERROR(VLOOKUP("LAST"&AF36,$AD$25:$AE$36,2,FALSE),$AG$25) -> 6 | AH36: =+IF(AND(AI36>AI25,AI25=0),"Last"&AJ36,"") ->  | AI36: =+IF($AC36=0,0,IF($AC36>$AC35,1,IF($AC36=$AC35,$AI35+1,IF($AC35>$AC36,0)))) -> 0 | AJ36: =+IF($AI35>$AI36,$AJ35+1,$AJ35) -> 3 | AK36: 1
D37: +SUMA(F(-12)C:F(-1)C)*30
C38: Maximum Storage Capacity Required (ts) | F38: =ROUNDUP(MAX(F25:F36),0) ->  | I38: =ROUNDUP(MAX(I25:I36),0) ->  | L38: =+ROUNDUP(MAX(L25:L36),0) ->  | AB38: No. Storage Months | AC38: =+COUNTIF(AC25:AC36,">0") -> 2
C39: Minimum Safety Storage (ts) | F39: =+ROUNDUP(MIN(G25:G36),0) ->  | I39: =+ROUNDUP(MIN(J25:J36),0) ->  | L39: =+ROUNDUP(MIN(M25:M36),0) ->  | AB39: Total Depletion Period | AC39: =12-AC38 -> 10
C41: Monthly Change of Biomass Stored
AE43: =F23&" (kW)" -> 10 (kW) | AF43: =I23&" (kW)" -> 40 (kW) | AG43: =L23&" (kW)" -> 100 (kW)
AD44: =+LEFT(title266,3) -> Jan | AE44: =+G25 ->  | AF44: =+J25 ->  | AG44: =+M25 -> 
AD45: =+LEFT(title267,3) -> Feb
AD46: =+LEFT(title268,3) -> Mar
AD47: =+LEFT(title269,3) -> Apr
AD48: =+LEFT(title270,3) -> May
AD49: =+LEFT(title271,3) -> Jun
AD50: =+LEFT(title272,3) -> Jul | AE50: =+G31 ->  | AF50: =+J31 ->  | AG50: =+M31 -> 
AD51: =+LEFT(title273,3) -> Aug | AE51: =+G32 ->  | AF51: =+J32 ->  | AG51: =+M32 -> 
AD52: =+LEFT(title274,3) -> Sep | AE52: =+G33 ->  | AF52: =+J33 ->  | AG52: =+M33 -> 
AD53: =+LEFT(title275,3) -> Oct | AE53: =+G34 ->  | AF53: =+J34 ->  | AG53: =+M34 -> 
AD54: =+LEFT(title276,3) -> Nov | AE54: =+G35 ->  | AF54: =+J35 ->  | AG54: =+M35 -> 
AD55: =+LEFT(title277,3) -> Dec | AE55: =+G36 ->  | AF55: =+J36 ->  | AG55: =+M36 -> 

Sheet STORAGE_OIL2 (hidden)
C3: =UPPER("storage calculator FOR SVO+RURAL ELECTRICITY AND/OR HEAT FROM "&'Data Entry Needs'!$E$9) -> STORAGE CALCULATOR FOR SVO+RURAL ELECTRICITY AND/OR HEAT FROM PLEASE SELECT
C6: Biomass safety stock rate definition
F8: Electricity Production Capacities (kW)
D9: =title39 -> Unit | F9: 10 | I9: 40 | L9: 100
C10: Biomass consumption | D10: t/year | F10: =+COST_OIL2!$G$36 ->  | I10: =+COST_OIL2!$I$36 ->  | L10: =+COST_OIL2!$K$36 -> 
D11: t/month | F11: =F10/12 ->  | I11: =I10/12 ->  | L11: =L10/12 -> 
D12: t/day | F12: =F10/365 ->  | I12: =I10/365 ->  | L12: =L10/365 -> 
C14: Biomass production within a specific distance | D14: t/year | F14: =+COST_OIL2!$E$10 -> 0 | I14: =+F14 -> 0 | L14: =+I14 -> 0
C16: Biomass safety stock rate | F16: =+F17/100 -> 0.3 | I16: =+I17/100 -> 0.3 | L16: =+L17/100 -> 0.3
F17: 30 | I17: 30 | L17: 30
C18: Biomass stock pile capacity | D18: t | F18: =+MAX(F25:F36) ->  | I18: =+MAX(I25:I36) ->  | L18: =+MAX(L25:L36) -> 
C20: Maximum storage definition
F22: Electricity Production Capacities (kW)
F23: =+F9 -> 10 | I23: =+I9 -> 40 | L23: =+L9 -> 100 | AD23: Depletion time definition
C24: Harvest Month Selection | D24: Storage Month | E24: Monthly Consumption (t/month) | F24: Biomass Stored (t) | G24: Biomass Stored (t) | H24: Biomass Stored (t) | I24: Biomass Stored (t) | J24: Biomass Stored (t) | K24: Biomass Stored (t) | L24: Biomass Stored (t) | M24: Storage Depletion (t/month) | AB24: Harvest Period | AC24: Harvest Period | AD24: Depletion term | AE24: Depletion month | AF24: EQ term | AG24: Depletion time | AH24: Storage term | AI24: Storage month | AJ24: EQ term | AK24: Storage time
C25: January | D25: =+IF($AC25=0,0,IF($AC25>$AC36,1,IF($AC25=$AC36,$D36+1,IF($AC36>$AC25,0)))) -> 0 | E25: =+F$11 ->  | F25: =+ROUNDUP(IF(AND($D$25=1,$D$36=0,$D$26=0),$F$11*$AG25+$F$11*$F$16,IF(D25>0,($AG25*$F$11/$AK25)*$D25+$F$11*$F$16,0)),1) -> 0 | G25: =IF(AND($D$25=1,$D$36=0,$D$26=0),$F$11*$AG25+$G$36,IF($D25>0,IFERROR(($AG25*$F$11/$AK25)*$D25,"")+$F$11*$F$16,IF($D25=0,G36-E25))) ->  | H25: =+I$11 ->  | I25: =+ROUNDUP(IF(AND($D$25=1,$D$36=0,$D$26=0),$I$11*$AG25+$I$11*$I$16,IF(D25>0,($AG25*$I$11/$AK25)*$D25+$I$11*$I$16,0)),1) -> 0 | J25: =IF(AND($D$25=1,$D$36=0,$D$26=0),$I$11*$AG25+$J$36,IF($D25>0,IFERROR(($AG25*$I$11/$AK25)*$D25,"")+$I$11*$I$16,IF($D25=0,J36-H25))) ->  | K25: =+L$11 ->  | L25: =+ROUNDUP(IF(AND($D$25=1,$D$36=0,$D$26=0),$L$11*$AG25+$L$11*$L$16,IF($D25>0,($AG25*$L$11/$AK25)*$D25+$L$11*$L$16,0)),1) -> 0 | M25: =IF(AND($D$25=1,$D$36=0,$D$26=0),$L$11*$AG25+$M$36,IF($D25>0,IFERROR(($AG25*$L$11/$AK25)*$D25,"")+$L$11*$L$16,IF($D25=0,M36-K25))) ->  | AB25: FALSE | AC25: =+N(AB25) -> 0 | AD25: =+IF(AND(AC26>AC25,AC25=0),"Last"&AF25,"") ->  | AE25: =+IF($AC25=1,0,IF($AC25<$AC36,1,IF($AC25=$AC36,$AE36+1,IF($AC36>$AC25,1)))) -> 8 | AF25: 1 | AG25: =IFERROR(VLOOKUP("LAST"&AF25,$AD$25:$AE$36,2,FALSE),AK25) -> 10 | AH25: =+IF(AND(AI25>AI26,AI26=0),"Last"&AJ25,"") ->  | AI25: =+IF($AC25=0,0,IF($AC25>$AC36,1,IF($AC25=$AC36,$AI36+1,IF($AC36>$AC25,0)))) -> 0 | AJ25: 1 | AK25: =IFERROR(VLOOKUP("LAST"&AJ25,$AH$25:$AI$36,2,FALSE),VLOOKUP("LAST"&1,$AH$25:$AI$36,2,FALSE)) -> 2
C26: February | D26: =+IF($AC26=0,0,IF($AC26>$AC25,1,IF($AC26=$AC25,$D25+1,IF($AC25>$AC26,0)))) -> 0 | F26: =ROUNDUP(IF(D26>0,($AG26*$F$11/$AK26)*$D26+$F$11*$F$16,0),1) -> 0 | G26: =+IF($D26>0,IFERROR(($AG26*$F$11/$AK26)*$D26,"")+$F$11*$F$16,IF($D26=0,G25-E26)) ->  | I26: =ROUNDUP(IF(D26>0,($AG26*$I$11/$AK26)*$D26+$I$11*$I$16,0),1) -> 0 | J26: =+IF($D26>0,IFERROR(($AG26*$I$11/$AK26)*$D26,"")+$I$11*$I$16,IF($D26=0,J25-H26)) ->  | L26: =ROUNDUP(IF($D26>0,($AG26*$L$11/$AK26)*$D26+$L$11*$L$16,0),1) -> 0 | M26: =+IF($D26>0,IFERROR(($AG26*$L$11/$AK26)*$D26,"")+$L$11*$L$16,IF($D26=0,M25-K26)) ->  | AB26: FALSE | AC26: =+N(AB26) -> 0 | AD26: =+IF(AND(AC27>AC26,AC26=0),"Last"&AF26,"") ->  | AE26: =+IF($AC26=1,0,IF($AC26<$AC25,1,IF($AC26=$AC25,$AE25+1,IF($AC25>$AC26,1)))) -> 9 | AF26: =+IF($AE25>$AE26,$AF25+1,$AF25) -> 1 | AG26: =IFERROR(VLOOKUP("LAST"&AF26,$AD$25:$AE$36,2,FALSE),$AG$25) -> 10 | AH26: =+IF(AND(AI26>AI27,AI27=0),"Last"&AJ26,"") ->  | AI26: =+IF($AC26=0,0,IF($AC26>$AC25,1,IF($AC26=$AC25,$AI25+1,IF($AC25>$AC26,0)))) -> 0 | AJ26: =+IF($AI25>$AI26,$AJ25+1,$AJ25) -> 1 | AK26: =IFERROR(VLOOKUP("LAST"&AJ26,$AH$25:$AI$36,2,FALSE),VLOOKUP("LAST"&1,$AH$25:$AI$36,2,FALSE)) -> 2
C27: March | D27: 0 | F27: 0 | I27: 0 | L27: 0 | AB27: FALSE | AC27: 0 | AD27: =+IF(AND(AC28>AC27,AC27=0),"Last"&AF27,"") -> Last1 | AE27: 10 | AF27: =+IF($AE26>$AE27,$AF26+1,$AF26) -> 1 | AG27: 10 | AH27: =+IF(AND(AI27>AI28,AI28=0),"Last"&AJ27,"") ->  | AI27: =+IF($AC27=0,0,IF($AC27>$AC26,1,IF($AC27=$AC26,$AI26+1,IF($AC26>$AC27,0)))) -> 0 | AJ27: =+IF($AI26>$AI27,$AJ26+1,$AJ26) -> 1 | AK27: 2
C28: April | D28: 1 | AB28: TRUE | AC28: 1 | AD28: =+IF(AND(AC29>AC28,AC28=0),"Last"&AF28,"") ->  | AE28: 0 | AF28: =+IF($AE27>$AE28,$AF27+1,$AF27) -> 2 | AG28: 10 | AH28: =+IF(AND(AI28>AI29,AI29=0),"Last"&AJ28,"") ->  | AI28: 1 | AJ28: 1 | AK28: 2
C29: May | D29: 2 | AB29: TRUE | AC29: 1 | AE29: 0 | AF29: 2 | AG29: 10 | AH29: =+IF(AND(AI29>AI30,AI30=0),"Last"&AJ29,"") -> Last1 | AI29: 2 | AJ29: 1 | AK29: 2
C30: June | D30: 0 | F30: 0 | I30: 0 | L30: 0 | AB30: FALSE | AC30: 0 | AE30: 1 | AF30: 2 | AG30: 10 | AI30: 0 | AJ30: 2 | AK30: 2
C31: July | D31: 0 | F31: 0 | I31: 0 | L31: 0 | AB31: FALSE | AC31: 0 | AE31: 2 | AF31: 2 | AG31: 10 | AI31: 0 | AJ31: 2 | AK31: 2
C32: August | D32: 0 | F32: 0 | I32: 0 | L32: 0 | AB32: FALSE | AC32: 0 | AE32: 3 | AF32: 2 | AG32: 10 | AI32: 0 | AJ32: 2 | AK32: 2
C33: September | D33: 0 | F33: 0 | I33: 0 | L33: 0 | AB33: FALSE | AC33: 0 | AE33: 4 | AF33: 2 | AG33: 10 | AI33: 0 | AJ33: 2 | AK33: 2
C34: October | D34: 0 | F34: 0 | I34: 0 | L34: 0 | AB34: FALSE | AC34: 0 | AE34: 5 | AF34: 2 | AG34: 10 | AI34: 0 | AJ34: 2 | AK34: 2
C35: November | D35: 0 | F35: 0 | I35: 0 | L35: 0 | AB35: FALSE | AC35: 0 | AE35: 6 | AF35: 2 | AG35: 10 | AI35: 0 | AJ35: 2 | AK35: 2
C36: December | D36: 0 | F36: 0 | I36: 0 | L36: 0 | AB36: FALSE | AC36: 0 | AD36: =+IF(AND(AC25>AC36,AC36=0),"Last"&AF36,"") ->  | AE36: 7 | AF36: =+IF($AE35>$AE36,$AF35+1,$AF35) -> 2 | AG36: =IFERROR(VLOOKUP("LAST"&AF36,$AD$25:$AE$36,2,FALSE),$AG$25) -> 10 | AH36: =+IF(AND(AI36>AI25,AI25=0),"Last"&AJ36,"") ->  | AI36: =+IF($AC36=0,0,IF($AC36>$AC35,1,IF($AC36=$AC35,$AI35+1,IF($AC35>$AC36,0)))) -> 0 | AJ36: =+IF($AI35>$AI36,$AJ35+1,$AJ35) -> 2 | AK36: 2
D37: +SUMA(F(-12)C:F(-1)C)*30
C38: Maximum Storage Capacity Required (ts) | F38: =ROUNDUP(MAX(F25:F36),0) ->  | I38: =ROUNDUP(MAX(I25:I36),0) ->  | L38: =+ROUNDUP(MAX(L25:L36),0) ->  | AB38: No. Storage Months | AC38: =+COUNTIF(AC25:AC36,">0") -> 2
C39: Minimum Safety Storage (ts) | F39: =+ROUNDUP(MIN(G25:G36),0) ->  | I39: =+ROUNDUP(MIN(J25:J36),0) ->  | L39: =+ROUNDUP(MIN(M25:M36),0) ->  | AB39: Total Depletion Period | AC39: =12-AC38 -> 10
C41: Monthly Change of Biomass Stored
AE43: =F23&" (kW)" -> 10 (kW) | AF43: =I23&" (kW)" -> 40 (kW) | AG43: =L23&" (kW)" -> 100 (kW)
AD44: =+LEFT(title266,3) -> Jan | AE44: =+G25 ->  | AF44: =+J25 ->  | AG44: =+M25 -> 
AD45: =+LEFT(title267,3) -> Feb
AD46: =+LEFT(title268,3) -> Mar
AD47: =+LEFT(title269,3) -> Apr
AD48: =+LEFT(title270,3) -> May
AD49: =+LEFT(title271,3) -> Jun
AD50: =+LEFT(title272,3) -> Jul | AE50: =+G31 ->  | AF50: =+J31 ->  | AG50: =+M31 -> 
AD51: =+LEFT(title273,3) -> Aug | AE51: =+G32 ->  | AF51: =+J32 ->  | AG51: =+M32 -> 
AD52: =+LEFT(title274,3) -> Sep | AE52: =+G33 ->  | AF52: =+J33 ->  | AG52: =+M33 -> 
AD53: =+LEFT(title275,3) -> Oct | AE53: =+G34 ->  | AF53: =+J34 ->  | AG53: =+M34 -> 
AD54: =+LEFT(title276,3) -> Nov | AE54: =+G35 ->  | AF54: =+J35 ->  | AG54: =+M35 -> 
AD55: =+LEFT(title277,3) -> Dec | AE55: =+G36 ->  | AF55: =+J36 ->  | AG55: =+M36 -> 

Sheet STORAGE_OIL3 (hidden)
C3: =UPPER("storage calculator FOR SVO+RURAL ELECTRICITY AND/OR HEAT FROM "&'Data Entry Needs'!$F$9) -> STORAGE CALCULATOR FOR SVO+RURAL ELECTRICITY AND/OR HEAT FROM PLEASE SELECT
C6: Biomass safety stock rate definition
F8: Electricity Production Capacities (kW)
D9: =title39 -> Unit | F9: 10 | I9: 40 | L9: 100
C10: Biomass consumption | D10: t/year | F10: =+COST_OIL3!$G$36 ->  | I10: =+COST_OIL3!$I$36 ->  | L10: =+COST_OIL3!$K$36 -> 
D11: t/month | F11: =F10/12 ->  | I11: =I10/12 ->  | L11: =L10/12 -> 
D12: t/day | F12: =F10/365 ->  | I12: =I10/365 ->  | L12: =L10/365 -> 
C14: Biomass production within a specific distance | D14: t/year | F14: =+COST_OIL3!$E$10 -> 0 | I14: =+F14 -> 0 | L14: =+I14 -> 0
C16: Biomass safety stock rate | F16: =+F17/100 -> 0.3 | I16: =+I17/100 -> 0.3 | L16: =+L17/100 -> 0.3
F17: 30 | I17: 30 | L17: 30
C18: Biomass stock pile capacity | D18: t | F18: =+MAX(F25:F36) ->  | I18: =+MAX(I25:I36) ->  | L18: =+MAX(L25:L36) -> 
C20: Maximum storage definition
F22: Electricity Production Capacities (kW)
F23: =+F9 -> 10 | I23: =+I9 -> 40 | L23: =+L9 -> 100 | AD23: Depletion time definition
C24: Harvest Month Selection | D24: Storage Month | E24: Monthly Consumption (t/month) | F24: Biomass Stored (t) | G24: Biomass Stored (t) | H24: Biomass Stored (t) | I24: Biomass Stored (t) | J24: Biomass Stored (t) | K24: Biomass Stored (t) | L24: Biomass Stored (t) | M24: Storage Depletion (t/month) | AB24: Harvest Period | AC24: Harvest Period | AD24: Depletion term | AE24: Depletion month | AF24: EQ term | AG24: Depletion time | AH24: Storage term | AI24: Storage month | AJ24: EQ term | AK24: Storage time
C25: January | D25: =+IF($AC25=0,0,IF($AC25>$AC36,1,IF($AC25=$AC36,$D36+1,IF($AC36>$AC25,0)))) -> 0 | E25: =+F$11 ->  | F25: =+ROUNDUP(IF(AND($D$25=1,$D$36=0,$D$26=0),$F$11*$AG25+$F$11*$F$16,IF(D25>0,($AG25*$F$11/$AK25)*$D25+$F$11*$F$16,0)),1) -> 0 | G25: =IF(AND($D$25=1,$D$36=0,$D$26=0),$F$11*$AG25+$G$36,IF($D25>0,IFERROR(($AG25*$F$11/$AK25)*$D25,"")+$F$11*$F$16,IF($D25=0,G36-E25))) ->  | H25: =+I$11 ->  | I25: =+ROUNDUP(IF(AND($D$25=1,$D$36=0,$D$26=0),$I$11*$AG25+$I$11*$I$16,IF(D25>0,($AG25*$I$11/$AK25)*$D25+$I$11*$I$16,0)),1) -> 0 | J25: =IF(AND($D$25=1,$D$36=0,$D$26=0),$I$11*$AG25+$J$36,IF($D25>0,IFERROR(($AG25*$I$11/$AK25)*$D25,"")+$I$11*$I$16,IF($D25=0,J36-H25))) ->  | K25: =+L$11 ->  | L25: =+ROUNDUP(IF(AND($D$25=1,$D$36=0,$D$26=0),$L$11*$AG25+$L$11*$L$16,IF($D25>0,($AG25*$L$11/$AK25)*$D25+$L$11*$L$16,0)),1) -> 0 | M25: =IF(AND($D$25=1,$D$36=0,$D$26=0),$L$11*$AG25+$M$36,IF($D25>0,IFERROR(($AG25*$L$11/$AK25)*$D25,"")+$L$11*$L$16,IF($D25=0,M36-K25))) ->  | AB25: FALSE | AC25: =+N(AB25) -> 0 | AD25: =+IF(AND(AC26>AC25,AC25=0),"Last"&AF25,"") ->  | AE25: =+IF($AC25=1,0,IF($AC25<$AC36,1,IF($AC25=$AC36,$AE36+1,IF($AC36>$AC25,1)))) -> 8 | AF25: 1 | AG25: =IFERROR(VLOOKUP("LAST"&AF25,$AD$25:$AE$36,2,FALSE),AK25) -> 10 | AH25: =+IF(AND(AI25>AI26,AI26=0),"Last"&AJ25,"") ->  | AI25: =+IF($AC25=0,0,IF($AC25>$AC36,1,IF($AC25=$AC36,$AI36+1,IF($AC36>$AC25,0)))) -> 0 | AJ25: 1 | AK25: =IFERROR(VLOOKUP("LAST"&AJ25,$AH$25:$AI$36,2,FALSE),VLOOKUP("LAST"&1,$AH$25:$AI$36,2,FALSE)) -> 2
C26: February | D26: =+IF($AC26=0,0,IF($AC26>$AC25,1,IF($AC26=$AC25,$D25+1,IF($AC25>$AC26,0)))) -> 0 | F26: =ROUNDUP(IF(D26>0,($AG26*$F$11/$AK26)*$D26+$F$11*$F$16,0),1) -> 0 | G26: =+IF($D26>0,IFERROR(($AG26*$F$11/$AK26)*$D26,"")+$F$11*$F$16,IF($D26=0,G25-E26)) ->  | I26: =ROUNDUP(IF(D26>0,($AG26*$I$11/$AK26)*$D26+$I$11*$I$16,0),1) -> 0 | J26: =+IF($D26>0,IFERROR(($AG26*$I$11/$AK26)*$D26,"")+$I$11*$I$16,IF($D26=0,J25-H26)) ->  | L26: =ROUNDUP(IF($D26>0,($AG26*$L$11/$AK26)*$D26+$L$11*$L$16,0),1) -> 0 | M26: =+IF($D26>0,IFERROR(($AG26*$L$11/$AK26)*$D26,"")+$L$11*$L$16,IF($D26=0,M25-K26)) ->  | AB26: FALSE | AC26: =+N(AB26) -> 0 | AD26: =+IF(AND(AC27>AC26,AC26=0),"Last"&AF26,"") ->  | AE26: =+IF($AC26=1,0,IF($AC26<$AC25,1,IF($AC26=$AC25,$AE25+1,IF($AC25>$AC26,1)))) -> 9 | AF26: =+IF($AE25>$AE26,$AF25+1,$AF25) -> 1 | AG26: =IFERROR(VLOOKUP("LAST"&AF26,$AD$25:$AE$36,2,FALSE),$AG$25) -> 10 | AH26: =+IF(AND(AI26>AI27,AI27=0),"Last"&AJ26,"") ->  | AI26: =+IF($AC26=0,0,IF($AC26>$AC25,1,IF($AC26=$AC25,$AI25+1,IF($AC25>$AC26,0)))) -> 0 | AJ26: =+IF($AI25>$AI26,$AJ25+1,$AJ25) -> 1 | AK26: =IFERROR(VLOOKUP("LAST"&AJ26,$AH$25:$AI$36,2,FALSE),VLOOKUP("LAST"&1,$AH$25:$AI$36,2,FALSE)) -> 2
C27: March | D27: 0 | F27: 0 | I27: 0 | L27: 0 | AB27: FALSE | AC27: 0 | AD27: =+IF(AND(AC28>AC27,AC27=0),"Last"&AF27,"") -> Last1 | AE27: 10 | AF27: =+IF($AE26>$AE27,$AF26+1,$AF26) -> 1 | AG27: 10 | AH27: =+IF(AND(AI27>AI28,AI28=0),"Last"&AJ27,"") ->  | AI27: =+IF($AC27=0,0,IF($AC27>$AC26,1,IF($AC27=$AC26,$AI26+1,IF($AC26>$AC27,0)))) -> 0 | AJ27: =+IF($AI26>$AI27,$AJ26+1,$AJ26) -> 1 | AK27: 2
C28: April | D28: 1 | AB28: TRUE | AC28: 1 | AD28: =+IF(AND(AC29>AC28,AC28=0),"Last"&AF28,"") ->  | AE28: 0 | AF28: =+IF($AE27>$AE28,$AF27+1,$AF27) -> 2 | AG28: 10 | AH28: =+IF(AND(AI28>AI29,AI29=0),"Last"&AJ28,"") ->  | AI28: 1 | AJ28: 1 | AK28: 2
C29: May | D29: 2 | AB29: TRUE | AC29: 1 | AE29: 0 | AF29: 2 | AG29: 10 | AH29: =+IF(AND(AI29>AI30,AI30=0),"Last"&AJ29,"") -> Last1 | AI29: 2 | AJ29: 1 | AK29: 2
C30: June | D30: 0 | F30: 0 | I30: 0 | L30: 0 | AB30: FALSE | AC30: 0 | AE30: 1 | AF30: 2 | AG30: 10 | AI30: 0 | AJ30: 2 | AK30: 2
C31: July | D31: 0 | F31: 0 | I31: 0 | L31: 0 | AB31: FALSE | AC31: 0 | AE31: 2 | AF31: 2 | AG31: 10 | AI31: 0 | AJ31: 2 | AK31: 2
C32: August | D32: 0 | F32: 0 | I32: 0 | L32: 0 | AB32: FALSE | AC32: 0 | AE32: 3 | AF32: 2 | AG32: 10 | AI32: 0 | AJ32: 2 | AK32: 2
C33: September | D33: 0 | F33: 0 | I33: 0 | L33: 0 | AB33: FALSE | AC33: 0 | AE33: 4 | AF33: 2 | AG33: 10 | AI33: 0 | AJ33: 2 | AK33: 2
C34: October | D34: 0 | F34: 0 | I34: 0 | L34: 0 | AB34: FALSE | AC34: 0 | AE34: 5 | AF34: 2 | AG34: 10 | AI34: 0 | AJ34: 2 | AK34: 2
C35: November | D35: 0 | F35: 0 | I35: 0 | L35: 0 | AB35: FALSE | AC35: 0 | AE35: 6 | AF35: 2 | AG35: 10 | AI35: 0 | AJ35: 2 | AK35: 2
C36: December | D36: 0 | F36: 0 | I36: 0 | L36: 0 | AB36: FALSE | AC36: 0 | AD36: =+IF(AND(AC25>AC36,AC36=0),"Last"&AF36,"") ->  | AE36: 7 | AF36: =+IF($AE35>$AE36,$AF35+1,$AF35) -> 2 | AG36: =IFERROR(VLOOKUP("LAST"&AF36,$AD$25:$AE$36,2,FALSE),$AG$25) -> 10 | AH36: =+IF(AND(AI36>AI25,AI25=0),"Last"&AJ36,"") ->  | AI36: =+IF($AC36=0,0,IF($AC36>$AC35,1,IF($AC36=$AC35,$AI35+1,IF($AC35>$AC36,0)))) -> 0 | AJ36: =+IF($AI35>$AI36,$AJ35+1,$AJ35) -> 2 | AK36: 2
D37: +SUMA(F(-12)C:F(-1)C)*30
C38: Maximum Storage Capacity Required (ts) | F38: =ROUNDUP(MAX(F25:F36),0) ->  | I38: =ROUNDUP(MAX(I25:I36),0) ->  | L38: =+ROUNDUP(MAX(L25:L36),0) ->  | AB38: No. Storage Months | AC38: =+COUNTIF(AC25:AC36,">0") -> 2
C39: Minimum Safety Storage (ts) | F39: =+ROUNDUP(MIN(G25:G36),0) ->  | I39: =+ROUNDUP(MIN(J25:J36),0) ->  | L39: =+ROUNDUP(MIN(M25:M36),0) ->  | AB39: Total Depletion Period | AC39: =12-AC38 -> 10
C41: Monthly Change of Biomass Stored
AE43: =F23&" (kW)" -> 10 (kW) | AF43: =I23&" (kW)" -> 40 (kW) | AG43: =L23&" (kW)" -> 100 (kW)
AD44: =+LEFT(title266,3) -> Jan | AE44: =+G25 ->  | AF44: =+J25 ->  | AG44: =+M25 -> 
AD45: =+LEFT(title267,3) -> Feb
AD46: =+LEFT(title268,3) -> Mar
AD47: =+LEFT(title269,3) -> Apr
AD48: =+LEFT(title270,3) -> May
AD49: =+LEFT(title271,3) -> Jun
AD50: =+LEFT(title272,3) -> Jul | AE50: =+G31 ->  | AF50: =+J31 ->  | AG50: =+M31 -> 
AD51: =+LEFT(title273,3) -> Aug | AE51: =+G32 ->  | AF51: =+J32 ->  | AG51: =+M32 -> 
AD52: =+LEFT(title274,3) -> Sep | AE52: =+G33 ->  | AF52: =+J33 ->  | AG52: =+M33 -> 
AD53: =+LEFT(title275,3) -> Oct | AE53: =+G34 ->  | AF53: =+J34 ->  | AG53: =+M34 -> 
AD54: =+LEFT(title276,3) -> Nov | AE54: =+G35 ->  | AF54: =+J35 ->  | AG54: =+M35 -> 
AD55: =+LEFT(title277,3) -> Dec | AE55: =+G36 ->  | AF55: =+J36 ->  | AG55: =+M36 -> 

Sheet STORAGE_OIL4 (hidden)
C3: =UPPER("storage calculator FOR SVO+RURAL ELECTRICITY AND/OR HEAT FROM "&'Data Entry Needs'!$G$9) -> STORAGE CALCULATOR FOR SVO+RURAL ELECTRICITY AND/OR HEAT FROM PLEASE SELECT
C6: Biomass safety stock rate definition
F8: Electricity Production Capacities (kW)
D9: =title39 -> Unit | F9: 10 | I9: 40 | L9: 100
C10: Biomass consumption | D10: t/year | F10: =+COST_OIL4!$G$36 ->  | I10: =+COST_OIL4!$I$36 ->  | L10: =+COST_OIL4!$K$36 -> 
D11: t/month | F11: =F10/12 ->  | I11: =I10/12 ->  | L11: =L10/12 -> 
D12: t/day | F12: =F10/365 ->  | I12: =I10/365 ->  | L12: =L10/365 -> 
C14: Biomass production within a specific distance | D14: t/year | F14: =+COST_OIL4!$E$10 -> 0 | I14: =+F14 -> 0 | L14: =+I14 -> 0
C16: Biomass safety stock rate | F16: =+F17/100 -> 0.3 | I16: =+I17/100 -> 0.3 | L16: =+L17/100 -> 0.3
F17: 30 | I17: 30 | L17: 30
C18: Biomass stock pile capacity | D18: t | F18: =+MAX(F25:F36) ->  | I18: =+MAX(I25:I36) ->  | L18: =+MAX(L25:L36) -> 
C20: Maximum storage definition
F22: Electricity Production Capacities (kW)
F23: =+F9 -> 10 | I23: =+I9 -> 40 | L23: =+L9 -> 100 | AD23: Depletion time definition
C24: Harvest Month Selection | D24: Storage Month | E24: Monthly Consumption (t/month) | F24: Biomass Stored (t) | G24: Biomass Stored (t) | H24: Biomass Stored (t) | I24: Biomass Stored (t) | J24: Biomass Stored (t) | K24: Biomass Stored (t) | L24: Biomass Stored (t) | M24: Storage Depletion (t/month) | AB24: Harvest Period | AC24: Harvest Period | AD24: Depletion term | AE24: Depletion month | AF24: EQ term | AG24: Depletion time | AH24: Storage term | AI24: Storage month | AJ24: EQ term | AK24: Storage time
C25: January | D25: =+IF($AC25=0,0,IF($AC25>$AC36,1,IF($AC25=$AC36,$D36+1,IF($AC36>$AC25,0)))) -> 0 | E25: =+F$11 ->  | F25: =+ROUNDUP(IF(AND($D$25=1,$D$36=0,$D$26=0),$F$11*$AG25+$F$11*$F$16,IF(D25>0,($AG25*$F$11/$AK25)*$D25+$F$11*$F$16,0)),1) -> 0 | G25: =IF(AND($D$25=1,$D$36=0,$D$26=0),$F$11*$AG25+$G$36,IF($D25>0,IFERROR(($AG25*$F$11/$AK25)*$D25,"")+$F$11*$F$16,IF($D25=0,G36-E25))) ->  | H25: =+I$11 ->  | I25: =+ROUNDUP(IF(AND($D$25=1,$D$36=0,$D$26=0),$I$11*$AG25+$I$11*$I$16,IF(D25>0,($AG25*$I$11/$AK25)*$D25+$I$11*$I$16,0)),1) -> 0 | J25: =IF(AND($D$25=1,$D$36=0,$D$26=0),$I$11*$AG25+$J$36,IF($D25>0,IFERROR(($AG25*$I$11/$AK25)*$D25,"")+$I$11*$I$16,IF($D25=0,J36-H25))) ->  | K25: =+L$11 ->  | L25: =+ROUNDUP(IF(AND($D$25=1,$D$36=0,$D$26=0),$L$11*$AG25+$L$11*$L$16,IF($D25>0,($AG25*$L$11/$AK25)*$D25+$L$11*$L$16,0)),1) -> 0 | M25: =IF(AND($D$25=1,$D$36=0,$D$26=0),$L$11*$AG25+$M$36,IF($D25>0,IFERROR(($AG25*$L$11/$AK25)*$D25,"")+$L$11*$L$16,IF($D25=0,M36-K25))) ->  | AB25: FALSE | AC25: =+N(AB25) -> 0 | AD25: =+IF(AND(AC26>AC25,AC25=0),"Last"&AF25,"") ->  | AE25: =+IF($AC25=1,0,IF($AC25<$AC36,1,IF($AC25=$AC36,$AE36+1,IF($AC36>$AC25,1)))) -> 8 | AF25: 1 | AG25: =IFERROR(VLOOKUP("LAST"&AF25,$AD$25:$AE$36,2,FALSE),AK25) -> 10 | AH25: =+IF(AND(AI25>AI26,AI26=0),"Last"&AJ25,"") ->  | AI25: =+IF($AC25=0,0,IF($AC25>$AC36,1,IF($AC25=$AC36,$AI36+1,IF($AC36>$AC25,0)))) -> 0 | AJ25: 1 | AK25: =IFERROR(VLOOKUP("LAST"&AJ25,$AH$25:$AI$36,2,FALSE),VLOOKUP("LAST"&1,$AH$25:$AI$36,2,FALSE)) -> 2
C26: February | D26: =+IF($AC26=0,0,IF($AC26>$AC25,1,IF($AC26=$AC25,$D25+1,IF($AC25>$AC26,0)))) -> 0 | F26: =ROUNDUP(IF(D26>0,($AG26*$F$11/$AK26)*$D26+$F$11*$F$16,0),1) -> 0 | G26: =+IF($D26>0,IFERROR(($AG26*$F$11/$AK26)*$D26,"")+$F$11*$F$16,IF($D26=0,G25-E26)) ->  | I26: =ROUNDUP(IF(D26>0,($AG26*$I$11/$AK26)*$D26+$I$11*$I$16,0),1) -> 0 | J26: =+IF($D26>0,IFERROR(($AG26*$I$11/$AK26)*$D26,"")+$I$11*$I$16,IF($D26=0,J25-H26)) ->  | L26: =ROUNDUP(IF($D26>0,($AG26*$L$11/$AK26)*$D26+$L$11*$L$16,0),1) -> 0 | M26: =+IF($D26>0,IFERROR(($AG26*$L$11/$AK26)*$D26,"")+$L$11*$L$16,IF($D26=0,M25-K26)) ->  | AB26: FALSE | AC26: =+N(AB26) -> 0 | AD26: =+IF(AND(AC27>AC26,AC26=0),"Last"&AF26,"") ->  | AE26: =+IF($AC26=1,0,IF($AC26<$AC25,1,IF($AC26=$AC25,$AE25+1,IF($AC25>$AC26,1)))) -> 9 | AF26: =+IF($AE25>$AE26,$AF25+1,$AF25) -> 1 | AG26: =IFERROR(VLOOKUP("LAST"&AF26,$AD$25:$AE$36,2,FALSE),$AG$25) -> 10 | AH26: =+IF(AND(AI26>AI27,AI27=0),"Last"&AJ26,"") ->  | AI26: =+IF($AC26=0,0,IF($AC26>$AC25,1,IF($AC26=$AC25,$AI25+1,IF($AC25>$AC26,0)))) -> 0 | AJ26: =+IF($AI25>$AI26,$AJ25+1,$AJ25) -> 1 | AK26: =IFERROR(VLOOKUP("LAST"&AJ26,$AH$25:$AI$36,2,FALSE),VLOOKUP("LAST"&1,$AH$25:$AI$36,2,FALSE)) -> 2
C27: March | D27: 0 | F27: 0 | I27: 0 | L27: 0 | AB27: FALSE | AC27: 0 | AD27: =+IF(AND(AC28>AC27,AC27=0),"Last"&AF27,"") -> Last1 | AE27: 10 | AF27: =+IF($AE26>$AE27,$AF26+1,$AF26) -> 1 | AG27: 10 | AH27: =+IF(AND(AI27>AI28,AI28=0),"Last"&AJ27,"") ->  | AI27: =+IF($AC27=0,0,IF($AC27>$AC26,1,IF($AC27=$AC26,$AI26+1,IF($AC26>$AC27,0)))) -> 0 | AJ27: =+IF($AI26>$AI27,$AJ26+1,$AJ26) -> 1 | AK27: 2
C28: April | D28: 1 | AB28: TRUE | AC28: 1 | AD28: =+IF(AND(AC29>AC28,AC28=0),"Last"&AF28,"") ->  | AE28: 0 | AF28: =+IF($AE27>$AE28,$AF27+1,$AF27) -> 2 | AG28: 10 | AH28: =+IF(AND(AI28>AI29,AI29=0),"Last"&AJ28,"") ->  | AI28: 1 | AJ28: 1 | AK28: 2
C29: May | D29: 2 | AB29: TRUE | AC29: 1 | AE29: 0 | AF29: 2 | AG29: 10 | AH29: =+IF(AND(AI29>AI30,AI30=0),"Last"&AJ29,"") -> Last1 | AI29: 2 | AJ29: 1 | AK29: 2
C30: June | D30: 0 | F30: 0 | I30: 0 | L30: 0 | AB30: FALSE | AC30: 0 | AE30: 1 | AF30: 2 | AG30: 10 | AI30: 0 | AJ30: 2 | AK30: 2
C31: July | D31: 0 | F31: 0 | I31: 0 | L31: 0 | AB31: FALSE | AC31: 0 | AE31: 2 | AF31: 2 | AG31: 10 | AI31: 0 | AJ31: 2 | AK31: 2
C32: August | D32: 0 | F32: 0 | I32: 0 | L32: 0 | AB32: FALSE | AC32: 0 | AE32: 3 | AF32: 2 | AG32: 10 | AI32: 0 | AJ32: 2 | AK32: 2
C33: September | D33: 0 | F33: 0 | I33: 0 | L33: 0 | AB33: FALSE | AC33: 0 | AE33: 4 | AF33: 2 | AG33: 10 | AI33: 0 | AJ33: 2 | AK33: 2
C34: October | D34: 0 | F34: 0 | I34: 0 | L34: 0 | AB34: FALSE | AC34: 0 | AE34: 5 | AF34: 2 | AG34: 10 | AI34: 0 | AJ34: 2 | AK34: 2
C35: November | D35: 0 | F35: 0 | I35: 0 | L35: 0 | AB35: FALSE | AC35: 0 | AE35: 6 | AF35: 2 | AG35: 10 | AI35: 0 | AJ35: 2 | AK35: 2
C36: December | D36: 0 | F36: 0 | I36: 0 | L36: 0 | AB36: FALSE | AC36: 0 | AD36: =+IF(AND(AC25>AC36,AC36=0),"Last"&AF36,"") ->  | AE36: 7 | AF36: =+IF($AE35>$AE36,$AF35+1,$AF35) -> 2 | AG36: =IFERROR(VLOOKUP("LAST"&AF36,$AD$25:$AE$36,2,FALSE),$AG$25) -> 10 | AH36: =+IF(AND(AI36>AI25,AI25=0),"Last"&AJ36,"") ->  | AI36: =+IF($AC36=0,0,IF($AC36>$AC35,1,IF($AC36=$AC35,$AI35+1,IF($AC35>$AC36,0)))) -> 0 | AJ36: =+IF($AI35>$AI36,$AJ35+1,$AJ35) -> 2 | AK36: 2
D37: =+SUM(D25:D36)*30 -> 90
C38: Maximum Storage Capacity Required (ts) | F38: =ROUNDUP(MAX(F25:F36),0) ->  | I38: =ROUNDUP(MAX(I25:I36),0) ->  | L38: =+ROUNDUP(MAX(L25:L36),0) ->  | AB38: No. Storage Months | AC38: =+COUNTIF(AC25:AC36,">0") -> 2
C39: Minimum Safety Storage (ts) | F39: =+ROUNDUP(MIN(G25:G36),0) ->  | I39: =+ROUNDUP(MIN(J25:J36),0) ->  | L39: =+ROUNDUP(MIN(M25:M36),0) ->  | AB39: Total Depletion Period | AC39: =12-AC38 -> 10
C41: Monthly Change of Biomass Stored
AE43: =F23&" (kW)" -> 10 (kW) | AF43: =I23&" (kW)" -> 40 (kW) | AG43: =L23&" (kW)" -> 100 (kW)
AD44: =+LEFT(title266,3) -> Jan | AE44: =+G25 ->  | AF44: =+J25 ->  | AG44: =+M25 -> 
AD45: =+LEFT(title267,3) -> Feb
AD46: =+LEFT(title268,3) -> Mar
AD47: =+LEFT(title269,3) -> Apr
AD48: =+LEFT(title270,3) -> May
AD49: =+LEFT(title271,3) -> Jun
AD50: =+LEFT(title272,3) -> Jul | AE50: =+G31 ->  | AF50: =+J31 ->  | AG50: =+M31 -> 
AD51: =+LEFT(title273,3) -> Aug | AE51: =+G32 ->  | AF51: =+J32 ->  | AG51: =+M32 -> 
AD52: =+LEFT(title274,3) -> Sep | AE52: =+G33 ->  | AF52: =+J33 ->  | AG52: =+M33 -> 
AD53: =+LEFT(title275,3) -> Oct | AE53: =+G34 ->  | AF53: =+J34 ->  | AG53: =+M34 -> 
AD54: =+LEFT(title276,3) -> Nov | AE54: =+G35 ->  | AF54: =+J35 ->  | AG54: =+M35 -> 
AD55: =+LEFT(title277,3) -> Dec | AE55: =+G36 ->  | AF55: =+J36 ->  | AG55: =+M36 -> 

Sheet title (hidden)
B2: Selection | C2: =VLOOKUP(START!B2,$A$3:$C$5,3,FALSE) -> 1
A3: EN | B3: English | C3: 1
A4: FR | B4: French | C4: 2
A5: ES | B5: Spanish | C5: 3
A7: ID | B7: English | C7: French | D7: Spanish | E7: Typeof | F7: Ref | G7: Name
A8: 1 | B8: 1 | C8: 2 | D8: 3
A9: 2 | B9: RAPID APPRAISAL TOOL FOR RURAL ELECTRIFICATION – SVO | C9: OUTIL D'ÉVALUATION RAPIDE POUR L’ÉLECTRIFICATION RURALE – HVB | D9: HERRAMIENTA DE EVALUACIÓN RÁPIDA PARA ELECTRIFICACIÓN RURAL – AVC | E9: title | F9: =HLOOKUP($C$2,$B$8:$D9,$A9,FALSE) -> RAPID APPRAISAL TOOL FOR RURAL ELECTRIFICATION – SVO | G9: =$E9&$A9 -> title2
A10: 3 | B10: Disclaimer | C10: Déni de responsabilité | D10: Descargo de Responsabilidad | E10: title | F10: =HLOOKUP($C$2,$B$8:$D10,$A10,FALSE) -> Disclaimer | G10: title3
A11: 4 | B11: FAO declines all responsibility for errors or deficiencies in the database or software or in the documentation accompanying it, for program maintenance and upgrading as well as for any damage that may arise from them. FAO also declines any responsibility for updating the data and assumes no responsibility for errors and omissions in the data provided. Users are, however, kindly asked to report any errors or deficiencies in this product to FAO. The choices of calculation made in this tool are those of the author(s) and do not necessarily reflect the views and choices of the Food and Agriculture Organization of the United Nations. | C11: La FAO décline toute responsabilité quant aux erreurs ou défauts des textes du présent site et des bases de données y afférentes, ainsi que pour les dommages pouvant en résulter. La FAO décline également toute responsabilité quant à la mise à jour des données et se dégage de toute responsabilité quant aux erreurs ou omissions concernant les données fournies. Les utilisateurs sont toutefois invités à signaler toute erreur ou lacune de ce produit à la FAO. Les choix des calculs faits dans le présent outil sont celles du/des auteur(s) et ne reflètent pas nécessairement les choix et opinions de l’Organisation des Nations Unies pour l’alimentation et l’agriculture (FAO). | D11: La FAO declina cualquier responsabilidad por errores u otros defectos del banco de datos, programa o de la documentación que los acompaña, o por cualquier daño derivado de ellos, así como por el mantenimiento y el mejoramiento de los programas. La FAO declina asimismo cualquier responsabilidad por la actualización de los datos, o por errores u omisiones en los datos que se han proporcionado. Se pide no obstante a los usuarios que señalen eventuales errores o defectos de este producto a la FAO. La elección de los cálculos presente en esta herramienta son las del/de los autor(es) y no reflejan necesariamente las opiniones y elecciones de la Organización de las Naciones Unidas para la Agricultura y la Alimentación. | E11: title | F11: =HLOOKUP($C$2,$B$8:$D11,$A11,FALSE) -> FAO declines all responsibility for errors or deficiencies in the database or software or in the documentation accompanying it, for program maintenance and upgrading as well as for any damage that may arise from them. FAO also declines any responsibility for updating the data and assumes no responsibility for errors and omissions in the data provided. Users are, however, kindly asked to report any errors or deficiencies in this product to FAO. The choices of calculation made in this tool are those of the author(s) and do not necessarily reflect the views and choices of the Food and Agriculture Organization of the United Nations. | G11: title4
A12: 5 | B12: SVO PRODUCTION FOR RURAL ELECTRIFICATION | C12: PRODUCTION HVB POUR L’ÉLECTRIFICATION RURALE | D12: PRODUCCIÓN DE AVC PARA ELECTRICIDAD Y/O CALEFACCIÓN RURAL | E12: title | F12: =HLOOKUP($C$2,$B$8:$D12,$A12,FALSE) -> SVO PRODUCTION FOR RURAL ELECTRIFICATION | G12: title5
A13: 6 | B13: Distribution line to households (isolated grid connection) | C13: Ligne de distribution aux ménages (raccordement au réseau isolé) | D13: Líneas de distribución a hogares (red de conexión aislada) | E13: title | F13: =HLOOKUP($C$2,$B$8:$D13,$A13,FALSE) -> Distribution line to households (isolated grid connection) | G13: title6
A14: 7 | B14: Oilseed collection & transportation | C14: Collecte et transport des graines oléagineuses | D14: Recolección y transporte de oleaginosas | E14: title | F14: =HLOOKUP($C$2,$B$8:$D14,$A14,FALSE) -> Oilseed collection & transportation | G14: title7
A15: 8 | B15: Pre-treatment | C15: Pré-traitement | D15: Pre-tratamiento | E15: title | F15: =HLOOKUP($C$2,$B$8:$D15,$A15,FALSE) -> Pre-treatment | G15: title8
A16: 9 | B16: Oil extraction press | C16: Pression de l’extraction de pétrole | D16: Extracción de aceite por presión | E16: title | F16: =HLOOKUP($C$2,$B$8:$D16,$A16,FALSE) -> Oil extraction press | G16: title9
A17: 10 | B17: Engine | C17: Moteur | D17: Motor | E17: title | F17: =HLOOKUP($C$2,$B$8:$D17,$A17,FALSE) -> Engine | G17: title10
A18: 11 | B18: Generator | C18: Générateur | D18: Generador | E18: title | F18: =HLOOKUP($C$2,$B$8:$D18,$A18,FALSE) -> Generator | G18: title11
A19: 12 | B19: Extraction Meal or Cake | C19: Extraction gâteau/repas | D19: Extracción Harina o Torta | E19: title | F19: =HLOOKUP($C$2,$B$8:$D19,$A19,FALSE) -> Extraction Meal or Cake | G19: title12
A20: 13 | B20: ENERGY DEMAND FOR RURAL ELECTRIFICATION - SVO | C20: DEMANDE D'ENERGIE POUR L’ÉLECTRIFICATION RURALE - HVB | D20: DEMANDA DE ENERGÍA PARA ELECTRIFICACIÓN RURAL – AVC | E20: title | F20: =HLOOKUP($C$2,$B$8:$D20,$A20,FALSE) -> ENERGY DEMAND FOR RURAL ELECTRIFICATION - SVO | G20: title13
A21: 14 | B21: Electricity Demand per Household | C21: Demande d’Électricité par Ménage | D21: Demanda de electricidad por hogar | E21: title | F21: =HLOOKUP($C$2,$B$8:$D21,$A21,FALSE) -> Electricity Demand per Household | G21: title14
A22: 15 | B22: Electricity consumption per household (kWh/month) | C22: Consommation d'électricité par ménage (kWh/mois) | D22: Consumo de electricidad por hogar (kWh/mes) | E22: title | F22: =HLOOKUP($C$2,$B$8:$D22,$A22,FALSE) -> Electricity consumption per household (kWh/month) | G22: title15
A23: 16 | B23: Value calculated in the Country Status module | C23: Valeur calculée dans le Module Situation du Pays | D23: Valor calculado en el Módulo Situación Actual del País | E23: title | F23: =HLOOKUP($C$2,$B$8:$D23,$A23,FALSE) -> Value calculated in the Country Status module | G23: title16
A24: 17 | B24: Use white cells to input data | C24: Utilisez les cellules blanches pour entrer les données | D24: Utilice las celdas blancas para ingresar los datos | E24: title | F24: =HLOOKUP($C$2,$B$8:$D24,$A24,FALSE) -> Use white cells to input data | G24: title17
A25: 18 | B25: Grey cells are used for calculations | C25: Les cellules grises sont utilisées pour les calculs | D25: Utilice las celdas grises para los cálculos | E25: title | F25: =HLOOKUP($C$2,$B$8:$D25,$A25,FALSE) -> Grey cells are used for calculations | G25: title18
A26: 19 | B26: DATA ENTRY FOR SVO + RURAL ELECTRIFICATION | C26: SAISIE DE DONNEES POUR HVB + L’ÉLECTRIFICATION RURALE | D26: DATOS DE ENTRADA PARA AVC + ELECTRIFICACIÓN RURAL | E26: title | F26: =HLOOKUP($C$2,$B$8:$D26,$A26,FALSE) -> DATA ENTRY FOR SVO + RURAL ELECTRIFICATION | G26: title19
A27: 20 | B27: Feedstock | C27: Matière première | D27: Materia prima | E27: title | F27: =HLOOKUP($C$2,$B$8:$D27,$A27,FALSE) -> Feedstock | G27: title20
A28: 21 | B28: Feedstock potential (t/year) | C28: Potentiel de matières premières (t/an) | D28: Potencial de materia prima (t/año) | E28: title | F28: =HLOOKUP($C$2,$B$8:$D28,$A28,FALSE) -> Feedstock potential (t/year) | G28: title21
A29: 22 | B29: Feedstock yield (t/ha) | C29: Rendement de matières premières (t/ha) | D29: Rendimiento de la materia prima (t/ha) | E29: title | F29: =HLOOKUP($C$2,$B$8:$D29,$A29,FALSE) -> Feedstock yield (t/ha) | G29: title22
A30: 23 | B30: Oil content (%) | C30: Teneur en huile (%) | D30: Contenido de aceite (%) | E30: title | F30: =HLOOKUP($C$2,$B$8:$D30,$A30,FALSE) -> Oil content (%) | G30: title23
A31: 24 | B31: Feedstock price (USD/t) | C31: Prix des matières premières (USD/t) | D31: Precio de la materia prima (USD/t) | E31: title | F31: =HLOOKUP($C$2,$B$8:$D31,$A31,FALSE) -> Feedstock price (USD/t) | G31: title24
A32: 25 | B32: Feedstock storage cost (USD/t) | C32: Coût de stockage des matières premières (USD/t) | D32: Costo de almacenamiento de la materia prima (USD/t) | E32: title | F32: =HLOOKUP($C$2,$B$8:$D32,$A32,FALSE) -> Feedstock storage cost (USD/t) | G32: title25
A33: 26 | B33: Please Select | C33: Sélectionnez | D33: Seleccione | E33: title | F33: =HLOOKUP($C$2,$B$8:$D33,$A33,FALSE) -> Please Select | G33: title26
A34: 27 | B34: Coconut | C34: Noix de coco | D34: Coco | E34: title | F34: =HLOOKUP($C$2,$B$8:$D34,$A34,FALSE) -> Coconut | G34: title27
A35: 28 | B35: Jatropha | C35: Jatropha | D35: Jatrofa | E35: title | F35: =HLOOKUP($C$2,$B$8:$D35,$A35,FALSE) -> Jatropha | G35: title28
A36: 29 | B36: Oil palm | C36: Palmier à huile | D36: Palma aceitera | E36: title | F36: =HLOOKUP($C$2,$B$8:$D36,$A36,FALSE) -> Oil palm | G36: title29
A37: 30 | B37: Rapeseed | C37: Colza | D37: Colza | E37: title | F37: =HLOOKUP($C$2,$B$8:$D37,$A37,FALSE) -> Rapeseed | G37: title30
A38: 31 | B38: Soybeans | C38: Soja | D38: Soja | E38: title | F38: =HLOOKUP($C$2,$B$8:$D38,$A38,FALSE) -> Soybeans | G38: title31
A39: 32 | B39: Sunflower | C39: Tournesol | D39: Girasol | E39: title | F39: =HLOOKUP($C$2,$B$8:$D39,$A39,FALSE) -> Sunflower | G39: title32
A40: 33 | B40: Electricity | C40: Électricité | D40: Electricidad | E40: title | F40: =HLOOKUP($C$2,$B$8:$D40,$A40,FALSE) -> Electricity | G40: title33
A41: 34 | B41: Electricity Price Definition | C41: Définition du Prix de l'Électricité | D41: Definición del precio de electricidad | E41: title | F41: =HLOOKUP($C$2,$B$8:$D41,$A41,FALSE) -> Electricity Price Definition | G41: title34
A42: 35 | B42: Select a method to determine the price of electricity | C42: Sélectionnez une méthode pour déterminer le prix de l'électricité | D42: Seleccione un método para determinar el precio de la electricidad | E42: title | F42: =HLOOKUP($C$2,$B$8:$D42,$A42,FALSE) -> Select a method to determine the price of electricity | G42: title35
A43: 36 | B43: Method 1 | C43: Méthode 1 | D43: Método 1 | E43: title | F43: =HLOOKUP($C$2,$B$8:$D43,$A43,FALSE) -> Method 1 | G43: title36
A44: 37 | B44: Comparative production cost of electricity | C44: Coût comparatif de production d'électricité | D44: Costo de producción de electricidad comparativo | E44: title | F44: =HLOOKUP($C$2,$B$8:$D44,$A44,FALSE) -> Comparative production cost of electricity | G44: title37
A45: 38 | B45: Method 1: Use a calculator to determine the production cost of electricity from a diesel generator. | C45: Méthode 1: Utiliser une calculatrice pour déterminer le coût de production d'électricité à partir d'un générateur diesel. | D45: Método 1: Utilice una calculadora para determinar el costo de producción de electricidad a partir de un generador diésel. | E45: title | F45: =HLOOKUP($C$2,$B$8:$D45,$A45,FALSE) -> Method 1: Use a calculator to determine the production cost of electricity from a diesel generator. | G45: title38
A46: 39 | B46: Unit | C46: Unité | D46: Unidad | E46: title | F46: =HLOOKUP($C$2,$B$8:$D46,$A46,FALSE) -> Unit | G46: title39
A47: 40 | B47: Method 1 | C47: Méthode 1 | D47: Método 1 | E47: title | F47: =HLOOKUP($C$2,$B$8:$D47,$A47,FALSE) -> Method 1 | G47: title40
A48: 41 | B48: Method 2 | C48: Méthode 2 | D48: Método 2 | E48: title | F48: =HLOOKUP($C$2,$B$8:$D48,$A48,FALSE) -> Method 2 | G48: title41
A49: 42 | B49: Method 2: Use an electricity price defined by the user. In the assessment , it is important to consider that this price might include subsidies. | C49: Méthode 2: Use an electricity price defined by the user. In the assessment , it is important to consider that this price might include subsidies. | D49: Método 2: Utilizar un precio de electricidad definido por el usuario. En la evaluación, es importante tener en cuenta que este precio podría incluir subsidios. | E49: title | F49: =HLOOKUP($C$2,$B$8:$D49,$A49,FALSE) -> Method 2: Use an electricity price defined by the user. In the assessment , it is important to consider that this price might include subsidies. | G49: title42
A50: 43 | B50: Price paid by customer | C50: Prix payé par le client | D50: Precio pagado por el consumidor | E50: title | F50: =HLOOKUP($C$2,$B$8:$D50,$A50,FALSE) -> Price paid by customer | G50: title43
A51: 44 | B51: Production Cost and Financial Parameters | C51: Coût de Production et Paramètres Financiers | D51: Costo de producción y parámetros financieros | E51: title | F51: =HLOOKUP($C$2,$B$8:$D51,$A51,FALSE) -> Production Cost and Financial Parameters | G51: title44
A52: 45 | B52: Labour | C52: Main d’oeuvre | D52: Mano de obra | E52: title | F52: =HLOOKUP($C$2,$B$8:$D52,$A52,FALSE) -> Labour | G52: title45
A53: 46 | B53: Unskilled worker | C53: Ouvrier non-qualifié | D53: Trabajadores no cualificados | E53: title | F53: =HLOOKUP($C$2,$B$8:$D53,$A53,FALSE) -> Unskilled worker | G53: title46
A54: 47 | B54: Utilities | C54: Utilitaires | D54: Servicios | E54: title | F54: =HLOOKUP($C$2,$B$8:$D54,$A54,FALSE) -> Utilities | G54: title47
A55: 48 | B55: Diesel | C55: Diesel | D55: Diésel | E55: title | F55: =HLOOKUP($C$2,$B$8:$D55,$A55,FALSE) -> Diesel | G55: title48
A56: 49 | B56: Transportation cost | C56: Frais de transport | D56: Costo de transporte | E56: title | F56: =HLOOKUP($C$2,$B$8:$D56,$A56,FALSE) -> Transportation cost | G56: title49
A57: 50 | B57: Feedstock (collection point to plant) | C57: Matières premières (du point de collecte à la centrale) | D57: Materia prima (punto de recolección a la planta) | E57: title | F57: =HLOOKUP($C$2,$B$8:$D57,$A57,FALSE) -> Feedstock (collection point to plant) | G57: title50
A58: 51 | B58: Other costs | C58: Autres coûts | D58: Otros costos | E58: title | F58: =HLOOKUP($C$2,$B$8:$D58,$A58,FALSE) -> Other costs | G58: title51
A59: 52 | B59: General and administrative (%) | C59: Frais généraux et administratifs (%) | D59: Generales y administrativos (%) | E59: title | F59: =HLOOKUP($C$2,$B$8:$D59,$A59,FALSE) -> General and administrative (%) | G59: title52
A60: 53 | B60: Plant overhead (%) | C60: Frais généraux de l'usine (%) | D60: Gastos generales de planta (%) | E60: title | F60: =HLOOKUP($C$2,$B$8:$D60,$A60,FALSE) -> Plant overhead (%) | G60: title53
A61: 54 | B61: Financial parameters | C61: Paramètres financiers | D61: Parámetros financieros | E61: title | F61: =HLOOKUP($C$2,$B$8:$D61,$A61,FALSE) -> Financial parameters | G61: title54
A62: 55 | B62: Discount rate | C62: Taux d'escompte | D62: Tasa de descuento | E62: title | F62: =HLOOKUP($C$2,$B$8:$D62,$A62,FALSE) -> Discount rate | G62: title55
A63: 56 | B63: Loan ratio | C63: Ratio du prêt | D63: Proporción de créditos | E63: title | F63: =HLOOKUP($C$2,$B$8:$D63,$A63,FALSE) -> Loan ratio | G63: title56
A64: 57 | B64: Loan interest rate | C64: Taux d'intérêt du prêt | D64: Tasa de interés de créditos | E64: title | F64: =HLOOKUP($C$2,$B$8:$D64,$A64,FALSE) -> Loan interest rate | G64: title57
A65: 58 | B65: Loan terms | C65: Durée du prêt | D65: Plazo del créditos | E65: title | F65: =HLOOKUP($C$2,$B$8:$D65,$A65,FALSE) -> Loan terms | G65: title58
A66: 59 | B66: USD/person-h | C66: USD/personne-h | D66: USD/persona-h | E66: title | F66: =HLOOKUP($C$2,$B$8:$D66,$A66,FALSE) -> USD/person-h | G66: title59
A67: 60 | B67: year | C67: an | D67: año | E67: title | F67: =HLOOKUP($C$2,$B$8:$D67,$A67,FALSE) -> year | G67: title60
A68: 61 | B68: Skilled worker | C68: Ouvrier qualifié | D68: Trabajadores cualificados | E68: title | F68: =HLOOKUP($C$2,$B$8:$D68,$A68,FALSE) -> Skilled worker | G68: title61
A69: 62 | B69: ==>Required to start up the engine | C69: ==>Requis pour démarrer le moteur | D69: ==>Requerido para poner en marcha el motor | E69: title | F69: =HLOOKUP($C$2,$B$8:$D69,$A69,FALSE) -> ==>Required to start up the engine | G69: title62
A70: 63 | B70: Maintenance (%) | C70: Maintenance (%) | D70: Mantenimiento (%) | E70: title | F70: =HLOOKUP($C$2,$B$8:$D70,$A70,FALSE) -> Maintenance (%) | G70: title63
A71: 64 | B71: Miscellaneous (%) | C71: Divers (%) | D71: Varios (%) | E71: title | F71: =HLOOKUP($C$2,$B$8:$D71,$A71,FALSE) -> Miscellaneous (%) | G71: title64
A72: 65 | B72: Investment cost update | C72: Mise à jour des coûts d'investissement | D72: Actualización del costo de inversión | E72: title | F72: =HLOOKUP($C$2,$B$8:$D72,$A72,FALSE) -> Investment cost update | G72: title65
A73: 66 | B73: Plant Cost Index during | C73: Indice du coût de la plante pendant 9/2015 | D73: Índice de costo de la planta durante 9/2015 | E73: title | F73: =HLOOKUP($C$2,$B$8:$D73,$A73,FALSE) -> Plant Cost Index during | G73: =$E73&$A73 -> title66
A74: 67 | B74: Wage for non-trained operators who supports the operation of the plant (e.g. biomass collection). | C74: Salaire pour les opérateurs non qualifiés qui prennent en charge le fonctionnement de la plante (par exemple, la collecte de la biomasse). | D74: Salario para los operadores no capacitados que soportan la operación en la planta (por ejemplo, la recolección de la biomasa). | E74: title | F74: =HLOOKUP($C$2,$B$8:$D74,$A74,FALSE) -> Wage for non-trained operators who supports the operation of the plant (e.g. biomass collection). | G74: title67
A75: 68 | B75: The general and administrative item is a percentage of the cost to cover rents, insurances and salaries of managerial, administrative and executive staff. | C75: L'item général et administratif est un pourcentage du coût pour couvrir les loyers, les assurances et les salaires du personnel de direction, d'administration et de direction. | D75: Los ítems generales y administrativos son un porcentaje del costo para cubrir los alquileres, seguros y salarios del personal directivo, administrativo y ejecutivo. | E75: title | F75: =HLOOKUP($C$2,$B$8:$D75,$A75,FALSE) -> The general and administrative item is a percentage of the cost to cover rents, insurances and salaries of managerial, administrative and executive staff. | G75: title68
A76: 69 | B76: The plant overhead is a percentage of costs for services, facilities, payroll overhead, etc. | C76: Les frais généraux de l'usine est un pourcentage des coûts des services, des installations, de la paie des frais généraux, etc. | D76: Los gastos generales son un porcentaje de los costos de los servicios, las instalaciones, gastos generales de la nómina, etc. | E76: title | F76: =HLOOKUP($C$2,$B$8:$D76,$A76,FALSE) -> The plant overhead is a percentage of costs for services, facilities, payroll overhead, etc. | G76: title69
A77: 70 | B77: Inflation rate | C77: Taux d'inflation (%) | D77: Tasa de inflación (%) | E77: title | F77: =HLOOKUP($C$2,$B$8:$D77,$A77,FALSE) -> Inflation rate | G77: title70
A78: 71 | B78: Loan term (years) | C78: Durée du prêt (années) | D78: Plazo del crédito (años) | E78: title | F78: =HLOOKUP($C$2,$B$8:$D78,$A78,FALSE) -> Loan term (years) | G78: title71
A79: 72 | B79: PROCESSING COSTS FOR SVO + RURAL ELECTRIFICATION FROM | C79: COÛTS DE TRAITEMENT POUR HVB + L’ÉLECTRIFICATION RURALE DE | D79: COSTOS DE PROCESAMIENTO PARA AVC + ELECTRIFICACIÓN RURAL A PARTIR DE | E79: title | F79: =HLOOKUP($C$2,$B$8:$D79,$A79,FALSE) -> PROCESSING COSTS FOR SVO + RURAL ELECTRIFICATION FROM | G79: title72
A80: 73 | B80: Summary of Feedstock and Storage | C80: Résumé des Matières Premières et du Stockage | D80: Resumen de materias primas y almacenamiento | E80: title | F80: =HLOOKUP($C$2,$B$8:$D80,$A80,FALSE) -> Summary of Feedstock and Storage | G80: title73
A81: 74 | B81: Summary of Operational Parameters | C81: Résumé des Paramètres Opérationnels | D81: Resumen de parámetros operacionales | E81: title | F81: =HLOOKUP($C$2,$B$8:$D81,$A81,FALSE) -> Summary of Operational Parameters | G81: title74
A82: 75 | B82: Feedstock available (t/year) | C82: Matières premières disponibles (t/an) | D82: Materia prima disponible (t/año) | E82: title | F82: =HLOOKUP($C$2,$B$8:$D82,$A82,FALSE) -> Feedstock available (t/year) | G82: title75
A83: 76 | B83: Capacity utilization factor | C83: Facteur d'utilisation des capacités | D83: Factor de capacidad de uso | E83: title | F83: =HLOOKUP($C$2,$B$8:$D83,$A83,FALSE) -> Capacity utilization factor | G83: title76
A84: 77 | B84: Calorific value (kWh/kg oil) | C84: Pouvoir calorifique (kWh/kg d'huile) | D84: Valor calorífico (kWh/kg de aceite) | E84: title | F84: =HLOOKUP($C$2,$B$8:$D84,$A84,FALSE) -> Calorific value (kWh/kg oil) | G84: title77
A85: 78 | B85: Oil extraction efficiency | C85: Efficacité de l'extraction de l'huile | D85: Eficiencia de la extracción de aceite | E85: title | F85: =HLOOKUP($C$2,$B$8:$D85,$A85,FALSE) -> Oil extraction efficiency | G85: title78
A86: 79 | B86: Residual oil in cake/meal | C86: Huile résiduelle dans le gâteau/repas | D86: Aceite residual en la torta/comida | E86: title | F86: =HLOOKUP($C$2,$B$8:$D86,$A86,FALSE) -> Residual oil in cake/meal | G86: title79
A87: 80 | B87: Engine efficiency (%) | C87: Efficacité du moteur (%) | D87: Eficiencia del motor (%) | E87: title | F87: =HLOOKUP($C$2,$B$8:$D87,$A87,FALSE) -> Engine efficiency (%) | G87: title80
A88: 81 | B88: Operating hours per day | C88: Heures de fonctionnement par jour | D88: Horas de operación por día | E88: title | F88: =HLOOKUP($C$2,$B$8:$D88,$A88,FALSE) -> Operating hours per day | G88: title81
A89: 82 | B89: Power loss in distribution network | C89: Perte de courant dans le réseau de distribution (%) | D89: Pérdida de potencia en la red de distribución (%) | E89: title | F89: =HLOOKUP($C$2,$B$8:$D89,$A89,FALSE) -> Power loss in distribution network | G89: title82
A90: 83 | B90: Power loss due to operation (%) | C90: Perte de courant due aux opérations (%) | D90: Pérdida de potencia por operación (%) | E90: title | F90: =HLOOKUP($C$2,$B$8:$D90,$A90,FALSE) -> Power loss due to operation (%) | G90: title83
A91: 84 | B91: (kWh per year) | C91: (kWh par an) | D91: (kWh por año) | E91: title | F91: =HLOOKUP($C$2,$B$8:$D91,$A91,FALSE) -> (kWh per year) | G91: title84
A92: 85 | B92: Transport Distance of Feedstock | C92: Distance de Transport de Matières Premières | D92: Distancia de transporte de la materia prima | E92: title | F92: =HLOOKUP($C$2,$B$8:$D92,$A92,FALSE) -> Transport Distance of Feedstock | G92: title85
A93: 86 | B93: Distance small scale production (km) | C93: Distance à la production à petite échelle (km) | D93: Distancia de producción de pequeña escala (km) | E93: title | F93: =HLOOKUP($C$2,$B$8:$D93,$A93,FALSE) -> Distance small scale production (km) | G93: title86
A94: 87 | B94: Distance medium scale production (km) | C94: Distance à la production à moyenne échelle de support (km) | D94: Distancia de producción de mediana escala (km) | E94: title | F94: =HLOOKUP($C$2,$B$8:$D94,$A94,FALSE) -> Distance medium scale production (km) | G94: title87
A95: 88 | B95: Transport Quantity | C95: Quantité à Transporter | D95: Cantidad transportada | E95: title | F95: =HLOOKUP($C$2,$B$8:$D95,$A95,FALSE) -> Transport Quantity | G95: title88
A96: 89 | B96: Small scale (t/year) | C96: Petite échelle (t/an) | D96: Pequeña escala (t/año) | E96: title | F96: =HLOOKUP($C$2,$B$8:$D96,$A96,FALSE) -> Small scale (t/year) | G96: title89
A97: 90 | B97: Medium scale (t/year) | C97: Moyenne échelle (t/an) | D97: Mediana escala (t/año) | E97: title | F97: =HLOOKUP($C$2,$B$8:$D97,$A97,FALSE) -> Medium scale (t/year) | G97: title90
A98: 91 | B98: Distance large scale production (km) | C98: Distance à la production à grande échelle (km) | D98: Distancia de producción de gran escala (km) | E98: title | F98: =HLOOKUP($C$2,$B$8:$D98,$A98,FALSE) -> Distance large scale production (km) | G98: title91
A99: 92 | B99: Transportation cost (USD/t/km) | C99: Frais de transport (USD/t/km) | D99: Costo de transporte (USD/t/km) | E99: title | F99: =HLOOKUP($C$2,$B$8:$D99,$A99,FALSE) -> Transportation cost (USD/t/km) | G99: title92
A100: 93 | B100: Large scale (t/year) | C100: Grande échelle (t/an) | D100: Gran escala (t/año) | E100: title | F100: =HLOOKUP($C$2,$B$8:$D100,$A100,FALSE) -> Large scale (t/year) | G100: title93
A101: 94 | B101: Show Costing Details | C101: Voir les Détails des Coûts | D101: Mostrar detalles de cálculo de costos | E101: title | F101: =HLOOKUP($C$2,$B$8:$D101,$A101,FALSE) -> Show Costing Details | G101: title94
A102: 95 | B102: Hide Costing Details | C102: Cachez les Détails des Coûts | D102: Ocultar detalles de cálculo de costos | E102: title | F102: =HLOOKUP($C$2,$B$8:$D102,$A102,FALSE) -> Hide Costing Details | G102: title95
A103: 96 | B103: Production Cost Details | C103: Détails des Coûts de Production | D103: Detalles de los costos de producción | E103: title | F103: =HLOOKUP($C$2,$B$8:$D103,$A103,FALSE) -> Production Cost Details | G103: title96
A104: 97 | B104: Capacities (kW of power generation) | C104: Capacités (kW de production d'électricité) | D104: Capacidad (kW de generación de energía) | E104: title | F104: =HLOOKUP($C$2,$B$8:$D104,$A104,FALSE) -> Capacities (kW of power generation) | G104: title97
A105: 98 | B105: Operating hours per year | C105: Heures de fonctionnement par an | D105: Horas de operación por año | E105: title | F105: =HLOOKUP($C$2,$B$8:$D105,$A105,FALSE) -> Operating hours per year | G105: title98
A106: 99 | B106: Inputs | C106: Intrant | D106: Insumos | E106: title | F106: =HLOOKUP($C$2,$B$8:$D106,$A106,FALSE) -> Inputs | G106: title99
A107: 100 | B107: Feedstock (Oilseed) | C107: Matières premières (Graines oléagineuses) | D107: Materia prima (semillas oleaginosas) | E107: title | F107: =HLOOKUP($C$2,$B$8:$D107,$A107,FALSE) -> Feedstock (Oilseed) | G107: title100
A108: 101 | B108: Diesel for start up | C108: Diesel pour démarrer | D108: Diésel para el arranque | E108: title | F108: =HLOOKUP($C$2,$B$8:$D108,$A108,FALSE) -> Diesel for start up | G108: title101
A109: 102 | B109: Subtotal | C109: Sous-total | D109: Subtotal | E109: title | F109: =HLOOKUP($C$2,$B$8:$D109,$A109,FALSE) -> Subtotal | G109: title102
A110: 103 | B110: Unit Price | C110: Prix unitaire | D110: Precio unitario | E110: title | F110: =HLOOKUP($C$2,$B$8:$D110,$A110,FALSE) -> Unit Price | G110: title103
A111: 104 | B111: (USD/unit) | C111: (USD/Unité) | D111: (USD/unidad) | E111: title | F111: =HLOOKUP($C$2,$B$8:$D111,$A111,FALSE) -> (USD/unit) | G111: title104
A112: 105 | B112: Quantity | C112: Quantité | D112: Cantidad | E112: title | F112: =HLOOKUP($C$2,$B$8:$D112,$A112,FALSE) -> Quantity | G112: title105
A113: 106 | B113: (Unit/year) | C113: (Unité/an) | D113: (Unidad/año) | E113: title | F113: =HLOOKUP($C$2,$B$8:$D113,$A113,FALSE) -> (Unit/year) | G113: title106
A114: 107 | B114: (USD/year) | C114: (USD/an) | D114: (USD/año) | E114: title | F114: =HLOOKUP($C$2,$B$8:$D114,$A114,FALSE) -> (USD/year) | G114: title107
A115: 108 | B115: Labour and Miscellaneous Cost | C115: Travail et le coût divers | D115: Mano de obra y costos varios | E115: title | F115: =HLOOKUP($C$2,$B$8:$D115,$A115,FALSE) -> Labour and Miscellaneous Cost | G115: title108
A116: 109 | B116: Miscellaneous cost | C116: Coût divers | D116: Costos varios | E116: title | F116: =HLOOKUP($C$2,$B$8:$D116,$A116,FALSE) -> Miscellaneous cost | G116: title109
A117: 110 | B117: # employee | C117: # employé | D117: # trabajador | E117: title | F117: =HLOOKUP($C$2,$B$8:$D117,$A117,FALSE) -> # employee | G117: title110
A118: 111 | B118: (USD/person/h) | C118: (USD/personne/h) | D118: (USD/person/h) | E118: title | F118: =HLOOKUP($C$2,$B$8:$D118,$A118,FALSE) -> (USD/person/h) | G118: title111
A119: 112 | B119: Transport of Feedstock | C119: Transport des matières premières | D119: Transporte de materia prima | E119: title | F119: =HLOOKUP($C$2,$B$8:$D119,$A119,FALSE) -> Transport of Feedstock | G119: title112
A120: 113 | B120: Feedstock (farm to plant) | C120: Matières premières (ferme à l'usine) | D120: Materia prima (finca a la planta) | E120: title | F120: =HLOOKUP($C$2,$B$8:$D120,$A120,FALSE) -> Feedstock (farm to plant) | G120: title113
A121: 114 | B121: Storage | C121: Stockage | D121: Almacenamiento | E121: title | F121: =HLOOKUP($C$2,$B$8:$D121,$A121,FALSE) -> Storage | G121: title114
A122: 115 | B122: Investment | C122: Investissement | D122: Inversión | E122: title | F122: =HLOOKUP($C$2,$B$8:$D122,$A122,FALSE) -> Investment | G122: title115
A123: 116 | B123: Equipments | C123: Equipements | D123: Equipos | E123: title | F123: =HLOOKUP($C$2,$B$8:$D123,$A123,FALSE) -> Equipments | G123: title116
A124: 117 | B124: Building | C124: Bâtiment | D124: Construcción | E124: title | F124: =HLOOKUP($C$2,$B$8:$D124,$A124,FALSE) -> Building | G124: title117
A125: 118 | B125: Installation | C125: Installation | D125: Instalación | E125: title | F125: =HLOOKUP($C$2,$B$8:$D125,$A125,FALSE) -> Installation | G125: title118
A126: 119 | B126: Distribution network | C126: Réseau de distribution | D126: Red de distribución | E126: title | F126: =HLOOKUP($C$2,$B$8:$D126,$A126,FALSE) -> Distribution network | G126: title119
A127: 120 | B127: Total investment | C127: Investissement total | D127: Inversión total | E127: title | F127: =HLOOKUP($C$2,$B$8:$D127,$A127,FALSE) -> Total investment | G127: title120
A128: 121 | B128: Depreciation | C128: Amortissement | D128: Depreciación | E128: title | F128: =HLOOKUP($C$2,$B$8:$D128,$A128,FALSE) -> Depreciation | G128: title121
A129: 122 | B129: Total depreciation | C129: Total des amortissements | D129: Depreciación total | E129: title | F129: =HLOOKUP($C$2,$B$8:$D129,$A129,FALSE) -> Total depreciation | G129: title122
A130: 123 | B130: Maintenance cost | C130: Coût de maintenance | D130: Costos de mantenimiento | E130: title | F130: =HLOOKUP($C$2,$B$8:$D130,$A130,FALSE) -> Maintenance cost | G130: title123
A131: 124 | B131: Plant overhead | C131: Frais généraux de l'usine | D131: Gastos generales de planta | E131: title | F131: =HLOOKUP($C$2,$B$8:$D131,$A131,FALSE) -> Plant overhead | G131: title124
A132: 125 | B132: General and administrative cost | C132: Coût généraux et administratifs | D132: Costos generales y administrativos | E132: title | F132: =HLOOKUP($C$2,$B$8:$D132,$A132,FALSE) -> General and administrative cost | G132: title125
A133: 126 | B133: Loan interest | C133: Intérêts du prêt (USD) | D133: Intereses de créditos | E133: title | F133: =HLOOKUP($C$2,$B$8:$D133,$A133,FALSE) -> Loan interest | G133: title126
A134: 127 | B134: Income tax | C134: Impôt sur le revenu | D134: Impuesto sobre la renta | E134: title | F134: =HLOOKUP($C$2,$B$8:$D134,$A134,FALSE) -> Income tax | G134: title127
A135: 128 | B135: Total operating costs | C135: Total des coûts d’opérations | D135: Costos de operación totales | E135: title | F135: =HLOOKUP($C$2,$B$8:$D135,$A135,FALSE) -> Total operating costs | G135: title128
A136: 129 | B136: Total fixed costs | C136: Total des coûts fixes | D136: Costos fijos totales | E136: title | F136: =HLOOKUP($C$2,$B$8:$D136,$A136,FALSE) -> Total fixed costs | G136: title129
A137: 130 | B137: Total other costs | C137: Total des autres charges | D137: Otros costos totales | E137: title | F137: =HLOOKUP($C$2,$B$8:$D137,$A137,FALSE) -> Total other costs | G137: =$E137&$A137 -> title130
A138: 131 | B138: Total production costs | C138: Total des coûts de production | D138: Costos de producción totales | E138: title | F138: =HLOOKUP($C$2,$B$8:$D138,$A138,FALSE) -> Total production costs | G138: title131
A139: 132 | B139: Share (%) | C139: Part (%) | D139: Parte (%) | E139: title | F139: =HLOOKUP($C$2,$B$8:$D139,$A139,FALSE) -> Share (%) | G139: title132
A140: 133 | B140: Power generation | C140: Production d'électricité | D140: Generación de Energía | E140: title | F140: =HLOOKUP($C$2,$B$8:$D140,$A140,FALSE) -> Power generation | G140: title133
A141: 134 | B141: Electricity-self use | C141: Électricité - utilisation autonome | D141: Electricidad-uso propio | E141: title | F141: =HLOOKUP($C$2,$B$8:$D141,$A141,FALSE) -> Electricity-self use | G141: title134
A142: 135 | B142: kWh/year | C142: kWh/an | D142: kWh/año | E142: title | F142: =HLOOKUP($C$2,$B$8:$D142,$A142,FALSE) -> kWh/year | G142: title135
A143: 136 | B143: Total Production Cost+Distribution | C143: Coût Total de Production+Distribution | D143: Costo de producción total + Distribución | E143: title | F143: =HLOOKUP($C$2,$B$8:$D143,$A143,FALSE) -> Total Production Cost+Distribution | G143: title136
A144: 137 | B144: Unit cost of electricity (USD/kWh) | C144: Coût unitaire de l'électricité (USD/kWh) | D144: Costo unitario de la electricidad (USD/kWh) | E144: title | F144: =HLOOKUP($C$2,$B$8:$D144,$A144,FALSE) -> Unit cost of electricity (USD/kWh) | G144: title137
A145: 138 | B145: Loan amount | C145: Montant du prêt | D145: Monto del crédito | E145: title | F145: =HLOOKUP($C$2,$B$8:$D145,$A145,FALSE) -> Loan amount | G145: title138
A146: 139 | B146: Loan payment | C146: Paiement de prêt | D146: Pago del crédito | E146: title | F146: =HLOOKUP($C$2,$B$8:$D146,$A146,FALSE) -> Loan payment | G146: title139
A147: 140 | B147: Annual loan payment | C147: Paiement annuel du prêt | D147: Pago anual del crédito | E147: title | F147: =HLOOKUP($C$2,$B$8:$D147,$A147,FALSE) -> Annual loan payment | G147: title140
A148: 141 | B148: Total loan payment | C148: Paiement total du prêt | D148: Pago total del crédito | E148: title | F148: =HLOOKUP($C$2,$B$8:$D148,$A148,FALSE) -> Total loan payment | G148: title141
A149: 142 | B149: Average loan interest | C149: Intérêt moyen du prêt | D149: Interés promedio del crédito | E149: title | F149: =HLOOKUP($C$2,$B$8:$D149,$A149,FALSE) -> Average loan interest | G149: title142
A150: 143 | B150: USD/month | C150: USD/mois | D150: USD/mes | E150: title | F150: =HLOOKUP($C$2,$B$8:$D150,$A150,FALSE) -> USD/month | G150: title143
A151: 144 | B151: USD/year | C151: USD/an | D151: USD/año | E151: title | F151: =HLOOKUP($C$2,$B$8:$D151,$A151,FALSE) -> USD/year | G151: title144
A152: 145 | B152: SUMMARY OF RESULTS OF SVO + RURAL ELECTRIFICATION FROM | C152: RÉSUMÉ DES RÉSULTATS DE HVB + L’ÉLECTRIFICATION RURALE DE | D152: RESUMEN DE RESULTADOS DE AVC + ELECTRIFICACIÓN RURAL A PARTIR DE | E152: title | F152: =HLOOKUP($C$2,$B$8:$D152,$A152,FALSE) -> SUMMARY OF RESULTS OF SVO + RURAL ELECTRIFICATION FROM | G152: title145
A153: 146 | B153: Select a biomass residue to see the summary results | C153: Sélectionner un résidu de biomasse pour voir les résultats sommaires | D153: Seleccione la materia prima para ver el resumen de resultados | E153: title | F153: =HLOOKUP($C$2,$B$8:$D153,$A153,FALSE) -> Select a biomass residue to see the summary results | G153: title146
A154: 147 | B154: Production Cost and Investment Results | C154: Résultats des Coûts de Production et d'Investissement | D154: Resultados de costos de producción e inversión | E154: title | F154: =HLOOKUP($C$2,$B$8:$D154,$A154,FALSE) -> Production Cost and Investment Results | G154: title147
A155: 148 | B155: yes | C155: oui | D155: sí | E155: title | F155: =HLOOKUP($C$2,$B$8:$D155,$A155,FALSE) -> yes | G155: title148
A156: 149 | B156: meal price (USD/t) | C156: prix du repas (USD/t) | D156: precio de la harina (USD/t) | E156: title | F156: =HLOOKUP($C$2,$B$8:$D156,$A156,FALSE) -> meal price (USD/t) | G156: title149
A157: 150 | B157: Include revenue from meal co-products | C157: Inclure les revenus provenant repas co-produits | D157: Incluya los ingresos por los subproductos alimenticios | E157: title | F157: =HLOOKUP($C$2,$B$8:$D157,$A157,FALSE) -> Include revenue from meal co-products | G157: title150
A158: 151 | B158: No co-products available | C158: Pas de co-produits disponibles | D158: No hay subproductos disponibles | E158: title | F158: =HLOOKUP($C$2,$B$8:$D158,$A158,FALSE) -> No co-products available | G158: title151
A159: 152 | B159: Range of Production Cost + Distribution (USD/kWh) | C159: Plage du coût de production + Distribution (USD/kWh) | D159: Costo de producción + transporte (USD/kWh) | E159: title | F159: =HLOOKUP($C$2,$B$8:$D159,$A159,FALSE) -> Range of Production Cost + Distribution (USD/kWh) | G159: title152
A160: 153 | B160: Share of Production Cost (%) | C160: Part des Coûts de Production (%) | D160: Porcentaje de costo producción (%) | E160: title | F160: =HLOOKUP($C$2,$B$8:$D160,$A160,FALSE) -> Share of Production Cost (%) | G160: title153
A161: 154 | B161: Investment (USD) | C161: Investissement (USD) | D161: Inversión (USD) | E161: title | F161: =HLOOKUP($C$2,$B$8:$D161,$A161,FALSE) -> Investment (USD) | G161: title154
A162: 155 | B162: Raw materials | C162: Matières premières | D162: Materias primas | E162: title | F162: =HLOOKUP($C$2,$B$8:$D162,$A162,FALSE) -> Raw materials | G162: title155
A163: 156 | B163: Labour and miscellaneous costs | C163: Travail et le coût diverss | D163: Costos varios y de mano de obra | E163: title | F163: =HLOOKUP($C$2,$B$8:$D163,$A163,FALSE) -> Labour and miscellaneous costs | G163: title156
A164: 157 | B164: Transport and storage of feedstock | C164: Transport et stockage des matières premières | D164: Transporte y almacenamiento de materia prima | E164: title | F164: =HLOOKUP($C$2,$B$8:$D164,$A164,FALSE) -> Transport and storage of feedstock | G164: title157
A165: 158 | B165: Depreciation and maintenance | C165: Amortissement et maintenance | D165: Depreciación y mantenimiento | E165: title | F165: =HLOOKUP($C$2,$B$8:$D165,$A165,FALSE) -> Depreciation and maintenance | G165: title158
A166: 159 | B166: Total (USD/Year) | C166: Total (USD/an) | D166: Total (USD/año) | E166: title | F166: =HLOOKUP($C$2,$B$8:$D166,$A166,FALSE) -> Total (USD/Year) | G166: title159
A167: 160 | B167: NPV (USD/year) | C167: NPV (USD/an) | D167: VAN (USD/año) | E167: title | F167: =HLOOKUP($C$2,$B$8:$D167,$A167,FALSE) -> NPV (USD/year) | G167: title160
A168: 161 | B168: Depreciation and other costs | C168: Amortissement et autres coûts | D168: Depreciación y otros costos | E168: title | F168: =HLOOKUP($C$2,$B$8:$D168,$A168,FALSE) -> Depreciation and other costs | G168: title161
A169: 162 | B169: Biomass consumption (t/year) | C169: Consommation de la biomasse (t/an) | D169: Consumo de la biomasa (t/año) | E169: title | F169: =HLOOKUP($C$2,$B$8:$D169,$A169,FALSE) -> Biomass consumption (t/year) | G169: title162
A170: 163 | B170: Biomass available (t) | C170: Biomasse disponible (t) | D170: Biomasa disponibles (t) | E170: title | F170: =HLOOKUP($C$2,$B$8:$D170,$A170,FALSE) -> Biomass available (t) | G170: title163
A171: 164 | B171: Area required (ha) | C171: Zone requise (ha) | D171: Área requerida (ha) | E171: title | F171: =HLOOKUP($C$2,$B$8:$D171,$A171,FALSE) -> Area required (ha) | G171: title164
A172: 165 | B172: Potential number of plants | C172: Nombre potentiel des centrales | D172: Número de plantas potenciales | E172: title | F172: =HLOOKUP($C$2,$B$8:$D172,$A172,FALSE) -> Potential number of plants | G172: title165
A173: 166 | B173: Processing | C173: Transformation | D173: Procesamiento | E173: title | F173: =HLOOKUP($C$2,$B$8:$D173,$A173,FALSE) -> Processing | G173: title166
A174: 167 | B174: Technical and Operating Results | C174: Résultats Techniques et d'Opérations | D174: Resultados técnicos y operativos | E174: title | F174: =HLOOKUP($C$2,$B$8:$D174,$A174,FALSE) -> Technical and Operating Results | G174: title167
A175: 168 | B175: Feedstock Consumption per Plant | C175: Consommation de Matières Premières par Centrale | D175: Consumo de material prima por planta | E175: title | F175: =HLOOKUP($C$2,$B$8:$D175,$A175,FALSE) -> Feedstock Consumption per Plant | G175: title168
A176: 169 | B176: Area Required and Potential Number of Plants | C176: Zone Requise et Nombre Potentiel de Centrales | D176: Número potencial de plantas y área requerida | E176: title | F176: =HLOOKUP($C$2,$B$8:$D176,$A176,FALSE) -> Area Required and Potential Number of Plants | G176: title169
A177: 170 | B177: Households Potentially Supplied | C177: Ménages Potentiellement Desservis | D177: Hogares potencialmente suministrados | E177: title | F177: =HLOOKUP($C$2,$B$8:$D177,$A177,FALSE) -> Households Potentially Supplied | G177: title170
A178: 171 | B178: Not enough biomass available for 10 kW size. Then potential number of plants is zero | C178: Pas suffisamment de biomasse disponible pour la taille 10 kW. Ensuite, nombre potentiel d’usine est zéro. | D178: No hay suficiente biomasa disponible para 10 kW tamaño. Por lo tanto el número potencial de plantas es cero. | E178: title | F178: =HLOOKUP($C$2,$B$8:$D178,$A178,FALSE) -> Not enough biomass available for 10 kW size. Then potential number of plants is zero | G178: title171
A179: 172 | B179: The maximum number of plants potentially available for 10 kW size is | C179: Le nombre maximum d’usine potentiellement disponibles pour la taille 10 kW est | D179: El número máximo de plantas potencialmente disponibles para 10 kW tamaño es | E179: title | F179: =HLOOKUP($C$2,$B$8:$D179,$A179,FALSE) -> The maximum number of plants potentially available for 10 kW size is | G179: title172
A180: 173 | B180: Not enough biomass available for 40 kW size. Then potential number of plants is zero | C180: Pas suffisamment de biomasse disponible pour la taille 40 kW. Ensuite, nombre potentiel d’usine est zéro. | D180: No hay suficiente biomasa disponible para 40 kW tamaño. Por lo tanto el número potencial de plantas es cero. | E180: title | F180: =HLOOKUP($C$2,$B$8:$D180,$A180,FALSE) -> Not enough biomass available for 40 kW size. Then potential number of plants is zero | G180: title173
A181: 174 | B181: The maximum number of plants potentially available for 40 kW size is | C181: Le nombre maximum d’usine potentiellement disponibles pour la taille 40 kW est | D181: El número máximo de plantas potencialmente disponibles para 40 kW tamaño es | E181: title | F181: =HLOOKUP($C$2,$B$8:$D181,$A181,FALSE) -> The maximum number of plants potentially available for 40 kW size is | G181: title174
A182: 175 | B182: Not enough biomass available for 100 kW size. Then potential number of plants is zero | C182: Pas suffisamment de biomasse disponible pour la taille 100 kW. Ensuite, nombre potentiel d’usine est zéro. | D182: No hay suficiente biomasa disponible para 100 kW tamaño. Por lo tanto el número potencial de plantas es cero. | E182: title | F182: =HLOOKUP($C$2,$B$8:$D182,$A182,FALSE) -> Not enough biomass available for 100 kW size. Then potential number of plants is zero | G182: title175
A183: 176 | B183: The maximum number of plants potentially available for 100 kW size is | C183: Le nombre maximum d’usine potentiellement disponibles pour la taille 100 kW est | D183: El número máximo de plantas potencialmente disponibles para 100 kW tamaño es | E183: title | F183: =HLOOKUP($C$2,$B$8:$D183,$A183,FALSE) -> The maximum number of plants potentially available for 100 kW size is | G183: title176
A184: 177 | B184: Potential Job Creation | C184: Création Potentielle d'Emplois | D184: Empleos potencialmente generados | E184: title | F184: =HLOOKUP($C$2,$B$8:$D184,$A184,FALSE) -> Potential Job Creation | G184: title177
A185: 178 | B185: Job creation includes only labour required to produce and distribute electricity. Biomass collection is excluded. | C185: La création d'emplois ne comprend que le travail nécessaire pour produire et distribuer l'électricité. Collecte de la biomasse est exclue. | D185: La creación de empleo incluye solo la mano de obra requerida para producir y distribuir electricidad. La recolección de la biomasa se excluye. | E185: title | F185: =HLOOKUP($C$2,$B$8:$D185,$A185,FALSE) -> Job creation includes only labour required to produce and distribute electricity. Biomass collection is excluded. | G185: title178
A186: 179 | B186: Financial Analysis Results | C186: Résultat de l’Analyse Financière | D186: Resumen de análisis financiero | E186: title | F186: =HLOOKUP($C$2,$B$8:$D186,$A186,FALSE) -> Financial Analysis Results | G186: title179
A187: 180 | B187: Net Present Value (1000 USD) | C187: Valeur Actuelle Nette (1000 USD) | D187: Valor Actual Neto (1000 USD) | E187: title | F187: =HLOOKUP($C$2,$B$8:$D187,$A187,FALSE) -> Net Present Value (1000 USD) | G187: title180
A188: 181 | B188: Internal Rate of Return (%) | C188: Taux de Rendement Interne (%) | D188: Tasa Interna de Retorno (%) | E188: title | F188: =HLOOKUP($C$2,$B$8:$D188,$A188,FALSE) -> Internal Rate of Return (%) | G188: title181
A189: 182 | B189: SUMMARY OF RESULTS OF SVO + RURAL ELECTRIFICATION COMPARATIVE | C189: RÉSUMÉ COMPARATIF DES RÉSULTATS DE SVO + L’ÉLECTRIFICATION RURALE | D189: RESUMEN DE RESULTADOS DE AVC + ELECTRIFICACIÓN RURAL COMPARATIVA | E189: title | F189: =HLOOKUP($C$2,$B$8:$D189,$A189,FALSE) -> SUMMARY OF RESULTS OF SVO + RURAL ELECTRIFICATION COMPARATIVE | G189: title182
A190: 183 | B190: Feedstock Selection | C190: Sélection de Matières Premières | D190: Selección de la materia prima | E190: title | F190: =HLOOKUP($C$2,$B$8:$D190,$A190,FALSE) -> Feedstock Selection | G190: title183
A191: 184 | B191: Techno-economic Results | C191: Résultats Techno-économiques | D191: Resultados tecno-económicos | E191: title | F191: =HLOOKUP($C$2,$B$8:$D191,$A191,FALSE) -> Techno-economic Results | G191: title184
A192: 185 | B192: Comparison of average production costs (USD/kWh) | C192: Comparaison des coûts de production moyens (USD/kWh) | D192: Comparación de los costos de producción (USD/kWh) | E192: title | F192: =HLOOKUP($C$2,$B$8:$D192,$A192,FALSE) -> Comparison of average production costs (USD/kWh) | G192: title185
A193: 186 | B193: Net electricity generation and capacity utilization factor (%) | C193: Production nette d'électricité et facteur d'utilisation des capacités (%) | D193: Generación neta de electricidad y factor de utilización de la capacidad (%) | E193: title | F193: =HLOOKUP($C$2,$B$8:$D193,$A193,FALSE) -> Net electricity generation and capacity utilization factor (%) | G193: title186
A194: 187 | B194: Include revenue from meal coproducts | C194: Inclure les revenu des sous-produits de farine | D194: Incluya los ingresos de los co-productos | E194: title | F194: =HLOOKUP($C$2,$B$8:$D194,$A194,FALSE) -> Include revenue from meal coproducts | G194: title187
A195: 188 | B195: No coproducts available | C195: Pas de sous-produits de farine disponibles | D195: No hay co-productos disponibles | E195: title | F195: =HLOOKUP($C$2,$B$8:$D195,$A195,FALSE) -> No coproducts available | G195: title188
A196: 189 | B196: Socio-economic Results | C196: Résultats Socio-économiques | D196: Resultados socio-económicos | E196: title | F196: =HLOOKUP($C$2,$B$8:$D196,$A196,FALSE) -> Socio-economic Results | G196: title189
A197: 190 | B197: Total Number of Jobs Created | C197: Nombre total d'emplois créés | D197: Número total de empleos creados | E197: title | F197: =HLOOKUP($C$2,$B$8:$D197,$A197,FALSE) -> Total Number of Jobs Created | G197: title190
A198: 191 | B198: Total Number of Households Supplied | C198: Nombre total de ménages desservis | D198: Número total de hogares suministrados | E198: title | F198: =HLOOKUP($C$2,$B$8:$D198,$A198,FALSE) -> Total Number of Households Supplied | G198: title191
A199: 192 | B199: Please input first the Plant Cost Index for the current period in the investment cost update section. | C199: Veuillez saisir d'abord l'indice du coût de la centrale pour la période en cours dans la section de mise à jour des coûts d'investissement. | D199: Por favor, introduzca por primera vez el Índice del Costo de la planta para el período actual en la sección de actualización de los costos de inversión. | E199: title | F199: =HLOOKUP($C$2,$B$8:$D199,$A199,FALSE) -> Please input first the Plant Cost Index for the current period in the investment cost update section. | G199: title192
A200: 193 | B200: Additional Data Required | C200: Données supplémentaires nécessaires | D200: Se requieren datos adicionales | E200: title | F200: =HLOOKUP($C$2,$B$8:$D200,$A200,FALSE) -> Additional Data Required | G200: title193
A201: 194 | B201: Range of total Production Cost + Distribution (USD/kWh) | C201: Plage du coût de production + Distribution (USD/kWh) | D201: Costo de producción + transporte (USD/kWh) | E201: title | F201: =HLOOKUP($C$2,$B$8:$D201,$A201,FALSE) -> Range of total Production Cost + Distribution (USD/kWh) | G201: title194
A202: 195 | B202: Total Investment (USD) | C202: Investissement total (USD) | D202: Inversión total (USD) | E202: title | F202: =HLOOKUP($C$2,$B$8:$D202,$A202,FALSE) -> Total Investment (USD) | G202: =$E202&$A202 -> title195
... 158 more rows

Sheet Data Entry Needs
C3: =title19 -> DATA ENTRY FOR SVO + RURAL ELECTRIFICATION
C6: =title17 -> Use white cells to input data | D6: =title18 -> Grey cells are used for calculations
D8: =title20&" 1" -> Feedstock 1 | E8: =title20&" 2" -> Feedstock 2 | F8: =title20&" 3" -> Feedstock 3 | G8: =title20&" 4" -> Feedstock 4
C9: =title20 -> Feedstock | D9: Please Select | E9: Please Select | F9: Please Select | G9: Please Select
C10: =title21 -> Feedstock potential (t/year)
C11: =title22 -> Feedstock yield (t/ha)
C12: =title23 -> Oil content (%) | D12: =+VLOOKUP(D$9,dummy_database!$G$2:$I$12,2,FALSE) ->  | E12: =+VLOOKUP(E$9,dummy_database!$G$2:$I$12,2,FALSE) ->  | F12: =+VLOOKUP(F$9,dummy_database!$G$2:$I$12,2,FALSE) ->  | G12: =+VLOOKUP(G$9,dummy_database!$G$2:$I$12,2,FALSE) -> 
C13: =title24 -> Feedstock price (USD/t)
C14: =title25 -> Feedstock storage cost (USD/t)
C16: =title34 -> Electricity Price Definition
C17: =title35 -> Select a method to determine the price of electricity | E17: Método 1
C19: =title36 -> Method 1 | E19: =title39 -> Unit | F19: =title38 -> Method 1: Use a calculator to determine the production cost of electricity from a diesel generator.
C20: =title37 -> Comparative production cost of electricity | D20: =+'Rural Electricity Price'!$M$18 -> 0 | E20: USD/kWh
C22: =title41 -> Method 2 | E22: =title39 -> Unit | F22: =title42 -> Method 2: Use an electricity price defined by the user. In the assessment , it is important to consider that this price might include subsidies.
C24: =title43 -> Price paid by customer | E24: USD/kWh
C27: =title44 -> Production Cost and Financial Parameters
C29: =title45 -> Labour | E29: =title39 -> Unit | I29: =title39 -> Unit
C30: =title46 -> Unskilled worker | E30: =title59 -> USD/person-h | F30: =title61 -> Skilled worker | I30: =title59 -> USD/person-h
C32: =title47 -> Utilities | E32: =title39 -> Unit
C33: =title48 -> Diesel | E33: USD/litre | F33: =title62 -> ==>Required to start up the engine
C35: =title49 -> Transportation cost | E35: =title39 -> Unit
C36: =title50 -> Feedstock (collection point to plant) | E36: USD/t/km
C38: =title51 -> Other costs | E38: =title39 -> Unit | I38: =title39 -> Unit
C39: =title52 -> General and administrative (%) | F39: =title63 -> Maintenance (%)
C40: =title53 -> Plant overhead (%) | F40: =title64 -> Miscellaneous (%)
C42: =title54 -> Financial parameters | E42: =title39 -> Unit | F42: =title65 -> Investment cost update
C43: =title55 -> Discount rate
C44: =title56 -> Loan ratio | F44: =title66&" "&MONTH(TODAY())&"/"&YEAR(TODAY()) -> Plant Cost Index during 1/2017
C45: =title57 -> Loan interest rate | F45: http://www.intratec.us/free-tools/intratec-construction-index
C46: =title58 -> Loan terms | E46: =title60 -> year
C47: Inflation rate | D47: 0
Z73: =title26 -> Please Select
Z74: =title27 -> Coconut
Z75: =title28 -> Jatropha
Z76: =title29 -> Oil palm
Z77: =title30 -> Rapeseed
Z78: =title31 -> Soybeans
Z79: =title32 -> Sunflower
Y80: FS | Z80: =title33 -> Electricity | AA80: 1 | AB80: =+IF(AA80=0,$D$24,$D$20) -> 0
Y81: 1 | Z81: =+IF($D$9=title26,TRUE,FALSE) -> TRUE
Y82: 2 | Z82: =+IF($E$9=title26,TRUE,FALSE) -> TRUE
Y83: 3 | Z83: =+IF($F$9=title26,TRUE,FALSE) -> TRUE
Y84: 4 | Z84: =+IF($G$9=title26,TRUE,FALSE) -> TRUE
AN100: PCI | AO100: =IF(OR($H$44="",$H$44=" "),TRUE,FALSE) -> TRUE
AD111: 10
AD113: 30
AD114: 333
AD115: 444
AD118: 10

Sheet COST(ADJUSTED)_OIL1 (hidden)
C3: =+UPPER("DETAILED INVESTEMET OF SVO+RURAL ELECTRICITY AND/OR HEAT FROM "&'Data Entry Needs'!$D$9) -> DETAILED INVESTEMET OF SVO+RURAL ELECTRICITY AND/OR HEAT FROM PLEASE SELECT
F6: =title97 -> Capacities (kW of power generation)
F7: 10 | G7: 40 | H7: 100
D8: =title20 -> Feedstock | E8: t/year | F8: =+COST_OIL1!G36 ->  | G8: =+COST_OIL1!I36 ->  | H8: =+COST_OIL1!K36 -> 
D9: Operating period | E9: h/year | F9: =+COST_OIL1!H31 -> 0 | G9: =+COST_OIL1!J31 -> 0 | H9: =+COST_OIL1!L31 -> 0
D10: Households | E10: Household | F10: =+COST_OIL1!G90/('Energy Demand'!$F$8*12) ->  | G10: =+COST_OIL1!I90/('Energy Demand'!$F$8*12) ->  | H10: =+COST_OIL1!K90/('Energy Demand'!$F$8*12) -> 
C11: Estimated distance covered (m) | D11: m/household | E11: 10 | F11: =+F10*$E$11 ->  | G11: =+G10*$E$11 ->  | H11: =+H10*$E$11 -> 
C13: Pretreatment
C14: Connection and earthing | D14: % | E14: =+VLOOKUP('Data Entry Needs'!$D$9,dummy_database!$G$4:$N$9,8,FALSE) ->  | F14: =+$E$14*F23 ->  | G14: =+$E$14*G23 ->  | H14: =+$E$14*H23 -> 
E15: =title102 -> Subtotal | F15: =SUM(F14)*('Data Entry Needs'!$H$44/148.735061895476) ->  | G15: =SUM(G14)*('Data Entry Needs'!$H$44/148.735061895476) ->  | H15: =SUM(H14)*('Data Entry Needs'!$H$44/148.735061895476) -> 
C16: =title116 -> Equipments
C17: Oilseed Press | D17: USDh/kg | E17: 33.3 | F17: =+F$8*1000*$E17/F$9 ->  | G17: =+G$8*1000*$E17/G$9 -> 
C18: Dehulling | D18: USDh/kg | E18: 27.5 | F18: =+F$8*1000*$E18/F$9 -> 
C19: Filtrat | D19: USDh/kg | E19: 23.75 | F19: =+F$8*1000*$E19/F$9 -> 
C20: Engine | D20: USD/kW | E20: 171.43 | F20: =+F$7*$E20 -> 1714.3 | G20: =+G$7*$E20 -> 6857.2 | H20: 17143
C21: Generator | D21: USD/kW | E21: 184 | F21: =+F$7*$E21 -> 1840 | G21: 7360 | H21: 18400
C22: Adaptation to SVO | D22: USD/kW | E22: 41.5 | F22: =+F$7*$E22 -> 415 | G22: 1660 | H22: 4150
E23: =title102 -> Subtotal | F23: =SUM(F17:F22)*('Data Entry Needs'!$H$44/148.735061895476) ->  | G23: =SUM(G17:G22)*('Data Entry Needs'!$H$44/148.735061895476) ->  | H23: =SUM(H17:H22)*('Data Entry Needs'!$H$44/148.735061895476) -> 
C24: =title117 -> Building
C25: Civil work (Building, generator platform etc.) | D25: USD/kW | F25: =19.656* F7+ 1713.4 -> 1909.96 | G25: =19.656* G7+ 1713.4 -> 2499.64 | H25: =19.656* H7+ 1713.4 -> 3679
E26: =title102 -> Subtotal | F26: =SUM(F25)*('Data Entry Needs'!$H$44/148.735061895476) -> 0 | G26: =SUM(G25)*('Data Entry Needs'!$H$44/148.735061895476) -> 0 | H26: =SUM(H25)*('Data Entry Needs'!$H$44/148.735061895476) -> 0
C27: =title118 -> Installation
C28: Connection and earthing | D28: USD/kW | E28: 27.14285714 | F28: =($E$28*F7) -> 271.4285714 | G28: =($E$28*G7) -> 1085.714286 | H28: =($E$28*H7) -> 2714.285714
E29: =title102 -> Subtotal | F29: =SUM(F28)*('Data Entry Needs'!$H$44/148.735061895476) -> 0 | G29: =SUM(G28)*('Data Entry Needs'!$H$44/148.735061895476) -> 0 | H29: =SUM(H28)*('Data Entry Needs'!$H$44/148.735061895476) -> 0
C30: =title119 -> Distribution network
C31: Primary electricity cable | D31: USD/m | E31: 7.454 | F31: =+F$11*$E31 ->  | G31: =+G$11*$E31 ->  | H31: =+H$11*$E31 -> 
C32: Secondary cable, installation and meter | D32: USD/household | E32: 164 | F32: =+F$10*$E32 ->  | G32: =+G$10*$E32 ->  | H32: =+H$10*$E32 -> 
E33: =title102 -> Subtotal | F33: =SUM(F31:F32)*('Data Entry Needs'!$H$44/148.735061895476) ->  | G33: =SUM(G31:G32)*('Data Entry Needs'!$H$44/148.735061895476) ->  | H33: =SUM(H31:H32)*('Data Entry Needs'!$H$44/148.735061895476) -> 

Sheet COST_OIL1
C3: =+UPPER(title72&" "&'Data Entry Needs'!$D$9) -> PROCESSING COSTS FOR SVO + RURAL ELECTRIFICATION FROM PLEASE SELECT
C6: =title17 -> Use white cells to input data | E6: =title18 -> Grey cells are used for calculations
C8: =title73 -> Summary of Feedstock and Storage | G8: =title74 -> Summary of Operational Parameters | K8: =PROPER(title54) -> Financial Parameters
C10: =title75 -> Feedstock available (t/year) | E10: =+'Data Entry Needs'!$D$10 -> 0 | G10: =title76 -> Capacity utilization factor | I10: =H31/8760 -> 0 | K10: =title55&" (%)" -> Discount rate (%) | N10: =+'Data Entry Needs'!$D$43 -> 0
C11: =title25 -> Feedstock storage cost (USD/t) | E11: =+'Data Entry Needs'!$D$14 -> 0 | G11: =title77 -> Calorific value (kWh/kg oil) | I11: =+VLOOKUP('Data Entry Needs'!$D$9,dummy_database!$G$2:$J$12,3,FALSE)/3.6 ->  | K11: =title70 -> Inflation rate | N11: =+'Data Entry Needs'!$D$47 -> 0
C12: =title22 -> Feedstock yield (t/ha) | E12: =+'Data Entry Needs'!$D$11 -> 0 | G12: =title78 -> Oil extraction efficiency | I12: =+VLOOKUP('Data Entry Needs'!$D$9,dummy_database!$G$4:$L$9,6,FALSE) ->  | K12: =title57&" (%)" -> Loan interest rate (%) | N12: =+'Data Entry Needs'!$D$45 -> 0
C13: =title23 -> Oil content (%) | E13: =+'Data Entry Needs'!$D$12 ->  | G13: =title79 -> Residual oil in cake/meal | I13: =+VLOOKUP('Data Entry Needs'!$D$9,dummy_database!$G$4:$M$9,7,FALSE) ->  | K13: =title56&" (%)" -> Loan ratio (%) | N13: =+'Data Entry Needs'!$D$44 -> 0
C14: =+IF(VLOOKUP('Data Entry Needs'!$D$9,dummy_database!$G$2:$K$13,5,FALSE)=title148,'Data Entry Needs'!$D$9&title149,"") ->  | G14: =title80 -> Engine efficiency (%) | K14: =title71 -> Loan term (years) | N14: =+'Data Entry Needs'!$D$46 -> 0
G15: =title81 -> Operating hours per day | K15: =+IF('Data Entry Needs'!$AA$80=1,'Data Entry Needs'!$C$20,'Data Entry Needs'!$C$24) -> Comparative production cost of electricity | N15: =+'Data Entry Needs'!$AB$80 -> 0
G16: =title82 -> Power loss in distribution network
G17: =title83 -> Power loss due to operation (%)
C20: =title85 -> Transport Distance of Feedstock | F20: =title88 -> Transport Quantity | I20: =title85 -> Transport Distance of Feedstock | L20: =title88 -> Transport Quantity
C22: =title86 -> Distance small scale production (km) | F22: =title89 -> Small scale (t/year) | H22: =+$G$36 ->  | I22: =title91 -> Distance large scale production (km) | L22: =title93 -> Large scale (t/year) | N22: =+$K$36 -> 
C23: =title87 -> Distance medium scale production (km) | F23: =title90 -> Medium scale (t/year) | H23: =+$I$36 ->  | I23: =title92 -> Transportation cost (USD/t/km) | N23: =$F$49 -> 0
C27: =title96 -> Production Cost Details
G29: =title97 -> Capacities (kW of power generation)
G30: 10 | I30: 40 | K30: 100
G31: =title98 -> Operating hours per year | H31: =$I$15*365 -> 0 | I31: =title98 -> Operating hours per year | J31: =$I$15*365 -> 0 | K31: =title98 -> Operating hours per year | L31: =$I$15*365 -> 0
D34: =title99 -> Inputs | E34: =title39 -> Unit | F34: =title103 -> Unit Price | G34: =title105 -> Quantity | H34: Total | I34: =title105 -> Quantity | J34: Total | K34: =title105 -> Quantity | L34: Total
F35: =title104 -> (USD/unit) | G35: =title106 -> (Unit/year) | H35: =title107 -> (USD/year) | I35: =title106 -> (Unit/year) | J35: =title107 -> (USD/year) | K35: =title106 -> (Unit/year) | L35: =title107 -> (USD/year)
D36: =title100 -> Feedstock (Oilseed) | E36: t | F36: =+'Data Entry Needs'!$D$13 -> 0 | G36: =+(G30/($I$14*$I$11)/($I$12*$E$13))*(H31/1000)/(1-$I$17) ->  | H36: =+G36*$F36 ->  | I36: =+(I30/($I$14*$I$11)/($I$12*$E$13))*(J31/1000)/(1-$I$17) ->  | J36: =+I36*$F36 ->  | K36: =+(K30/($I$14*$I$11)/($I$12*$E$13))*(L31/1000)/(1-$I$17) ->  | L36: =+K36*$F36 -> 
D37: =title101 -> Diesel for start up | E37: litre | F37: =+'Data Entry Needs'!D$33 -> 0 | G37: =+G30*0.5*365/(10.7*$I$14) ->  | H37: =+G37*$F37 ->  | I37: =+I30*0.5*365/(10.7*$I$14) ->  | J37: =+I37*$F37 ->  | K37: =+K30*0.5*365/(10.7*$I$14) ->  | L37: =+K37*$F37 -> 
D38: =title102 -> Subtotal | H38: =SUM(H36:H37) ->  | J38: =SUM(J36:J37) ->  | L38: =SUM(L36:L37) -> 
D40: =title108 -> Labour and Miscellaneous Cost | E40: =title39 -> Unit | F40: =title103 -> Unit Price | G40: =title105 -> Quantity | H40: Total | I40: =title105 -> Quantity | J40: Total | K40: =title105 -> Quantity | L40: Total
F41: =title111 -> (USD/person/h) | G41: ="("&title39&")" -> (Unit) | H41: =title107 -> (USD/year) | I41: ="("&title39&")" -> (Unit) | J41: =title107 -> (USD/year) | K41: ="("&title39&")" -> (Unit) | L41: =title107 -> (USD/year)
D42: =title46 -> Unskilled worker | E42: =title110 -> # employee | F42: =+'Data Entry Needs'!$D$30 -> 0 | G42: =+ROUNDUP(0.17*G30,0) -> 2 | H42: =+F42*G42*H31 -> 0 | I42: =+ROUNDUP(0.17*I30,0) -> 7 | J42: =+$F42*I42*$H$31 -> 0 | K42: =+ROUNDUP(0.17*K30,0) -> 17 | L42: =+$F42*K42*$H$31 -> 0
D43: =title61 -> Skilled worker | E43: =title110 -> # employee | F43: =+'Data Entry Needs'!H$30 -> 0 | G43: =+ROUND(G42/4,0) -> 1 | H43: =+F43*G43*H31 -> 0 | I43: =+ROUND(I42/4,0) -> 2 | J43: =+$F43*I43*$H$31 -> 0 | K43: =+ROUND(K42/4,0) -> 4 | L43: =+$F43*K43*$H$31 -> 0
D44: =title109 -> Miscellaneous cost | E44: % | G44: =+'Data Entry Needs'!$H$40 -> 0 | H44: =+G44*SUM(H42:H43) -> 0 | I44: =+G44 -> 0 | J44: =+I44*SUM(J42:J43) -> 0 | K44: =+I44 -> 0 | L44: =+K44*SUM(L42:L43) -> 0
D45: =title102 -> Subtotal | G45: =+G42+G43 -> 3 | H45: =+H42+H43+H44 -> 0 | I45: =+I42+I43 -> 9 | J45: =+J42+J43+J44 -> 0 | K45: =+K42+K43 -> 21 | L45: =+L42+L43+L44 -> 0
D47: =title112 -> Transport of Feedstock | E47: =title39 -> Unit | F47: =title103 -> Unit Price | G47: =title105 -> Quantity | H47: Total | I47: =title105 -> Quantity | J47: Total | K47: =title105 -> Quantity | L47: Total
F48: (USD/t/km) | G48: ="("&title39&")" -> (Unit) | H48: =title107 -> (USD/year) | I48: ="("&title39&")" -> (Unit) | J48: =title107 -> (USD/year) | K48: ="("&title39&")" -> (Unit) | L48: =title107 -> (USD/year)
D49: =title113 -> Feedstock (farm to plant) | E49: km | F49: =+'Data Entry Needs'!$D$36 -> 0 | G49: =+$E$22 -> 0 | H49: =+G49*F49*G36 ->  | I49: =+$E$23 -> 0 | J49: =+I49*$F49*I$36 ->  | K49: =+$K$22 -> 0 | L49: =+K49*$F49*K$36 -> 
D50: =title102 -> Subtotal | H50: =+H49 ->  | J50: =+J49 ->  | L50: =+L49 -> 
D52: =title114 -> Storage | E52: =title39 -> Unit | F52: =title103 -> Unit Price | G52: =title105 -> Quantity | H52: Total | I52: =title105 -> Quantity | J52: Total | K52: =title105 -> Quantity | L52: Total
F53: USD/t | G53: ="("&title39&")" -> (Unit) | H53: =title107 -> (USD/year) | I53: ="("&title39&")" -> (Unit) | J53: =title107 -> (USD/year) | K53: ="("&title39&")" -> (Unit) | L53: =title107 -> (USD/year)
D54: =title20 -> Feedstock | E54: t | F54: =+$E$11 -> 0 | G54: =+STORAGE_OIL1!$F$38 ->  | H54: =+F54*G54 ->  | I54: =+STORAGE_OIL1!$I$38 ->  | J54: =I54*F54 ->  | K54: =+STORAGE_OIL1!$L$38 ->  | L54: =F54*K54 -> 
D55: =title102 -> Subtotal | H55: =SUM(H54) ->  | J55: =SUM(J54) ->  | L55: =SUM(L54) -> 
D57: =title115 -> Investment | E57: =title39 -> Unit | F57: Years | G57: Total | H57: =title121 -> Depreciation | I57: Total | J57: =title121 -> Depreciation | K57: Total | L57: =title121 -> Depreciation
G58: (USD) | H58: =title107 -> (USD/year) | I58: (USD) | J58: =title107 -> (USD/year) | K58: (USD) | L58: =title107 -> (USD/year)
D59: =title116 -> Equipments | E59: USD | F59: 20 | G59: =+'COST(ADJUSTED)_OIL1'!F23*(1+'Data Entry Needs'!$AB$88) ->  | H59: =+G59/F59 ->  | I59: =+'COST(ADJUSTED)_OIL1'!G23*(1+'Data Entry Needs'!$AB$88) ->  | J59: =+I59/F59 ->  | K59: =+'COST(ADJUSTED)_OIL1'!H23*(1+'Data Entry Needs'!$AB$88) ->  | L59: =+K59/F59 -> 
D60: =title117 -> Building | E60: USD | F60: 20 | G60: =+'COST(ADJUSTED)_OIL1'!F26*(1+'Data Entry Needs'!$AB$88) -> 0 | H60: =+G60/F60 -> 0 | I60: =+'COST(ADJUSTED)_OIL1'!G26*(1+'Data Entry Needs'!$AB$88) -> 0 | J60: =+I60/F60 -> 0 | K60: =+'COST(ADJUSTED)_OIL1'!H26*(1+'Data Entry Needs'!$AB$88) -> 0 | L60: =+K60/F60 -> 0
D61: =title118 -> Installation | E61: USD | F61: 20 | G61: =+'COST(ADJUSTED)_OIL1'!F29*(1+'Data Entry Needs'!$AB$88) -> 0 | H61: =+G61/F61 -> 0 | I61: =+'COST(ADJUSTED)_OIL1'!G29*(1+'Data Entry Needs'!$AB$88) -> 0 | J61: =+I61/F61 -> 0 | K61: =+'COST(ADJUSTED)_OIL1'!H29*(1+'Data Entry Needs'!$AB$88) -> 0 | L61: =+K61/F61 -> 0
D62: =title119 -> Distribution network | E62: USD | F62: 20 | G62: =+'COST(ADJUSTED)_OIL1'!F33*(1+'Data Entry Needs'!$AB$88) ->  | H62: =+G62/F62 ->  | I62: =+'COST(ADJUSTED)_OIL1'!G33*(1+'Data Entry Needs'!$AB$88) ->  | J62: =+I62/F62 ->  | K62: =+'COST(ADJUSTED)_OIL1'!H33*(1+'Data Entry Needs'!$AB$88) ->  | L62: =+K62/F62 -> 
D63: =title120 -> Total investment | G63: =SUM(G59:G62) ->  | I63: =SUM(I59:I62) ->  | K63: =SUM(K59:K62) -> 
G64: =title122 -> Total depreciation | H64: =SUM(H59:H63) ->  | I64: =title122 -> Total depreciation | J64: =SUM(J59:J63) ->  | K64: =title122 -> Total depreciation | L64: =SUM(L59:L63) -> 
D65: =title123 -> Maintenance cost | E65: % | F65: =+'Data Entry Needs'!$H$39 -> 0 | H65: =+F65*H64 ->  | J65: =+F65*$J$64 ->  | L65: =+$F$65*L64 -> 
D66: =title102 -> Subtotal | H66: =SUM(H64:H65) ->  | J66: =SUM(J64:J65) ->  | L66: =SUM(L64:L65) -> 
D68: =title51 -> Other costs | E68: =title39 -> Unit | F68: Rate (%) | H68: Total | J68: Total | L68: Total
H69: =title107 -> (USD/year) | J69: =title107 -> (USD/year) | L69: =title107 -> (USD/year)
D70: =title124 -> Plant overhead | E70: USD | F70: =+'Data Entry Needs'!$D$40 -> 0 | H70: =+(H42+H43+H65)*$F$70 ->  | J70: =+(J42+J43+J65)*$F$70 ->  | L70: =+(L42+L43+L65)*$F$70 -> 
D71: =title125 -> General and administrative cost | E71: USD | F71: =+'Data Entry Needs'!$D$39 -> 0 | H71: =+(H38+H45+H70+H65)*$F$71 ->  | J71: =+(J38+J45+J70+J65)*$F$71 ->  | L71: =+(L38+L45+L70+L65)*$F$71 -> 
D72: =title126 -> Loan interest | E72: USD | F72: =+$P$166 -> 0 | H72: =-FA10kW_OIL1!G90 ->  | J72: =-FA40kW_OIL1!G90 ->  | L72: =-FA100kW_OIL1!G90 -> 
D73: =title127 -> Income tax | E73: USD | F73: =+'Data Entry Needs'!$H$48 -> 0 | H73: =-FA10kW_OIL1!C97 ->  | J73: =-FA40kW_OIL1!C97 ->  | L73: =-FA100kW_OIL1!C97 -> 
D74: =title102 -> Subtotal | H74: =SUM(H70:H72) ->  | J74: =SUM(J70:J72) ->  | L74: =SUM(L70:L72) -> 
G76: Total | H76: =title132 -> Share (%) | I76: Total | J76: =title132 -> Share (%) | K76: Total | L76: =title132 -> Share (%)
G77: =title107 -> (USD/year) | I77: =title107 -> (USD/year) | K77: =title107 -> (USD/year)
D78: =title128 -> Total operating costs | G78: =+H38+H45+H50+H55 ->  | H78: =+G78/$G$81 ->  | I78: =+J38+J45+J50+J55 ->  | J78: =+I78/$I$81 ->  | K78: =+L38+L45+L50+L55 ->  | L78: =+K78/$K$81 -> 
D79: =title129 -> Total fixed costs | G79: =+H66 ->  | H79: =+G79/$G$81 ->  | I79: =+J66 ->  | J79: =+I79/$I$81 ->  | K79: =+L66 ->  | L79: =+K79/$K$81 -> 
D80: =title130 -> Total other costs | G80: =+H74 ->  | H80: =+G80/$G$81 ->  | I80: =+J74 ->  | J80: =+I80/$I$81 ->  | K80: =+L74 ->  | L80: =+K80/$K$81 -> 
D81: =title131 -> Total production costs | G81: =SUM(G78:G80) ->  | I81: =SUM(I78:I80) ->  | K81: =SUM(K78:K80) -> 
C83: =title133 -> Power generation
E85: =title39 -> Unit | G85: =title105 -> Quantity | I85: =title105 -> Quantity | K85: =title105 -> Quantity
G86: ="("&title39&")" -> (Unit) | I86: ="("&title39&")" -> (Unit) | K86: ="("&title39&")" -> (Unit)
D87: =title133 -> Power generation | E87: =title135 -> kWh/year | G87: =+G30*H31*(1-$I$17) -> 0 | I87: =+I30*J31*(1-$I$17) -> 0 | K87: =+K30*L31*(1-$I$17) -> 0
D88: =title134 -> Electricity-self use | E88: =title135 -> kWh/year | G88: =-G87*10% -> 0 | I88: =-I87*10% -> 0 | K88: =-K87*10% -> 0
D89: =title82 -> Power loss in distribution network | E89: =title135 -> kWh/year | G89: =-G87*$I$16 -> 0 | I89: =-I87*$I$16 -> 0 | K89: =-K87*$I$16 -> 0
D90: =title102 -> Subtotal | G90: =SUM(G87:H89) -> 0 | I90: =SUM(I87:J89) -> 0 | K90: =SUM(K87:L89) -> 0
C92: =title136 -> Total Production Cost+Distribution
G94: =$G$29 -> Capacities (kW of power generation)
G95: =+G30 -> 10 | I95: =+I30 -> 40 | K95: =+K30 -> 100
D96: =title137 -> Unit cost of electricity (USD/kWh) | G96: =G81/G90 ->  | I96: =I81/I90 ->  | K96: =K81/K90 -> 
D98: =title142 -> Average loan interest | E98: =title39 -> Unit | F98: =title56&" (%)" -> Loan ratio (%) | G98: =title120 -> Total investment | H98: =title138 -> Loan amount | I98: =title120 -> Total investment | J98: =title138 -> Loan amount | K98: =title120 -> Total investment | L98: =title138 -> Loan amount
G99: (USD) | H99: (USD) | I99: (USD) | J99: (USD) | K99: (USD) | L99: (USD)
D100: =title138 -> Loan amount | E100: USD | F100: =+$N$13 -> 0 | G100: =G63 ->  | H100: =$F$100*G100 ->  | I100: =I63 ->  | J100: =$F$100*I100 ->  | K100: =K63 ->  | L100: =$F$100*K100 -> 
D101: =title57 -> Loan interest rate | E101: % | H101: =+$N$12 -> 0 | J101: =+$H$101 -> 0 | L101: =+$J$101 -> 0
D102: =title139 -> Loan payment | E102: =title143 -> USD/month | H102: =PMT(H101/12,H104*12,H100,0) ->  | J102: =PMT(J101/12,J104*12,J100,0) ->  | L102: =PMT(L101/12,L104*12,L100,0) -> 
D103: =title140 -> Annual loan payment | E103: =title144 -> USD/year | H103: =H102*12 ->  | J103: =J102*12 ->  | L103: =L102*12 -> 
D104: =title58 -> Loan terms | E104: =title60 -> year | H104: =+$N$14 -> 0 | J104: =+H104 -> 0 | L104: =+J104 -> 0
D105: =title141 -> Total loan payment | E105: USD | H105: =H103*H104 ->  | J105: =J103*J104 ->  | L105: =L103*L104 -> 
D106: =title126 -> Loan interest | E106: USD | H106: =H105+H100 ->  | J106: =J105+J100 ->  | L106: =L105+L100 -> 
D107: =title142 -> Average loan interest | E107: =title144 -> USD/year | H107: =H106/$F$59 ->  | J107: =J106/$F$59 ->  | L107: =L106/$F$59 -> 
M165: Annual change in labor cost (%) | P165: =+'Data Entry Needs'!$AB$87 -> 0
M166: Annual change in raw material cost (%) | P166: =+'Data Entry Needs'!$AB$86 -> 0
M167: Annual change in elctricity price (%) | P167: =+'Data Entry Needs'!$AB$89 -> 0

Sheet FA10kW_OIL1 (hidden)
B2: =title197 -> FINANCIAL EVALUATION OF SVO + RURAL ELECTRIFICATION 10 kW PROJECT
A5: =title198 -> Revenues of SVO and power generation system
B7: =title199 -> Operating Year | C7: 0 | D7: 1 | E7: 2 | F7: 3 | G7: 4 | H7: 5 | I7: 6 | J7: 7 | K7: 8 | L7: 9 | M7: 10 | N7: 11 | O7: 12 | P7: 13 | Q7: 14 | R7: 15 | S7: 16 | T7: 17 | U7: 18 | V7: 19 | W7: 20
B9: =title200 -> Power generation capacity (kW) | C9: =+COST_OIL1!$G$30 -> 10 | D9: =C9 -> 10 | E9: =D9 -> 10 | F9: 10 | G9: 10 | H9: 10 | I9: 10 | J9: 10 | K9: 10 | L9: 10 | M9: 10 | N9: 10 | O9: 10 | P9: 10 | Q9: 10 | R9: 10 | S9: 10 | T9: 10 | U9: 10 | V9: 10 | W9: 10
B12: =title83 -> Power loss due to operation (%) | C12: =+COST_OIL1!$I$17 -> 0 | D12: =+C12 -> 0 | E12: =+D12 -> 0 | F12: 0 | G12: 0 | H12: 0 | I12: 0 | J12: 0 | K12: 0 | L12: 0 | M12: 0 | N12: 0 | O12: 0 | P12: 0 | Q12: 0 | R12: 0 | S12: 0 | T12: 0 | U12: 0 | V12: 0 | W12: 0
B14: =title98 -> Operating hours per year | C14: =+COST_OIL1!$H$31 -> 0 | D14: =C14 -> 0 | E14: =D14 -> 0 | F14: 0 | G14: 0 | H14: 0 | I14: 0 | J14: 0 | K14: 0 | L14: 0 | M14: 0 | N14: 0 | O14: 0 | P14: 0 | Q14: 0 | R14: 0 | S14: 0 | T14: 0 | U14: 0 | V14: 0 | W14: 0
B15: =title76 -> Capacity utilization factor | C15: =C14/8760 -> 0 | D15: =D14/8760 -> 0 | E15: 0 | F15: 0 | G15: 0 | H15: 0 | I15: 0 | J15: 0 | K15: 0 | L15: 0 | M15: 0 | N15: 0 | O15: 0 | P15: 0 | Q15: 0 | R15: 0 | S15: 0 | T15: 0 | U15: 0 | V15: 0 | W15: 0
B17: =title201 -> Electricity generation (kWh per year) | C17: =C9*C14*(1-C12) -> 0 | D17: 0 | E17: 0 | F17: 0 | G17: 0 | H17: 0 | I17: 0 | J17: 0 | K17: 0 | L17: 0 | M17: 0 | N17: 0 | O17: 0 | P17: 0 | Q17: 0 | R17: 0 | S17: 0 | T17: 0 | U17: 0 | V17: 0 | W17: 0
B18: =title202 -> Electricity - self use (kWh per year) | C18: =C17*10% -> 0 | D18: =D17*10% -> 0 | E18: 0 | F18: 0 | G18: 0 | H18: 0 | I18: 0 | J18: 0 | K18: 0 | L18: 0 | M18: 0 | N18: 0 | O18: 0 | P18: 0 | Q18: 0 | R18: 0 | S18: 0 | T18: 0 | U18: 0 | V18: 0 | W18: 0
B19: =title82&" "&title84 -> Power loss in distribution network (kWh per year) | C19: =C17*COST_OIL1!$I$16 -> 0 | D19: =C19 -> 0 | E19: =D19 -> 0 | F19: 0 | G19: 0 | H19: 0 | I19: 0 | J19: 0 | K19: 0 | L19: 0 | M19: 0 | N19: 0 | O19: 0 | P19: 0 | Q19: 0 | R19: 0 | S19: 0 | T19: 0 | U19: 0 | V19: 0 | W19: 0
B20: =title203 -> Total power sold to customers (kWh/year) | C20: =C17-C18-C19 -> 0 | D20: =D17-D18-D19 -> 0 | E20: 0 | F20: 0 | G20: 0 | H20: 0 | I20: 0 | J20: 0 | K20: 0 | L20: 0 | M20: 0 | N20: 0 | O20: 0 | P20: 0 | Q20: 0 | R20: 0 | S20: 0 | T20: 0 | U20: 0 | V20: 0 | W20: 0
B22: =title204 -> Revenue from meal by-product (USD/year) | C22: =+IF('Energy Demand'!C19="",0,'Energy Demand'!$H$19) ->  | D22: =+C22 ->  | E22: =+D22 -> 
B23: =title205 -> Price of electricity (USD/kWh) | C23: =+COST_OIL1!$N$15 -> 0 | D23: =C23*(1+D24) -> 0 | E23: =D23*(1+E24) -> 0 | F23: =E23*(1+F24) -> 0 | G23: 0 | H23: 0 | I23: 0 | J23: 0 | K23: 0 | L23: 0 | M23: 0 | N23: 0 | O23: 0 | P23: 0 | Q23: 0 | R23: 0 | S23: 0 | T23: 0 | U23: 0 | V23: 0 | W23: 0
B24: =title206 -> Increasing rate of price of electricity (%) | C24: =+COST_OIL1!$P$167 -> 0 | D24: =C24 -> 0 | E24: =D24 -> 0 | F24: 0 | G24: 0 | H24: 0 | I24: 0 | J24: 0 | K24: 0 | L24: 0 | M24: 0 | N24: 0 | O24: 0 | P24: 0 | Q24: 0 | R24: 0 | S24: 0 | T24: 0 | U24: 0 | V24: 0 | W24: 0
B25: =title207 -> Total income (USD/year) | C25: =C20*C23+C22 ->  | D25: =D20*D23+D22 -> 
B28: =title208 -> Project lifetime (years) | C28: 20
B29: =title209 -> Lifespan of civil work (years) | C29: =20 -> 20
B30: =title210 -> Lifespan of the system (years) | C30: =20 -> 20
B31: =title211 -> Lifespan of engine generator system (years) | C31: =20 -> 20
B32: =title212 -> Lifespan of electrical distribution system (years) | C32: =20 -> 20
A35: =title213 -> Capital and operating cost
B37: =title199 -> Operating Year | C37: =title217 -> Appraisal | D37: 1 | E37: 2 | F37: 3 | G37: 4 | H37: 5 | I37: 6 | J37: 7 | K37: 8 | L37: 9 | M37: 10 | N37: 11 | O37: 12 | P37: 13 | Q37: 14 | R37: 15 | S37: 16 | T37: 17 | U37: 18 | V37: 19 | W37: 20
B38: =title214 -> Direct capital cost (USD)
B39: =title116 -> Equipments | C39: =COST_OIL1!G59 -> 
B40: =title117 -> Building | C40: =COST_OIL1!G60 -> 0
B41: =title118 -> Installation | C41: =COST_OIL1!G61 -> 0
B42: =title119 -> Distribution network | C42: =COST_OIL1!G62 -> 
B43: =title215 -> Total capital cost (USD) | C43: =SUM(C39:C42) ->  | D43: =D39+D40+D41 -> 0 | E43: 0 | F43: 0 | G43: 0 | H43: 0 | I43: 0 | J43: 0 | K43: 0 | L43: 0 | M43: 0 | N43: 0 | O43: 0 | P43: 0 | Q43: 0 | R43: 0 | S43: 0 | T43: 0 | U43: 0 | V43: 0 | W43: 0
B44: =title216 -> Capital cost (USD/kW) | C44: =C43/C9 -> 
B47: =title199 -> Operating Year | C47: =title217 -> Appraisal | D47: 1 | E47: 2 | F47: 3 | G47: 4 | H47: 5 | I47: 6 | J47: 7 | K47: 8 | L47: 9 | M47: 10 | N47: 11 | O47: 12 | P47: 13 | Q47: 14 | R47: 15 | S47: 16 | T47: 17 | U47: 18 | V47: 19 | W47: 20
B48: =title218 -> Annual operating and maintenance cost
B49: =title219 -> Sub-total material cost (USD) | C49: =C50+C58+C61 ->  | D49: =D50+D58+D61 -> 
B50: =title220 -> Biomass cost (USD/year) | C50: =C51*C52 ->  | D50: =D51*D52 ->  | E50: =E51*E52 -> 
B51: =title221 -> Biomass consumption (t per year) | C51: =+COST_OIL1!$G$36 ->  | D51: =+C51 ->  | E51: =+D51 -> 
B52: =title222 -> Biomass total price (USD/t) | C52: =SUM(C53:C54) -> 0 | D52: =SUM(D53:D54) -> 0 | E52: 0 | F52: 0 | G52: 0 | H52: 0 | I52: 0 | J52: 0 | K52: 0 | L52: 0 | M52: 0 | N52: 0 | O52: 0 | P52: 0 | Q52: 0 | R52: 0 | S52: 0 | T52: 0 | U52: 0 | V52: 0 | W52: 0
B53: =title223 -> Biomass price (USD/t) | C53: =+COST_OIL1!$F$36 -> 0 | D53: =C53*(1+D78+D79) -> 0 | E53: 0 | F53: 0 | G53: 0 | H53: 0 | I53: 0 | J53: 0 | K53: 0 | L53: 0 | M53: 0 | N53: 0 | O53: 0 | P53: 0 | Q53: 0 | R53: 0 | S53: 0 | T53: 0 | U53: 0 | V53: 0 | W53: 0
B54: =title224 -> Biomass transportation cost (USD/t) | C54: =+C55*C56 -> 0 | D54: =C54*(1+D78+D79) -> 0 | E54: 0 | F54: 0 | G54: 0 | H54: 0 | I54: 0 | J54: 0 | K54: 0 | L54: 0 | M54: 0 | N54: 0 | O54: 0 | P54: 0 | Q54: 0 | R54: 0 | S54: 0 | T54: 0 | U54: 0 | V54: 0 | W54: 0
B55: =title225 -> Biomass from farm to plant (USD/t/km) | C55: =+COST_OIL1!$F$49 -> 0
B56: =title226 -> Transportation distant (km) | C56: =+COST_OIL1!$E$22 -> 0
B58: =title227 -> Diesel cost (USD/year) | C58: =C59*C60 ->  | D58: =D59*D60 -> 
B59: =title228 -> Diesel/fuel oil consumption (litres per year) | C59: =+COST_OIL1!$G$37 ->  | D59: =+C59 ->  | E59: =+D59 -> 
B60: =title229 -> Diesel/fuel oil price (USD per litre) | C60: =+COST_OIL1!$F$37 -> 0 | D60: =C60*(1+D78+D79) -> 0 | E60: 0 | F60: 0 | G60: 0 | H60: 0 | I60: 0 | J60: 0 | K60: 0 | L60: 0 | M60: 0 | N60: 0 | O60: 0 | P60: 0 | Q60: 0 | R60: 0 | S60: 0 | T60: 0 | U60: 0 | V60: 0 | W60: 0
B61: =title230 -> Storage cost (USD/year) | C61: =+COST_OIL1!$H$55 ->  | D61: =+C61 ->  | E61: =+D61 -> 
B62: =title231 -> Sub-total operating cost (USD) | C62: =C63+C65+C66 ->  | D62: =D63+D65+D66 -> 
B63: =title232 -> Labour cost (USD) | C63: =COST_OIL1!H45 -> 0 | D63: =C63*(1+D64) -> 0 | E63: 0 | F63: 0 | G63: 0 | H63: 0 | I63: 0 | J63: 0 | K63: 0 | L63: 0 | M63: 0 | N63: 0 | O63: 0 | P63: 0 | Q63: 0 | R63: 0 | S63: 0 | T63: 0 | U63: 0 | V63: 0 | W63: 0
B64: =title233 -> Escalation rate of labour cost (%) | D64: =+COST_OIL1!$P$165 -> 0 | E64: =D64 -> 0 | F64: =E64 -> 0 | G64: 0 | H64: 0 | I64: 0 | J64: 0 | K64: 0 | L64: 0 | M64: 0 | N64: 0 | O64: 0 | P64: 0 | Q64: 0 | R64: 0 | S64: 0 | T64: 0 | U64: 0 | V64: 0 | W64: 0
B65: =title124 -> Plant overhead | C65: =COST_OIL1!H70 ->  | D65: =C65 ->  | E65: =D65 -> 
B66: =title125 -> General and administrative cost | C66: =COST_OIL1!H71 ->  | D66: =C66 ->  | E66: =D66 -> 
B67: =title234 -> Sub-total maintenance cost (USD) | C67: =COST_OIL1!H65 ->  | D67: =C67 ->  | E67: =D67 -> 
B69: =title235 -> Sub-total of annual fixed cost (USD) | C69: =COST_OIL1!H64 ->  | D69: =C69 ->  | E69: =D69 -> 
B71: =title236 -> Sub-total of storage cost (USD) | C71: =+COST_OIL1!H55 ->  | D71: =C71 ->  | E71: =D71 -> 
B73: =title237 -> Total operation and maintenance cost (USD) | C73: =C49+C62+C67+C69+C71 -> 
B74: =title238 -> Operation and maintenance cost (USD/kWh) without loan interest | C74: =C73/C20 -> 
A76: =title54 -> Financial parameters
B77: =title199 -> Operating Year | C77: =title217 -> Appraisal | D77: 1 | E77: 2 | F77: 3 | G77: 4 | H77: 5 | I77: 6 | J77: 7 | K77: 8 | L77: 9 | M77: 10 | N77: 11 | O77: 12 | P77: 13 | Q77: 14 | R77: 15 | S77: 16 | T77: 17 | U77: 18 | V77: 19 | W77: 20
B78: =title239 -> Raw material cost escalation rate (%) | D78: =+COST_OIL1!$P$166 -> 0 | E78: =D78 -> 0 | F78: =E78 -> 0 | G78: 0 | H78: 0 | I78: 0 | J78: 0 | K78: 0 | L78: 0 | M78: 0 | N78: 0 | O78: 0 | P78: 0 | Q78: 0 | R78: 0 | S78: 0 | T78: 0 | U78: 0 | V78: 0 | W78: 0
B79: =title70 -> Inflation rate | D79: =+COST_OIL1!$N$11 -> 0 | E79: =D79 -> 0 | F79: =E79 -> 0 | G79: 0 | H79: 0 | I79: 0 | J79: 0 | K79: 0 | L79: 0 | M79: 0 | N79: 0 | O79: 0 | P79: 0 | Q79: 0 | R79: 0 | S79: 0 | T79: 0 | U79: 0 | V79: 0 | W79: 0
B80: =title55&" (%)" -> Discount rate (%) | C80: =+COST_OIL1!$N$10 -> 0
B81: =title56&" (%)" -> Loan ratio (%) | C81: =+COST_OIL1!$N$13 -> 0
B83: =title313 -> Loan | D83: 1 | E83: 2 | F83: 3 | G83: 4 | H83: 5 | I83: 6 | J83: 7 | K83: 8 | L83: 9 | M83: 10 | N83: 11 | O83: 12 | P83: 13 | Q83: 14 | R83: 15 | S83: 16 | T83: 17 | U83: 18 | V83: 19 | W83: 20
B84: =title138&" (USD)" -> Loan amount (USD) | C84: =C81*C43 -> 
B85: =title57&" (%)" -> Loan interest rate (%) | C85: =+COST_OIL1!$N$12 -> 0
B86: =title71 -> Loan term (years) | C86: =+COST_OIL1!$N$14 -> 0
B87: =title314 -> Loan payment (USD/month) | C87: =(PMT(C85/12,(12*C86),C84)) -> 
B88: =title315 -> Loan payment (USD/year) | D88: =IF(D77<=$C$86,$C$87*12,0) -> 0 | E88: =IF(E77<=$C$86,$C$87*12,0) -> 0 | F88: 0 | G88: 0 | H88: 0 | I88: 0 | J88: 0 | K88: 0 | L88: 0 | M88: 0 | N88: 0 | O88: 0 | P88: 0 | Q88: 0 | R88: 0 | S88: 0 | T88: 0 | U88: 0 | V88: 0 | W88: 0
B89: =title141&" (USD)" -> Total loan payment (USD) | C89: =SUM(D88:W88) -> 0
B90: =title316 -> Loan interest payment (USD) | C90: =C89+C84 ->  | D90: =title322 -> Average loan interest payment for project lifetime | G90: =C90/C28 ->  | H90: =title323 -> USD per year
A92: =title317 -> Income tax analysis
B93: =title199 -> Operating Year | C93: =title217 -> Appraisal | D93: 1 | E93: 2 | F93: 3 | G93: 4 | H93: 5 | I93: 6 | J93: 7 | K93: 8 | L93: 9 | M93: 10 | N93: 11 | O93: 12 | P93: 13 | Q93: 14 | R93: 15 | S93: 16 | T93: 17 | U93: 18 | V93: 19 | W93: 20
B94: =title318 -> Effective income tax rate (%) | C94: =+COST_OIL1!$F$73 -> 0 | D94: =C94 -> 0 | E94: =D94 -> 0 | F94: 0 | G94: 0 | H94: 0 | I94: 0 | J94: 0 | K94: 0 | L94: 0 | M94: 0 | N94: 0 | O94: 0 | P94: 0 | Q94: 0 | R94: 0 | S94: 0 | T94: 0 | U94: 0 | V94: 0 | W94: 0
B95: =title319 -> Income tax | D95: =IF(D119<0,0,-D94*D119) -> 
B96: =title320 -> Total income tax (USD) | C96: =SUM(D95:W95) -> 
B97: =title321 -> Income tax payment (USD per year) | C97: =C96/$C$28 -> 
A99: =title121 -> Depreciation
B100: =title199 -> Operating Year | C100: =title217 -> Appraisal | D100: 1 | E100: 2 | F100: 3 | G100: 4 | H100: 5 | I100: 6 | J100: 7 | K100: 8 | L100: 9 | M100: 10 | N100: 11 | O100: 12 | P100: 13 | Q100: 14 | R100: 15 | S100: 16 | T100: 17 | U100: 18 | V100: 19 | W100: 20
B101: =title324 -> Depreciation method | C101: =title325 -> Straight-line
B102: =title122&" (USD)" -> Total depreciation (USD) | D102: =COST_OIL1!H64 ->  | E102: =D102 ->  | F102: =E102 -> 
A104: =title326 -> Base case project
A105: =title327 -> Summary of this project - before tax
B106: =title199 -> Operating Year | C106: =title217 -> Appraisal | D106: 1 | E106: 2 | F106: 3 | G106: 4 | H106: 5 | I106: 6 | J106: 7 | K106: 8 | L106: 9 | M106: 10 | N106: 11 | O106: 12 | P106: 13 | Q106: 14 | R106: 15 | S106: 16 | T106: 17 | U106: 18 | V106: 19 | W106: 20
B107: =title328 -> Total revenue (USD) | D107: =D25 ->  | E107: =E25 -> 
B108: =title215 -> Total capital cost (USD) | C108: =-(C43-C84) -> 
B109: =title329 -> Total operating and maintenance cost (USD) | D109: =-D73+D69 -> 
B110: =title139&" (USD)" -> Loan payment (USD) | D110: =D88 -> 0 | E110: =E88 -> 0 | F110: 0 | G110: 0 | H110: 0 | I110: 0 | J110: 0 | K110: 0 | L110: 0 | M110: 0 | N110: 0 | O110: 0 | P110: 0 | Q110: 0 | R110: 0 | S110: 0 | T110: 0 | U110: 0 | V110: 0 | W110: 0
B111: =title330 -> Cash flow - before tax (USD) | C111: =SUM(C107:C110) ->  | D111: =SUM(D107:D110) -> 
A113: =title331 -> Summary of this project - after tax
B114: =title199 -> Operating Year | C114: =title217 -> Appraisal | D114: 1 | E114: 2 | F114: 3 | G114: 4 | H114: 5 | I114: 6 | J114: 7 | K114: 8 | L114: 9 | M114: 10 | N114: 11 | O114: 12 | P114: 13 | Q114: 14 | R114: 15 | S114: 16 | T114: 17 | U114: 18 | V114: 19 | W114: 20
B115: =B107 -> Total revenue (USD) | C115: =C107 -> 0 | D115: =D107 ->  | E115: =E107 -> 
B116: =title329 -> Total operating and maintenance cost (USD) | D116: =-D73+D69 -> 
B117: =title139&" (USD)" -> Loan payment (USD) | D117: =D88 -> 0 | E117: =E88 -> 0 | F117: 0 | G117: 0 | H117: 0 | I117: 0 | J117: 0 | K117: 0 | L117: 0 | M117: 0 | N117: 0 | O117: 0 | P117: 0 | Q117: 0 | R117: 0 | S117: 0 | T117: 0 | U117: 0 | V117: 0 | W117: 0
B118: =title332 -> Depreciation of fixed cost (USD) | D118: =-D102 ->  | E118: =-E102 -> 
B119: =title333 -> Net Profit - before tax (USD) for income tax calculation | C119: =SUM(C115:C118) -> 0 | D119: =SUM(D115:D118) -> 
B120: =title319 -> Income tax | D120: =D95 ->  | E120: =E95 -> 
B121: =title334 -> Cash flow - after tax (USD) | C121: =C108 ->  | D121: =D111+D120 ->  | E121: =E111+E120 -> 
A123: =title335 -> Cumulative value of Net Profit
B124: =title199 -> Operating Year | C124: =title217 -> Appraisal | D124: 1 | E124: 2 | F124: 3 | G124: 4 | H124: 5 | I124: 6 | J124: 7 | K124: 8 | L124: 9 | M124: 10 | N124: 11 | O124: 12 | P124: 13 | Q124: 14 | R124: 15 | S124: 16 | T124: 17 | U124: 18 | V124: 19 | W124: 20
B125: =title337 -> Cumulative value of Net Profit - before tax | C125: =C111 ->  | D125: =C125+(D111) -> 
B126: =title338 -> Cumulative value of Net Profit - after tax | C126: =C121 ->  | D126: =C126+(D121) -> 
A128: =title336 -> Financial Analysis Result
B130: =title339 -> Net Present Value (NPV) (USD) - before tax | C130: =NPV(C80,D111:W111)+C111 -> 
B131: =title340 -> Internal Rate of Return (IRR) (%) - before tax | C131: =IF(C130<0,title353,IRR(C111:W111,0.001)) -> 
B132: =title341 -> Payback period (years) | C132: =title345 -> Please see Figure of the cumulative value of Net Profit - before tax
B135: =title342 -> Net Present Value (NPV) (USD) - after tax | C135: =NPV(C80,D121:W121)+C121 -> 
B136: =title343 -> Internal Rate of Return (IRR) (%) - after tax | C136: =IF(C135<0,title353,IRR(C121:W121,0.000001)) -> 
B137: =title341 -> Payback period (years) | C137: =title346 -> Please see Figure of the cumulative value of Net Profit - after tax
B138: =title344 -> Total income tax payment of project lifetime | C138: =SUM(D120:W120) -> 

Sheet FA40kW_OIL1 (hidden)
B2: =title347 -> FINANCIAL EVALUATION OF SVO + RURAL ELECTRIFICATION 40 kW PROJECT
A5: =title198 -> Revenues of SVO and power generation system
B7: =title199 -> Operating Year | C7: 0 | D7: 1 | E7: 2 | F7: 3 | G7: 4 | H7: 5 | I7: 6 | J7: 7 | K7: 8 | L7: 9 | M7: 10 | N7: 11 | O7: 12 | P7: 13 | Q7: 14 | R7: 15 | S7: 16 | T7: 17 | U7: 18 | V7: 19 | W7: 20
B9: =title200 -> Power generation capacity (kW) | C9: =COST_OIL1!$I$30 -> 40 | D9: =C9 -> 40 | E9: =D9 -> 40 | F9: 40 | G9: 40 | H9: 40 | I9: 40 | J9: 40 | K9: 40 | L9: 40 | M9: 40 | N9: 40 | O9: 40 | P9: 40 | Q9: 40 | R9: 40 | S9: 40 | T9: 40 | U9: 40 | V9: 40 | W9: 40
B12: Power lossses due to operation (%) | C12: =+COST_OIL1!$I$17 -> 0 | D12: =+C12 -> 0 | E12: =+D12 -> 0 | F12: 0 | G12: 0 | H12: 0 | I12: 0 | J12: 0 | K12: 0 | L12: 0 | M12: 0 | N12: 0 | O12: 0 | P12: 0 | Q12: 0 | R12: 0 | S12: 0 | T12: 0 | U12: 0 | V12: 0 | W12: 0
B14: =title98 -> Operating hours per year | C14: =COST_OIL1!$J$31 -> 0 | D14: =C14 -> 0 | E14: =D14 -> 0 | F14: 0 | G14: 0 | H14: 0 | I14: 0 | J14: 0 | K14: 0 | L14: 0 | M14: 0 | N14: 0 | O14: 0 | P14: 0 | Q14: 0 | R14: 0 | S14: 0 | T14: 0 | U14: 0 | V14: 0 | W14: 0
B15: =title76 -> Capacity utilization factor | C15: =C14/8760 -> 0 | D15: =D14/8760 -> 0 | E15: 0 | F15: 0 | G15: 0 | H15: 0 | I15: 0 | J15: 0 | K15: 0 | L15: 0 | M15: 0 | N15: 0 | O15: 0 | P15: 0 | Q15: 0 | R15: 0 | S15: 0 | T15: 0 | U15: 0 | V15: 0 | W15: 0
B17: =title201 -> Electricity generation (kWh per year) | C17: =C9*C14*(1-C12) -> 0 | D17: 0 | E17: 0 | F17: 0 | G17: 0 | H17: 0 | I17: 0 | J17: 0 | K17: 0 | L17: 0 | M17: 0 | N17: 0 | O17: 0 | P17: 0 | Q17: 0 | R17: 0 | S17: 0 | T17: 0 | U17: 0 | V17: 0 | W17: 0
B18: =title202 -> Electricity - self use (kWh per year) | C18: =C17*10% -> 0 | D18: =D17*10% -> 0 | E18: 0 | F18: 0 | G18: 0 | H18: 0 | I18: 0 | J18: 0 | K18: 0 | L18: 0 | M18: 0 | N18: 0 | O18: 0 | P18: 0 | Q18: 0 | R18: 0 | S18: 0 | T18: 0 | U18: 0 | V18: 0 | W18: 0
B19: =title82&" "&title84 -> Power loss in distribution network (kWh per year) | C19: =C17*COST_OIL1!$I$16 -> 0 | D19: =C19 -> 0 | E19: =D19 -> 0 | F19: 0 | G19: 0 | H19: 0 | I19: 0 | J19: 0 | K19: 0 | L19: 0 | M19: 0 | N19: 0 | O19: 0 | P19: 0 | Q19: 0 | R19: 0 | S19: 0 | T19: 0 | U19: 0 | V19: 0 | W19: 0
B20: =title203 -> Total power sold to customers (kWh/year) | C20: =C17-C18-C19 -> 0 | D20: =D17-D18-D19 -> 0 | E20: 0 | F20: 0 | G20: 0 | H20: 0 | I20: 0 | J20: 0 | K20: 0 | L20: 0 | M20: 0 | N20: 0 | O20: 0 | P20: 0 | Q20: 0 | R20: 0 | S20: 0 | T20: 0 | U20: 0 | V20: 0 | W20: 0
B22: =title204 -> Revenue from meal by-product (USD/year) | C22: =+IF('Energy Demand'!C19="",0,'Energy Demand'!$J$19) ->  | D22: =+C22 ->  | E22: =+D22 -> 
B23: =title205 -> Price of electricity (USD/kWh) | C23: =+COST_OIL1!$N$15 -> 0 | D23: =C23*(1+D24) -> 0 | E23: =D23*(1+E24) -> 0 | F23: =E23*(1+F24) -> 0 | G23: 0 | H23: 0 | I23: 0 | J23: 0 | K23: 0 | L23: 0 | M23: 0 | N23: 0 | O23: 0 | P23: 0 | Q23: 0 | R23: 0 | S23: 0 | T23: 0 | U23: 0 | V23: 0 | W23: 0
B24: =title206 -> Increasing rate of price of electricity (%) | C24: =+COST_OIL1!$P$167 -> 0 | D24: =C24 -> 0 | E24: =D24 -> 0 | F24: 0 | G24: 0 | H24: 0 | I24: 0 | J24: 0 | K24: 0 | L24: 0 | M24: 0 | N24: 0 | O24: 0 | P24: 0 | Q24: 0 | R24: 0 | S24: 0 | T24: 0 | U24: 0 | V24: 0 | W24: 0
B25: =title207 -> Total income (USD/year) | C25: =C20*C23+C22 ->  | D25: =D20*D23+D22 -> 
B28: =title208 -> Project lifetime (years) | C28: 20
B29: =title209 -> Lifespan of civil work (years) | C29: =20 -> 20
B30: =title210 -> Lifespan of the system (years) | C30: =20 -> 20
B31: =title211 -> Lifespan of engine generator system (years) | C31: =20 -> 20
B32: =title212 -> Lifespan of electrical distribution system (years) | C32: =20 -> 20
A35: =title213 -> Capital and operating cost
B37: =title199 -> Operating Year | C37: =title217 -> Appraisal | D37: 1 | E37: 2 | F37: 3 | G37: 4 | H37: 5 | I37: 6 | J37: 7 | K37: 8 | L37: 9 | M37: 10 | N37: 11 | O37: 12 | P37: 13 | Q37: 14 | R37: 15 | S37: 16 | T37: 17 | U37: 18 | V37: 19 | W37: 20
B38: =title214 -> Direct capital cost (USD)
B39: =title116 -> Equipments | C39: =COST_OIL1!I59 -> 
B40: =title117 -> Building | C40: =COST_OIL1!I60 -> 0
B41: =title118 -> Installation | C41: =COST_OIL1!I61 -> 0
B42: =title119 -> Distribution network | C42: =COST_OIL1!I62 -> 
B43: =title215 -> Total capital cost (USD) | C43: =SUM(C39:C42) ->  | D43: =D39+D40+D41 -> 0 | E43: 0 | F43: 0 | G43: 0 | H43: 0 | I43: 0 | J43: 0 | K43: 0 | L43: 0 | M43: 0 | N43: 0 | O43: 0 | P43: 0 | Q43: 0 | R43: 0 | S43: 0 | T43: 0 | U43: 0 | V43: 0 | W43: 0
B44: =title216 -> Capital cost (USD/kW) | C44: =C43/C9 -> 
B47: =title199 -> Operating Year | C47: =title217 -> Appraisal | D47: 1 | E47: 2 | F47: 3 | G47: 4 | H47: 5 | I47: 6 | J47: 7 | K47: 8 | L47: 9 | M47: 10 | N47: 11 | O47: 12 | P47: 13 | Q47: 14 | R47: 15 | S47: 16 | T47: 17 | U47: 18 | V47: 19 | W47: 20
B48: =title218 -> Annual operating and maintenance cost
B49: =title219 -> Sub-total material cost (USD) | C49: =C50+C58+C61 ->  | D49: =D50+D58+D61 -> 
B50: =title220 -> Biomass cost (USD/year) | C50: =C51*C52 ->  | D50: =D51*D52 ->  | E50: =E51*E52 -> 
B51: =title221 -> Biomass consumption (t per year) | C51: =+COST_OIL1!$I$36 ->  | D51: =+C51 ->  | E51: =+D51 -> 
B52: =title222 -> Biomass total price (USD/t) | C52: =SUM(C53:C54) -> 0 | D52: =SUM(D53:D54) -> 0 | E52: 0 | F52: 0 | G52: 0 | H52: 0 | I52: 0 | J52: 0 | K52: 0 | L52: 0 | M52: 0 | N52: 0 | O52: 0 | P52: 0 | Q52: 0 | R52: 0 | S52: 0 | T52: 0 | U52: 0 | V52: 0 | W52: 0
B53: =title223 -> Biomass price (USD/t) | C53: =+COST_OIL1!$F$36 -> 0 | D53: =C53*(1+D78+D79) -> 0 | E53: 0 | F53: 0 | G53: 0 | H53: 0 | I53: 0 | J53: 0 | K53: 0 | L53: 0 | M53: 0 | N53: 0 | O53: 0 | P53: 0 | Q53: 0 | R53: 0 | S53: 0 | T53: 0 | U53: 0 | V53: 0 | W53: 0
B54: =title224 -> Biomass transportation cost (USD/t) | C54: =+C55*C56 -> 0 | D54: =C54*(1+D78+D79) -> 0 | E54: 0 | F54: 0 | G54: 0 | H54: 0 | I54: 0 | J54: 0 | K54: 0 | L54: 0 | M54: 0 | N54: 0 | O54: 0 | P54: 0 | Q54: 0 | R54: 0 | S54: 0 | T54: 0 | U54: 0 | V54: 0 | W54: 0
B55: =title225 -> Biomass from farm to plant (USD/t/km) | C55: =+COST_OIL1!$F$49 -> 0
B56: =title226 -> Transportation distant (km) | C56: =+COST_OIL1!$E$23 -> 0
B58: =title227 -> Diesel cost (USD/year) | C58: =C59*C60 ->  | D58: =D59*D60 -> 
B59: =title228 -> Diesel/fuel oil consumption (litres per year) | C59: =+COST_OIL1!$I$37 ->  | D59: =+C59 ->  | E59: =+D59 -> 
B60: =title229 -> Diesel/fuel oil price (USD per litre) | C60: =+COST_OIL1!$F$37 -> 0 | D60: =C60*(1+D78+D79) -> 0 | E60: 0 | F60: 0 | G60: 0 | H60: 0 | I60: 0 | J60: 0 | K60: 0 | L60: 0 | M60: 0 | N60: 0 | O60: 0 | P60: 0 | Q60: 0 | R60: 0 | S60: 0 | T60: 0 | U60: 0 | V60: 0 | W60: 0
B61: =title230 -> Storage cost (USD/year) | C61: =+COST_OIL1!$J$55 ->  | D61: =+C61 ->  | E61: =+D61 -> 
B62: =title231 -> Sub-total operating cost (USD) | C62: =C63+C65+C66 ->  | D62: =D63+D65+D66 -> 
B63: =title232 -> Labour cost (USD) | C63: =COST_OIL1!J45 -> 0 | D63: =C63*(1+D64) -> 0 | E63: 0 | F63: 0 | G63: 0 | H63: 0 | I63: 0 | J63: 0 | K63: 0 | L63: 0 | M63: 0 | N63: 0 | O63: 0 | P63: 0 | Q63: 0 | R63: 0 | S63: 0 | T63: 0 | U63: 0 | V63: 0 | W63: 0
B64: =title233 -> Escalation rate of labour cost (%) | D64: =+COST_OIL1!$P$165 -> 0 | E64: =D64 -> 0 | F64: =E64 -> 0 | G64: 0 | H64: 0 | I64: 0 | J64: 0 | K64: 0 | L64: 0 | M64: 0 | N64: 0 | O64: 0 | P64: 0 | Q64: 0 | R64: 0 | S64: 0 | T64: 0 | U64: 0 | V64: 0 | W64: 0
B65: =title124 -> Plant overhead | C65: =COST_OIL1!J70 ->  | D65: =C65 ->  | E65: =D65 -> 
B66: =title125 -> General and administrative cost | C66: =COST_OIL1!J71 ->  | D66: =C66 -> 
B67: =title234 -> Sub-total maintenance cost (USD) | C67: =COST_OIL1!J65 ->  | D67: =C67 -> 
B69: =title235 -> Sub-total of annual fixed cost (USD) | C69: =COST_OIL1!J64 ->  | D69: =C69 ->  | E69: =D69 -> 
B71: =title236 -> Sub-total of storage cost (USD) | C71: =+COST_OIL1!J55 ->  | D71: =C71 ->  | E71: =D71 -> 
B73: =title237 -> Total operation and maintenance cost (USD) | C73: =C49+C62+C67+C69+C71 -> 
B74: =title238 -> Operation and maintenance cost (USD/kWh) without loan interest | C74: =C73/C20 -> 
A76: =title54 -> Financial parameters
B77: =title199 -> Operating Year | C77: =title217 -> Appraisal | D77: 1 | E77: 2 | F77: 3 | G77: 4 | H77: 5 | I77: 6 | J77: 7 | K77: 8 | L77: 9 | M77: 10 | N77: 11 | O77: 12 | P77: 13 | Q77: 14 | R77: 15 | S77: 16 | T77: 17 | U77: 18 | V77: 19 | W77: 20
B78: =title239 -> Raw material cost escalation rate (%) | D78: =+COST_OIL1!$P$166 -> 0 | E78: =D78 -> 0 | F78: =E78 -> 0 | G78: 0 | H78: 0 | I78: 0 | J78: 0 | K78: 0 | L78: 0 | M78: 0 | N78: 0 | O78: 0 | P78: 0 | Q78: 0 | R78: 0 | S78: 0 | T78: 0 | U78: 0 | V78: 0 | W78: 0
B79: =title70&" (%)" -> Inflation rate (%) | D79: =+COST_OIL1!$N$11 -> 0 | E79: =D79 -> 0 | F79: 0 | G79: 0 | H79: 0 | I79: 0 | J79: 0 | K79: 0 | L79: 0 | M79: 0 | N79: 0 | O79: 0 | P79: 0 | Q79: 0 | R79: 0 | S79: 0 | T79: 0 | U79: 0 | V79: 0 | W79: 0
B80: =title55&" (%)" -> Discount rate (%) | C80: =+COST_OIL1!$N$10 -> 0
B81: =title56&" (%)" -> Loan ratio (%) | C81: =+COST_OIL1!$N$13 -> 0
B83: =title313 -> Loan | D83: 1 | E83: 2 | F83: 3 | G83: 4 | H83: 5 | I83: 6 | J83: 7 | K83: 8 | L83: 9 | M83: 10 | N83: 11 | O83: 12 | P83: 13 | Q83: 14 | R83: 15 | S83: 16 | T83: 17 | U83: 18 | V83: 19 | W83: 20
B84: =title138&" (USD)" -> Loan amount (USD) | C84: =C81*C43 -> 
B85: =title57&" (%)" -> Loan interest rate (%) | C85: =+COST_OIL1!$N$12 -> 0
B86: =title71 -> Loan term (years) | C86: =+COST_OIL1!$N$14 -> 0
B87: =title314 -> Loan payment (USD/month) | C87: =(PMT(C85/12,(12*C86),C84)) -> 
B88: =title315 -> Loan payment (USD/year) | D88: =IF(D77<=$C$86,$C$87*12,0) -> 0 | E88: =IF(E77<=$C$86,$C$87*12,0) -> 0 | F88: 0 | G88: 0 | H88: 0 | I88: 0 | J88: 0 | K88: 0 | L88: 0 | M88: 0 | N88: 0 | O88: 0 | P88: 0 | Q88: 0 | R88: 0 | S88: 0 | T88: 0 | U88: 0 | V88: 0 | W88: 0
B89: =title141&" (USD)" -> Total loan payment (USD) | C89: =SUM(D88:W88) -> 0
B90: =title316 -> Loan interest payment (USD) | C90: =C89+C84 ->  | D90: =title322 -> Average loan interest payment for project lifetime | G90: =C90/C28 ->  | H90: =title323 -> USD per year
A92: =title317 -> Income tax analysis
B93: =title199 -> Operating Year | C93: =title217 -> Appraisal | D93: 1 | E93: 2 | F93: 3 | G93: 4 | H93: 5 | I93: 6 | J93: 7 | K93: 8 | L93: 9 | M93: 10 | N93: 11 | O93: 12 | P93: 13 | Q93: 14 | R93: 15 | S93: 16 | T93: 17 | U93: 18 | V93: 19 | W93: 20
B94: =title318 -> Effective income tax rate (%) | C94: =+COST_OIL1!$F$73 -> 0 | D94: =C94 -> 0 | E94: =D94 -> 0 | F94: 0 | G94: 0 | H94: 0 | I94: 0 | J94: 0 | K94: 0 | L94: 0 | M94: 0 | N94: 0 | O94: 0 | P94: 0 | Q94: 0 | R94: 0 | S94: 0 | T94: 0 | U94: 0 | V94: 0 | W94: 0
B95: =title319 -> Income tax | D95: =IF(D119<0,0,-D94*D119) -> 
B96: =title320 -> Total income tax (USD) | C96: =SUM(D95:W95) -> 
B97: =title321 -> Income tax payment (USD per year) | C97: =C96/$C$28 -> 
A99: =title121 -> Depreciation
B100: =title199 -> Operating Year | C100: =title217 -> Appraisal | D100: 1 | E100: 2 | F100: 3 | G100: 4 | H100: 5 | I100: 6 | J100: 7 | K100: 8 | L100: 9 | M100: 10 | N100: 11 | O100: 12 | P100: 13 | Q100: 14 | R100: 15 | S100: 16 | T100: 17 | U100: 18 | V100: 19 | W100: 20
B101: =title324 -> Depreciation method | C101: =title325 -> Straight-line
B102: =title122&" (USD)" -> Total depreciation (USD) | D102: =COST_OIL1!J64 ->  | E102: =D102 ->  | F102: =E102 -> 
A104: =title326 -> Base case project
A105: =title327 -> Summary of this project - before tax
B106: =title199 -> Operating Year | C106: =title217 -> Appraisal | D106: 1 | E106: 2 | F106: 3 | G106: 4 | H106: 5 | I106: 6 | J106: 7 | K106: 8 | L106: 9 | M106: 10 | N106: 11 | O106: 12 | P106: 13 | Q106: 14 | R106: 15 | S106: 16 | T106: 17 | U106: 18 | V106: 19 | W106: 20
B107: =title328 -> Total revenue (USD) | D107: =D25 ->  | E107: =E25 -> 
B108: =title215 -> Total capital cost (USD) | C108: =-(C43-C84) -> 
B109: =title329 -> Total operating and maintenance cost (USD) | D109: =-D73+D69 ->  | E109: =-E73+E69 -> 
B110: =title139&" (USD)" -> Loan payment (USD) | D110: =D88 -> 0 | E110: =E88 -> 0 | F110: 0 | G110: 0 | H110: 0 | I110: 0 | J110: 0 | K110: 0 | L110: 0 | M110: 0 | N110: 0 | O110: 0 | P110: 0 | Q110: 0 | R110: 0 | S110: 0 | T110: 0 | U110: 0 | V110: 0 | W110: 0
B111: =title330 -> Cash flow - before tax (USD) | C111: =SUM(C107:C110) ->  | D111: =SUM(D107:D110) -> 
A113: =title331 -> Summary of this project - after tax
B114: =title199 -> Operating Year | C114: =title217 -> Appraisal | D114: 1 | E114: 2 | F114: 3 | G114: 4 | H114: 5 | I114: 6 | J114: 7 | K114: 8 | L114: 9 | M114: 10 | N114: 11 | O114: 12 | P114: 13 | Q114: 14 | R114: 15 | S114: 16 | T114: 17 | U114: 18 | V114: 19 | W114: 20
B115: =B107 -> Total revenue (USD) | C115: =C107 -> 0 | D115: =D107 ->  | E115: =E107 -> 
B116: =title329 -> Total operating and maintenance cost (USD) | D116: =-D73+D69 -> 
B117: =title139&" (USD)" -> Loan payment (USD) | D117: =D88 -> 0 | E117: =E88 -> 0 | F117: 0 | G117: 0 | H117: 0 | I117: 0 | J117: 0 | K117: 0 | L117: 0 | M117: 0 | N117: 0 | O117: 0 | P117: 0 | Q117: 0 | R117: 0 | S117: 0 | T117: 0 | U117: 0 | V117: 0 | W117: 0
B118: =title332 -> Depreciation of fixed cost (USD) | D118: =-D102 ->  | E118: =-E102 -> 
B119: =title333 -> Net Profit - before tax (USD) for income tax calculation | C119: =SUM(C115:C118) -> 0 | D119: =SUM(D115:D118) -> 
B120: =title319 -> Income tax | D120: =D95 ->  | E120: =E95 -> 
B121: =title334 -> Cash flow - after tax (USD) | C121: =C108 ->  | D121: =D111+D120 ->  | E121: =E111+E120 -> 
A123: =title335 -> Cumulative value of Net Profit
B124: =title199 -> Operating Year | C124: =title217 -> Appraisal | D124: 1 | E124: 2 | F124: 3 | G124: 4 | H124: 5 | I124: 6 | J124: 7 | K124: 8 | L124: 9 | M124: 10 | N124: 11 | O124: 12 | P124: 13 | Q124: 14 | R124: 15 | S124: 16 | T124: 17 | U124: 18 | V124: 19 | W124: 20
B125: =title337 -> Cumulative value of Net Profit - before tax | C125: =C111 ->  | D125: =C125+(D111) -> 
B126: =title338 -> Cumulative value of Net Profit - after tax | C126: =C121 ->  | D126: =C126+(D121) -> 
A128: =title336 -> Financial Analysis Result
B130: =title339 -> Net Present Value (NPV) (USD) - before tax | C130: =NPV(C80,D111:W111)+C111 -> 
B131: =title340 -> Internal Rate of Return (IRR) (%) - before tax | C131: =IF(C130<0,title353,IRR(C111:W111,0.001)) -> 
B132: =title341 -> Payback period (years) | C132: =title345 -> Please see Figure of the cumulative value of Net Profit - before tax
B135: =title342 -> Net Present Value (NPV) (USD) - after tax | C135: =NPV(C80,D121:W121)+C121 -> 
B136: =title343 -> Internal Rate of Return (IRR) (%) - after tax | C136: =IF(C135<0,title353,IRR(C121:W121,0.000001)) -> 
B137: =title341 -> Payback period (years) | C137: =title346 -> Please see Figure of the cumulative value of Net Profit - after tax
B138: =title344 -> Total income tax payment of project lifetime | C138: =SUM(D120:W120) -> 

Sheet FA100kW_OIL1 (hidden)
B2: FINANCIAL EVALUATION OF SVO + RURAL ELECTRICITY AND/OR HEAT 100 kW PROJECT
A5: =title198 -> Revenues of SVO and power generation system
B7: =title199 -> Operating Year | C7: 0 | D7: 1 | E7: 2 | F7: 3 | G7: 4 | H7: 5 | I7: 6 | J7: 7 | K7: 8 | L7: 9 | M7: 10 | N7: 11 | O7: 12 | P7: 13 | Q7: 14 | R7: 15 | S7: 16 | T7: 17 | U7: 18 | V7: 19 | W7: 20
B9: =title200 -> Power generation capacity (kW) | C9: =COST_OIL1!$K$30 -> 100 | D9: =C9 -> 100 | E9: =D9 -> 100 | F9: 100 | G9: 100 | H9: 100 | I9: 100 | J9: 100 | K9: 100 | L9: 100 | M9: 100 | N9: 100 | O9: 100 | P9: 100 | Q9: 100 | R9: 100 | S9: 100 | T9: 100 | U9: 100 | V9: 100 | W9: 100
B12: Power lossses due to operation (%) | C12: =+COST_OIL1!$I$17 -> 0 | D12: =+C12 -> 0 | E12: =+D12 -> 0 | F12: 0 | G12: 0 | H12: 0 | I12: 0 | J12: 0 | K12: 0 | L12: 0 | M12: 0 | N12: 0 | O12: 0 | P12: 0 | Q12: 0 | R12: 0 | S12: 0 | T12: 0 | U12: 0 | V12: 0 | W12: 0
B14: =title98 -> Operating hours per year | C14: =COST_OIL1!$L$31 -> 0 | D14: =C14 -> 0 | E14: =D14 -> 0 | F14: 0 | G14: 0 | H14: 0 | I14: 0 | J14: 0 | K14: 0 | L14: 0 | M14: 0 | N14: 0 | O14: 0 | P14: 0 | Q14: 0 | R14: 0 | S14: 0 | T14: 0 | U14: 0 | V14: 0 | W14: 0
B15: =title76 -> Capacity utilization factor | C15: =C14/8760 -> 0 | D15: =D14/8760 -> 0 | E15: 0 | F15: 0 | G15: 0 | H15: 0 | I15: 0 | J15: 0 | K15: 0 | L15: 0 | M15: 0 | N15: 0 | O15: 0 | P15: 0 | Q15: 0 | R15: 0 | S15: 0 | T15: 0 | U15: 0 | V15: 0 | W15: 0
B17: =title201 -> Electricity generation (kWh per year) | C17: =C9*C14*(1-C12) -> 0 | D17: 0 | E17: 0 | F17: 0 | G17: 0 | H17: 0 | I17: 0 | J17: 0 | K17: 0 | L17: 0 | M17: 0 | N17: 0 | O17: 0 | P17: 0 | Q17: 0 | R17: 0 | S17: 0 | T17: 0 | U17: 0 | V17: 0 | W17: 0
B18: =title202 -> Electricity - self use (kWh per year) | C18: =C17*10% -> 0 | D18: =D17*10% -> 0 | E18: 0 | F18: 0 | G18: 0 | H18: 0 | I18: 0 | J18: 0 | K18: 0 | L18: 0 | M18: 0 | N18: 0 | O18: 0 | P18: 0 | Q18: 0 | R18: 0 | S18: 0 | T18: 0 | U18: 0 | V18: 0 | W18: 0
B19: =title82&" "&title84 -> Power loss in distribution network (kWh per year) | C19: =C17*COST_OIL1!$I$16 -> 0 | D19: =C19 -> 0 | E19: =D19 -> 0 | F19: 0 | G19: 0 | H19: 0 | I19: 0 | J19: 0 | K19: 0 | L19: 0 | M19: 0 | N19: 0 | O19: 0 | P19: 0 | Q19: 0 | R19: 0 | S19: 0 | T19: 0 | U19: 0 | V19: 0 | W19: 0
B20: =title203 -> Total power sold to customers (kWh/year) | C20: =C17-C18-C19 -> 0 | D20: =D17-D18-D19 -> 0 | E20: 0 | F20: 0 | G20: 0 | H20: 0 | I20: 0 | J20: 0 | K20: 0 | L20: 0 | M20: 0 | N20: 0 | O20: 0 | P20: 0 | Q20: 0 | R20: 0 | S20: 0 | T20: 0 | U20: 0 | V20: 0 | W20: 0
B22: =title204 -> Revenue from meal by-product (USD/year) | C22: =+IF('Energy Demand'!C19="",0,'Energy Demand'!$L$19) ->  | D22: =+C22 ->  | E22: =+D22 -> 
B23: =title205 -> Price of electricity (USD/kWh) | C23: =+COST_OIL1!$N$15 -> 0 | D23: =C23*(1+D24) -> 0 | E23: =D23*(1+E24) -> 0 | F23: =E23*(1+F24) -> 0 | G23: 0 | H23: 0 | I23: 0 | J23: 0 | K23: 0 | L23: 0 | M23: 0 | N23: 0 | O23: 0 | P23: 0 | Q23: 0 | R23: 0 | S23: 0 | T23: 0 | U23: 0 | V23: 0 | W23: 0
B24: =title206 -> Increasing rate of price of electricity (%) | C24: =+COST_OIL1!$P$167 -> 0 | D24: =C24 -> 0 | E24: =D24 -> 0 | F24: 0 | G24: 0 | H24: 0 | I24: 0 | J24: 0 | K24: 0 | L24: 0 | M24: 0 | N24: 0 | O24: 0 | P24: 0 | Q24: 0 | R24: 0 | S24: 0 | T24: 0 | U24: 0 | V24: 0 | W24: 0
B25: =title207 -> Total income (USD/year) | C25: =C20*C23+C22 ->  | D25: =D20*D23+D22 -> 
B28: =title208 -> Project lifetime (years) | C28: 20
B29: =title209 -> Lifespan of civil work (years) | C29: =20 -> 20
B30: =title210 -> Lifespan of the system (years) | C30: =20 -> 20
B31: =title211 -> Lifespan of engine generator system (years) | C31: =20 -> 20
B32: =title212 -> Lifespan of electrical distribution system (years) | C32: =20 -> 20
A35: =title213 -> Capital and operating cost
B37: =title199 -> Operating Year | C37: =title217 -> Appraisal | D37: 1 | E37: 2 | F37: 3 | G37: 4 | H37: 5 | I37: 6 | J37: 7 | K37: 8 | L37: 9 | M37: 10 | N37: 11 | O37: 12 | P37: 13 | Q37: 14 | R37: 15 | S37: 16 | T37: 17 | U37: 18 | V37: 19 | W37: 20
B38: =title214 -> Direct capital cost (USD)
B39: =title116 -> Equipments | C39: =COST_OIL1!K59 -> 
B40: =title117 -> Building | C40: =COST_OIL1!K60 -> 0
B41: =title118 -> Installation | C41: =COST_OIL1!K61 -> 0
B42: =title119 -> Distribution network | C42: =COST_OIL1!K62 -> 
B43: =title215 -> Total capital cost (USD) | C43: =SUM(C39:C42) ->  | D43: =D39+D40+D41 -> 0 | E43: 0 | F43: 0 | G43: 0 | H43: 0 | I43: 0 | J43: 0 | K43: 0 | L43: 0 | M43: 0 | N43: 0 | O43: 0 | P43: 0 | Q43: 0 | R43: 0 | S43: 0 | T43: 0 | U43: 0 | V43: 0 | W43: 0
B44: =title216 -> Capital cost (USD/kW) | C44: =C43/C9 -> 
B47: =title199 -> Operating Year | C47: =title217 -> Appraisal | D47: 1 | E47: 2 | F47: 3 | G47: 4 | H47: 5 | I47: 6 | J47: 7 | K47: 8 | L47: 9 | M47: 10 | N47: 11 | O47: 12 | P47: 13 | Q47: 14 | R47: 15 | S47: 16 | T47: 17 | U47: 18 | V47: 19 | W47: 20
B48: =title218 -> Annual operating and maintenance cost
B49: =title219 -> Sub-total material cost (USD) | C49: =C50+C58+C61 ->  | D49: =D50+D58+D61 -> 
B50: =title220 -> Biomass cost (USD/year) | C50: =C51*C52 ->  | D50: =D51*D52 ->  | E50: =E51*E52 -> 
B51: =title221 -> Biomass consumption (t per year) | C51: =+COST_OIL1!$K$36 ->  | D51: =+C51 ->  | E51: =+D51 -> 
B52: =title222 -> Biomass total price (USD/t) | C52: =SUM(C53:C54) -> 0 | D52: =SUM(D53:D54) -> 0 | E52: 0 | F52: 0 | G52: 0 | H52: 0 | I52: 0 | J52: 0 | K52: 0 | L52: 0 | M52: 0 | N52: 0 | O52: 0 | P52: 0 | Q52: 0 | R52: 0 | S52: 0 | T52: 0 | U52: 0 | V52: 0 | W52: 0
B53: =title223 -> Biomass price (USD/t) | C53: =+COST_OIL1!$F$36 -> 0 | D53: =C53*(1+D78+D79) -> 0 | E53: 0 | F53: 0 | G53: 0 | H53: 0 | I53: 0 | J53: 0 | K53: 0 | L53: 0 | M53: 0 | N53: 0 | O53: 0 | P53: 0 | Q53: 0 | R53: 0 | S53: 0 | T53: 0 | U53: 0 | V53: 0 | W53: 0
B54: =title224 -> Biomass transportation cost (USD/t) | C54: =+C55*C56 -> 0 | D54: =C54*(1+D78+D79) -> 0 | E54: 0 | F54: 0 | G54: 0 | H54: 0 | I54: 0 | J54: 0 | K54: 0 | L54: 0 | M54: 0 | N54: 0 | O54: 0 | P54: 0 | Q54: 0 | R54: 0 | S54: 0 | T54: 0 | U54: 0 | V54: 0 | W54: 0
B55: =title225 -> Biomass from farm to plant (USD/t/km) | C55: =+COST_OIL1!$F$49 -> 0
B56: =title226 -> Transportation distant (km) | C56: =+COST_OIL1!$K$22 -> 0
B58: =title227 -> Diesel cost (USD/year) | C58: =C59*C60 ->  | D58: =D59*D60 -> 
B59: =title228 -> Diesel/fuel oil consumption (litres per year) | C59: =+COST_OIL1!$K$37 ->  | D59: =+C59 ->  | E59: =+D59 -> 
B60: =title229 -> Diesel/fuel oil price (USD per litre) | C60: =+COST_OIL1!$F$37 -> 0 | D60: =C60*(1+D78+D79) -> 0 | E60: 0 | F60: 0 | G60: 0 | H60: 0 | I60: 0 | J60: 0 | K60: 0 | L60: 0 | M60: 0 | N60: 0 | O60: 0 | P60: 0 | Q60: 0 | R60: 0 | S60: 0 | T60: 0 | U60: 0 | V60: 0 | W60: 0
B61: =title230 -> Storage cost (USD/year) | C61: =+COST_OIL1!$L$55 ->  | D61: =+C61 ->  | E61: =+D61 -> 
B62: =title231 -> Sub-total operating cost (USD) | C62: =C63+C65+C66 ->  | D62: =D63+D65+D66 -> 
B63: =title232 -> Labour cost (USD) | C63: =COST_OIL1!L45 -> 0 | D63: =C63*(1+D64) -> 0 | E63: 0 | F63: 0 | G63: 0 | H63: 0 | I63: 0 | J63: 0 | K63: 0 | L63: 0 | M63: 0 | N63: 0 | O63: 0 | P63: 0 | Q63: 0 | R63: 0 | S63: 0 | T63: 0 | U63: 0 | V63: 0 | W63: 0
B64: =title233 -> Escalation rate of labour cost (%) | D64: =+COST_OIL1!$P$165 -> 0 | E64: =D64 -> 0 | F64: 0 | G64: 0 | H64: 0 | I64: 0 | J64: 0 | K64: 0 | L64: 0 | M64: 0 | N64: 0 | O64: 0 | P64: 0 | Q64: 0 | R64: 0 | S64: 0 | T64: 0 | U64: 0 | V64: 0 | W64: 0
B65: =title124 -> Plant overhead | C65: =COST_OIL1!L70 ->  | D65: =C65 ->  | E65: =D65 ->  | U65: =T65 -> 
B66: =title125 -> General and administrative cost | C66: =COST_OIL1!L71 ->  | D66: =C66 -> 
B67: =title234 -> Sub-total maintenance cost (USD) | C67: =COST_OIL1!L65 ->  | D67: =C67 -> 
B69: =title235 -> Sub-total of annual fixed cost (USD) | C69: =COST_OIL1!L64 ->  | D69: =C69 ->  | E69: =D69 -> 
B71: =title236 -> Sub-total of storage cost (USD) | C71: =+COST_OIL1!L55 ->  | D71: =C71 ->  | E71: =D71 -> 
B73: =title237 -> Total operation and maintenance cost (USD) | C73: =C49+C62+C67+C69+C71 -> 
B74: =title238 -> Operation and maintenance cost (USD/kWh) without loan interest | C74: =C73/C20 -> 
A76: =title54 -> Financial parameters
B77: =title199 -> Operating Year | C77: =title217 -> Appraisal | D77: 1 | E77: 2 | F77: 3 | G77: 4 | H77: 5 | I77: 6 | J77: 7 | K77: 8 | L77: 9 | M77: 10 | N77: 11 | O77: 12 | P77: 13 | Q77: 14 | R77: 15 | S77: 16 | T77: 17 | U77: 18 | V77: 19 | W77: 20
B78: =title239 -> Raw material cost escalation rate (%) | D78: =+COST_OIL1!$P$166 -> 0 | E78: =D78 -> 0 | F78: =E78 -> 0 | G78: 0 | H78: 0 | I78: 0 | J78: 0 | K78: 0 | L78: 0 | M78: 0 | N78: 0 | O78: 0 | P78: 0 | Q78: 0 | R78: 0 | S78: 0 | T78: 0 | U78: 0 | V78: =U78 -> 0 | W78: =V78 -> 0
B79: =title70&" (%)" -> Inflation rate (%) | D79: =+COST_OIL1!$N$11 -> 0 | E79: =D79 -> 0 | F79: 0 | G79: 0 | H79: 0 | I79: 0 | J79: 0 | K79: 0 | L79: 0 | M79: 0 | N79: 0 | O79: 0 | P79: 0 | Q79: 0 | R79: 0 | S79: 0 | T79: 0 | U79: 0 | V79: =U79 -> 0 | W79: =V79 -> 0
B80: =title55&" (%)" -> Discount rate (%) | C80: =+COST_OIL1!$N$10 -> 0
B81: =title56&" (%)" -> Loan ratio (%) | C81: =+COST_OIL1!$N$13 -> 0
B83: =title313 -> Loan | D83: 1 | E83: 2 | F83: 3 | G83: 4 | H83: 5 | I83: 6 | J83: 7 | K83: 8 | L83: 9 | M83: 10 | N83: 11 | O83: 12 | P83: 13 | Q83: 14 | R83: 15 | S83: 16 | T83: 17 | U83: 18 | V83: 19 | W83: 20
B84: Loan amount (USD) | C84: =C81*C43 -> 
B85: =title57&" (%)" -> Loan interest rate (%) | C85: =+COST_OIL1!$N$12 -> 0
B86: =title71 -> Loan term (years) | C86: =+COST_OIL1!$N$14 -> 0
B87: =title314 -> Loan payment (USD/month) | C87: =(PMT(C85/12,(12*C86),C84)) -> 
B88: =title315 -> Loan payment (USD/year) | D88: =IF(D77<=$C$86,$C$87*12,0) -> 0 | E88: =IF(E77<=$C$86,$C$87*12,0) -> 0 | F88: 0 | G88: 0 | H88: 0 | I88: 0 | J88: 0 | K88: 0 | L88: 0 | M88: 0 | N88: 0 | O88: 0 | P88: 0 | Q88: 0 | R88: 0 | S88: 0 | T88: 0 | U88: 0 | V88: 0 | W88: 0
B89: =title141&" (USD)" -> Total loan payment (USD) | C89: =SUM(D88:W88) -> 0
B90: =title316 -> Loan interest payment (USD) | C90: =C89+C84 ->  | D90: =title322 -> Average loan interest payment for project lifetime | G90: =C90/C28 ->  | H90: =title323 -> USD per year
A92: =title317 -> Income tax analysis
B93: =title199 -> Operating Year | C93: =title217 -> Appraisal | D93: 1 | E93: 2 | F93: 3 | G93: 4 | H93: 5 | I93: 6 | J93: 7 | K93: 8 | L93: 9 | M93: 10 | N93: 11 | O93: 12 | P93: 13 | Q93: 14 | R93: 15 | S93: 16 | T93: 17 | U93: 18 | V93: 19 | W93: 20
B94: =title318 -> Effective income tax rate (%) | C94: =+COST_OIL1!$F$73 -> 0 | D94: =C94 -> 0 | E94: =D94 -> 0 | F94: 0 | G94: 0 | H94: 0 | I94: 0 | J94: 0 | K94: 0 | L94: 0 | M94: 0 | N94: 0 | O94: 0 | P94: 0 | Q94: 0 | R94: 0 | S94: 0 | T94: 0 | U94: 0 | V94: 0 | W94: 0
B95: =title319 -> Income tax | D95: =IF(D119<0,0,-D94*D119) -> 
B96: =title320 -> Total income tax (USD) | C96: =SUM(D95:W95) -> 
B97: =title321 -> Income tax payment (USD per year) | C97: =C96/$C$28 -> 
A99: =title121 -> Depreciation
B100: =title199 -> Operating Year | C100: =title217 -> Appraisal | D100: 1 | E100: 2 | F100: 3 | G100: 4 | H100: 5 | I100: 6 | J100: 7 | K100: 8 | L100: 9 | M100: 10 | N100: 11 | O100: 12 | P100: 13 | Q100: 14 | R100: 15 | S100: 16 | T100: 17 | U100: 18 | V100: 19 | W100: 20
B101: =title324 -> Depreciation method | C101: =title325 -> Straight-line
B102: =title122&" (USD)" -> Total depreciation (USD) | D102: =COST_OIL1!L64 ->  | E102: =D102 ->  | F102: =E102 -> 
A104: =title326 -> Base case project
A105: =title327 -> Summary of this project - before tax
B106: =title199 -> Operating Year | C106: =title217 -> Appraisal | D106: 1 | E106: 2 | F106: 3 | G106: 4 | H106: 5 | I106: 6 | J106: 7 | K106: 8 | L106: 9 | M106: 10 | N106: 11 | O106: 12 | P106: 13 | Q106: 14 | R106: 15 | S106: 16 | T106: 17 | U106: 18 | V106: 19 | W106: 20
B107: =title328 -> Total revenue (USD) | D107: =D25 ->  | E107: =E25 -> 
B108: =title215 -> Total capital cost (USD) | C108: =-(C43-C84) -> 
B109: =title329 -> Total operating and maintenance cost (USD) | D109: =-D73+D69 -> 
B110: =title139&" (USD)" -> Loan payment (USD) | D110: =D88 -> 0 | E110: =E88 -> 0 | F110: 0 | G110: 0 | H110: 0 | I110: 0 | J110: 0 | K110: 0 | L110: 0 | M110: 0 | N110: 0 | O110: 0 | P110: 0 | Q110: 0 | R110: 0 | S110: 0 | T110: 0 | U110: 0 | V110: 0 | W110: 0
B111: =title330 -> Cash flow - before tax (USD) | C111: =SUM(C107:C110) ->  | D111: =SUM(D107:D110) -> 
A113: =title331 -> Summary of this project - after tax
B114: =title199 -> Operating Year | C114: =title217 -> Appraisal | D114: 1 | E114: 2 | F114: 3 | G114: 4 | H114: 5 | I114: 6 | J114: 7 | K114: 8 | L114: 9 | M114: 10 | N114: 11 | O114: 12 | P114: 13 | Q114: 14 | R114: 15 | S114: 16 | T114: 17 | U114: 18 | V114: 19 | W114: 20
B115: =B107 -> Total revenue (USD) | C115: =C107 -> 0 | D115: =D107 ->  | E115: =E107 -> 
B116: =title329 -> Total operating and maintenance cost (USD) | D116: =-D73+D69 -> 
B117: =title139&" (USD)" -> Loan payment (USD) | D117: =D88 -> 0 | E117: =E88 -> 0 | F117: 0 | G117: 0 | H117: 0 | I117: 0 | J117: 0 | K117: 0 | L117: 0 | M117: 0 | N117: 0 | O117: 0 | P117: 0 | Q117: 0 | R117: 0 | S117: 0 | T117: 0 | U117: 0 | V117: 0 | W117: 0
B118: =title332 -> Depreciation of fixed cost (USD) | D118: =-D102 ->  | E118: =-E102 -> 
B119: =title333 -> Net Profit - before tax (USD) for income tax calculation | C119: =SUM(C115:C118) -> 0 | D119: =SUM(D115:D118) -> 
B120: =title319 -> Income tax | D120: =D95 ->  | E120: =E95 -> 
B121: =title334 -> Cash flow - after tax (USD) | C121: =C108 ->  | D121: =D111+D120 ->  | E121: =E111+E120 -> 
A123: =title335 -> Cumulative value of Net Profit
B124: =title199 -> Operating Year | C124: =title217 -> Appraisal | D124: 1 | E124: 2 | F124: 3 | G124: 4 | H124: 5 | I124: 6 | J124: 7 | K124: 8 | L124: 9 | M124: 10 | N124: 11 | O124: 12 | P124: 13 | Q124: 14 | R124: 15 | S124: 16 | T124: 17 | U124: 18 | V124: 19 | W124: 20
B125: =title337 -> Cumulative value of Net Profit - before tax | C125: =C111 ->  | D125: =C125+(D111) -> 
B126: =title338 -> Cumulative value of Net Profit - after tax | C126: =C121 ->  | D126: =C126+(D121) -> 
A128: =title336 -> Financial Analysis Result
B130: =title339 -> Net Present Value (NPV) (USD) - before tax | C130: =NPV(C80,D111:W111)+C111 -> 
B131: =title340 -> Internal Rate of Return (IRR) (%) - before tax | C131: =IF(C130<0,title353,IRR(C111:W111,0.001)) -> 
B132: =title341 -> Payback period (years) | C132: =title345 -> Please see Figure of the cumulative value of Net Profit - before tax
B135: =title342 -> Net Present Value (NPV) (USD) - after tax | C135: =NPV(C80,D121:W121)+C121 -> 
B136: =title343 -> Internal Rate of Return (IRR) (%) - after tax | C136: =IF(C135<0,title353,IRR(C121:W121,0.000001)) -> 
B137: =title341 -> Payback period (years) | C137: =title346 -> Please see Figure of the cumulative value of Net Profit - after tax
B138: =title344 -> Total income tax payment of project lifetime | C138: =SUM(D120:W120) -> 

Sheet COST(ADJUSTED)_OIL2 (hidden)
C3: =+UPPER("DETAILED INVESTEMET OF SVO+RURAL ELECTRICITY AND/OR HEAT FROM "&'Data Entry Needs'!$E$9) -> DETAILED INVESTEMET OF SVO+RURAL ELECTRICITY AND/OR HEAT FROM PLEASE SELECT
F6: =title97 -> Capacities (kW of power generation)
F7: 10 | G7: 40 | H7: 100
D8: =title20 -> Feedstock | E8: t/year | F8: =+COST_OIL2!G36 ->  | G8: =+COST_OIL2!I36 ->  | H8: =+COST_OIL2!K36 -> 
D9: Operating period | E9: h/year | F9: =+COST_OIL2!H31 -> 0 | G9: =+COST_OIL2!J31 -> 0 | H9: =+COST_OIL2!L31 -> 0
D10: Households | E10: Household | F10: =+COST_OIL2!G90/('Energy Demand'!$F$8*12) ->  | G10: =+COST_OIL2!I90/('Energy Demand'!$F$8*12) ->  | H10: =+COST_OIL2!K90/('Energy Demand'!$F$8*12) -> 
C11: Estimated distance covered (m) | D11: m/household | E11: 10 | F11: =+F10*$E$11 ->  | G11: =+G10*$E$11 ->  | H11: =+H10*$E$11 -> 
C13: Pretreatment
C14: Connection and earthing | D14: % | E14: =+VLOOKUP('Data Entry Needs'!$E$9,dummy_database!$G$4:$N$9,8,FALSE) ->  | F14: =+$E$14*F23 ->  | G14: =+$E$14*G23 ->  | H14: =+$E$14*H23 -> 
E15: =title102 -> Subtotal | F15: =SUM(F14)*('Data Entry Needs'!$H$44/148.735061895476) ->  | G15: =SUM(G14)*('Data Entry Needs'!$H$44/148.735061895476) ->  | H15: =SUM(H14)*('Data Entry Needs'!$H$44/148.735061895476) -> 
C16: =title116 -> Equipments
C17: Oilseed Press | D17: USDh/kg | E17: 33.3 | F17: =+F$8*1000*$E17/F$9 ->  | G17: =+G$8*1000*$E17/G$9 -> 
C18: Dehulling | D18: USDh/kg | E18: 27.5 | F18: =+F$8*1000*$E18/F$9 -> 
C19: Filtrat | D19: USDh/kg | E19: 23.75 | F19: =+F$8*1000*$E19/F$9 -> 
C20: Engine | D20: USD/kW | E20: 171.43 | F20: =+F$7*$E20 -> 1714.3 | G20: =+G$7*$E20 -> 6857.2 | H20: 17143
C21: Generator | D21: USD/kW | E21: 184 | F21: =+F$7*$E21 -> 1840 | G21: 7360 | H21: 18400
C22: Adaptation to SVO | D22: USD/kW | E22: 41.5 | F22: =+F$7*$E22 -> 415 | G22: 1660 | H22: 4150
E23: =title102 -> Subtotal | F23: =SUM(F17:F22)*('Data Entry Needs'!$H$44/148.735061895476) ->  | G23: =SUM(G17:G22)*('Data Entry Needs'!$H$44/148.735061895476) ->  | H23: =SUM(H17:H22)*('Data Entry Needs'!$H$44/148.735061895476) -> 
C24: =title117 -> Building
C25: Civil work (Building, generator platform etc.) | D25: USD/kW | F25: =19.656* F7+ 1713.4 -> 1909.96 | G25: =19.656* G7+ 1713.4 -> 2499.64 | H25: =19.656* H7+ 1713.4 -> 3679
E26: =title102 -> Subtotal | F26: =SUM(F25)*('Data Entry Needs'!$H$44/148.735061895476) -> 0 | G26: =SUM(G25)*('Data Entry Needs'!$H$44/148.735061895476) -> 0 | H26: =SUM(H25)*('Data Entry Needs'!$H$44/148.735061895476) -> 0
C27: =title118 -> Installation
C28: Connection and earthing | D28: USD/kW | E28: 27.14285714 | F28: =($E$28*F7) -> 271.4285714 | G28: =($E$28*G7) -> 1085.714286 | H28: =($E$28*H7) -> 2714.285714
E29: =title102 -> Subtotal | F29: =SUM(F28)*('Data Entry Needs'!$H$44/148.735061895476) -> 0 | G29: =SUM(G28)*('Data Entry Needs'!$H$44/148.735061895476) -> 0 | H29: =SUM(H28)*('Data Entry Needs'!$H$44/148.735061895476) -> 0
C30: =title119 -> Distribution network
C31: Primary electricity cable | D31: USD/m | E31: 7.454 | F31: =+F$11*$E31 ->  | G31: =+G$11*$E31 ->  | H31: =+H$11*$E31 -> 
C32: Secondary cable, installation and meter | D32: USD/household | E32: 164 | F32: =+F$10*$E32 ->  | G32: =+G$10*$E32 ->  | H32: =+H$10*$E32 -> 
E33: =title102 -> Subtotal | F33: =SUM(F31:F32)*('Data Entry Needs'!$H$44/148.735061895476) ->  | G33: =SUM(G31:G32)*('Data Entry Needs'!$H$44/148.735061895476) ->  | H33: =SUM(H31:H32)*('Data Entry Needs'!$H$44/148.735061895476) -> 

Sheet COST(ADJUSTED)_OIL3 (hidden)
C3: =+UPPER("DETAILED INVESTEMET OF SVO+RURAL ELECTRICITY AND/OR HEAT FROM "&'Data Entry Needs'!$F$9) -> DETAILED INVESTEMET OF SVO+RURAL ELECTRICITY AND/OR HEAT FROM PLEASE SELECT
F6: =title97 -> Capacities (kW of power generation)
F7: 10 | G7: 40 | H7: 100
D8: =title20 -> Feedstock | E8: t/year | F8: =+COST_OIL3!G36 ->  | G8: =+COST_OIL3!I36 ->  | H8: =+COST_OIL3!K36 -> 
D9: Operating period | E9: h/year | F9: =+COST_OIL3!H31 -> 0 | G9: =+COST_OIL3!J31 -> 0 | H9: =+COST_OIL3!L31 -> 0
D10: Households | E10: Household | F10: =+COST_OIL3!G90/('Energy Demand'!$F$8*12) ->  | G10: =+COST_OIL3!I90/('Energy Demand'!$F$8*12) ->  | H10: =+COST_OIL3!K90/('Energy Demand'!$F$8*12) -> 
C11: Estimated distance covered (m) | D11: m/household | E11: 10 | F11: =+F10*$E$11 ->  | G11: =+G10*$E$11 ->  | H11: =+H10*$E$11 -> 
C13: Pretreatment
C14: Connection and earthing | D14: % | E14: =+VLOOKUP('Data Entry Needs'!$F$9,dummy_database!$G$4:$N$9,8,FALSE) ->  | F14: =+$E$14*F23 ->  | G14: =+$E$14*G23 ->  | H14: =+$E$14*H23 -> 
E15: =title102 -> Subtotal | F15: =SUM(F14)*('Data Entry Needs'!$H$44/148.735061895476) ->  | G15: =SUM(G14)*('Data Entry Needs'!$H$44/148.735061895476) ->  | H15: =SUM(H14)*('Data Entry Needs'!$H$44/148.735061895476) -> 
C16: =title116 -> Equipments
C17: Oilseed Press | D17: USDh/kg | E17: 33.3 | F17: =+F$8*1000*$E17/F$9 ->  | G17: =+G$8*1000*$E17/G$9 -> 
C18: Dehulling | D18: USDh/kg | E18: 27.5 | F18: =+F$8*1000*$E18/F$9 -> 
C19: Filtrat | D19: USDh/kg | E19: 23.75 | F19: =+F$8*1000*$E19/F$9 -> 
C20: Engine | D20: USD/kW | E20: 171.43 | F20: =+F$7*$E20 -> 1714.3 | G20: =+G$7*$E20 -> 6857.2 | H20: 17143
C21: Generator | D21: USD/kW | E21: 184 | F21: =+F$7*$E21 -> 1840 | G21: 7360 | H21: 18400
C22: Adaptation to SVO | D22: USD/kW | E22: 41.5 | F22: =+F$7*$E22 -> 415 | G22: 1660 | H22: 4150
E23: =title102 -> Subtotal | F23: =SUM(F17:F22)*('Data Entry Needs'!$H$44/148.735061895476) ->  | G23: =SUM(G17:G22)*('Data Entry Needs'!$H$44/148.735061895476) ->  | H23: =SUM(H17:H22)*('Data Entry Needs'!$H$44/148.735061895476) -> 
C24: =title117 -> Building
C25: Civil work (Building, generator platform etc.) | D25: USD/kW | F25: =19.656* F7+ 1713.4 -> 1909.96 | G25: =19.656* G7+ 1713.4 -> 2499.64 | H25: =19.656* H7+ 1713.4 -> 3679
E26: =title102 -> Subtotal | F26: =SUM(F25)*('Data Entry Needs'!$H$44/148.735061895476) -> 0 | G26: =SUM(G25)*('Data Entry Needs'!$H$44/148.735061895476) -> 0 | H26: =SUM(H25)*('Data Entry Needs'!$H$44/148.735061895476) -> 0
C27: =title118 -> Installation
C28: Connection and earthing | D28: USD/kW | E28: 27.14285714 | F28: =($E$28*F7) -> 271.4285714 | G28: =($E$28*G7) -> 1085.714286 | H28: =($E$28*H7) -> 2714.285714
E29: =title102 -> Subtotal | F29: =SUM(F28)*('Data Entry Needs'!$H$44/148.735061895476) -> 0 | G29: =SUM(G28)*('Data Entry Needs'!$H$44/148.735061895476) -> 0 | H29: =SUM(H28)*('Data Entry Needs'!$H$44/148.735061895476) -> 0
C30: =title119 -> Distribution network
C31: Primary electricity cable | D31: USD/m | E31: 7.454 | F31: =+F$11*$E31 ->  | G31: =+G$11*$E31 ->  | H31: =+H$11*$E31 -> 
C32: Secondary cable, installation and meter | D32: USD/household | E32: 164 | F32: =+F$10*$E32 ->  | G32: =+G$10*$E32 ->  | H32: =+H$10*$E32 -> 
E33: =title102 -> Subtotal | F33: =SUM(F31:F32)*('Data Entry Needs'!$H$44/148.735061895476) ->  | G33: =SUM(G31:G32)*('Data Entry Needs'!$H$44/148.735061895476) ->  | H33: =SUM(H31:H32)*('Data Entry Needs'!$H$44/148.735061895476) -> 

Sheet COST(ADJUSTED)_OIL4 (hidden)
C3: =+UPPER("DETAILED INVESTEMET OF SVO+RURAL ELECTRICITY AND/OR HEAT FROM "&'Data Entry Needs'!$F$9) -> DETAILED INVESTEMET OF SVO+RURAL ELECTRICITY AND/OR HEAT FROM PLEASE SELECT
F6: =title97 -> Capacities (kW of power generation)
F7: 10 | G7: 40 | H7: 100
D8: =title20 -> Feedstock | E8: t/year | F8: =+COST_OIL4!G36 ->  | G8: =+COST_OIL4!I36 ->  | H8: =+COST_OIL4!K36 -> 
D9: Operating period | E9: h/year | F9: =+COST_OIL4!H31 -> 0 | G9: =+COST_OIL4!J31 -> 0 | H9: =+COST_OIL4!L31 -> 0
D10: Households | E10: Household | F10: =+COST_OIL4!G90/('Energy Demand'!$F$8*12) ->  | G10: =+COST_OIL4!I90/('Energy Demand'!$F$8*12) ->  | H10: =+COST_OIL4!K90/('Energy Demand'!$F$8*12) -> 
C11: Estimated distance covered (m) | D11: m/household | E11: 10 | F11: =+F10*$E$11 ->  | G11: =+G10*$E$11 ->  | H11: =+H10*$E$11 -> 
C13: Pretreatment
C14: Connection and earthing | D14: % | E14: =+VLOOKUP('Data Entry Needs'!$G$9,dummy_database!$G$4:$N$9,8,FALSE) ->  | F14: =+$E$14*F23 ->  | G14: =+$E$14*G23 ->  | H14: =+$E$14*H23 -> 
E15: =title102 -> Subtotal | F15: =SUM(F14)*('Data Entry Needs'!$H$44/148.735061895476) ->  | G15: =SUM(G14)*('Data Entry Needs'!$H$44/148.735061895476) ->  | H15: =SUM(H14)*('Data Entry Needs'!$H$44/148.735061895476) -> 
C16: =title116 -> Equipments
C17: Oilseed Press | D17: USDh/kg | E17: 33.3 | F17: =+F$8*1000*$E17/F$9 ->  | G17: =+G$8*1000*$E17/G$9 -> 
C18: Dehulling | D18: USDh/kg | E18: 27.5 | F18: =+F$8*1000*$E18/F$9 -> 
C19: Filtrat | D19: USDh/kg | E19: 23.75 | F19: =+F$8*1000*$E19/F$9 -> 
C20: Engine | D20: USD/kW | E20: 171.43 | F20: =+F$7*$E20 -> 1714.3 | G20: =+G$7*$E20 -> 6857.2 | H20: 17143
C21: Generator | D21: USD/kW | E21: 184 | F21: =+F$7*$E21 -> 1840 | G21: 7360 | H21: 18400
C22: Adaptation to SVO | D22: USD/kW | E22: 41.5 | F22: =+F$7*$E22 -> 415 | G22: 1660 | H22: 4150
E23: =title102 -> Subtotal | F23: =SUM(F17:F22)*('Data Entry Needs'!$H$44/148.735061895476) ->  | G23: =SUM(G17:G22)*('Data Entry Needs'!$H$44/148.735061895476) ->  | H23: =SUM(H17:H22)*('Data Entry Needs'!$H$44/148.735061895476) -> 
C24: =title117 -> Building
C25: Civil work (Building, generator platform etc.) | D25: USD/kW | F25: =19.656* F7+ 1713.4 -> 1909.96 | G25: =19.656* G7+ 1713.4 -> 2499.64 | H25: =19.656* H7+ 1713.4 -> 3679
E26: =title102 -> Subtotal | F26: =SUM(F25)*('Data Entry Needs'!$H$44/148.735061895476) -> 0 | G26: =SUM(G25)*('Data Entry Needs'!$H$44/148.735061895476) -> 0 | H26: =SUM(H25)*('Data Entry Needs'!$H$44/148.735061895476) -> 0
C27: =title118 -> Installation
C28: Connection and earthing | D28: USD/kW | E28: 27.14285714 | F28: =($E$28*F7) -> 271.4285714 | G28: =($E$28*G7) -> 1085.714286 | H28: =($E$28*H7) -> 2714.285714
E29: =title102 -> Subtotal | F29: =SUM(F28)*('Data Entry Needs'!$H$44/148.735061895476) -> 0 | G29: =SUM(G28)*('Data Entry Needs'!$H$44/148.735061895476) -> 0 | H29: =SUM(H28)*('Data Entry Needs'!$H$44/148.735061895476) -> 0
C30: =title119 -> Distribution network
C31: Primary electricity cable | D31: USD/m | E31: 7.454 | F31: =+F$11*$E31 ->  | G31: =+G$11*$E31 ->  | H31: =+H$11*$E31 -> 
C32: Secondary cable, installation and meter | D32: USD/household | E32: 164 | F32: =+F$10*$E32 ->  | G32: =+G$10*$E32 ->  | H32: =+H$10*$E32 -> 
E33: =title102 -> Subtotal | F33: =SUM(F31:F32)*('Data Entry Needs'!$H$44/148.735061895476) ->  | G33: =SUM(G31:G32)*('Data Entry Needs'!$H$44/148.735061895476) ->  | H33: =SUM(H31:H32)*('Data Entry Needs'!$H$44/148.735061895476) -> 

Sheet COST_OIL2
C3: =+UPPER(title72&" "&'Data Entry Needs'!$E$9) -> PROCESSING COSTS FOR SVO + RURAL ELECTRIFICATION FROM PLEASE SELECT
C6: =title17 -> Use white cells to input data | E6: =title18 -> Grey cells are used for calculations
C8: =title73 -> Summary of Feedstock and Storage | G8: =title74 -> Summary of Operational Parameters | K8: =PROPER(title54) -> Financial Parameters
C10: =title75 -> Feedstock available (t/year) | E10: =+'Data Entry Needs'!$E$10 -> 0 | G10: =title76 -> Capacity utilization factor | I10: =H31/8760 -> 0 | K10: =title55&" (%)" -> Discount rate (%) | N10: =+'Data Entry Needs'!$D$43 -> 0
C11: =title25 -> Feedstock storage cost (USD/t) | E11: =+'Data Entry Needs'!$E$14 -> 0 | G11: =title77 -> Calorific value (kWh/kg oil) | I11: =+VLOOKUP('Data Entry Needs'!$E$9,dummy_database!$G$2:$J$12,3,FALSE)/3.6 ->  | K11: =title70 -> Inflation rate | N11: =+'Data Entry Needs'!$D$47 -> 0
C12: =title22 -> Feedstock yield (t/ha) | E12: =+'Data Entry Needs'!$E$11 -> 0 | G12: =title78 -> Oil extraction efficiency | I12: =+VLOOKUP('Data Entry Needs'!$E$9,dummy_database!$G$4:$L$9,6,FALSE) ->  | K12: =title57&" (%)" -> Loan interest rate (%) | N12: =+'Data Entry Needs'!$D$45 -> 0
C13: =title23 -> Oil content (%) | E13: =+'Data Entry Needs'!$E$12 ->  | G13: =title79 -> Residual oil in cake/meal | I13: =+VLOOKUP('Data Entry Needs'!$E$9,dummy_database!$G$4:$M$9,7,FALSE) ->  | K13: =title56&" (%)" -> Loan ratio (%) | N13: =+'Data Entry Needs'!$D$44 -> 0
C14: =+IF(VLOOKUP('Data Entry Needs'!$E$9,dummy_database!$G$2:$K$13,5,FALSE)=title148,'Data Entry Needs'!$E$9&title149,"") ->  | G14: =title80 -> Engine efficiency (%) | K14: =title71 -> Loan term (years) | N14: =+'Data Entry Needs'!$D$46 -> 0
G15: =title81 -> Operating hours per day | K15: =+IF('Data Entry Needs'!$AA$80=1,'Data Entry Needs'!$C$20,'Data Entry Needs'!$C$24) -> Comparative production cost of electricity | N15: =+'Data Entry Needs'!$AB$80 -> 0
G16: =title82 -> Power loss in distribution network
G17: =title83 -> Power loss due to operation (%)
C20: =title85 -> Transport Distance of Feedstock | F20: =title88 -> Transport Quantity | I20: =title85 -> Transport Distance of Feedstock | L20: =title88 -> Transport Quantity
C22: =title86 -> Distance small scale production (km) | F22: =title89 -> Small scale (t/year) | H22: =+$G$36 ->  | I22: =title91 -> Distance large scale production (km) | L22: =title93 -> Large scale (t/year) | N22: =+$K$36 -> 
C23: =title87 -> Distance medium scale production (km) | F23: =title90 -> Medium scale (t/year) | H23: =+$I$36 ->  | I23: =title92 -> Transportation cost (USD/t/km) | N23: =$F$49 -> 0
C27: =title96 -> Production Cost Details
G29: =title97 -> Capacities (kW of power generation)
G30: 10 | I30: 40 | K30: 100
G31: =title98 -> Operating hours per year | H31: =$I$15*365 -> 0 | I31: =title98 -> Operating hours per year | J31: =$I$15*365 -> 0 | K31: =title98 -> Operating hours per year | L31: =$I$15*365 -> 0
D34: =title99 -> Inputs | E34: =title39 -> Unit | F34: =title103 -> Unit Price | G34: =title105 -> Quantity | H34: Total | I34: =title105 -> Quantity | J34: Total | K34: =title105 -> Quantity | L34: Total
F35: =title104 -> (USD/unit) | G35: =title106 -> (Unit/year) | H35: =title107 -> (USD/year) | I35: =title106 -> (Unit/year) | J35: =title107 -> (USD/year) | K35: =title106 -> (Unit/year) | L35: =title107 -> (USD/year)
D36: =title100 -> Feedstock (Oilseed) | E36: t | F36: =+'Data Entry Needs'!$E$13 -> 0 | G36: =+(G30/($I$14*$I$11)/($I$12*$E$13))*(H31/1000)/(1-$I$17) ->  | H36: =+G36*$F36 ->  | I36: =+(I30/($I$14*$I$11)/($I$12*$E$13))*(J31/1000)/(1-$I$17) ->  | J36: =+I36*$F36 ->  | K36: =+(K30/($I$14*$I$11)/($I$12*$E$13))*(L31/1000)/(1-$I$17) ->  | L36: =+K36*$F36 -> 
D37: =title101 -> Diesel for start up | E37: litre | F37: =+'Data Entry Needs'!D$33 -> 0 | G37: =+G30*0.5*365/(10.7*$I$14) ->  | H37: =+G37*$F37 ->  | I37: =+I30*0.5*365/(10.7*$I$14) ->  | J37: =+I37*$F37 ->  | K37: =+K30*0.5*365/(10.7*$I$14) ->  | L37: =+K37*$F37 -> 
D38: =title102 -> Subtotal | H38: =SUM(H36:H37) ->  | J38: =SUM(J36:J37) ->  | L38: =SUM(L36:L37) -> 
D40: =title108 -> Labour and Miscellaneous Cost | E40: =title39 -> Unit | F40: =title103 -> Unit Price | G40: =title105 -> Quantity | H40: Total | I40: =title105 -> Quantity | J40: Total | K40: =title105 -> Quantity | L40: Total
F41: =title111 -> (USD/person/h) | G41: ="("&title39&")" -> (Unit) | H41: =title107 -> (USD/year) | I41: ="("&title39&")" -> (Unit) | J41: =title107 -> (USD/year) | K41: ="("&title39&")" -> (Unit) | L41: =title107 -> (USD/year)
D42: =title46 -> Unskilled worker | E42: =title110 -> # employee | F42: =+'Data Entry Needs'!$D$30 -> 0 | G42: =+ROUNDUP(0.17*G30,0) -> 2 | H42: =+F42*G42*H31 -> 0 | I42: =+ROUNDUP(0.17*I30,0) -> 7 | J42: =+$F42*I42*$H$31 -> 0 | K42: =+ROUNDUP(0.17*K30,0) -> 17 | L42: =+$F42*K42*$H$31 -> 0
D43: =title61 -> Skilled worker | E43: =title110 -> # employee | F43: =+'Data Entry Needs'!H$30 -> 0 | G43: =+ROUND(G42/4,0) -> 1 | H43: =+F43*G43*H31 -> 0 | I43: =+ROUND(I42/4,0) -> 2 | J43: =+$F43*I43*$H$31 -> 0 | K43: =+ROUND(K42/4,0) -> 4 | L43: =+$F43*K43*$H$31 -> 0
D44: =title109 -> Miscellaneous cost | G44: =+'Data Entry Needs'!$H$40 -> 0 | H44: =+G44*SUM(H42:H43) -> 0 | I44: =+G44 -> 0 | J44: =+I44*SUM(J42:J43) -> 0 | K44: =+I44 -> 0 | L44: =+K44*SUM(L42:L43) -> 0
D45: =title102 -> Subtotal | G45: =+G42+G43 -> 3 | H45: =+H42+H43+H44 -> 0 | I45: =+I42+I43 -> 9 | J45: =+J42+J43+J44 -> 0 | K45: =+K42+K43 -> 21 | L45: =+L42+L43+L44 -> 0
D47: =title112 -> Transport of Feedstock | E47: =title39 -> Unit | F47: =title103 -> Unit Price | G47: =title105 -> Quantity | H47: Total | I47: =title105 -> Quantity | J47: Total | K47: =title105 -> Quantity | L47: Total
F48: (USD/t/km) | G48: ="("&title39&")" -> (Unit) | H48: =title107 -> (USD/year) | I48: ="("&title39&")" -> (Unit) | J48: =title107 -> (USD/year) | K48: ="("&title39&")" -> (Unit) | L48: =title107 -> (USD/year)
D49: =title113 -> Feedstock (farm to plant) | E49: km | F49: =+'Data Entry Needs'!$D$36 -> 0 | G49: =+$E$22 -> 0 | H49: =+G49*F49*G36 ->  | I49: =+$E$23 -> 0 | J49: =+I49*$F49*I$36 ->  | K49: =+$K$22 -> 0 | L49: =+K49*$F49*K$36 -> 
D50: =title102 -> Subtotal | H50: =+H49 ->  | J50: =+J49 ->  | L50: =+L49 -> 
D52: =title114 -> Storage | E52: =title39 -> Unit | F52: =title103 -> Unit Price | G52: =title105 -> Quantity | H52: Total | I52: =title105 -> Quantity | J52: Total | K52: =title105 -> Quantity | L52: Total
F53: USD/t | G53: ="("&title39&")" -> (Unit) | H53: =title107 -> (USD/year) | I53: ="("&title39&")" -> (Unit) | J53: =title107 -> (USD/year) | K53: ="("&title39&")" -> (Unit) | L53: =title107 -> (USD/year)
D54: =title20 -> Feedstock | E54: t | F54: =+$E$11 -> 0 | G54: =+STORAGE_OIL2!$F$38 ->  | H54: =+F54*G54 ->  | I54: =+STORAGE_OIL2!$I$38 ->  | J54: =I54*F54 ->  | K54: =+STORAGE_OIL2!$L$38 ->  | L54: =F54*K54 -> 
D55: =title102 -> Subtotal | H55: =SUM(H54) ->  | J55: =SUM(J54) ->  | L55: =SUM(L54) -> 
D57: =title115 -> Investment | E57: =title39 -> Unit | F57: Years | G57: Total | H57: =title121 -> Depreciation | I57: Total | J57: =title121 -> Depreciation | K57: Total | L57: =title121 -> Depreciation
G58: (USD) | H58: =title107 -> (USD/year) | I58: (USD) | J58: =title107 -> (USD/year) | K58: (USD) | L58: =title107 -> (USD/year)
D59: =title116 -> Equipments | E59: USD | F59: 20 | G59: =+'COST(ADJUSTED)_OIL2'!F23*(1+'Data Entry Needs'!$AB$88) ->  | H59: =+G59/F59 ->  | I59: =+'COST(ADJUSTED)_OIL2'!G23*(1+'Data Entry Needs'!$AB$88) ->  | J59: =+I59/F59 ->  | K59: =+'COST(ADJUSTED)_OIL2'!H23*(1+'Data Entry Needs'!$AB$88) ->  | L59: =+K59/F59 -> 
D60: =title117 -> Building | E60: USD | F60: 20 | G60: =+'COST(ADJUSTED)_OIL2'!F26*(1+'Data Entry Needs'!$AB$88) -> 0 | H60: =+G60/F60 -> 0 | I60: =+'COST(ADJUSTED)_OIL2'!G26*(1+'Data Entry Needs'!$AB$88) -> 0 | J60: =+I60/F60 -> 0 | K60: =+'COST(ADJUSTED)_OIL2'!H26*(1+'Data Entry Needs'!$AB$88) -> 0 | L60: =+K60/F60 -> 0
D61: =title118 -> Installation | E61: USD | F61: 20 | G61: =+'COST(ADJUSTED)_OIL2'!F29*(1+'Data Entry Needs'!$AB$88) -> 0 | H61: =+G61/F61 -> 0 | I61: =+'COST(ADJUSTED)_OIL2'!G29*(1+'Data Entry Needs'!$AB$88) -> 0 | J61: =+I61/F61 -> 0 | K61: =+'COST(ADJUSTED)_OIL2'!H29*(1+'Data Entry Needs'!$AB$88) -> 0 | L61: =+K61/F61 -> 0
D62: =title119 -> Distribution network | E62: USD | F62: 20 | G62: =+'COST(ADJUSTED)_OIL2'!F33*(1+'Data Entry Needs'!$AB$88) ->  | H62: =+G62/F62 ->  | I62: =+'COST(ADJUSTED)_OIL2'!G33*(1+'Data Entry Needs'!$AB$88) ->  | J62: =+I62/F62 ->  | K62: =+'COST(ADJUSTED)_OIL2'!H33*(1+'Data Entry Needs'!$AB$88) ->  | L62: =+K62/F62 -> 
D63: =title120 -> Total investment | G63: =SUM(G59:G62) ->  | I63: =SUM(I59:I62) ->  | K63: =SUM(K59:K62) -> 
G64: =title122 -> Total depreciation | H64: =SUM(H59:H63) ->  | I64: =title122 -> Total depreciation | J64: =SUM(J59:J63) ->  | K64: =title122 -> Total depreciation | L64: =SUM(L59:L63) -> 
D65: =title123 -> Maintenance cost | F65: =+'Data Entry Needs'!$H$39 -> 0 | H65: =+F65*H64 ->  | J65: =+F65*$J$64 ->  | L65: =+$F$65*L64 -> 
D66: =title102 -> Subtotal | H66: =SUM(H64:H65) ->  | J66: =SUM(J64:J65) ->  | L66: =SUM(L64:L65) -> 
D68: =title51 -> Other costs | E68: =title39 -> Unit | F68: Rate (%) | H68: Total | J68: Total | L68: Total
H69: =title107 -> (USD/year) | J69: =title107 -> (USD/year) | L69: =title107 -> (USD/year)
D70: =title124 -> Plant overhead | E70: USD | F70: =+'Data Entry Needs'!$D$40 -> 0 | H70: =+(H42+H43+H65)*$F$70 ->  | J70: =+(J42+J43+J65)*$F$70 ->  | L70: =+(L42+L43+L65)*$F$70 -> 
D71: =title125 -> General and administrative cost | E71: USD | F71: =+'Data Entry Needs'!$D$39 -> 0 | H71: =+(H38+H45+H70+H65)*$F$71 ->  | J71: =+(J38+J45+J70+J65)*$F$71 ->  | L71: =+(L38+L45+L70+L65)*$F$71 -> 
D72: =title126 -> Loan interest | E72: USD | F72: =+$P$166 -> 0 | H72: =-FA10kW_OIL2!G90 ->  | J72: =-FA40kW_OIL2!G90 ->  | L72: =-FA100kW_OIL2!G90 -> 
D73: =title127 -> Income tax | E73: USD | F73: =+'Data Entry Needs'!$H$48 -> 0 | H73: =-FA10kW_OIL2!C97 ->  | J73: =-FA40kW_OIL2!C97 ->  | L73: =-FA100kW_OIL2!C97 -> 
D74: =title102 -> Subtotal | H74: =SUM(H70:H72) ->  | J74: =SUM(J70:J72) ->  | L74: =SUM(L70:L72) -> 
G76: Total | H76: =title132 -> Share (%) | I76: Total | J76: =title132 -> Share (%) | K76: Total | L76: =title132 -> Share (%)
G77: =title107 -> (USD/year) | I77: =title107 -> (USD/year) | K77: =title107 -> (USD/year)
D78: =title128 -> Total operating costs | G78: =+H38+H45+H50+H55 ->  | H78: =+G78/$G$81 ->  | I78: =+J38+J45+J50+J55 ->  | J78: =+I78/$I$81 ->  | K78: =+L38+L45+L50+L55 ->  | L78: =+K78/$K$81 -> 
D79: =title129 -> Total fixed costs | G79: =+H66 ->  | H79: =+G79/$G$81 ->  | I79: =+J66 ->  | J79: =+I79/$I$81 ->  | K79: =+L66 ->  | L79: =+K79/$K$81 -> 
D80: =title130 -> Total other costs | G80: =+H74 ->  | H80: =+G80/$G$81 ->  | I80: =+J74 ->  | J80: =+I80/$I$81 ->  | K80: =+L74 ->  | L80: =+K80/$K$81 -> 
D81: =title131 -> Total production costs | G81: =SUM(G78:G80) ->  | I81: =SUM(I78:I80) ->  | K81: =SUM(K78:K80) -> 
C83: =title133 -> Power generation
E85: =title39 -> Unit | G85: =title105 -> Quantity | I85: =title105 -> Quantity | K85: =title105 -> Quantity
G86: ="("&title39&")" -> (Unit) | I86: ="("&title39&")" -> (Unit) | K86: ="("&title39&")" -> (Unit)
D87: =title133 -> Power generation | E87: =title135 -> kWh/year | G87: =+G30*H31*(1-$I$17) -> 0 | I87: =+I30*J31*(1-$I$17) -> 0 | K87: =+K30*L31*(1-$I$17) -> 0
D88: =title134 -> Electricity-self use | E88: =title135 -> kWh/year | G88: =-G87*10% -> 0 | I88: =-I87*10% -> 0 | K88: =-K87*10% -> 0
D89: =title82 -> Power loss in distribution network | E89: =title135 -> kWh/year | G89: =-G87*$I$16 -> 0 | I89: =-I87*$I$16 -> 0 | K89: =-K87*$I$16 -> 0
D90: =title102 -> Subtotal | G90: =SUM(G87:H89) -> 0 | I90: =SUM(I87:J89) -> 0 | K90: =SUM(K87:L89) -> 0
C92: =title136 -> Total Production Cost+Distribution
G94: =$G$29 -> Capacities (kW of power generation)
G95: =+G30 -> 10 | I95: =+I30 -> 40 | K95: =+K30 -> 100
D96: =title137 -> Unit cost of electricity (USD/kWh) | G96: =G81/G90 ->  | I96: =I81/I90 ->  | K96: =K81/K90 -> 
D98: =title142 -> Average loan interest | E98: =title39 -> Unit | F98: =title56&" (%)" -> Loan ratio (%) | G98: =title120 -> Total investment | H98: =title138 -> Loan amount | I98: =title120 -> Total investment | J98: =title138 -> Loan amount | K98: =title120 -> Total investment | L98: =title138 -> Loan amount
G99: (USD) | H99: (USD) | I99: (USD) | J99: (USD) | K99: (USD) | L99: (USD)
D100: =title138 -> Loan amount | E100: USD | F100: =+$N$13 -> 0 | G100: =G63 ->  | H100: =$F$100*G100 ->  | I100: =I63 ->  | J100: =$F$100*I100 ->  | K100: =K63 ->  | L100: =$F$100*K100 -> 
D101: =title57 -> Loan interest rate | E101: % | H101: =+$N$12 -> 0 | J101: =+$H$101 -> 0 | L101: =+$J$101 -> 0
D102: =title139 -> Loan payment | E102: =title143 -> USD/month | H102: =PMT(H101/12,H104*12,H100,0) ->  | J102: =PMT(J101/12,J104*12,J100,0) ->  | L102: =PMT(L101/12,L104*12,L100,0) -> 
D103: =title140 -> Annual loan payment | E103: =title144 -> USD/year | H103: =H102*12 ->  | J103: =J102*12 ->  | L103: =L102*12 -> 
D104: =title58 -> Loan terms | E104: =title60 -> year | H104: =+$N$14 -> 0 | J104: =+H104 -> 0 | L104: =+J104 -> 0
D105: =title141 -> Total loan payment | E105: USD | H105: =H103*H104 ->  | J105: =J103*J104 ->  | L105: =L103*L104 -> 
D106: =title126 -> Loan interest | E106: USD | H106: =H105+H100 ->  | J106: =J105+J100 ->  | L106: =L105+L100 -> 
D107: =title142 -> Average loan interest | E107: =title144 -> USD/year | H107: =H106/$F$59 ->  | J107: =J106/$F$59 ->  | L107: =L106/$F$59 -> 
M165: Annual change in labor cost (%) | P165: =+'Data Entry Needs'!$AB$87 -> 0
M166: Annual change in raw material cost (%) | P166: =+'Data Entry Needs'!$AB$86 -> 0
M167: Annual change in elctricity price (%) | P167: =+'Data Entry Needs'!$AB$89 -> 0

Sheet FA10kW_OIL2 (hidden)
B2: =title197 -> FINANCIAL EVALUATION OF SVO + RURAL ELECTRIFICATION 10 kW PROJECT
A5: =title198 -> Revenues of SVO and power generation system
B7: =title199 -> Operating Year | C7: 0 | D7: 1 | E7: 2 | F7: 3 | G7: 4 | H7: 5 | I7: 6 | J7: 7 | K7: 8 | L7: 9 | M7: 10 | N7: 11 | O7: 12 | P7: 13 | Q7: 14 | R7: 15 | S7: 16 | T7: 17 | U7: 18 | V7: 19 | W7: 20
B9: =title200 -> Power generation capacity (kW) | C9: =+COST_OIL2!$G$30 -> 10 | D9: =C9 -> 10 | E9: =D9 -> 10 | F9: 10 | G9: 10 | H9: 10 | I9: 10 | J9: 10 | K9: 10 | L9: 10 | M9: 10 | N9: 10 | O9: 10 | P9: 10 | Q9: 10 | R9: 10 | S9: 10 | T9: 10 | U9: 10 | V9: 10 | W9: 10
B12: Power loss due to operation (%) | C12: =+COST_OIL2!$I$17 -> 0 | D12: =+C12 -> 0 | E12: =+D12 -> 0 | F12: 0 | G12: 0 | H12: 0 | I12: 0 | J12: 0 | K12: 0 | L12: 0 | M12: 0 | N12: 0 | O12: 0 | P12: 0 | Q12: 0 | R12: 0 | S12: 0 | T12: 0 | U12: 0 | V12: 0 | W12: 0
B14: Operating hours per year | C14: =+COST_OIL2!$H$31 -> 0 | D14: =C14 -> 0 | E14: =D14 -> 0 | F14: 0 | G14: 0 | H14: 0 | I14: 0 | J14: 0 | K14: 0 | L14: 0 | M14: 0 | N14: 0 | O14: 0 | P14: 0 | Q14: 0 | R14: 0 | S14: 0 | T14: 0 | U14: 0 | V14: 0 | W14: 0
B15: Capacity utilization factor | C15: =C14/8760 -> 0 | D15: =D14/8760 -> 0 | E15: 0 | F15: 0 | G15: 0 | H15: 0 | I15: 0 | J15: 0 | K15: 0 | L15: 0 | M15: 0 | N15: 0 | O15: 0 | P15: 0 | Q15: 0 | R15: 0 | S15: 0 | T15: 0 | U15: 0 | V15: 0 | W15: 0
B17: =title201 -> Electricity generation (kWh per year) | C17: =C9*C14*(1-C12) -> 0 | D17: 0 | E17: 0 | F17: 0 | G17: 0 | H17: 0 | I17: 0 | J17: 0 | K17: 0 | L17: 0 | M17: 0 | N17: 0 | O17: 0 | P17: 0 | Q17: 0 | R17: 0 | S17: 0 | T17: 0 | U17: 0 | V17: 0 | W17: 0
B18: =title202 -> Electricity - self use (kWh per year) | C18: =C17*10% -> 0 | D18: =D17*10% -> 0 | E18: 0 | F18: 0 | G18: 0 | H18: 0 | I18: 0 | J18: 0 | K18: 0 | L18: 0 | M18: 0 | N18: 0 | O18: 0 | P18: 0 | Q18: 0 | R18: 0 | S18: 0 | T18: 0 | U18: 0 | V18: 0 | W18: 0
B19: =title82&" "&title84 -> Power loss in distribution network (kWh per year) | C19: =C17*COST_OIL2!$I$16 -> 0 | D19: =C19 -> 0 | E19: =D19 -> 0 | F19: 0 | G19: 0 | H19: 0 | I19: 0 | J19: 0 | K19: 0 | L19: 0 | M19: 0 | N19: 0 | O19: 0 | P19: 0 | Q19: 0 | R19: 0 | S19: 0 | T19: 0 | U19: 0 | V19: 0 | W19: 0
B20: =title203 -> Total power sold to customers (kWh/year) | C20: =C17-C18-C19 -> 0 | D20: =D17-D18-D19 -> 0 | E20: 0 | F20: 0 | G20: 0 | H20: 0 | I20: 0 | J20: 0 | K20: 0 | L20: 0 | M20: 0 | N20: 0 | O20: 0 | P20: 0 | Q20: 0 | R20: 0 | S20: 0 | T20: 0 | U20: 0 | V20: 0 | W20: 0
B22: =title204 -> Revenue from meal by-product (USD/year) | C22: =+IF('Energy Demand'!$C$31="",0,'Energy Demand'!$H$31) ->  | D22: =+C22 ->  | E22: =+D22 -> 
B23: =title205 -> Price of electricity (USD/kWh) | C23: =+COST_OIL2!$N$15 -> 0 | D23: =C23*(1+D24) -> 0 | E23: =D23*(1+E24) -> 0 | F23: =E23*(1+F24) -> 0 | G23: 0 | H23: 0 | I23: 0 | J23: 0 | K23: 0 | L23: 0 | M23: 0 | N23: 0 | O23: 0 | P23: 0 | Q23: 0 | R23: 0 | S23: 0 | T23: 0 | U23: 0 | V23: 0 | W23: 0
B24: =title206 -> Increasing rate of price of electricity (%) | C24: =+COST_OIL2!$P$167 -> 0 | D24: =C24 -> 0 | E24: =D24 -> 0 | F24: 0 | G24: 0 | H24: 0 | I24: 0 | J24: 0 | K24: 0 | L24: 0 | M24: 0 | N24: 0 | O24: 0 | P24: 0 | Q24: 0 | R24: 0 | S24: 0 | T24: 0 | U24: 0 | V24: 0 | W24: 0
B25: =title207 -> Total income (USD/year) | C25: =C20*C23+C22 ->  | D25: =D20*D23+D22 -> 
B28: =title208 -> Project lifetime (years) | C28: 20
B29: =title209 -> Lifespan of civil work (years) | C29: =20 -> 20
B30: =title210 -> Lifespan of the system (years) | C30: =20 -> 20
B31: =title211 -> Lifespan of engine generator system (years) | C31: =20 -> 20
B32: =title212 -> Lifespan of electrical distribution system (years) | C32: =20 -> 20
A35: =title213 -> Capital and operating cost
B37: =title199 -> Operating Year | C37: =title217 -> Appraisal | D37: 1 | E37: 2 | F37: 3 | G37: 4 | H37: 5 | I37: 6 | J37: 7 | K37: 8 | L37: 9 | M37: 10 | N37: 11 | O37: 12 | P37: 13 | Q37: 14 | R37: 15 | S37: 16 | T37: 17 | U37: 18 | V37: 19 | W37: 20
B38: =title214 -> Direct capital cost (USD)
B39: Equipments | C39: =COST_OIL2!G59 -> 
B40: Building | C40: =COST_OIL2!G60 -> 0
B41: Installation | C41: =COST_OIL2!G61 -> 0
B42: Distribution network | C42: =COST_OIL2!G62 -> 
B43: =title215 -> Total capital cost (USD) | C43: =SUM(C39:C42) ->  | D43: =D39+D40+D41 -> 0 | E43: 0 | F43: 0 | G43: 0 | H43: 0 | I43: 0 | J43: 0 | K43: 0 | L43: 0 | M43: 0 | N43: 0 | O43: 0 | P43: 0 | Q43: 0 | R43: 0 | S43: 0 | T43: 0 | U43: 0 | V43: 0 | W43: 0
B44: =title216 -> Capital cost (USD/kW) | C44: =C43/C9 -> 
B47: =title199 -> Operating Year | C47: =title217 -> Appraisal | D47: 1 | E47: 2 | F47: 3 | G47: 4 | H47: 5 | I47: 6 | J47: 7 | K47: 8 | L47: 9 | M47: 10 | N47: 11 | O47: 12 | P47: 13 | Q47: 14 | R47: 15 | S47: 16 | T47: 17 | U47: 18 | V47: 19 | W47: 20
B48: =title218 -> Annual operating and maintenance cost
B49: =title219 -> Sub-total material cost (USD) | C49: =C50+C58+C61 ->  | D49: =D50+D58+D61 -> 
B50: =title220 -> Biomass cost (USD/year) | C50: =C51*C52 ->  | D50: =D51*D52 ->  | E50: =E51*E52 -> 
B51: =title221 -> Biomass consumption (t per year) | C51: =+COST_OIL2!$G$36 ->  | D51: =+C51 ->  | E51: =+D51 -> 
B52: =title222 -> Biomass total price (USD/t) | C52: =SUM(C53:C54) -> 0 | D52: =SUM(D53:D54) -> 0 | E52: 0 | F52: 0 | G52: 0 | H52: 0 | I52: 0 | J52: 0 | K52: 0 | L52: 0 | M52: 0 | N52: 0 | O52: 0 | P52: 0 | Q52: 0 | R52: 0 | S52: 0 | T52: 0 | U52: 0 | V52: 0 | W52: 0
B53: =title223 -> Biomass price (USD/t) | C53: =+COST_OIL2!$F$36 -> 0 | D53: =C53*(1+D78+D79) -> 0 | E53: 0 | F53: 0 | G53: 0 | H53: 0 | I53: 0 | J53: 0 | K53: 0 | L53: 0 | M53: 0 | N53: 0 | O53: 0 | P53: 0 | Q53: 0 | R53: 0 | S53: 0 | T53: 0 | U53: 0 | V53: 0 | W53: 0
B54: =title224 -> Biomass transportation cost (USD/t) | C54: =+C55*C56 -> 0 | D54: =C54*(1+D78+D79) -> 0 | E54: 0 | F54: 0 | G54: 0 | H54: 0 | I54: 0 | J54: 0 | K54: 0 | L54: 0 | M54: 0 | N54: 0 | O54: 0 | P54: 0 | Q54: 0 | R54: 0 | S54: 0 | T54: 0 | U54: 0 | V54: 0 | W54: 0
B55: =title225 -> Biomass from farm to plant (USD/t/km) | C55: =+COST_OIL2!$F$49 -> 0
B56: =title226 -> Transportation distant (km) | C56: =+COST_OIL2!$E$22 -> 0
B58: =title227 -> Diesel cost (USD/year) | C58: =C59*C60 ->  | D58: =D59*D60 -> 
B59: =title228 -> Diesel/fuel oil consumption (litres per year) | C59: =+COST_OIL2!$G$37 ->  | D59: =+C59 ->  | E59: =+D59 -> 
B60: =title229 -> Diesel/fuel oil price (USD per litre) | C60: =+COST_OIL2!$F$37 -> 0 | D60: =C60*(1+D78+D79) -> 0 | E60: 0 | F60: 0 | G60: 0 | H60: 0 | I60: 0 | J60: 0 | K60: 0 | L60: 0 | M60: 0 | N60: 0 | O60: 0 | P60: 0 | Q60: 0 | R60: 0 | S60: 0 | T60: 0 | U60: 0 | V60: 0 | W60: 0
B61: =title230 -> Storage cost (USD/year) | C61: =+COST_OIL2!$H$55 ->  | D61: =+C61 ->  | E61: =+D61 -> 
B62: =title231 -> Sub-total operating cost (USD) | C62: =C63+C65+C66 ->  | D62: =D63+D65+D66 -> 
B63: =title232 -> Labour cost (USD) | C63: =COST_OIL2!H45 -> 0 | D63: =C63*(1+D64) -> 0 | E63: 0 | F63: 0 | G63: 0 | H63: 0 | I63: 0 | J63: 0 | K63: 0 | L63: 0 | M63: 0 | N63: 0 | O63: 0 | P63: 0 | Q63: 0 | R63: 0 | S63: 0 | T63: 0 | U63: 0 | V63: 0 | W63: 0
B64: =title233 -> Escalation rate of labour cost (%) | D64: =+COST_OIL2!$P$165 -> 0 | E64: =D64 -> 0 | F64: =E64 -> 0 | G64: 0 | H64: 0 | I64: 0 | J64: 0 | K64: 0 | L64: 0 | M64: 0 | N64: 0 | O64: 0 | P64: 0 | Q64: 0 | R64: 0 | S64: 0 | T64: 0 | U64: 0 | V64: 0 | W64: 0
B65: =title124 -> Plant overhead | C65: =COST_OIL2!H70 ->  | D65: =C65 ->  | E65: =D65 -> 
B66: =title125 -> General and administrative cost | C66: =COST_OIL2!H71 ->  | D66: =C66 -> 
B67: =title234 -> Sub-total maintenance cost (USD) | C67: =COST_OIL2!H65 ->  | D67: =C67 -> 
B69: =title235 -> Sub-total of annual fixed cost (USD) | C69: =COST_OIL2!H64 ->  | D69: =C69 ->  | E69: =D69 -> 
B71: =title236 -> Sub-total of storage cost (USD) | C71: =+COST_OIL2!H55 ->  | D71: =C71 ->  | E71: =D71 -> 
B73: =title237 -> Total operation and maintenance cost (USD) | C73: =C49+C62+C67+C69+C71 -> 
B74: =title238 -> Operation and maintenance cost (USD/kWh) without loan interest | C74: =C73/C20 -> 
A76: =title54 -> Financial parameters
B77: =title199 -> Operating Year | C77: =title217 -> Appraisal | D77: 1 | E77: 2 | F77: 3 | G77: 4 | H77: 5 | I77: 6 | J77: 7 | K77: 8 | L77: 9 | M77: 10 | N77: 11 | O77: 12 | P77: 13 | Q77: 14 | R77: 15 | S77: 16 | T77: 17 | U77: 18 | V77: 19 | W77: 20
B78: =title239 -> Raw material cost escalation rate (%) | D78: =+COST_OIL2!$P$166 -> 0 | E78: =D78 -> 0 | F78: =E78 -> 0 | G78: 0 | H78: 0 | I78: 0 | J78: 0 | K78: 0 | L78: 0 | M78: 0 | N78: 0 | O78: 0 | P78: 0 | Q78: 0 | R78: 0 | S78: 0 | T78: 0 | U78: 0 | V78: 0 | W78: 0
B79: Inflation rate (%) | D79: =+COST_OIL2!$N$11 -> 0 | E79: =D79 -> 0 | F79: 0 | G79: 0 | H79: 0 | I79: 0 | J79: 0 | K79: 0 | L79: 0 | M79: 0 | N79: 0 | O79: 0 | P79: 0 | Q79: 0 | R79: 0 | S79: 0 | T79: 0 | U79: 0 | V79: 0 | W79: 0
B80: Discount rate (%) | C80: =+COST_OIL2!$N$10 -> 0
B81: Loan ratio (%) | C81: =+COST_OIL2!$N$13 -> 0
B83: =title313 -> Loan | D83: 1 | E83: 2 | F83: 3 | G83: 4 | H83: 5 | I83: 6 | J83: 7 | K83: 8 | L83: 9 | M83: 10 | N83: 11 | O83: 12 | P83: 13 | Q83: 14 | R83: 15 | S83: 16 | T83: 17 | U83: 18 | V83: 19 | W83: 20
B84: =title138&" (USD)" -> Loan amount (USD) | C84: =C81*C43 -> 
B85: Loan interest rate (%) | C85: =+COST_OIL2!$N$12 -> 0
B86: Loan term (years) | C86: =+COST_OIL2!$N$14 -> 0
B87: =title314 -> Loan payment (USD/month) | C87: =(PMT(C85/12,(12*C86),C84)) -> 
B88: =title315 -> Loan payment (USD/year) | D88: =IF(D77<=$C$86,$C$87*12,0) -> 0 | E88: =IF(E77<=$C$86,$C$87*12,0) -> 0 | F88: 0 | G88: 0 | H88: 0 | I88: 0 | J88: 0 | K88: 0 | L88: 0 | M88: 0 | N88: 0 | O88: 0 | P88: 0 | Q88: 0 | R88: 0 | S88: 0 | T88: 0 | U88: 0 | V88: 0 | W88: 0
B89: =title141&" (USD)" -> Total loan payment (USD) | C89: =SUM(D88:W88) -> 0
B90: =title316 -> Loan interest payment (USD) | C90: =C89+C84 ->  | D90: =title322 -> Average loan interest payment for project lifetime | G90: =C90/C28 ->  | H90: =title323 -> USD per year
A92: =title317 -> Income tax analysis
B93: =title199 -> Operating Year | C93: =title217 -> Appraisal | D93: 1 | E93: 2 | F93: 3 | G93: 4 | H93: 5 | I93: 6 | J93: 7 | K93: 8 | L93: 9 | M93: 10 | N93: 11 | O93: 12 | P93: 13 | Q93: 14 | R93: 15 | S93: 16 | T93: 17 | U93: 18 | V93: 19 | W93: 20
B94: =title318 -> Effective income tax rate (%) | C94: =+COST_OIL2!$F$73 -> 0 | D94: =C94 -> 0 | E94: =D94 -> 0 | F94: 0 | G94: 0 | H94: 0 | I94: 0 | J94: 0 | K94: 0 | L94: 0 | M94: 0 | N94: 0 | O94: 0 | P94: 0 | Q94: 0 | R94: 0 | S94: 0 | T94: 0 | U94: 0 | V94: 0 | W94: 0
B95: =title319 -> Income tax | D95: =IF(D119<0,0,-D94*D119) -> 
B96: =title320 -> Total income tax (USD) | C96: =SUM(D95:W95) -> 
B97: =title321 -> Income tax payment (USD per year) | C97: =C96/$C$28 -> 
A99: Depreciation
B100: =title199 -> Operating Year | C100: =title217 -> Appraisal | D100: 1 | E100: 2 | F100: 3 | G100: 4 | H100: 5 | I100: 6 | J100: 7 | K100: 8 | L100: 9 | M100: 10 | N100: 11 | O100: 12 | P100: 13 | Q100: 14 | R100: 15 | S100: 16 | T100: 17 | U100: 18 | V100: 19 | W100: 20
B101: =title324 -> Depreciation method | C101: =title325 -> Straight-line
B102: Total depreciation (USD) | D102: =COST_OIL2!H64 ->  | E102: =D102 ->  | F102: =E102 -> 
A104: =title326 -> Base case project
A105: =title327 -> Summary of this project - before tax
B106: =title199 -> Operating Year | C106: =title217 -> Appraisal | D106: 1 | E106: 2 | F106: 3 | G106: 4 | H106: 5 | I106: 6 | J106: 7 | K106: 8 | L106: 9 | M106: 10 | N106: 11 | O106: 12 | P106: 13 | Q106: 14 | R106: 15 | S106: 16 | T106: 17 | U106: 18 | V106: 19 | W106: 20
B107: =title328 -> Total revenue (USD) | D107: =D25 ->  | E107: =E25 -> 
B108: =title215 -> Total capital cost (USD) | C108: =-(C43-C84) -> 
B109: =title329 -> Total operating and maintenance cost (USD) | D109: =-D73+D69 -> 
B110: =title139&" (USD)" -> Loan payment (USD) | D110: =D88 -> 0 | E110: =E88 -> 0 | F110: 0 | G110: 0 | H110: 0 | I110: 0 | J110: 0 | K110: 0 | L110: 0 | M110: 0 | N110: 0 | O110: 0 | P110: 0 | Q110: 0 | R110: 0 | S110: 0 | T110: 0 | U110: 0 | V110: 0 | W110: 0
B111: =title330 -> Cash flow - before tax (USD) | C111: =SUM(C107:C110) ->  | D111: =SUM(D107:D110) -> 
A113: =title331 -> Summary of this project - after tax
B114: =title199 -> Operating Year | C114: =title217 -> Appraisal | D114: 1 | E114: 2 | F114: 3 | G114: 4 | H114: 5 | I114: 6 | J114: 7 | K114: 8 | L114: 9 | M114: 10 | N114: 11 | O114: 12 | P114: 13 | Q114: 14 | R114: 15 | S114: 16 | T114: 17 | U114: 18 | V114: 19 | W114: 20
B115: =B107 -> Total revenue (USD) | C115: =C107 -> 0 | D115: =D107 ->  | E115: =E107 -> 
B116: =title329 -> Total operating and maintenance cost (USD) | D116: =-D73+D69 -> 
B117: =title139&" (USD)" -> Loan payment (USD) | D117: =D88 -> 0 | E117: =E88 -> 0 | F117: 0 | G117: 0 | H117: 0 | I117: 0 | J117: 0 | K117: 0 | L117: 0 | M117: 0 | N117: 0 | O117: 0 | P117: 0 | Q117: 0 | R117: 0 | S117: 0 | T117: 0 | U117: 0 | V117: 0 | W117: 0
B118: =title332 -> Depreciation of fixed cost (USD) | D118: =-D102 ->  | E118: =-E102 -> 
B119: =title333 -> Net Profit - before tax (USD) for income tax calculation | C119: =SUM(C115:C118) -> 0 | D119: =SUM(D115:D118) -> 
B120: =title319 -> Income tax | D120: =D95 ->  | E120: =E95 -> 
B121: =title334 -> Cash flow - after tax (USD) | C121: =C108 ->  | D121: =D111+D120 ->  | E121: =E111+E120 -> 
A123: =title335 -> Cumulative value of Net Profit
B124: =title199 -> Operating Year | C124: =title217 -> Appraisal | D124: 1 | E124: 2 | F124: 3 | G124: 4 | H124: 5 | I124: 6 | J124: 7 | K124: 8 | L124: 9 | M124: 10 | N124: 11 | O124: 12 | P124: 13 | Q124: 14 | R124: 15 | S124: 16 | T124: 17 | U124: 18 | V124: 19 | W124: 20
B125: =title337 -> Cumulative value of Net Profit - before tax | C125: =C111 ->  | D125: =C125+(D111) -> 
B126: =title338 -> Cumulative value of Net Profit - after tax | C126: =C121 ->  | D126: =C126+(D121) -> 
A128: =title336 -> Financial Analysis Result
B130: =title339 -> Net Present Value (NPV) (USD) - before tax | C130: =NPV(C80,D111:W111)+C111 -> 
B131: =title340 -> Internal Rate of Return (IRR) (%) - before tax | C131: =IF(C130<0,title353,IRR(C111:W111,0.001)) -> 
B132: =title341 -> Payback period (years) | C132: =title345 -> Please see Figure of the cumulative value of Net Profit - before tax
B135: =title342 -> Net Present Value (NPV) (USD) - after tax | C135: =NPV(C80,D121:W121)+C121 -> 
B136: =title343 -> Internal Rate of Return (IRR) (%) - after tax | C136: =IF(C135<0,title353,IRR(C121:W121,0.000001)) -> 
B137: =title341 -> Payback period (years) | C137: =title346 -> Please see Figure of the cumulative value of Net Profit - after tax
B138: =title344 -> Total income tax payment of project lifetime | C138: =SUM(D120:W120) -> 

Sheet FA40kW_OIL2 (hidden)
B2: =title347 -> FINANCIAL EVALUATION OF SVO + RURAL ELECTRIFICATION 40 kW PROJECT
A5: =title198 -> Revenues of SVO and power generation system
B7: =title199 -> Operating Year | C7: 0 | D7: 1 | E7: 2 | F7: 3 | G7: 4 | H7: 5 | I7: 6 | J7: 7 | K7: 8 | L7: 9 | M7: 10 | N7: 11 | O7: 12 | P7: 13 | Q7: 14 | R7: 15 | S7: 16 | T7: 17 | U7: 18 | V7: 19 | W7: 20
B9: =title200 -> Power generation capacity (kW) | C9: =COST_OIL2!$I$30 -> 40 | D9: =C9 -> 40 | E9: =D9 -> 40 | F9: 40 | G9: 40 | H9: 40 | I9: 40 | J9: 40 | K9: 40 | L9: 40 | M9: 40 | N9: 40 | O9: 40 | P9: 40 | Q9: 40 | R9: 40 | S9: 40 | T9: 40 | U9: 40 | V9: 40 | W9: 40
B12: Power loss due to operation (%) | C12: =+COST_OIL2!$I$17 -> 0 | D12: =+C12 -> 0 | E12: =+D12 -> 0 | F12: 0 | G12: 0 | H12: 0 | I12: 0 | J12: 0 | K12: 0 | L12: 0 | M12: 0 | N12: 0 | O12: 0 | P12: 0 | Q12: 0 | R12: 0 | S12: 0 | T12: 0 | U12: 0 | V12: 0 | W12: 0
B14: Operating hours per year | C14: =COST_OIL2!$J$31 -> 0 | D14: =C14 -> 0 | E14: =D14 -> 0 | F14: 0 | G14: 0 | H14: 0 | I14: 0 | J14: 0 | K14: 0 | L14: 0 | M14: 0 | N14: 0 | O14: 0 | P14: 0 | Q14: 0 | R14: 0 | S14: 0 | T14: 0 | U14: 0 | V14: 0 | W14: 0
B15: Capacity utilization factor | C15: =C14/8760 -> 0 | D15: =D14/8760 -> 0 | E15: 0 | F15: 0 | G15: 0 | H15: 0 | I15: 0 | J15: 0 | K15: 0 | L15: 0 | M15: 0 | N15: 0 | O15: 0 | P15: 0 | Q15: 0 | R15: 0 | S15: 0 | T15: 0 | U15: 0 | V15: 0 | W15: 0
B17: =title201 -> Electricity generation (kWh per year) | C17: =C9*C14*(1-C12) -> 0 | D17: 0 | E17: 0 | F17: 0 | G17: 0 | H17: 0 | I17: 0 | J17: 0 | K17: 0 | L17: 0 | M17: 0 | N17: 0 | O17: 0 | P17: 0 | Q17: 0 | R17: 0 | S17: 0 | T17: 0 | U17: 0 | V17: 0 | W17: 0
B18: =title202 -> Electricity - self use (kWh per year) | C18: =C17*10% -> 0 | D18: =D17*10% -> 0 | E18: 0 | F18: 0 | G18: 0 | H18: 0 | I18: 0 | J18: 0 | K18: 0 | L18: 0 | M18: 0 | N18: 0 | O18: 0 | P18: 0 | Q18: 0 | R18: 0 | S18: 0 | T18: 0 | U18: 0 | V18: 0 | W18: 0
B19: =title82&" "&title84 -> Power loss in distribution network (kWh per year) | C19: =C17*COST_OIL2!$I$16 -> 0 | D19: =C19 -> 0 | E19: =D19 -> 0 | F19: 0 | G19: 0 | H19: 0 | I19: 0 | J19: 0 | K19: 0 | L19: 0 | M19: 0 | N19: 0 | O19: 0 | P19: 0 | Q19: 0 | R19: 0 | S19: 0 | T19: 0 | U19: 0 | V19: 0 | W19: 0
B20: =title203 -> Total power sold to customers (kWh/year) | C20: =C17-C18-C19 -> 0 | D20: =D17-D18-D19 -> 0 | E20: 0 | F20: 0 | G20: 0 | H20: 0 | I20: 0 | J20: 0 | K20: 0 | L20: 0 | M20: 0 | N20: 0 | O20: 0 | P20: 0 | Q20: 0 | R20: 0 | S20: 0 | T20: 0 | U20: 0 | V20: 0 | W20: 0
B22: =title204 -> Revenue from meal by-product (USD/year) | C22: =+IF('Energy Demand'!$C$31="",0,'Energy Demand'!$J$31) ->  | D22: =+C22 ->  | E22: =+D22 -> 
B23: =title205 -> Price of electricity (USD/kWh) | C23: =+COST_OIL2!$N$15 -> 0 | D23: =C23*(1+D24) -> 0 | E23: =D23*(1+E24) -> 0 | F23: =E23*(1+F24) -> 0 | G23: 0 | H23: 0 | I23: 0 | J23: 0 | K23: 0 | L23: 0 | M23: 0 | N23: 0 | O23: 0 | P23: 0 | Q23: 0 | R23: 0 | S23: 0 | T23: 0 | U23: 0 | V23: 0 | W23: 0
B24: =title206 -> Increasing rate of price of electricity (%) | C24: =+COST_OIL2!$P$167 -> 0 | D24: =C24 -> 0 | E24: =D24 -> 0 | F24: 0 | G24: 0 | H24: 0 | I24: 0 | J24: 0 | K24: 0 | L24: 0 | M24: 0 | N24: 0 | O24: 0 | P24: 0 | Q24: 0 | R24: 0 | S24: 0 | T24: 0 | U24: 0 | V24: 0 | W24: 0
B25: =title207 -> Total income (USD/year) | C25: =C20*C23+C22 ->  | D25: =D20*D23+D22 -> 
B28: =title208 -> Project lifetime (years) | C28: 20
B29: =title209 -> Lifespan of civil work (years) | C29: =20 -> 20
B30: =title210 -> Lifespan of the system (years) | C30: =20 -> 20
B31: =title211 -> Lifespan of engine generator system (years) | C31: =20 -> 20
B32: =title212 -> Lifespan of electrical distribution system (years) | C32: =20 -> 20
A35: =title213 -> Capital and operating cost
B37: =title199 -> Operating Year | C37: =title217 -> Appraisal | D37: 1 | E37: 2 | F37: 3 | G37: 4 | H37: 5 | I37: 6 | J37: 7 | K37: 8 | L37: 9 | M37: 10 | N37: 11 | O37: 12 | P37: 13 | Q37: 14 | R37: 15 | S37: 16 | T37: 17 | U37: 18 | V37: 19 | W37: 20
B38: =title214 -> Direct capital cost (USD)
B39: Equipments | C39: =COST_OIL2!I59 -> 
B40: Building | C40: =COST_OIL2!I60 -> 0
B41: Installation | C41: =COST_OIL2!I61 -> 0
B42: Distribution network | C42: =COST_OIL2!I62 -> 
B43: =title215 -> Total capital cost (USD) | C43: =SUM(C39:C42) ->  | D43: =D39+D40+D41 -> 0 | E43: 0 | F43: 0 | G43: 0 | H43: 0 | I43: 0 | J43: 0 | K43: 0 | L43: 0 | M43: 0 | N43: 0 | O43: 0 | P43: 0 | Q43: 0 | R43: 0 | S43: 0 | T43: 0 | U43: 0 | V43: 0 | W43: 0
B44: =title216 -> Capital cost (USD/kW) | C44: =C43/C9 -> 
B47: =title199 -> Operating Year | C47: =title217 -> Appraisal | D47: 1 | E47: 2 | F47: 3 | G47: 4 | H47: 5 | I47: 6 | J47: 7 | K47: 8 | L47: 9 | M47: 10 | N47: 11 | O47: 12 | P47: 13 | Q47: 14 | R47: 15 | S47: 16 | T47: 17 | U47: 18 | V47: 19 | W47: 20
B48: =title218 -> Annual operating and maintenance cost
B49: =title219 -> Sub-total material cost (USD) | C49: =C50+C58+C61 ->  | D49: =D50+D58+D61 -> 
B50: =title220 -> Biomass cost (USD/year) | C50: =C51*C52 ->  | D50: =D51*D52 ->  | E50: =E51*E52 -> 
B51: =title221 -> Biomass consumption (t per year) | C51: =+COST_OIL2!$I$36 ->  | D51: =+C51 ->  | E51: =+D51 -> 
B52: =title222 -> Biomass total price (USD/t) | C52: =SUM(C53:C54) -> 0 | D52: =SUM(D53:D54) -> 0 | E52: 0 | F52: 0 | G52: 0 | H52: 0 | I52: 0 | J52: 0 | K52: 0 | L52: 0 | M52: 0 | N52: 0 | O52: 0 | P52: 0 | Q52: 0 | R52: 0 | S52: 0 | T52: 0 | U52: 0 | V52: 0 | W52: 0
B53: =title223 -> Biomass price (USD/t) | C53: =+COST_OIL2!$F$36 -> 0 | D53: =C53*(1+D78+D79) -> 0 | E53: 0 | F53: 0 | G53: 0 | H53: 0 | I53: 0 | J53: 0 | K53: 0 | L53: 0 | M53: 0 | N53: 0 | O53: 0 | P53: 0 | Q53: 0 | R53: 0 | S53: 0 | T53: 0 | U53: 0 | V53: 0 | W53: 0
B54: =title224 -> Biomass transportation cost (USD/t) | C54: =+C55*C56 -> 0 | D54: =C54*(1+D78+D79) -> 0 | E54: 0 | F54: 0 | G54: 0 | H54: 0 | I54: 0 | J54: 0 | K54: 0 | L54: 0 | M54: 0 | N54: 0 | O54: 0 | P54: 0 | Q54: 0 | R54: 0 | S54: 0 | T54: 0 | U54: 0 | V54: 0 | W54: 0
B55: =title225 -> Biomass from farm to plant (USD/t/km) | C55: =+COST_OIL2!$F$49 -> 0
B56: =title226 -> Transportation distant (km) | C56: =+COST_OIL2!$E$23 -> 0
B58: =title227 -> Diesel cost (USD/year) | C58: =C59*C60 ->  | D58: =D59*D60 -> 
B59: =title228 -> Diesel/fuel oil consumption (litres per year) | C59: =+COST_OIL2!$I$37 ->  | D59: =+C59 ->  | E59: =+D59 -> 
B60: =title229 -> Diesel/fuel oil price (USD per litre) | C60: =+COST_OIL2!$F$37 -> 0 | D60: =C60*(1+D78+D79) -> 0 | E60: 0 | F60: 0 | G60: 0 | H60: 0 | I60: 0 | J60: 0 | K60: 0 | L60: 0 | M60: 0 | N60: 0 | O60: 0 | P60: 0 | Q60: 0 | R60: 0 | S60: 0 | T60: 0 | U60: 0 | V60: 0 | W60: 0
B61: =title230 -> Storage cost (USD/year) | C61: =+COST_OIL2!$J$55 ->  | D61: =+C61 ->  | E61: =+D61 -> 
B62: =title231 -> Sub-total operating cost (USD) | C62: =C63+C65+C66 ->  | D62: =D63+D65+D66 -> 
B63: =title232 -> Labour cost (USD) | C63: =COST_OIL2!J45 -> 0 | D63: =C63*(1+D64) -> 0 | E63: 0 | F63: 0 | G63: 0 | H63: 0 | I63: 0 | J63: 0 | K63: 0 | L63: 0 | M63: 0 | N63: 0 | O63: 0 | P63: 0 | Q63: 0 | R63: 0 | S63: 0 | T63: 0 | U63: 0 | V63: 0 | W63: 0
B64: =title233 -> Escalation rate of labour cost (%) | D64: =+COST_OIL2!$P$165 -> 0 | E64: =D64 -> 0 | F64: 0 | G64: 0 | H64: 0 | I64: 0 | J64: 0 | K64: 0 | L64: 0 | M64: 0 | N64: 0 | O64: 0 | P64: 0 | Q64: 0 | R64: 0 | S64: 0 | T64: 0 | U64: 0 | V64: 0 | W64: 0
B65: =title124 -> Plant overhead | C65: =COST_OIL2!J70 ->  | D65: =C65 ->  | E65: =D65 ->  | U65: =T65 -> 
B66: =title125 -> General and administrative cost | C66: =COST_OIL2!J71 ->  | D66: =C66 -> 
B67: =title234 -> Sub-total maintenance cost (USD) | C67: =COST_OIL2!J65 ->  | D67: =C67 -> 
B69: =title235 -> Sub-total of annual fixed cost (USD) | C69: =COST_OIL2!J64 ->  | D69: =C69 ->  | E69: =D69 -> 
B71: =title236 -> Sub-total of storage cost (USD) | C71: =+COST_OIL2!J55 ->  | D71: =C71 ->  | E71: =D71 -> 
B73: =title237 -> Total operation and maintenance cost (USD) | C73: =C49+C62+C67+C69+C71 -> 
B74: =title238 -> Operation and maintenance cost (USD/kWh) without loan interest | C74: =C73/C20 -> 
A76: =title54 -> Financial parameters
B77: =title199 -> Operating Year | C77: =title217 -> Appraisal | D77: 1 | E77: 2 | F77: 3 | G77: 4 | H77: 5 | I77: 6 | J77: 7 | K77: 8 | L77: 9 | M77: 10 | N77: 11 | O77: 12 | P77: 13 | Q77: 14 | R77: 15 | S77: 16 | T77: 17 | U77: 18 | V77: 19 | W77: 20
B78: =title239 -> Raw material cost escalation rate (%) | D78: =+COST_OIL2!$P$166 -> 0 | E78: =D78 -> 0 | F78: =E78 -> 0 | G78: 0 | H78: 0 | I78: 0 | J78: 0 | K78: 0 | L78: 0 | M78: 0 | N78: 0 | O78: 0 | P78: 0 | Q78: 0 | R78: 0 | S78: 0 | T78: 0 | U78: 0 | V78: =U78 -> 0 | W78: =V78 -> 0
B79: Inflation rate (%) | D79: =+COST_OIL2!$N$11 -> 0 | E79: =D79 -> 0 | F79: 0 | G79: 0 | H79: 0 | I79: 0 | J79: 0 | K79: 0 | L79: 0 | M79: 0 | N79: 0 | O79: 0 | P79: 0 | Q79: 0 | R79: 0 | S79: 0 | T79: 0 | U79: 0 | V79: =U79 -> 0 | W79: =V79 -> 0
B80: Discount rate (%) | C80: =+COST_OIL2!$N$10 -> 0
B81: Loan ratio (%) | C81: =+COST_OIL2!$N$13 -> 0
B83: =title313 -> Loan | D83: 1 | E83: 2 | F83: 3 | G83: 4 | H83: 5 | I83: 6 | J83: 7 | K83: 8 | L83: 9 | M83: 10 | N83: 11 | O83: 12 | P83: 13 | Q83: 14 | R83: 15 | S83: 16 | T83: 17 | U83: 18 | V83: 19 | W83: 20
B84: =title138&" (USD)" -> Loan amount (USD) | C84: =C81*C43 -> 
B85: Loan interest rate (%) | C85: =+COST_OIL2!$N$12 -> 0
B86: Loan term (years) | C86: =+COST_OIL2!$N$14 -> 0
B87: =title314 -> Loan payment (USD/month) | C87: =(PMT(C85/12,(12*C86),C84)) -> 
B88: =title315 -> Loan payment (USD/year) | D88: =IF(D77<=$C$86,$C$87*12,0) -> 0 | E88: =IF(E77<=$C$86,$C$87*12,0) -> 0 | F88: 0 | G88: 0 | H88: 0 | I88: 0 | J88: 0 | K88: 0 | L88: 0 | M88: 0 | N88: 0 | O88: 0 | P88: 0 | Q88: 0 | R88: 0 | S88: 0 | T88: 0 | U88: 0 | V88: 0 | W88: 0
B89: =title141&" (USD)" -> Total loan payment (USD) | C89: =SUM(D88:W88) -> 0
B90: =title316 -> Loan interest payment (USD) | C90: =C89+C84 ->  | D90: =title322 -> Average loan interest payment for project lifetime | G90: =C90/C28 ->  | H90: =title323 -> USD per year
A92: =title317 -> Income tax analysis
B93: =title199 -> Operating Year | C93: =title217 -> Appraisal | D93: 1 | E93: 2 | F93: 3 | G93: 4 | H93: 5 | I93: 6 | J93: 7 | K93: 8 | L93: 9 | M93: 10 | N93: 11 | O93: 12 | P93: 13 | Q93: 14 | R93: 15 | S93: 16 | T93: 17 | U93: 18 | V93: 19 | W93: 20
B94: =title318 -> Effective income tax rate (%) | C94: =+COST_OIL2!$F$73 -> 0 | D94: =C94 -> 0 | E94: =D94 -> 0 | F94: 0 | G94: 0 | H94: 0 | I94: 0 | J94: 0 | K94: 0 | L94: 0 | M94: 0 | N94: 0 | O94: 0 | P94: 0 | Q94: 0 | R94: 0 | S94: 0 | T94: 0 | U94: 0 | V94: 0 | W94: 0
B95: =title319 -> Income tax | D95: =IF(D119<0,0,-D94*D119) -> 
B96: =title320 -> Total income tax (USD) | C96: =SUM(D95:W95) -> 
B97: =title321 -> Income tax payment (USD per year) | C97: =C96/$C$28 -> 
A99: Depreciation
B100: =title199 -> Operating Year | C100: =title217 -> Appraisal | D100: 1 | E100: 2 | F100: 3 | G100: 4 | H100: 5 | I100: 6 | J100: 7 | K100: 8 | L100: 9 | M100: 10 | N100: 11 | O100: 12 | P100: 13 | Q100: 14 | R100: 15 | S100: 16 | T100: 17 | U100: 18 | V100: 19 | W100: 20
B101: =title324 -> Depreciation method | C101: =title325 -> Straight-line
B102: Total depreciation (USD) | D102: =COST_OIL2!J64 ->  | E102: =D102 ->  | F102: =E102 -> 
A104: =title326 -> Base case project
A105: =title327 -> Summary of this project - before tax
B106: =title199 -> Operating Year | C106: =title217 -> Appraisal | D106: 1 | E106: 2 | F106: 3 | G106: 4 | H106: 5 | I106: 6 | J106: 7 | K106: 8 | L106: 9 | M106: 10 | N106: 11 | O106: 12 | P106: 13 | Q106: 14 | R106: 15 | S106: 16 | T106: 17 | U106: 18 | V106: 19 | W106: 20
B107: =title328 -> Total revenue (USD) | D107: =D25 ->  | E107: =E25 -> 
B108: =title215 -> Total capital cost (USD) | C108: =-(C43-C84) -> 
B109: =title329 -> Total operating and maintenance cost (USD) | D109: =-D73+D69 -> 
B110: =title139&" (USD)" -> Loan payment (USD) | D110: =D88 -> 0 | E110: =E88 -> 0 | F110: 0 | G110: 0 | H110: 0 | I110: 0 | J110: 0 | K110: 0 | L110: 0 | M110: 0 | N110: 0 | O110: 0 | P110: 0 | Q110: 0 | R110: 0 | S110: 0 | T110: 0 | U110: 0 | V110: 0 | W110: 0
B111: =title330 -> Cash flow - before tax (USD) | C111: =SUM(C107:C110) ->  | D111: =SUM(D107:D110) -> 
A113: =title331 -> Summary of this project - after tax
B114: =title199 -> Operating Year | C114: =title217 -> Appraisal | D114: 1 | E114: 2 | F114: 3 | G114: 4 | H114: 5 | I114: 6 | J114: 7 | K114: 8 | L114: 9 | M114: 10 | N114: 11 | O114: 12 | P114: 13 | Q114: 14 | R114: 15 | S114: 16 | T114: 17 | U114: 18 | V114: 19 | W114: 20
B115: =B107 -> Total revenue (USD) | C115: =C107 -> 0 | D115: =D107 ->  | E115: =E107 -> 
B116: =title329 -> Total operating and maintenance cost (USD) | D116: =-D73+D69 -> 
B117: =title139&" (USD)" -> Loan payment (USD) | D117: =D88 -> 0 | E117: =E88 -> 0 | F117: 0 | G117: 0 | H117: 0 | I117: 0 | J117: 0 | K117: 0 | L117: 0 | M117: 0 | N117: 0 | O117: 0 | P117: 0 | Q117: 0 | R117: 0 | S117: 0 | T117: 0 | U117: 0 | V117: 0 | W117: 0
B118: =title332 -> Depreciation of fixed cost (USD) | D118: =-D102 ->  | E118: =-E102 -> 
B119: =title333 -> Net Profit - before tax (USD) for income tax calculation | C119: =SUM(C115:C118) -> 0 | D119: =SUM(D115:D118) -> 
B120: =title319 -> Income tax | D120: =D95 ->  | E120: =E95 -> 
B121: =title334 -> Cash flow - after tax (USD) | C121: =C108 ->  | D121: =D111+D120 ->  | E121: =E111+E120 -> 
A123: =title335 -> Cumulative value of Net Profit
B124: =title199 -> Operating Year | C124: =title217 -> Appraisal | D124: 1 | E124: 2 | F124: 3 | G124: 4 | H124: 5 | I124: 6 | J124: 7 | K124: 8 | L124: 9 | M124: 10 | N124: 11 | O124: 12 | P124: 13 | Q124: 14 | R124: 15 | S124: 16 | T124: 17 | U124: 18 | V124: 19 | W124: 20
B125: =title337 -> Cumulative value of Net Profit - before tax | C125: =C111 ->  | D125: =C125+(D111) -> 
B126: =title338 -> Cumulative value of Net Profit - after tax | C126: =C121 ->  | D126: =C126+(D121) -> 
A128: =title336 -> Financial Analysis Result
B130: =title339 -> Net Present Value (NPV) (USD) - before tax | C130: =NPV(C80,D111:W111)+C111 -> 
B131: =title340 -> Internal Rate of Return (IRR) (%) - before tax | C131: =IF(C130<0,title353,IRR(C111:W111,0.001)) -> 
B132: =title341 -> Payback period (years) | C132: =title345 -> Please see Figure of the cumulative value of Net Profit - before tax
B135: =title342 -> Net Present Value (NPV) (USD) - after tax | C135: =NPV(C80,D121:W121)+C121 -> 
B136: =title343 -> Internal Rate of Return (IRR) (%) - after tax | C136: =IF(C135<0,title353,IRR(C121:W121,0.000001)) -> 
B137: =title341 -> Payback period (years) | C137: =title346 -> Please see Figure of the cumulative value of Net Profit - after tax
B138: =title344 -> Total income tax payment of project lifetime | C138: =SUM(D120:W120) -> 

Sheet FA100kW_OIL2 (hidden)
B2: =title348 -> FINANCIAL EVALUATION OF SVO + RURAL ELECTRIFICATION 100 kW PROJECT
A5: =title198 -> Revenues of SVO and power generation system
B7: =title199 -> Operating Year | C7: 0 | D7: 1 | E7: 2 | F7: 3 | G7: 4 | H7: 5 | I7: 6 | J7: 7 | K7: 8 | L7: 9 | M7: 10 | N7: 11 | O7: 12 | P7: 13 | Q7: 14 | R7: 15 | S7: 16 | T7: 17 | U7: 18 | V7: 19 | W7: 20
B9: =title200 -> Power generation capacity (kW) | C9: =COST_OIL2!$K$30 -> 100 | D9: =C9 -> 100 | E9: =D9 -> 100 | F9: 100 | G9: 100 | H9: 100 | I9: 100 | J9: 100 | K9: 100 | L9: 100 | M9: 100 | N9: 100 | O9: 100 | P9: 100 | Q9: 100 | R9: 100 | S9: 100 | T9: 100 | U9: 100 | V9: 100 | W9: 100
B12: Power loss due to operation (%) | C12: =+COST_OIL2!$I$17 -> 0 | D12: =+C12 -> 0 | E12: =+D12 -> 0 | F12: 0 | G12: 0 | H12: 0 | I12: 0 | J12: 0 | K12: 0 | L12: 0 | M12: 0 | N12: 0 | O12: 0 | P12: 0 | Q12: 0 | R12: 0 | S12: 0 | T12: 0 | U12: 0 | V12: 0 | W12: 0
B14: Operating hours per year | C14: =COST_OIL2!$L$31 -> 0 | D14: =C14 -> 0 | E14: =D14 -> 0 | F14: 0 | G14: 0 | H14: 0 | I14: 0 | J14: 0 | K14: 0 | L14: 0 | M14: 0 | N14: 0 | O14: 0 | P14: 0 | Q14: 0 | R14: 0 | S14: 0 | T14: 0 | U14: 0 | V14: 0 | W14: 0
B15: Capacity utilization factor | C15: =C14/8760 -> 0 | D15: =D14/8760 -> 0 | E15: 0 | F15: 0 | G15: 0 | H15: 0 | I15: 0 | J15: 0 | K15: 0 | L15: 0 | M15: 0 | N15: 0 | O15: 0 | P15: 0 | Q15: 0 | R15: 0 | S15: 0 | T15: 0 | U15: 0 | V15: 0 | W15: 0
B17: =title201 -> Electricity generation (kWh per year) | C17: =C9*C14*(1-C12) -> 0 | D17: 0 | E17: 0 | F17: 0 | G17: 0 | H17: 0 | I17: 0 | J17: 0 | K17: 0 | L17: 0 | M17: 0 | N17: 0 | O17: 0 | P17: 0 | Q17: 0 | R17: 0 | S17: 0 | T17: 0 | U17: 0 | V17: 0 | W17: 0
B18: =title202 -> Electricity - self use (kWh per year) | C18: =C17*10% -> 0 | D18: =D17*10% -> 0 | E18: 0 | F18: 0 | G18: 0 | H18: 0 | I18: 0 | J18: 0 | K18: 0 | L18: 0 | M18: 0 | N18: 0 | O18: 0 | P18: 0 | Q18: 0 | R18: 0 | S18: 0 | T18: 0 | U18: 0 | V18: 0 | W18: 0
B19: =title82&" "&title84 -> Power loss in distribution network (kWh per year) | C19: =C17*COST_OIL2!$I$16 -> 0 | D19: =C19 -> 0 | E19: =D19 -> 0 | F19: 0 | G19: 0 | H19: 0 | I19: 0 | J19: 0 | K19: 0 | L19: 0 | M19: 0 | N19: 0 | O19: 0 | P19: 0 | Q19: 0 | R19: 0 | S19: 0 | T19: 0 | U19: 0 | V19: 0 | W19: 0
B20: =title203 -> Total power sold to customers (kWh/year) | C20: =C17-C18-C19 -> 0 | D20: =D17-D18-D19 -> 0 | E20: 0 | F20: 0 | G20: 0 | H20: 0 | I20: 0 | J20: 0 | K20: 0 | L20: 0 | M20: 0 | N20: 0 | O20: 0 | P20: 0 | Q20: 0 | R20: 0 | S20: 0 | T20: 0 | U20: 0 | V20: 0 | W20: 0
B22: =title204 -> Revenue from meal by-product (USD/year) | C22: =+IF('Energy Demand'!$C$31="",0,'Energy Demand'!$L$31) ->  | D22: =+C22 ->  | E22: =+D22 -> 
B23: =title205 -> Price of electricity (USD/kWh) | C23: =+COST_OIL2!$N$15 -> 0 | D23: =C23*(1+D24) -> 0 | E23: =D23*(1+E24) -> 0 | F23: =E23*(1+F24) -> 0 | G23: 0 | H23: 0 | I23: 0 | J23: 0 | K23: 0 | L23: 0 | M23: 0 | N23: 0 | O23: 0 | P23: 0 | Q23: 0 | R23: 0 | S23: 0 | T23: 0 | U23: 0 | V23: 0 | W23: 0
B24: =title206 -> Increasing rate of price of electricity (%) | C24: =+COST_OIL2!$P$167 -> 0 | D24: =C24 -> 0 | E24: =D24 -> 0 | F24: 0 | G24: 0 | H24: 0 | I24: 0 | J24: 0 | K24: 0 | L24: 0 | M24: 0 | N24: 0 | O24: 0 | P24: 0 | Q24: 0 | R24: 0 | S24: 0 | T24: 0 | U24: 0 | V24: 0 | W24: 0
B25: =title207 -> Total income (USD/year) | C25: =C20*C23+C22 ->  | D25: =D20*D23+D22 -> 
B28: =title208 -> Project lifetime (years) | C28: 20
B29: =title209 -> Lifespan of civil work (years) | C29: =20 -> 20
B30: =title210 -> Lifespan of the system (years) | C30: =20 -> 20
B31: =title211 -> Lifespan of engine generator system (years) | C31: =20 -> 20
B32: =title212 -> Lifespan of electrical distribution system (years) | C32: =20 -> 20
A35: =title213 -> Capital and operating cost
B37: =title199 -> Operating Year | C37: =title217 -> Appraisal | D37: 1 | E37: 2 | F37: 3 | G37: 4 | H37: 5 | I37: 6 | J37: 7 | K37: 8 | L37: 9 | M37: 10 | N37: 11 | O37: 12 | P37: 13 | Q37: 14 | R37: 15 | S37: 16 | T37: 17 | U37: 18 | V37: 19 | W37: 20
B38: =title214 -> Direct capital cost (USD)
B39: Equipments | C39: =COST_OIL2!K59 -> 
B40: Building | C40: =COST_OIL2!K60 -> 0
B41: Installation | C41: =COST_OIL2!K61 -> 0
B42: Distribution network | C42: =COST_OIL2!K62 -> 
B43: =title215 -> Total capital cost (USD) | C43: =SUM(C39:C42) ->  | D43: =D39+D40+D41 -> 0 | E43: 0 | F43: 0 | G43: 0 | H43: 0 | I43: 0 | J43: 0 | K43: 0 | L43: 0 | M43: 0 | N43: 0 | O43: 0 | P43: 0 | Q43: 0 | R43: 0 | S43: 0 | T43: 0 | U43: 0 | V43: 0 | W43: 0
B44: =title216 -> Capital cost (USD/kW) | C44: =C43/C9 -> 
B47: =title199 -> Operating Year | C47: =title217 -> Appraisal | D47: 1 | E47: 2 | F47: 3 | G47: 4 | H47: 5 | I47: 6 | J47: 7 | K47: 8 | L47: 9 | M47: 10 | N47: 11 | O47: 12 | P47: 13 | Q47: 14 | R47: 15 | S47: 16 | T47: 17 | U47: 18 | V47: 19 | W47: 20
B48: =title218 -> Annual operating and maintenance cost
B49: =title219 -> Sub-total material cost (USD) | C49: =C50+C58+C61 ->  | D49: =D50+D58+D61 -> 
B50: =title220 -> Biomass cost (USD/year) | C50: =C51*C52 ->  | D50: =D51*D52 ->  | E50: =E51*E52 -> 
B51: =title221 -> Biomass consumption (t per year) | C51: =+COST_OIL2!$K$36 ->  | D51: =+C51 ->  | E51: =+D51 -> 
B52: =title222 -> Biomass total price (USD/t) | C52: =SUM(C53:C54) -> 0 | D52: =SUM(D53:D54) -> 0 | E52: 0 | F52: 0 | G52: 0 | H52: 0 | I52: 0 | J52: 0 | K52: 0 | L52: 0 | M52: 0 | N52: 0 | O52: 0 | P52: 0 | Q52: 0 | R52: 0 | S52: 0 | T52: 0 | U52: 0 | V52: 0 | W52: 0
B53: =title223 -> Biomass price (USD/t) | C53: =+COST_OIL2!$F$36 -> 0 | D53: =C53*(1+D78+D79) -> 0 | E53: 0 | F53: 0 | G53: 0 | H53: 0 | I53: 0 | J53: 0 | K53: 0 | L53: 0 | M53: 0 | N53: 0 | O53: 0 | P53: 0 | Q53: 0 | R53: 0 | S53: 0 | T53: 0 | U53: 0 | V53: 0 | W53: 0
B54: =title224 -> Biomass transportation cost (USD/t) | C54: =+C55*C56 -> 0 | D54: =C54*(1+D78+D79) -> 0 | E54: 0 | F54: 0 | G54: 0 | H54: 0 | I54: 0 | J54: 0 | K54: 0 | L54: 0 | M54: 0 | N54: 0 | O54: 0 | P54: 0 | Q54: 0 | R54: 0 | S54: 0 | T54: 0 | U54: 0 | V54: 0 | W54: 0
B55: =title225 -> Biomass from farm to plant (USD/t/km) | C55: =+COST_OIL2!$F$49 -> 0
B56: =title226 -> Transportation distant (km) | C56: =+COST_OIL2!$K$22 -> 0
B58: =title227 -> Diesel cost (USD/year) | C58: =C59*C60 ->  | D58: =D59*D60 -> 
B59: =title228 -> Diesel/fuel oil consumption (litres per year) | C59: =+COST_OIL2!$K$37 ->  | D59: =+C59 ->  | E59: =+D59 -> 
B60: =title229 -> Diesel/fuel oil price (USD per litre) | C60: =+COST_OIL2!$F$37 -> 0 | D60: =C60*(1+D78+D79) -> 0 | E60: 0 | F60: 0 | G60: 0 | H60: 0 | I60: 0 | J60: 0 | K60: 0 | L60: 0 | M60: 0 | N60: 0 | O60: 0 | P60: 0 | Q60: 0 | R60: 0 | S60: 0 | T60: 0 | U60: 0 | V60: 0 | W60: 0
B61: =title230 -> Storage cost (USD/year) | C61: =+COST_OIL2!$L$55 ->  | D61: =+C61 ->  | E61: =+D61 -> 
B62: =title231 -> Sub-total operating cost (USD) | C62: =C63+C65+C66 ->  | D62: =D63+D65+D66 -> 
B63: =title232 -> Labour cost (USD) | C63: =COST_OIL2!L45 -> 0 | D63: =C63*(1+D64) -> 0 | E63: 0 | F63: 0 | G63: 0 | H63: 0 | I63: 0 | J63: 0 | K63: 0 | L63: 0 | M63: 0 | N63: 0 | O63: 0 | P63: 0 | Q63: 0 | R63: 0 | S63: 0 | T63: 0 | U63: 0 | V63: 0 | W63: 0
B64: =title233 -> Escalation rate of labour cost (%) | D64: =+COST_OIL2!$P$165 -> 0 | E64: =D64 -> 0 | F64: 0 | G64: 0 | H64: 0 | I64: 0 | J64: 0 | K64: 0 | L64: 0 | M64: 0 | N64: 0 | O64: 0 | P64: 0 | Q64: 0 | R64: 0 | S64: 0 | T64: 0 | U64: 0 | V64: =U64 -> 0 | W64: 0
B65: =title124 -> Plant overhead | C65: =COST_OIL2!L70 ->  | D65: =C65 ->  | E65: =D65 -> 
B66: =title125 -> General and administrative cost | C66: =COST_OIL2!L71 ->  | D66: =C66 -> 
B67: =title234 -> Sub-total maintenance cost (USD) | C67: =COST_OIL2!L65 ->  | D67: =C67 -> 
B69: =title235 -> Sub-total of annual fixed cost (USD) | C69: =COST_OIL2!L64 ->  | D69: =C69 ->  | E69: =D69 -> 
B71: =title236 -> Sub-total of storage cost (USD) | C71: =+COST_OIL2!L55 ->  | D71: =C71 ->  | E71: =D71 -> 
B73: =title237 -> Total operation and maintenance cost (USD) | C73: =C49+C62+C67+C69+C71 -> 
B74: =title238 -> Operation and maintenance cost (USD/kWh) without loan interest | C74: =C73/C20 -> 
A76: =title54 -> Financial parameters
B77: =title199 -> Operating Year | C77: =title217 -> Appraisal | D77: 1 | E77: 2 | F77: 3 | G77: 4 | H77: 5 | I77: 6 | J77: 7 | K77: 8 | L77: 9 | M77: 10 | N77: 11 | O77: 12 | P77: 13 | Q77: 14 | R77: 15 | S77: 16 | T77: 17 | U77: 18 | V77: 19 | W77: 20
B78: =title239 -> Raw material cost escalation rate (%) | D78: =+COST_OIL2!$P$166 -> 0 | E78: =D78 -> 0 | F78: =E78 -> 0 | G78: 0 | H78: 0 | I78: 0 | J78: 0 | K78: 0 | L78: 0 | M78: 0 | N78: 0 | O78: 0 | P78: 0 | Q78: 0 | R78: 0 | S78: 0 | T78: 0 | U78: 0 | V78: =U78 -> 0 | W78: =V78 -> 0
B79: Inflation rate (%) | D79: =+COST_OIL2!$N$11 -> 0 | E79: =D79 -> 0 | F79: 0 | G79: 0 | H79: 0 | I79: 0 | J79: 0 | K79: 0 | L79: 0 | M79: 0 | N79: 0 | O79: 0 | P79: 0 | Q79: 0 | R79: 0 | S79: 0 | T79: 0 | U79: 0 | V79: =U79 -> 0 | W79: =V79 -> 0
B80: Discount rate (%) | C80: =+COST_OIL2!$N$10 -> 0
B81: Loan ratio (%) | C81: =+COST_OIL2!$N$13 -> 0
B83: =title313 -> Loan | D83: 1 | E83: 2 | F83: 3 | G83: 4 | H83: 5 | I83: 6 | J83: 7 | K83: 8 | L83: 9 | M83: 10 | N83: 11 | O83: 12 | P83: 13 | Q83: 14 | R83: 15 | S83: 16 | T83: 17 | U83: 18 | V83: 19 | W83: 20
B84: =title138&" (USD)" -> Loan amount (USD) | C84: =C81*C43 -> 
B85: Loan interest rate (%) | C85: =+COST_OIL2!$N$12 -> 0
B86: Loan term (years) | C86: =+COST_OIL2!$N$14 -> 0
B87: =title314 -> Loan payment (USD/month) | C87: =(PMT(C85/12,(12*C86),C84)) -> 
B88: =title315 -> Loan payment (USD/year) | D88: =IF(D77<=$C$86,$C$87*12,0) -> 0 | E88: =IF(E77<=$C$86,$C$87*12,0) -> 0 | F88: 0 | G88: 0 | H88: 0 | I88: 0 | J88: 0 | K88: 0 | L88: 0 | M88: 0 | N88: 0 | O88: 0 | P88: 0 | Q88: 0 | R88: 0 | S88: 0 | T88: 0 | U88: 0 | V88: 0 | W88: 0
B89: =title141&" (USD)" -> Total loan payment (USD) | C89: =SUM(D88:W88) -> 0
B90: =title316 -> Loan interest payment (USD) | C90: =C89+C84 ->  | D90: =title322 -> Average loan interest payment for project lifetime | G90: =C90/C28 ->  | H90: =title323 -> USD per year
A92: =title317 -> Income tax analysis
B93: =title199 -> Operating Year | C93: =title217 -> Appraisal | D93: 1 | E93: 2 | F93: 3 | G93: 4 | H93: 5 | I93: 6 | J93: 7 | K93: 8 | L93: 9 | M93: 10 | N93: 11 | O93: 12 | P93: 13 | Q93: 14 | R93: 15 | S93: 16 | T93: 17 | U93: 18 | V93: 19 | W93: 20
B94: =title318 -> Effective income tax rate (%) | C94: =+COST_OIL2!$F$73 -> 0 | D94: =C94 -> 0 | E94: =D94 -> 0 | F94: 0 | G94: 0 | H94: 0 | I94: 0 | J94: 0 | K94: 0 | L94: 0 | M94: 0 | N94: 0 | O94: 0 | P94: 0 | Q94: 0 | R94: 0 | S94: 0 | T94: 0 | U94: 0 | V94: 0 | W94: 0
B95: =title319 -> Income tax | D95: =IF(D119<0,0,-D94*D119) -> 
B96: =title320 -> Total income tax (USD) | C96: =SUM(D95:W95) -> 
B97: =title321 -> Income tax payment (USD per year) | C97: =C96/$C$28 -> 
A99: Depreciation
B100: =title199 -> Operating Year | C100: =title217 -> Appraisal | D100: 1 | E100: 2 | F100: 3 | G100: 4 | H100: 5 | I100: 6 | J100: 7 | K100: 8 | L100: 9 | M100: 10 | N100: 11 | O100: 12 | P100: 13 | Q100: 14 | R100: 15 | S100: 16 | T100: 17 | U100: 18 | V100: 19 | W100: 20
B101: =title324 -> Depreciation method | C101: =title325 -> Straight-line
B102: Total depreciation (USD) | D102: =COST_OIL2!L64 ->  | E102: =D102 ->  | F102: =E102 -> 
A104: =title326 -> Base case project
A105: =title327 -> Summary of this project - before tax
B106: =title199 -> Operating Year | C106: =title217 -> Appraisal | D106: 1 | E106: 2 | F106: 3 | G106: 4 | H106: 5 | I106: 6 | J106: 7 | K106: 8 | L106: 9 | M106: 10 | N106: 11 | O106: 12 | P106: 13 | Q106: 14 | R106: 15 | S106: 16 | T106: 17 | U106: 18 | V106: 19 | W106: 20
B107: =title328 -> Total revenue (USD) | D107: =D25 ->  | E107: =E25 -> 
B108: =title215 -> Total capital cost (USD) | C108: =-(C43-C84) -> 
B109: =title329 -> Total operating and maintenance cost (USD) | D109: =-D73+D69 -> 
B110: =title139&" (USD)" -> Loan payment (USD) | D110: =D88 -> 0 | E110: =E88 -> 0 | F110: 0 | G110: 0 | H110: 0 | I110: 0 | J110: 0 | K110: 0 | L110: 0 | M110: 0 | N110: 0 | O110: 0 | P110: 0 | Q110: 0 | R110: 0 | S110: 0 | T110: 0 | U110: 0 | V110: 0 | W110: 0
B111: =title330 -> Cash flow - before tax (USD) | C111: =SUM(C107:C110) ->  | D111: =SUM(D107:D110) -> 
A113: =title331 -> Summary of this project - after tax
B114: =title199 -> Operating Year | C114: =title217 -> Appraisal | D114: 1 | E114: 2 | F114: 3 | G114: 4 | H114: 5 | I114: 6 | J114: 7 | K114: 8 | L114: 9 | M114: 10 | N114: 11 | O114: 12 | P114: 13 | Q114: 14 | R114: 15 | S114: 16 | T114: 17 | U114: 18 | V114: 19 | W114: 20
B115: =B107 -> Total revenue (USD) | C115: =C107 -> 0 | D115: =D107 ->  | E115: =E107 -> 
B116: =title329 -> Total operating and maintenance cost (USD) | D116: =-D73+D69 -> 
B117: =title139&" (USD)" -> Loan payment (USD) | D117: =D88 -> 0 | E117: =E88 -> 0 | F117: 0 | G117: 0 | H117: 0 | I117: 0 | J117: 0 | K117: 0 | L117: 0 | M117: 0 | N117: 0 | O117: 0 | P117: 0 | Q117: 0 | R117: 0 | S117: 0 | T117: 0 | U117: 0 | V117: 0 | W117: 0
B118: =title332 -> Depreciation of fixed cost (USD) | D118: =-D102 ->  | E118: =-E102 -> 
B119: =title333 -> Net Profit - before tax (USD) for income tax calculation | C119: =SUM(C115:C118) -> 0 | D119: =SUM(D115:D118) -> 
B120: =title319 -> Income tax | D120: =D95 ->  | E120: =E95 -> 
B121: =title334 -> Cash flow - after tax (USD) | C121: =C108 ->  | D121: =D111+D120 ->  | E121: =E111+E120 -> 
A123: =title335 -> Cumulative value of Net Profit
B124: =title199 -> Operating Year | C124: =title217 -> Appraisal | D124: 1 | E124: 2 | F124: 3 | G124: 4 | H124: 5 | I124: 6 | J124: 7 | K124: 8 | L124: 9 | M124: 10 | N124: 11 | O124: 12 | P124: 13 | Q124: 14 | R124: 15 | S124: 16 | T124: 17 | U124: 18 | V124: 19 | W124: 20
B125: =title337 -> Cumulative value of Net Profit - before tax | C125: =C111 ->  | D125: =C125+(D111) -> 
B126: =title338 -> Cumulative value of Net Profit - after tax | C126: =C121 ->  | D126: =C126+(D121) -> 
A128: =title336 -> Financial Analysis Result
B130: =title339 -> Net Present Value (NPV) (USD) - before tax | C130: =NPV(C80,D111:W111)+C111 -> 
B131: =title340 -> Internal Rate of Return (IRR) (%) - before tax | C131: =IF(C130<0,title353,IRR(C111:W111,0.001)) -> 
B132: =title341 -> Payback period (years) | C132: =title345 -> Please see Figure of the cumulative value of Net Profit - before tax
B135: =title342 -> Net Present Value (NPV) (USD) - after tax | C135: =NPV(C80,D121:W121)+C121 -> 
B136: =title343 -> Internal Rate of Return (IRR) (%) - after tax | C136: =IF(C135<0,title353,IRR(C121:W121,0.000001)) -> 
B137: =title341 -> Payback period (years) | C137: =title346 -> Please see Figure of the cumulative value of Net Profit - after tax
B138: =title344 -> Total income tax payment of project lifetime | C138: =SUM(D120:W120) -> 

Sheet COST_OIL3
C3: =+UPPER(title72&" "&'Data Entry Needs'!$F$9) -> PROCESSING COSTS FOR SVO + RURAL ELECTRIFICATION FROM PLEASE SELECT
C6: =title17 -> Use white cells to input data | E6: =title18 -> Grey cells are used for calculations
C8: =title73 -> Summary of Feedstock and Storage | G8: =title74 -> Summary of Operational Parameters | K8: =PROPER(title54) -> Financial Parameters
C10: =title75 -> Feedstock available (t/year) | E10: =+'Data Entry Needs'!$F$10 -> 0 | G10: =title76 -> Capacity utilization factor | I10: =H31/8760 -> 0 | K10: =title55&" (%)" -> Discount rate (%) | N10: =+'Data Entry Needs'!$D$43 -> 0
C11: =title25 -> Feedstock storage cost (USD/t) | E11: =+'Data Entry Needs'!$F$14 -> 0 | G11: =title77 -> Calorific value (kWh/kg oil) | I11: =+VLOOKUP('Data Entry Needs'!$F$9,dummy_database!$G$2:$J$12,3,FALSE)/3.6 ->  | K11: =title70 -> Inflation rate | N11: =+'Data Entry Needs'!$D$47 -> 0
C12: =title22 -> Feedstock yield (t/ha) | E12: =+'Data Entry Needs'!$F$11 -> 0 | G12: =title78 -> Oil extraction efficiency | I12: =+VLOOKUP('Data Entry Needs'!$F$9,dummy_database!$G$4:$L$9,6,FALSE) ->  | K12: =title57&" (%)" -> Loan interest rate (%) | N12: =+'Data Entry Needs'!$D$45 -> 0
C13: =title23 -> Oil content (%) | E13: =+'Data Entry Needs'!$F$12 ->  | G13: =title79 -> Residual oil in cake/meal | I13: =+VLOOKUP('Data Entry Needs'!$F$9,dummy_database!$G$4:$M$9,7,FALSE) ->  | K13: =title56&" (%)" -> Loan ratio (%) | N13: =+'Data Entry Needs'!$D$44 -> 0
C14: =+IF(VLOOKUP('Data Entry Needs'!$F$9,dummy_database!$G$2:$K$13,5,FALSE)=title148,'Data Entry Needs'!$F$9&title149,"") ->  | G14: =title80 -> Engine efficiency (%) | K14: =title71 -> Loan term (years) | N14: =+'Data Entry Needs'!$D$46 -> 0
G15: =title81 -> Operating hours per day | K15: =+IF('Data Entry Needs'!$AA$80=1,'Data Entry Needs'!$C$20,'Data Entry Needs'!$C$24) -> Comparative production cost of electricity | N15: =+'Data Entry Needs'!$AB$80 -> 0
G16: =title82 -> Power loss in distribution network
G17: =title83 -> Power loss due to operation (%)
C20: =title85 -> Transport Distance of Feedstock | F20: =title88 -> Transport Quantity | I20: =title85 -> Transport Distance of Feedstock | L20: =title88 -> Transport Quantity
C22: =title86 -> Distance small scale production (km) | F22: =title89 -> Small scale (t/year) | H22: =+$G$36 ->  | I22: =title91 -> Distance large scale production (km) | L22: =title93 -> Large scale (t/year) | N22: =+$K$36 -> 
C23: =title87 -> Distance medium scale production (km) | F23: =title90 -> Medium scale (t/year) | H23: =+$I$36 ->  | I23: =title92 -> Transportation cost (USD/t/km) | N23: =$F$49 -> 0
C27: =title96 -> Production Cost Details
G29: =title97 -> Capacities (kW of power generation)
G30: 10 | I30: 40 | K30: 100
G31: =title98 -> Operating hours per year | H31: =$I$15*365 -> 0 | I31: =title98 -> Operating hours per year | J31: =$I$15*365 -> 0 | K31: =title98 -> Operating hours per year | L31: =$I$15*365 -> 0
D34: =title99 -> Inputs | E34: =title39 -> Unit | F34: =title103 -> Unit Price | G34: =title105 -> Quantity | H34: Total | I34: =title105 -> Quantity | J34: Total | K34: =title105 -> Quantity | L34: Total
F35: =title104 -> (USD/unit) | G35: =title106 -> (Unit/year) | H35: =title107 -> (USD/year) | I35: =title106 -> (Unit/year) | J35: =title107 -> (USD/year) | K35: =title106 -> (Unit/year) | L35: =title107 -> (USD/year)
D36: =title100 -> Feedstock (Oilseed) | E36: t | F36: =+'Data Entry Needs'!$F$13 -> 0 | G36: =+(G30/($I$14*$I$11)/($I$12*$E$13))*(H31/1000)/(1-$I$17) ->  | H36: =+G36*$F36 ->  | I36: =+(I30/($I$14*$I$11)/($I$12*$E$13))*(J31/1000)/(1-$I$17) ->  | J36: =+I36*$F36 ->  | K36: =+(K30/($I$14*$I$11)/($I$12*$E$13))*(L31/1000)/(1-$I$17) ->  | L36: =+K36*$F36 -> 
D37: =title101 -> Diesel for start up | E37: litre | F37: =+'Data Entry Needs'!D$33 -> 0 | G37: =+G30*0.5*365/(10.7*$I$14) ->  | H37: =+G37*$F37 ->  | I37: =+I30*0.5*365/(10.7*$I$14) ->  | J37: =+I37*$F37 ->  | K37: =+K30*0.5*365/(10.7*$I$14) ->  | L37: =+K37*$F37 -> 
D38: =title102 -> Subtotal | H38: =SUM(H36:H37) ->  | J38: =SUM(J36:J37) ->  | L38: =SUM(L36:L37) -> 
D40: =title108 -> Labour and Miscellaneous Cost | E40: =title39 -> Unit | F40: =title103 -> Unit Price | G40: =title105 -> Quantity | H40: Total | I40: =title105 -> Quantity | J40: Total | K40: =title105 -> Quantity | L40: Total
F41: =title111 -> (USD/person/h) | G41: ="("&title39&")" -> (Unit) | H41: =title107 -> (USD/year) | I41: ="("&title39&")" -> (Unit) | J41: =title107 -> (USD/year) | K41: ="("&title39&")" -> (Unit) | L41: =title107 -> (USD/year)
D42: =title46 -> Unskilled worker | E42: =title110 -> # employee | F42: =+'Data Entry Needs'!$D$30 -> 0 | G42: =+ROUNDUP(0.17*G30,0) -> 2 | H42: =+F42*G42*H31 -> 0 | I42: =+ROUNDUP(0.17*I30,0) -> 7 | J42: =+$F42*I42*$H$31 -> 0 | K42: =+ROUNDUP(0.17*K30,0) -> 17 | L42: =+$F42*K42*$H$31 -> 0
D43: =title61 -> Skilled worker | E43: =title110 -> # employee | F43: =+'Data Entry Needs'!H$30 -> 0 | G43: =+ROUND(G42/4,0) -> 1 | H43: =+F43*G43*H31 -> 0 | I43: =+ROUND(I42/4,0) -> 2 | J43: =+$F43*I43*$H$31 -> 0 | K43: =+ROUND(K42/4,0) -> 4 | L43: =+$F43*K43*$H$31 -> 0
D44: =title109 -> Miscellaneous cost | G44: =+'Data Entry Needs'!$H$40 -> 0 | H44: =+G44*SUM(H42:H43) -> 0 | I44: =+G44 -> 0 | J44: =+I44*SUM(J42:J43) -> 0 | K44: =+I44 -> 0 | L44: =+K44*SUM(L42:L43) -> 0
D45: =title102 -> Subtotal | G45: =+G42+G43 -> 3 | H45: =+H42+H43+H44 -> 0 | I45: =+I42+I43 -> 9 | J45: =+J42+J43+J44 -> 0 | K45: =+K42+K43 -> 21 | L45: =+L42+L43+L44 -> 0
D47: =title112 -> Transport of Feedstock | E47: =title39 -> Unit | F47: =title103 -> Unit Price | G47: =title105 -> Quantity | H47: Total | I47: =title105 -> Quantity | J47: Total | K47: =title105 -> Quantity | L47: Total
F48: (USD/t/km) | G48: ="("&title39&")" -> (Unit) | H48: =title107 -> (USD/year) | I48: ="("&title39&")" -> (Unit) | J48: =title107 -> (USD/year) | K48: ="("&title39&")" -> (Unit) | L48: =title107 -> (USD/year)
D49: =title113 -> Feedstock (farm to plant) | E49: km | F49: =+'Data Entry Needs'!$D$36 -> 0 | G49: =+$E$22 -> 0 | H49: =+G49*F49*G36 ->  | I49: =+$E$23 -> 0 | J49: =+I49*$F49*I$36 ->  | K49: =+$K$22 -> 0 | L49: =+K49*$F49*K$36 -> 
D50: =title102 -> Subtotal | H50: =+H49 ->  | J50: =+J49 ->  | L50: =+L49 -> 
D52: =title114 -> Storage | E52: =title39 -> Unit | F52: =title103 -> Unit Price | G52: =title105 -> Quantity | H52: Total | I52: =title105 -> Quantity | J52: Total | K52: =title105 -> Quantity | L52: Total
F53: USD/t | G53: ="("&title39&")" -> (Unit) | H53: =title107 -> (USD/year) | I53: ="("&title39&")" -> (Unit) | J53: =title107 -> (USD/year) | K53: ="("&title39&")" -> (Unit) | L53: =title107 -> (USD/year)
D54: =title20 -> Feedstock | E54: t | F54: =+$E$11 -> 0 | G54: =+STORAGE_OIL3!$F$38 ->  | H54: =+F54*G54 ->  | I54: =+STORAGE_OIL3!$I$38 ->  | J54: =I54*F54 ->  | K54: =+STORAGE_OIL3!$L$38 ->  | L54: =F54*K54 -> 
D55: =title102 -> Subtotal | H55: =SUM(H54) ->  | J55: =SUM(J54) ->  | L55: =SUM(L54) -> 
D57: =title115 -> Investment | E57: =title39 -> Unit | F57: Years | G57: Total | H57: =title121 -> Depreciation | I57: Total | J57: =title121 -> Depreciation | K57: Total | L57: =title121 -> Depreciation
G58: (USD) | H58: =title107 -> (USD/year) | I58: (USD) | J58: =title107 -> (USD/year) | K58: (USD) | L58: =title107 -> (USD/year)
D59: =title116 -> Equipments | E59: USD | F59: 20 | G59: =+'COST(ADJUSTED)_OIL3'!F23*(1+'Data Entry Needs'!$AB$88) ->  | H59: =+G59/F59 ->  | I59: =+'COST(ADJUSTED)_OIL3'!G23*(1+'Data Entry Needs'!$AB$88) ->  | J59: =+I59/F59 ->  | K59: =+'COST(ADJUSTED)_OIL3'!H23*(1+'Data Entry Needs'!$AB$88) ->  | L59: =+K59/F59 -> 
D60: =title117 -> Building | E60: USD | F60: 20 | G60: =+'COST(ADJUSTED)_OIL3'!F26*(1+'Data Entry Needs'!$AB$88) -> 0 | H60: =+G60/F60 -> 0 | I60: =+'COST(ADJUSTED)_OIL3'!G26*(1+'Data Entry Needs'!$AB$88) -> 0 | J60: =+I60/F60 -> 0 | K60: =+'COST(ADJUSTED)_OIL3'!H26*(1+'Data Entry Needs'!$AB$88) -> 0 | L60: =+K60/F60 -> 0
D61: =title118 -> Installation | E61: USD | F61: 20 | G61: =+'COST(ADJUSTED)_OIL3'!F29*(1+'Data Entry Needs'!$AB$88) -> 0 | H61: =+G61/F61 -> 0 | I61: =+'COST(ADJUSTED)_OIL3'!G29*(1+'Data Entry Needs'!$AB$88) -> 0 | J61: =+I61/F61 -> 0 | K61: =+'COST(ADJUSTED)_OIL3'!H29*(1+'Data Entry Needs'!$AB$88) -> 0 | L61: =+K61/F61 -> 0
D62: =title119 -> Distribution network | E62: USD | F62: 20 | G62: =+'COST(ADJUSTED)_OIL3'!F33*(1+'Data Entry Needs'!$AB$88) ->  | H62: =+G62/F62 ->  | I62: =+'COST(ADJUSTED)_OIL3'!G33*(1+'Data Entry Needs'!$AB$88) ->  | J62: =+I62/F62 ->  | K62: =+'COST(ADJUSTED)_OIL3'!H33*(1+'Data Entry Needs'!$AB$88) ->  | L62: =+K62/F62 -> 
D63: =title120 -> Total investment | G63: =SUM(G59:G62) ->  | I63: =SUM(I59:I62) ->  | K63: =SUM(K59:K62) -> 
G64: =title122 -> Total depreciation | H64: =SUM(H59:H63) ->  | I64: =title122 -> Total depreciation | J64: =SUM(J59:J63) ->  | K64: =title122 -> Total depreciation | L64: =SUM(L59:L63) -> 
D65: =title123 -> Maintenance cost | F65: =+'Data Entry Needs'!$H$39 -> 0 | H65: =+F65*H64 ->  | J65: =+F65*$J$64 ->  | L65: =+$F$65*L64 -> 
D66: =title102 -> Subtotal | H66: =SUM(H64:H65) ->  | J66: =SUM(J64:J65) ->  | L66: =SUM(L64:L65) -> 
D68: =title51 -> Other costs | E68: =title39 -> Unit | F68: Rate (%) | H68: Total | J68: Total | L68: Total
H69: =title107 -> (USD/year) | J69: =title107 -> (USD/year) | L69: =title107 -> (USD/year)
D70: =title124 -> Plant overhead | E70: USD | F70: =+'Data Entry Needs'!$D$40 -> 0 | H70: =+(H42+H43+H65)*$F$70 ->  | J70: =+(J42+J43+J65)*$F$70 ->  | L70: =+(L42+L43+L65)*$F$70 -> 
D71: =title125 -> General and administrative cost | E71: USD | F71: =+'Data Entry Needs'!$D$39 -> 0 | H71: =+(H38+H45+H70+H65)*$F$71 ->  | J71: =+(J38+J45+J70+J65)*$F$71 ->  | L71: =+(L38+L45+L70+L65)*$F$71 -> 
D72: =title126 -> Loan interest | E72: USD | F72: =+$P$166 -> 0 | H72: =-FA10kW_OIL3!G90 ->  | J72: =-FA40kW_OIL3!G90 ->  | L72: =-FA100kW_OIL3!G90 -> 
D73: =title127 -> Income tax | E73: USD | F73: =+'Data Entry Needs'!$H$48 -> 0 | H73: =-FA10kW_OIL3!C97 ->  | J73: =-FA40kW_OIL3!C97 ->  | L73: =-FA100kW_OIL3!C97 -> 
D74: =title102 -> Subtotal | H74: =SUM(H70:H72) ->  | J74: =SUM(J70:J72) ->  | L74: =SUM(L70:L72) -> 
G76: Total | H76: =title132 -> Share (%) | I76: Total | J76: =title132 -> Share (%) | K76: Total | L76: =title132 -> Share (%)
G77: =title107 -> (USD/year) | I77: =title107 -> (USD/year) | K77: =title107 -> (USD/year)
D78: =title128 -> Total operating costs | G78: =+H38+H45+H50+H55 ->  | H78: =+G78/$G$81 ->  | I78: =+J38+J45+J50+J55 ->  | J78: =+I78/$I$81 ->  | K78: =+L38+L45+L50+L55 ->  | L78: =+K78/$K$81 -> 
D79: =title129 -> Total fixed costs | G79: =+H66 ->  | H79: =+G79/$G$81 ->  | I79: =+J66 ->  | J79: =+I79/$I$81 ->  | K79: =+L66 ->  | L79: =+K79/$K$81 -> 
D80: =title130 -> Total other costs | G80: =+H74 ->  | H80: =+G80/$G$81 ->  | I80: =+J74 ->  | J80: =+I80/$I$81 ->  | K80: =+L74 ->  | L80: =+K80/$K$81 -> 
D81: =title131 -> Total production costs | G81: =SUM(G78:G80) ->  | I81: =SUM(I78:I80) ->  | K81: =SUM(K78:K80) -> 
C83: =title133 -> Power generation
E85: =title39 -> Unit | G85: =title105 -> Quantity | I85: =title105 -> Quantity | K85: =title105 -> Quantity
G86: ="("&title39&")" -> (Unit) | I86: ="("&title39&")" -> (Unit) | K86: ="("&title39&")" -> (Unit)
D87: =title133 -> Power generation | E87: =title135 -> kWh/year | G87: =+G30*H31*(1-$I$17) -> 0 | I87: =+I30*J31*(1-$I$17) -> 0 | K87: =+K30*L31*(1-$I$17) -> 0
D88: =title134 -> Electricity-self use | E88: =title135 -> kWh/year | G88: =-G87*10% -> 0 | I88: =-I87*10% -> 0 | K88: =-K87*10% -> 0
D89: =title82 -> Power loss in distribution network | E89: =title135 -> kWh/year | G89: =-G87*$I$16 -> 0 | I89: =-I87*$I$16 -> 0 | K89: =-K87*$I$16 -> 0
D90: =title102 -> Subtotal | G90: =SUM(G87:H89) -> 0 | I90: =SUM(I87:J89) -> 0 | K90: =SUM(K87:L89) -> 0
C92: =title136 -> Total Production Cost+Distribution
G94: =$G$29 -> Capacities (kW of power generation)
G95: =+G30 -> 10 | I95: =+I30 -> 40 | K95: =+K30 -> 100
D96: =title137 -> Unit cost of electricity (USD/kWh) | G96: =G81/G90 ->  | I96: =I81/I90 ->  | K96: =K81/K90 -> 
D98: =title142 -> Average loan interest | E98: =title39 -> Unit | F98: =title56&" (%)" -> Loan ratio (%) | G98: =title120 -> Total investment | H98: =title138 -> Loan amount | I98: =title120 -> Total investment | J98: =title138 -> Loan amount | K98: =title120 -> Total investment | L98: =title138 -> Loan amount
G99: (USD) | H99: (USD) | I99: (USD) | J99: (USD) | K99: (USD) | L99: (USD)
D100: =title138 -> Loan amount | E100: USD | F100: =+$N$13 -> 0 | G100: =G63 ->  | H100: =$F$100*G100 ->  | I100: =I63 ->  | J100: =$F$100*I100 ->  | K100: =K63 ->  | L100: =$F$100*K100 -> 
D101: =title57 -> Loan interest rate | E101: % | H101: =+$N$12 -> 0 | J101: =+$H$101 -> 0 | L101: =+$J$101 -> 0
D102: =title139 -> Loan payment | E102: =title143 -> USD/month | H102: =PMT(H101/12,H104*12,H100,0) ->  | J102: =PMT(J101/12,J104*12,J100,0) ->  | L102: =PMT(L101/12,L104*12,L100,0) -> 
D103: =title140 -> Annual loan payment | E103: =title144 -> USD/year | H103: =H102*12 ->  | J103: =J102*12 ->  | L103: =L102*12 -> 
D104: =title58 -> Loan terms | E104: =title60 -> year | H104: =+$N$14 -> 0 | J104: =+H104 -> 0 | L104: =+J104 -> 0
D105: =title141 -> Total loan payment | E105: USD | H105: =H103*H104 ->  | J105: =J103*J104 ->  | L105: =L103*L104 -> 
D106: =title126 -> Loan interest | E106: USD | H106: =H105+H100 ->  | J106: =J105+J100 ->  | L106: =L105+L100 -> 
D107: =title142 -> Average loan interest | E107: =title144 -> USD/year | H107: =H106/$F$59 ->  | J107: =J106/$F$59 ->  | L107: =L106/$F$59 -> 
M165: Annual change in labor cost (%) | P165: =+'Data Entry Needs'!$AB$87 -> 0
M166: Annual change in raw material cost (%) | P166: =+'Data Entry Needs'!$AB$86 -> 0
M167: Annual change in elctricity price (%) | P167: =+'Data Entry Needs'!$AB$89 -> 0

Sheet FA10kW_OIL3 (hidden)
B2: =title197 -> FINANCIAL EVALUATION OF SVO + RURAL ELECTRIFICATION 10 kW PROJECT
A5: =title198 -> Revenues of SVO and power generation system
B7: =title199 -> Operating Year | C7: 0 | D7: 1 | E7: 2 | F7: 3 | G7: 4 | H7: 5 | I7: 6 | J7: 7 | K7: 8 | L7: 9 | M7: 10 | N7: 11 | O7: 12 | P7: 13 | Q7: 14 | R7: 15 | S7: 16 | T7: 17 | U7: 18 | V7: 19 | W7: 20
B9: =title200 -> Power generation capacity (kW) | C9: =+COST_OIL3!$G$30 -> 10 | D9: =C9 -> 10 | E9: =D9 -> 10 | F9: 10 | G9: 10 | H9: 10 | I9: 10 | J9: 10 | K9: 10 | L9: 10 | M9: 10 | N9: 10 | O9: 10 | P9: 10 | Q9: 10 | R9: 10 | S9: 10 | T9: 10 | U9: 10 | V9: 10 | W9: 10
B12: Power loss due to operation (%) | C12: =+COST_OIL3!$I$17 -> 0 | D12: =+C12 -> 0 | E12: =+D12 -> 0 | F12: 0 | G12: 0 | H12: 0 | I12: 0 | J12: 0 | K12: 0 | L12: 0 | M12: 0 | N12: 0 | O12: 0 | P12: 0 | Q12: 0 | R12: 0 | S12: 0 | T12: 0 | U12: 0 | V12: 0 | W12: 0
B14: Operating hours per year | C14: =+COST_OIL3!$H$31 -> 0 | D14: =C14 -> 0 | E14: =D14 -> 0 | F14: 0 | G14: 0 | H14: 0 | I14: 0 | J14: 0 | K14: 0 | L14: 0 | M14: 0 | N14: 0 | O14: 0 | P14: 0 | Q14: 0 | R14: 0 | S14: 0 | T14: 0 | U14: 0 | V14: 0 | W14: 0
B15: Capacity utilization factor | C15: =C14/8760 -> 0 | D15: =D14/8760 -> 0 | E15: 0 | F15: 0 | G15: 0 | H15: 0 | I15: 0 | J15: 0 | K15: 0 | L15: 0 | M15: 0 | N15: 0 | O15: 0 | P15: 0 | Q15: 0 | R15: 0 | S15: 0 | T15: 0 | U15: 0 | V15: 0 | W15: 0
B17: =title201 -> Electricity generation (kWh per year) | C17: =C9*C14*(1-C12) -> 0 | D17: 0 | E17: 0 | F17: 0 | G17: 0 | H17: 0 | I17: 0 | J17: 0 | K17: 0 | L17: 0 | M17: 0 | N17: 0 | O17: 0 | P17: 0 | Q17: 0 | R17: 0 | S17: 0 | T17: 0 | U17: 0 | V17: 0 | W17: 0
B18: =title202 -> Electricity - self use (kWh per year) | C18: =C17*10% -> 0 | D18: =D17*10% -> 0 | E18: 0 | F18: 0 | G18: 0 | H18: 0 | I18: 0 | J18: 0 | K18: 0 | L18: 0 | M18: 0 | N18: 0 | O18: 0 | P18: 0 | Q18: 0 | R18: 0 | S18: 0 | T18: 0 | U18: 0 | V18: 0 | W18: 0
B19: =title82&" "&title84 -> Power loss in distribution network (kWh per year) | C19: =C17*COST_OIL3!$I$16 -> 0 | D19: =C19 -> 0 | E19: =D19 -> 0 | F19: 0 | G19: 0 | H19: 0 | I19: 0 | J19: 0 | K19: 0 | L19: 0 | M19: 0 | N19: 0 | O19: 0 | P19: 0 | Q19: 0 | R19: 0 | S19: 0 | T19: 0 | U19: 0 | V19: 0 | W19: 0
B20: =title203 -> Total power sold to customers (kWh/year) | C20: =C17-C18-C19 -> 0 | D20: =D17-D18-D19 -> 0 | E20: 0 | F20: 0 | G20: 0 | H20: 0 | I20: 0 | J20: 0 | K20: 0 | L20: 0 | M20: 0 | N20: 0 | O20: 0 | P20: 0 | Q20: 0 | R20: 0 | S20: 0 | T20: 0 | U20: 0 | V20: 0 | W20: 0
B22: =title204 -> Revenue from meal by-product (USD/year) | C22: =+IF('Energy Demand'!$C$43="",0,'Energy Demand'!$H$43) ->  | D22: =+C22 ->  | E22: =+D22 -> 
B23: =title205 -> Price of electricity (USD/kWh) | C23: =+COST_OIL3!$N$15 -> 0 | D23: =C23*(1+D24) -> 0 | E23: =D23*(1+E24) -> 0 | F23: =E23*(1+F24) -> 0 | G23: 0 | H23: 0 | I23: 0 | J23: 0 | K23: 0 | L23: 0 | M23: 0 | N23: 0 | O23: 0 | P23: 0 | Q23: 0 | R23: 0 | S23: 0 | T23: 0 | U23: 0 | V23: 0 | W23: 0
B24: =title206 -> Increasing rate of price of electricity (%) | C24: =+COST_OIL3!$P$167 -> 0 | D24: =C24 -> 0 | E24: =D24 -> 0 | F24: 0 | G24: 0 | H24: 0 | I24: 0 | J24: 0 | K24: 0 | L24: 0 | M24: 0 | N24: 0 | O24: 0 | P24: 0 | Q24: 0 | R24: 0 | S24: 0 | T24: 0 | U24: 0 | V24: 0 | W24: 0
B25: =title207 -> Total income (USD/year) | C25: =C20*C23+C22 ->  | D25: =D20*D23+D22 -> 
B28: =title208 -> Project lifetime (years) | C28: 20
B29: =title209 -> Lifespan of civil work (years) | C29: =20 -> 20
B30: =title210 -> Lifespan of the system (years) | C30: =20 -> 20
B31: =title211 -> Lifespan of engine generator system (years) | C31: =20 -> 20
B32: =title212 -> Lifespan of electrical distribution system (years) | C32: =20 -> 20
A35: =title213 -> Capital and operating cost
B37: =title199 -> Operating Year | C37: =title217 -> Appraisal | D37: 1 | E37: 2 | F37: 3 | G37: 4 | H37: 5 | I37: 6 | J37: 7 | K37: 8 | L37: 9 | M37: 10 | N37: 11 | O37: 12 | P37: 13 | Q37: 14 | R37: 15 | S37: 16 | T37: 17 | U37: 18 | V37: 19 | W37: 20
B38: =title214 -> Direct capital cost (USD)
B39: Equipments | C39: =COST_OIL3!G59 -> 
B40: Building | C40: =COST_OIL3!G60 -> 0
B41: Installation | C41: =COST_OIL3!G61 -> 0
B42: Distribution network | C42: =COST_OIL3!G62 -> 
B43: =title215 -> Total capital cost (USD) | C43: =SUM(C39:C42) ->  | D43: =D39+D40+D41 -> 0 | E43: 0 | F43: 0 | G43: 0 | H43: 0 | I43: 0 | J43: 0 | K43: 0 | L43: 0 | M43: 0 | N43: 0 | O43: 0 | P43: 0 | Q43: 0 | R43: 0 | S43: 0 | T43: 0 | U43: 0 | V43: 0 | W43: 0
B44: =title216 -> Capital cost (USD/kW) | C44: =C43/C9 -> 
B47: =title199 -> Operating Year | C47: =title217 -> Appraisal | D47: 1 | E47: 2 | F47: 3 | G47: 4 | H47: 5 | I47: 6 | J47: 7 | K47: 8 | L47: 9 | M47: 10 | N47: 11 | O47: 12 | P47: 13 | Q47: 14 | R47: 15 | S47: 16 | T47: 17 | U47: 18 | V47: 19 | W47: 20
B48: =title218 -> Annual operating and maintenance cost
B49: =title219 -> Sub-total material cost (USD) | C49: =C50+C58+C61 ->  | D49: =D50+D58+D61 -> 
B50: =title220 -> Biomass cost (USD/year) | C50: =C51*C52 ->  | D50: =D51*D52 ->  | E50: =E51*E52 -> 
B51: =title221 -> Biomass consumption (t per year) | C51: =+COST_OIL3!$G$36 ->  | D51: =+C51 ->  | E51: =+D51 -> 
B52: =title222 -> Biomass total price (USD/t) | C52: =SUM(C53:C54) -> 0 | D52: =SUM(D53:D54) -> 0 | E52: 0 | F52: 0 | G52: 0 | H52: 0 | I52: 0 | J52: 0 | K52: 0 | L52: 0 | M52: 0 | N52: 0 | O52: 0 | P52: 0 | Q52: 0 | R52: 0 | S52: 0 | T52: 0 | U52: 0 | V52: 0 | W52: 0
B53: =title223 -> Biomass price (USD/t) | C53: =+COST_OIL3!$F$36 -> 0 | D53: =C53*(1+D78+D79) -> 0 | E53: 0 | F53: 0 | G53: 0 | H53: 0 | I53: 0 | J53: 0 | K53: 0 | L53: 0 | M53: 0 | N53: 0 | O53: 0 | P53: 0 | Q53: 0 | R53: 0 | S53: 0 | T53: 0 | U53: 0 | V53: 0 | W53: 0
B54: =title224 -> Biomass transportation cost (USD/t) | C54: =+C55*C56 -> 0 | D54: =C54*(1+D78+D79) -> 0 | E54: 0 | F54: 0 | G54: 0 | H54: 0 | I54: 0 | J54: 0 | K54: 0 | L54: 0 | M54: 0 | N54: 0 | O54: 0 | P54: 0 | Q54: 0 | R54: 0 | S54: 0 | T54: 0 | U54: 0 | V54: 0 | W54: 0
B55: =title225 -> Biomass from farm to plant (USD/t/km) | C55: =+COST_OIL3!$F$49 -> 0
B56: =title226 -> Transportation distant (km) | C56: =+COST_OIL3!$E$22 -> 0
B58: =title227 -> Diesel cost (USD/year) | C58: =C59*C60 ->  | D58: =D59*D60 -> 
B59: =title228 -> Diesel/fuel oil consumption (litres per year) | C59: =+COST_OIL3!$G$37 ->  | D59: =+C59 ->  | E59: =+D59 -> 
B60: =title229 -> Diesel/fuel oil price (USD per litre) | C60: =+COST_OIL3!$F$37 -> 0 | D60: =C60*(1+D78+D79) -> 0 | E60: 0 | F60: 0 | G60: 0 | H60: 0 | I60: 0 | J60: 0 | K60: 0 | L60: 0 | M60: 0 | N60: 0 | O60: 0 | P60: 0 | Q60: 0 | R60: 0 | S60: 0 | T60: 0 | U60: 0 | V60: 0 | W60: 0
B61: =title230 -> Storage cost (USD/year) | C61: =+COST_OIL3!$H$55 ->  | D61: =+C61 ->  | E61: =+D61 -> 
B62: =title231 -> Sub-total operating cost (USD) | C62: =C63+C65+C66 ->  | D62: =D63+D65+D66 -> 
B63: =title232 -> Labour cost (USD) | C63: =COST_OIL3!H45 -> 0 | D63: =C63*(1+D64) -> 0 | E63: 0 | F63: 0 | G63: 0 | H63: 0 | I63: 0 | J63: 0 | K63: 0 | L63: 0 | M63: 0 | N63: 0 | O63: 0 | P63: 0 | Q63: 0 | R63: 0 | S63: 0 | T63: 0 | U63: 0 | V63: 0 | W63: 0
B64: =title233 -> Escalation rate of labour cost (%) | D64: =+COST_OIL3!$P$165 -> 0 | E64: =D64 -> 0 | F64: 0 | G64: 0 | H64: 0 | I64: 0 | J64: 0 | K64: 0 | L64: 0 | M64: 0 | N64: 0 | O64: 0 | P64: 0 | Q64: 0 | R64: 0 | S64: 0 | T64: 0 | U64: 0 | V64: 0 | W64: 0
B65: =title124 -> Plant overhead | C65: =COST_OIL3!H70 ->  | D65: =C65 ->  | E65: =D65 ->  | U65: =T65 -> 
B66: =title125 -> General and administrative cost | C66: =COST_OIL3!H71 ->  | D66: =C66 -> 
B67: =title234 -> Sub-total maintenance cost (USD) | C67: =COST_OIL3!H65 ->  | D67: =C67 -> 
B69: =title235 -> Sub-total of annual fixed cost (USD) | C69: =COST_OIL3!H64 ->  | D69: =C69 ->  | E69: =D69 -> 
B71: =title236 -> Sub-total of storage cost (USD) | C71: =+COST_OIL3!H55 ->  | D71: =C71 ->  | E71: =D71 -> 
B73: =title237 -> Total operation and maintenance cost (USD) | C73: =C49+C62+C67+C69+C71 -> 
B74: =title238 -> Operation and maintenance cost (USD/kWh) without loan interest | C74: =C73/C20 -> 
A76: =title54 -> Financial parameters
B77: =title199 -> Operating Year | C77: =title217 -> Appraisal | D77: 1 | E77: 2 | F77: 3 | G77: 4 | H77: 5 | I77: 6 | J77: 7 | K77: 8 | L77: 9 | M77: 10 | N77: 11 | O77: 12 | P77: 13 | Q77: 14 | R77: 15 | S77: 16 | T77: 17 | U77: 18 | V77: 19 | W77: 20
B78: =title239 -> Raw material cost escalation rate (%) | D78: =+COST_OIL3!$P$166 -> 0 | E78: =D78 -> 0 | F78: =E78 -> 0 | G78: 0 | H78: 0 | I78: 0 | J78: 0 | K78: 0 | L78: 0 | M78: 0 | N78: 0 | O78: 0 | P78: 0 | Q78: 0 | R78: 0 | S78: 0 | T78: 0 | U78: 0 | V78: =U78 -> 0 | W78: =V78 -> 0
B79: Inflation rate (%) | D79: =+COST_OIL3!$N$11 -> 0 | E79: =D79 -> 0 | F79: 0 | G79: 0 | H79: 0 | I79: 0 | J79: 0 | K79: 0 | L79: 0 | M79: 0 | N79: 0 | O79: 0 | P79: 0 | Q79: 0 | R79: 0 | S79: 0 | T79: 0 | U79: 0 | V79: =U79 -> 0 | W79: =V79 -> 0
B80: Discount rate (%) | C80: =+COST_OIL3!$N$10 -> 0
B81: Loan ratio (%) | C81: =+COST_OIL3!$N$13 -> 0
B83: =title313 -> Loan | D83: 1 | E83: 2 | F83: 3 | G83: 4 | H83: 5 | I83: 6 | J83: 7 | K83: 8 | L83: 9 | M83: 10 | N83: 11 | O83: 12 | P83: 13 | Q83: 14 | R83: 15 | S83: 16 | T83: 17 | U83: 18 | V83: 19 | W83: 20
B84: =title138&" (USD)" -> Loan amount (USD) | C84: =C81*C43 -> 
B85: Loan interest rate (%) | C85: =+COST_OIL3!$N$12 -> 0
B86: Loan term (years) | C86: =+COST_OIL3!$N$14 -> 0
B87: =title314 -> Loan payment (USD/month) | C87: =(PMT(C85/12,(12*C86),C84)) -> 
B88: =title315 -> Loan payment (USD/year) | D88: =IF(D77<=$C$86,$C$87*12,0) -> 0 | E88: =IF(E77<=$C$86,$C$87*12,0) -> 0 | F88: 0 | G88: 0 | H88: 0 | I88: 0 | J88: 0 | K88: 0 | L88: 0 | M88: 0 | N88: 0 | O88: 0 | P88: 0 | Q88: 0 | R88: 0 | S88: 0 | T88: 0 | U88: 0 | V88: 0 | W88: 0
B89: =title141&" (USD)" -> Total loan payment (USD) | C89: =SUM(D88:W88) -> 0
B90: =title316 -> Loan interest payment (USD) | C90: =C89+C84 ->  | D90: =title322 -> Average loan interest payment for project lifetime | G90: =C90/C28 ->  | H90: =title323 -> USD per year
A92: =title317 -> Income tax analysis
B93: =title199 -> Operating Year | C93: =title217 -> Appraisal | D93: 1 | E93: 2 | F93: 3 | G93: 4 | H93: 5 | I93: 6 | J93: 7 | K93: 8 | L93: 9 | M93: 10 | N93: 11 | O93: 12 | P93: 13 | Q93: 14 | R93: 15 | S93: 16 | T93: 17 | U93: 18 | V93: 19 | W93: 20
B94: =title318 -> Effective income tax rate (%) | C94: =+COST_OIL3!$F$73 -> 0 | D94: =C94 -> 0 | E94: =D94 -> 0 | F94: 0 | G94: 0 | H94: 0 | I94: 0 | J94: 0 | K94: 0 | L94: 0 | M94: 0 | N94: 0 | O94: 0 | P94: 0 | Q94: 0 | R94: 0 | S94: 0 | T94: 0 | U94: 0 | V94: 0 | W94: 0
B95: =title319 -> Income tax | D95: =IF(D119<0,0,-D94*D119) -> 
B96: =title320 -> Total income tax (USD) | C96: =SUM(D95:W95) -> 
B97: =title321 -> Income tax payment (USD per year) | C97: =C96/$C$28 -> 
A99: Depreciation
B100: =title199 -> Operating Year | C100: =title217 -> Appraisal | D100: 1 | E100: 2 | F100: 3 | G100: 4 | H100: 5 | I100: 6 | J100: 7 | K100: 8 | L100: 9 | M100: 10 | N100: 11 | O100: 12 | P100: 13 | Q100: 14 | R100: 15 | S100: 16 | T100: 17 | U100: 18 | V100: 19 | W100: 20
B101: =title324 -> Depreciation method | C101: =title325 -> Straight-line
B102: Total depreciation (USD) | D102: =COST_OIL3!H64 ->  | E102: =D102 ->  | F102: =E102 -> 
A104: =title326 -> Base case project
A105: =title327 -> Summary of this project - before tax
B106: =title199 -> Operating Year | C106: =title217 -> Appraisal | D106: 1 | E106: 2 | F106: 3 | G106: 4 | H106: 5 | I106: 6 | J106: 7 | K106: 8 | L106: 9 | M106: 10 | N106: 11 | O106: 12 | P106: 13 | Q106: 14 | R106: 15 | S106: 16 | T106: 17 | U106: 18 | V106: 19 | W106: 20
B107: =title328 -> Total revenue (USD) | D107: =D25 ->  | E107: =E25 -> 
B108: =title215 -> Total capital cost (USD) | C108: =-(C43-C84) -> 
B109: =title329 -> Total operating and maintenance cost (USD) | D109: =-D73+D69 -> 
B110: =title139&" (USD)" -> Loan payment (USD) | D110: =D88 -> 0 | E110: =E88 -> 0 | F110: 0 | G110: 0 | H110: 0 | I110: 0 | J110: 0 | K110: 0 | L110: 0 | M110: 0 | N110: 0 | O110: 0 | P110: 0 | Q110: 0 | R110: 0 | S110: 0 | T110: 0 | U110: 0 | V110: 0 | W110: 0
B111: =title330 -> Cash flow - before tax (USD) | C111: =SUM(C107:C110) ->  | D111: =SUM(D107:D110) -> 
A113: =title331 -> Summary of this project - after tax
B114: =title199 -> Operating Year | C114: =title217 -> Appraisal | D114: 1 | E114: 2 | F114: 3 | G114: 4 | H114: 5 | I114: 6 | J114: 7 | K114: 8 | L114: 9 | M114: 10 | N114: 11 | O114: 12 | P114: 13 | Q114: 14 | R114: 15 | S114: 16 | T114: 17 | U114: 18 | V114: 19 | W114: 20
B115: =B107 -> Total revenue (USD) | C115: =C107 -> 0 | D115: =D107 ->  | E115: =E107 -> 
B116: =title329 -> Total operating and maintenance cost (USD) | D116: =-D73+D69 -> 
B117: =title139&" (USD)" -> Loan payment (USD) | D117: =D88 -> 0 | E117: =E88 -> 0 | F117: 0 | G117: 0 | H117: 0 | I117: 0 | J117: 0 | K117: 0 | L117: 0 | M117: 0 | N117: 0 | O117: 0 | P117: 0 | Q117: 0 | R117: 0 | S117: 0 | T117: 0 | U117: 0 | V117: 0 | W117: 0
B118: =title332 -> Depreciation of fixed cost (USD) | D118: =-D102 ->  | E118: =-E102 -> 
B119: =title333 -> Net Profit - before tax (USD) for income tax calculation | C119: =SUM(C115:C118) -> 0 | D119: =SUM(D115:D118) -> 
B120: =title319 -> Income tax | D120: =D95 ->  | E120: =E95 -> 
B121: =title334 -> Cash flow - after tax (USD) | C121: =C108 ->  | D121: =D111+D120 ->  | E121: =E111+E120 -> 
A123: =title335 -> Cumulative value of Net Profit
B124: =title199 -> Operating Year | C124: =title217 -> Appraisal | D124: 1 | E124: 2 | F124: 3 | G124: 4 | H124: 5 | I124: 6 | J124: 7 | K124: 8 | L124: 9 | M124: 10 | N124: 11 | O124: 12 | P124: 13 | Q124: 14 | R124: 15 | S124: 16 | T124: 17 | U124: 18 | V124: 19 | W124: 20
B125: =title337 -> Cumulative value of Net Profit - before tax | C125: =C111 ->  | D125: =C125+(D111) -> 
B126: =title338 -> Cumulative value of Net Profit - after tax | C126: =C121 ->  | D126: =C126+(D121) -> 
A128: =title336 -> Financial Analysis Result
B130: =title339 -> Net Present Value (NPV) (USD) - before tax | C130: =NPV(C80,D111:W111)+C111 -> 
B131: =title340 -> Internal Rate of Return (IRR) (%) - before tax | C131: =IF(C130<0,title353,IRR(C111:W111,0.001)) -> 
B132: =title341 -> Payback period (years) | C132: =title345 -> Please see Figure of the cumulative value of Net Profit - before tax
B135: =title342 -> Net Present Value (NPV) (USD) - after tax | C135: =NPV(C80,D121:W121)+C121 -> 
B136: =title343 -> Internal Rate of Return (IRR) (%) - after tax | C136: =IF(C135<0,title353,IRR(C121:W121,0.000001)) -> 
B137: =title341 -> Payback period (years) | C137: =title346 -> Please see Figure of the cumulative value of Net Profit - after tax
B138: =title344 -> Total income tax payment of project lifetime | C138: =SUM(D120:W120) -> 

Sheet FA40kW_OIL3 (hidden)
B2: =title347 -> FINANCIAL EVALUATION OF SVO + RURAL ELECTRIFICATION 40 kW PROJECT
A5: =title198 -> Revenues of SVO and power generation system
B7: =title199 -> Operating Year | C7: 0 | D7: 1 | E7: 2 | F7: 3 | G7: 4 | H7: 5 | I7: 6 | J7: 7 | K7: 8 | L7: 9 | M7: 10 | N7: 11 | O7: 12 | P7: 13 | Q7: 14 | R7: 15 | S7: 16 | T7: 17 | U7: 18 | V7: 19 | W7: 20
B9: =title200 -> Power generation capacity (kW) | C9: =COST_OIL3!$I$30 -> 40 | D9: =C9 -> 40 | E9: =D9 -> 40 | F9: 40 | G9: 40 | H9: 40 | I9: 40 | J9: 40 | K9: 40 | L9: 40 | M9: 40 | N9: 40 | O9: 40 | P9: 40 | Q9: 40 | R9: 40 | S9: 40 | T9: 40 | U9: 40 | V9: 40 | W9: 40
B12: Power loss due to operation (%) | C12: =+COST_OIL3!$I$17 -> 0 | D12: =+C12 -> 0 | E12: =+D12 -> 0 | F12: 0 | G12: 0 | H12: 0 | I12: 0 | J12: 0 | K12: 0 | L12: 0 | M12: 0 | N12: 0 | O12: 0 | P12: 0 | Q12: 0 | R12: 0 | S12: 0 | T12: 0 | U12: 0 | V12: 0 | W12: 0
B14: Operating hours per year | C14: =COST_OIL3!$J$31 -> 0 | D14: =C14 -> 0 | E14: =D14 -> 0 | F14: 0 | G14: 0 | H14: 0 | I14: 0 | J14: 0 | K14: 0 | L14: 0 | M14: 0 | N14: 0 | O14: 0 | P14: 0 | Q14: 0 | R14: 0 | S14: 0 | T14: 0 | U14: 0 | V14: 0 | W14: 0
B15: Capacity utilization factor | C15: =C14/8760 -> 0 | D15: =D14/8760 -> 0 | E15: 0 | F15: 0 | G15: 0 | H15: 0 | I15: 0 | J15: 0 | K15: 0 | L15: 0 | M15: 0 | N15: 0 | O15: 0 | P15: 0 | Q15: 0 | R15: 0 | S15: 0 | T15: 0 | U15: 0 | V15: 0 | W15: 0
B17: =title201 -> Electricity generation (kWh per year) | C17: =C9*C14*(1-C12) -> 0 | D17: 0 | E17: 0 | F17: 0 | G17: 0 | H17: 0 | I17: 0 | J17: 0 | K17: 0 | L17: 0 | M17: 0 | N17: 0 | O17: 0 | P17: 0 | Q17: 0 | R17: 0 | S17: 0 | T17: 0 | U17: 0 | V17: 0 | W17: 0
B18: =title202 -> Electricity - self use (kWh per year) | C18: =C17*10% -> 0 | D18: =D17*10% -> 0 | E18: 0 | F18: 0 | G18: 0 | H18: 0 | I18: 0 | J18: 0 | K18: 0 | L18: 0 | M18: 0 | N18: 0 | O18: 0 | P18: 0 | Q18: 0 | R18: 0 | S18: 0 | T18: 0 | U18: 0 | V18: 0 | W18: 0
B19: =title82&" "&title84 -> Power loss in distribution network (kWh per year) | C19: =C17*COST_OIL3!$I$16 -> 0 | D19: =C19 -> 0 | E19: =D19 -> 0 | F19: 0 | G19: 0 | H19: 0 | I19: 0 | J19: 0 | K19: 0 | L19: 0 | M19: 0 | N19: 0 | O19: 0 | P19: 0 | Q19: 0 | R19: 0 | S19: 0 | T19: 0 | U19: 0 | V19: 0 | W19: 0
B20: =title203 -> Total power sold to customers (kWh/year) | C20: =C17-C18-C19 -> 0 | D20: =D17-D18-D19 -> 0 | E20: 0 | F20: 0 | G20: 0 | H20: 0 | I20: 0 | J20: 0 | K20: 0 | L20: 0 | M20: 0 | N20: 0 | O20: 0 | P20: 0 | Q20: 0 | R20: 0 | S20: 0 | T20: 0 | U20: 0 | V20: 0 | W20: 0
B22: =title204 -> Revenue from meal by-product (USD/year) | C22: =+IF('Energy Demand'!$C$43="",0,'Energy Demand'!$J$43) ->  | D22: =+C22 ->  | E22: =+D22 -> 
B23: =title205 -> Price of electricity (USD/kWh) | C23: =+COST_OIL3!$N$15 -> 0 | D23: =C23*(1+D24) -> 0 | E23: =D23*(1+E24) -> 0 | F23: =E23*(1+F24) -> 0 | G23: 0 | H23: 0 | I23: 0 | J23: 0 | K23: 0 | L23: 0 | M23: 0 | N23: 0 | O23: 0 | P23: 0 | Q23: 0 | R23: 0 | S23: 0 | T23: 0 | U23: 0 | V23: 0 | W23: 0
B24: =title206 -> Increasing rate of price of electricity (%) | C24: =+COST_OIL3!$P$167 -> 0 | D24: =C24 -> 0 | E24: =D24 -> 0 | F24: 0 | G24: 0 | H24: 0 | I24: 0 | J24: 0 | K24: 0 | L24: 0 | M24: 0 | N24: 0 | O24: 0 | P24: 0 | Q24: 0 | R24: 0 | S24: 0 | T24: 0 | U24: 0 | V24: 0 | W24: 0
B25: =title207 -> Total income (USD/year) | C25: =C20*C23+C22 ->  | D25: =D20*D23+D22 -> 
B28: =title208 -> Project lifetime (years) | C28: 20
B29: =title209 -> Lifespan of civil work (years) | C29: =20 -> 20
B30: =title210 -> Lifespan of the system (years) | C30: =20 -> 20
B31: =title211 -> Lifespan of engine generator system (years) | C31: =20 -> 20
B32: =title212 -> Lifespan of electrical distribution system (years) | C32: =20 -> 20
A35: =title213 -> Capital and operating cost
B37: =title199 -> Operating Year | C37: =title217 -> Appraisal | D37: 1 | E37: 2 | F37: 3 | G37: 4 | H37: 5 | I37: 6 | J37: 7 | K37: 8 | L37: 9 | M37: 10 | N37: 11 | O37: 12 | P37: 13 | Q37: 14 | R37: 15 | S37: 16 | T37: 17 | U37: 18 | V37: 19 | W37: 20
B38: =title214 -> Direct capital cost (USD)
B39: Equipments | C39: =COST_OIL3!I59 -> 
B40: Building | C40: =COST_OIL3!I60 -> 0
B41: Installation | C41: =COST_OIL3!I61 -> 0
B42: Distribution network | C42: =COST_OIL3!I62 -> 
B43: =title215 -> Total capital cost (USD) | C43: =SUM(C39:C42) ->  | D43: =D39+D40+D41 -> 0 | E43: 0 | F43: 0 | G43: 0 | H43: 0 | I43: 0 | J43: 0 | K43: 0 | L43: 0 | M43: 0 | N43: 0 | O43: 0 | P43: 0 | Q43: 0 | R43: 0 | S43: 0 | T43: 0 | U43: 0 | V43: 0 | W43: 0
B44: =title216 -> Capital cost (USD/kW) | C44: =C43/C9 -> 
B47: =title199 -> Operating Year | C47: =title217 -> Appraisal | D47: 1 | E47: 2 | F47: 3 | G47: 4 | H47: 5 | I47: 6 | J47: 7 | K47: 8 | L47: 9 | M47: 10 | N47: 11 | O47: 12 | P47: 13 | Q47: 14 | R47: 15 | S47: 16 | T47: 17 | U47: 18 | V47: 19 | W47: 20
B48: =title218 -> Annual operating and maintenance cost
B49: =title219 -> Sub-total material cost (USD) | C49: =C50+C58+C61 ->  | D49: =D50+D58+D61 -> 
B50: =title220 -> Biomass cost (USD/year) | C50: =C51*C52 ->  | D50: =D51*D52 ->  | E50: =E51*E52 -> 
B51: =title221 -> Biomass consumption (t per year) | C51: =+COST_OIL3!$I$36 ->  | D51: =+C51 ->  | E51: =+D51 -> 
B52: =title222 -> Biomass total price (USD/t) | C52: =SUM(C53:C54) -> 0 | D52: =SUM(D53:D54) -> 0 | E52: 0 | F52: 0 | G52: 0 | H52: 0 | I52: 0 | J52: 0 | K52: 0 | L52: 0 | M52: 0 | N52: 0 | O52: 0 | P52: 0 | Q52: 0 | R52: 0 | S52: 0 | T52: 0 | U52: 0 | V52: 0 | W52: 0
B53: =title223 -> Biomass price (USD/t) | C53: =+COST_OIL3!$F$36 -> 0 | D53: =C53*(1+D78+D79) -> 0 | E53: 0 | F53: 0 | G53: 0 | H53: 0 | I53: 0 | J53: 0 | K53: 0 | L53: 0 | M53: 0 | N53: 0 | O53: 0 | P53: 0 | Q53: 0 | R53: 0 | S53: 0 | T53: 0 | U53: 0 | V53: 0 | W53: 0
B54: =title224 -> Biomass transportation cost (USD/t) | C54: =+C55*C56 -> 0 | D54: =C54*(1+D78+D79) -> 0 | E54: 0 | F54: 0 | G54: 0 | H54: 0 | I54: 0 | J54: 0 | K54: 0 | L54: 0 | M54: 0 | N54: 0 | O54: 0 | P54: 0 | Q54: 0 | R54: 0 | S54: 0 | T54: 0 | U54: 0 | V54: 0 | W54: 0
B55: =title225 -> Biomass from farm to plant (USD/t/km) | C55: =+COST_OIL3!$F$49 -> 0
B56: =title226 -> Transportation distant (km) | C56: =+COST_OIL3!$E$23 -> 0
B58: =title227 -> Diesel cost (USD/year) | C58: =C59*C60 ->  | D58: =D59*D60 -> 
B59: =title228 -> Diesel/fuel oil consumption (litres per year) | C59: =+COST_OIL3!$I$37 ->  | D59: =+C59 ->  | E59: =+D59 -> 
B60: =title229 -> Diesel/fuel oil price (USD per litre) | C60: =+COST_OIL3!$F$37 -> 0 | D60: =C60*(1+D78+D79) -> 0 | E60: 0 | F60: 0 | G60: 0 | H60: 0 | I60: 0 | J60: 0 | K60: 0 | L60: 0 | M60: 0 | N60: 0 | O60: 0 | P60: 0 | Q60: 0 | R60: 0 | S60: 0 | T60: 0 | U60: 0 | V60: 0 | W60: 0
B61: =title230 -> Storage cost (USD/year) | C61: =+COST_OIL3!$J$55 ->  | D61: =+C61 ->  | E61: =+D61 -> 
B62: =title231 -> Sub-total operating cost (USD) | C62: =C63+C65+C66 ->  | D62: =D63+D65+D66 -> 
B63: =title232 -> Labour cost (USD) | C63: =COST_OIL3!J45 -> 0 | D63: =C63*(1+D64) -> 0 | E63: 0 | F63: 0 | G63: 0 | H63: 0 | I63: 0 | J63: 0 | K63: 0 | L63: 0 | M63: 0 | N63: 0 | O63: 0 | P63: 0 | Q63: 0 | R63: 0 | S63: 0 | T63: 0 | U63: 0 | V63: 0 | W63: 0
B64: =title233 -> Escalation rate of labour cost (%) | D64: =+COST_OIL3!$P$165 -> 0 | E64: =D64 -> 0 | F64: 0 | G64: 0 | H64: 0 | I64: 0 | J64: 0 | K64: 0 | L64: 0 | M64: 0 | N64: 0 | O64: 0 | P64: 0 | Q64: 0 | R64: 0 | S64: 0 | T64: 0 | U64: 0 | V64: =U64 -> 0 | W64: 0
B65: =title124 -> Plant overhead | C65: =COST_OIL3!J70 ->  | D65: =C65 ->  | E65: =D65 -> 
B66: =title125 -> General and administrative cost | C66: =COST_OIL3!J71 ->  | D66: =C66 -> 
B67: =title234 -> Sub-total maintenance cost (USD) | C67: =COST_OIL3!J65 ->  | D67: =C67 -> 
B69: =title235 -> Sub-total of annual fixed cost (USD) | C69: =COST_OIL3!J64 ->  | D69: =C69 ->  | E69: =D69 -> 
B71: =title236 -> Sub-total of storage cost (USD) | C71: =+COST_OIL3!J55 ->  | D71: =C71 ->  | E71: =D71 -> 
B73: =title237 -> Total operation and maintenance cost (USD) | C73: =C49+C62+C67+C69+C71 -> 
B74: =title238 -> Operation and maintenance cost (USD/kWh) without loan interest | C74: =C73/C20 -> 
A76: =title54 -> Financial parameters
B77: =title199 -> Operating Year | C77: =title217 -> Appraisal | D77: 1 | E77: 2 | F77: 3 | G77: 4 | H77: 5 | I77: 6 | J77: 7 | K77: 8 | L77: 9 | M77: 10 | N77: 11 | O77: 12 | P77: 13 | Q77: 14 | R77: 15 | S77: 16 | T77: 17 | U77: 18 | V77: 19 | W77: 20
B78: =title239 -> Raw material cost escalation rate (%) | D78: =+COST_OIL3!$P$166 -> 0 | E78: =D78 -> 0 | F78: =E78 -> 0 | G78: 0 | H78: 0 | I78: 0 | J78: 0 | K78: 0 | L78: 0 | M78: 0 | N78: 0 | O78: 0 | P78: 0 | Q78: 0 | R78: 0 | S78: 0 | T78: 0 | U78: 0 | V78: =U78 -> 0 | W78: =V78 -> 0
B79: Inflation rate (%) | D79: =+COST_OIL3!$N$11 -> 0 | E79: =D79 -> 0 | F79: 0 | G79: 0 | H79: 0 | I79: 0 | J79: 0 | K79: 0 | L79: 0 | M79: 0 | N79: 0 | O79: 0 | P79: 0 | Q79: 0 | R79: 0 | S79: 0 | T79: 0 | U79: 0 | V79: =U79 -> 0 | W79: =V79 -> 0
B80: Discount rate (%) | C80: =+COST_OIL3!$N$10 -> 0
B81: Loan ratio (%) | C81: =+COST_OIL3!$N$13 -> 0
B83: =title313 -> Loan | D83: 1 | E83: 2 | F83: 3 | G83: 4 | H83: 5 | I83: 6 | J83: 7 | K83: 8 | L83: 9 | M83: 10 | N83: 11 | O83: 12 | P83: 13 | Q83: 14 | R83: 15 | S83: 16 | T83: 17 | U83: 18 | V83: 19 | W83: 20
B84: =title138&" (USD)" -> Loan amount (USD) | C84: =C81*C43 -> 
B85: Loan interest rate (%) | C85: =+COST_OIL3!$N$12 -> 0
B86: Loan term (years) | C86: =+COST_OIL3!$N$14 -> 0
B87: =title314 -> Loan payment (USD/month) | C87: =(PMT(C85/12,(12*C86),C84)) -> 
B88: =title315 -> Loan payment (USD/year) | D88: =IF(D77<=$C$86,$C$87*12,0) -> 0 | E88: =IF(E77<=$C$86,$C$87*12,0) -> 0 | F88: 0 | G88: 0 | H88: 0 | I88: 0 | J88: 0 | K88: 0 | L88: 0 | M88: 0 | N88: 0 | O88: 0 | P88: 0 | Q88: 0 | R88: 0 | S88: 0 | T88: 0 | U88: 0 | V88: 0 | W88: 0
B89: =title141&" (USD)" -> Total loan payment (USD) | C89: =SUM(D88:W88) -> 0
B90: =title316 -> Loan interest payment (USD) | C90: =C89+C84 ->  | D90: =title322 -> Average loan interest payment for project lifetime | G90: =C90/C28 ->  | H90: =title323 -> USD per year
A92: =title317 -> Income tax analysis
B93: =title199 -> Operating Year | C93: =title217 -> Appraisal | D93: 1 | E93: 2 | F93: 3 | G93: 4 | H93: 5 | I93: 6 | J93: 7 | K93: 8 | L93: 9 | M93: 10 | N93: 11 | O93: 12 | P93: 13 | Q93: 14 | R93: 15 | S93: 16 | T93: 17 | U93: 18 | V93: 19 | W93: 20
B94: =title318 -> Effective income tax rate (%) | C94: =+COST_OIL3!$F$73 -> 0 | D94: =C94 -> 0 | E94: =D94 -> 0 | F94: 0 | G94: 0 | H94: 0 | I94: 0 | J94: 0 | K94: 0 | L94: 0 | M94: 0 | N94: 0 | O94: 0 | P94: 0 | Q94: 0 | R94: 0 | S94: 0 | T94: 0 | U94: 0 | V94: 0 | W94: 0
B95: =title319 -> Income tax | D95: =IF(D119<0,0,-D94*D119) -> 
B96: =title320 -> Total income tax (USD) | C96: =SUM(D95:W95) -> 
B97: =title321 -> Income tax payment (USD per year) | C97: =C96/$C$28 -> 
A99: Depreciation
B100: =title199 -> Operating Year | C100: =title217 -> Appraisal | D100: 1 | E100: 2 | F100: 3 | G100: 4 | H100: 5 | I100: 6 | J100: 7 | K100: 8 | L100: 9 | M100: 10 | N100: 11 | O100: 12 | P100: 13 | Q100: 14 | R100: 15 | S100: 16 | T100: 17 | U100: 18 | V100: 19 | W100: 20
B101: =title324 -> Depreciation method | C101: =title325 -> Straight-line
B102: Total depreciation (USD) | D102: =COST_OIL3!J64 ->  | E102: =D102 ->  | F102: =E102 -> 
A104: =title326 -> Base case project
A105: =title327 -> Summary of this project - before tax
B106: =title199 -> Operating Year | C106: =title217 -> Appraisal | D106: 1 | E106: 2 | F106: 3 | G106: 4 | H106: 5 | I106: 6 | J106: 7 | K106: 8 | L106: 9 | M106: 10 | N106: 11 | O106: 12 | P106: 13 | Q106: 14 | R106: 15 | S106: 16 | T106: 17 | U106: 18 | V106: 19 | W106: 20
B107: =title328 -> Total revenue (USD) | D107: =D25 ->  | E107: =E25 -> 
B108: =title215 -> Total capital cost (USD) | C108: =-(C43-C84) -> 
B109: =title329 -> Total operating and maintenance cost (USD) | D109: =-D73+D69 -> 
B110: =title139&" (USD)" -> Loan payment (USD) | D110: =D88 -> 0 | E110: =E88 -> 0 | F110: 0 | G110: 0 | H110: 0 | I110: 0 | J110: 0 | K110: 0 | L110: 0 | M110: 0 | N110: 0 | O110: 0 | P110: 0 | Q110: 0 | R110: 0 | S110: 0 | T110: 0 | U110: 0 | V110: 0 | W110: 0
B111: =title330 -> Cash flow - before tax (USD) | C111: =SUM(C107:C110) ->  | D111: =SUM(D107:D110) -> 
A113: =title331 -> Summary of this project - after tax
B114: =title199 -> Operating Year | C114: =title217 -> Appraisal | D114: 1 | E114: 2 | F114: 3 | G114: 4 | H114: 5 | I114: 6 | J114: 7 | K114: 8 | L114: 9 | M114: 10 | N114: 11 | O114: 12 | P114: 13 | Q114: 14 | R114: 15 | S114: 16 | T114: 17 | U114: 18 | V114: 19 | W114: 20
B115: =B107 -> Total revenue (USD) | C115: =C107 -> 0 | D115: =D107 ->  | E115: =E107 -> 
B116: =title329 -> Total operating and maintenance cost (USD) | D116: =-D73+D69 -> 
B117: =title139&" (USD)" -> Loan payment (USD) | D117: =D88 -> 0 | E117: =E88 -> 0 | F117: 0 | G117: 0 | H117: 0 | I117: 0 | J117: 0 | K117: 0 | L117: 0 | M117: 0 | N117: 0 | O117: 0 | P117: 0 | Q117: 0 | R117: 0 | S117: 0 | T117: 0 | U117: 0 | V117: 0 | W117: 0
B118: =title332 -> Depreciation of fixed cost (USD) | D118: =-D102 ->  | E118: =-E102 -> 
B119: =title333 -> Net Profit - before tax (USD) for income tax calculation | C119: =SUM(C115:C118) -> 0 | D119: =SUM(D115:D118) -> 
B120: =title319 -> Income tax | D120: =D95 ->  | E120: =E95 -> 
B121: =title334 -> Cash flow - after tax (USD) | C121: =C108 ->  | D121: =D111+D120 ->  | E121: =E111+E120 -> 
A123: =title335 -> Cumulative value of Net Profit
B124: =title199 -> Operating Year | C124: =title217 -> Appraisal | D124: 1 | E124: 2 | F124: 3 | G124: 4 | H124: 5 | I124: 6 | J124: 7 | K124: 8 | L124: 9 | M124: 10 | N124: 11 | O124: 12 | P124: 13 | Q124: 14 | R124: 15 | S124: 16 | T124: 17 | U124: 18 | V124: 19 | W124: 20
B125: =title337 -> Cumulative value of Net Profit - before tax | C125: =C111 ->  | D125: =C125+(D111) -> 
B126: =title338 -> Cumulative value of Net Profit - after tax | C126: =C121 ->  | D126: =C126+(D121) -> 
A128: =title336 -> Financial Analysis Result
B130: =title339 -> Net Present Value (NPV) (USD) - before tax | C130: =NPV(C80,D111:W111)+C111 -> 
B131: =title340 -> Internal Rate of Return (IRR) (%) - before tax | C131: =IF(C130<0,title353,IRR(C111:W111,0.001)) -> 
B132: =title341 -> Payback period (years) | C132: =title345 -> Please see Figure of the cumulative value of Net Profit - before tax
B135: =title342 -> Net Present Value (NPV) (USD) - after tax | C135: =NPV(C80,D121:W121)+C121 -> 
B136: =title343 -> Internal Rate of Return (IRR) (%) - after tax | C136: =IF(C135<0,title353,IRR(C121:W121,0.000001)) -> 
B137: =title341 -> Payback period (years) | C137: =title346 -> Please see Figure of the cumulative value of Net Profit - after tax
B138: =title344 -> Total income tax payment of project lifetime | C138: =SUM(D120:W120) -> 

Sheet FA100kW_OIL3 (hidden)
B2: =title348 -> FINANCIAL EVALUATION OF SVO + RURAL ELECTRIFICATION 100 kW PROJECT
A5: =title198 -> Revenues of SVO and power generation system
B7: =title199 -> Operating Year | C7: 0 | D7: 1 | E7: 2 | F7: 3 | G7: 4 | H7: 5 | I7: 6 | J7: 7 | K7: 8 | L7: 9 | M7: 10 | N7: 11 | O7: 12 | P7: 13 | Q7: 14 | R7: 15 | S7: 16 | T7: 17 | U7: 18 | V7: 19 | W7: 20
B9: =title200 -> Power generation capacity (kW) | C9: =COST_OIL3!$K$30 -> 100 | D9: =C9 -> 100 | E9: =D9 -> 100 | F9: 100 | G9: 100 | H9: 100 | I9: 100 | J9: 100 | K9: 100 | L9: 100 | M9: 100 | N9: 100 | O9: 100 | P9: 100 | Q9: 100 | R9: 100 | S9: 100 | T9: 100 | U9: 100 | V9: 100 | W9: 100
B12: Power loss due to operation (%) | C12: =+COST_OIL3!$I$17 -> 0 | D12: =+C12 -> 0 | E12: =+D12 -> 0 | F12: 0 | G12: 0 | H12: 0 | I12: 0 | J12: 0 | K12: 0 | L12: 0 | M12: 0 | N12: 0 | O12: 0 | P12: 0 | Q12: 0 | R12: 0 | S12: 0 | T12: 0 | U12: 0 | V12: 0 | W12: 0
B14: Operating hours per year | C14: =COST_OIL3!$L$31 -> 0 | D14: =C14 -> 0 | E14: =D14 -> 0 | F14: 0 | G14: 0 | H14: 0 | I14: 0 | J14: 0 | K14: 0 | L14: 0 | M14: 0 | N14: 0 | O14: 0 | P14: 0 | Q14: 0 | R14: 0 | S14: 0 | T14: 0 | U14: 0 | V14: 0 | W14: 0
B15: Capacity utilization factor | C15: =C14/8760 -> 0 | D15: =D14/8760 -> 0 | E15: 0 | F15: 0 | G15: 0 | H15: 0 | I15: 0 | J15: 0 | K15: 0 | L15: 0 | M15: 0 | N15: 0 | O15: 0 | P15: 0 | Q15: 0 | R15: 0 | S15: 0 | T15: 0 | U15: 0 | V15: 0 | W15: 0
B17: =title201 -> Electricity generation (kWh per year) | C17: =C9*C14*(1-C12) -> 0 | D17: 0 | E17: 0 | F17: 0 | G17: 0 | H17: 0 | I17: 0 | J17: 0 | K17: 0 | L17: 0 | M17: 0 | N17: 0 | O17: 0 | P17: 0 | Q17: 0 | R17: 0 | S17: 0 | T17: 0 | U17: 0 | V17: 0 | W17: 0
B18: =title202 -> Electricity - self use (kWh per year) | C18: =C17*10% -> 0 | D18: =D17*10% -> 0 | E18: 0 | F18: 0 | G18: 0 | H18: 0 | I18: 0 | J18: 0 | K18: 0 | L18: 0 | M18: 0 | N18: 0 | O18: 0 | P18: 0 | Q18: 0 | R18: 0 | S18: 0 | T18: 0 | U18: 0 | V18: 0 | W18: 0
B19: =title82&" "&title84 -> Power loss in distribution network (kWh per year) | C19: =C17*COST_OIL3!$I$16 -> 0 | D19: =C19 -> 0 | E19: =D19 -> 0 | F19: 0 | G19: 0 | H19: 0 | I19: 0 | J19: 0 | K19: 0 | L19: 0 | M19: 0 | N19: 0 | O19: 0 | P19: 0 | Q19: 0 | R19: 0 | S19: 0 | T19: 0 | U19: 0 | V19: 0 | W19: 0
B20: =title203 -> Total power sold to customers (kWh/year) | C20: =C17-C18-C19 -> 0 | D20: =D17-D18-D19 -> 0 | E20: 0 | F20: 0 | G20: 0 | H20: 0 | I20: 0 | J20: 0 | K20: 0 | L20: 0 | M20: 0 | N20: 0 | O20: 0 | P20: 0 | Q20: 0 | R20: 0 | S20: 0 | T20: 0 | U20: 0 | V20: 0 | W20: 0
B22: =title204 -> Revenue from meal by-product (USD/year) | C22: =+IF('Energy Demand'!$C$43="",0,'Energy Demand'!$L$43) ->  | D22: =+C22 ->  | E22: =+D22 -> 
B23: =title205 -> Price of electricity (USD/kWh) | C23: =+COST_OIL3!$N$15 -> 0 | D23: =C23*(1+D24) -> 0 | E23: =D23*(1+E24) -> 0 | F23: =E23*(1+F24) -> 0 | G23: 0 | H23: 0 | I23: 0 | J23: 0 | K23: 0 | L23: 0 | M23: 0 | N23: 0 | O23: 0 | P23: 0 | Q23: 0 | R23: 0 | S23: 0 | T23: 0 | U23: 0 | V23: 0 | W23: 0
B24: =title206 -> Increasing rate of price of electricity (%) | C24: =+COST_OIL3!$P$167 -> 0 | D24: =C24 -> 0 | E24: =D24 -> 0 | F24: 0 | G24: 0 | H24: 0 | I24: 0 | J24: 0 | K24: 0 | L24: 0 | M24: 0 | N24: 0 | O24: 0 | P24: 0 | Q24: 0 | R24: 0 | S24: 0 | T24: 0 | U24: 0 | V24: 0 | W24: 0
B25: =title207 -> Total income (USD/year) | C25: =C20*C23+C22 ->  | D25: =D20*D23+D22 -> 
B28: =title208 -> Project lifetime (years) | C28: 20
B29: =title209 -> Lifespan of civil work (years) | C29: =20 -> 20
B30: =title210 -> Lifespan of the system (years) | C30: =20 -> 20
B31: =title211 -> Lifespan of engine generator system (years) | C31: =20 -> 20
B32: =title212 -> Lifespan of electrical distribution system (years) | C32: =20 -> 20
A35: =title213 -> Capital and operating cost
B37: =title199 -> Operating Year | C37: =title217 -> Appraisal | D37: 1 | E37: 2 | F37: 3 | G37: 4 | H37: 5 | I37: 6 | J37: 7 | K37: 8 | L37: 9 | M37: 10 | N37: 11 | O37: 12 | P37: 13 | Q37: 14 | R37: 15 | S37: 16 | T37: 17 | U37: 18 | V37: 19 | W37: 20
B38: =title214 -> Direct capital cost (USD)
B39: Equipments | C39: =COST_OIL3!K59 -> 
B40: Building | C40: =COST_OIL3!K60 -> 0
B41: Installation | C41: =COST_OIL3!K61 -> 0
B42: Distribution network | C42: =COST_OIL3!K62 -> 
B43: =title215 -> Total capital cost (USD) | C43: =SUM(C39:C42) ->  | D43: =D39+D40+D41 -> 0 | E43: 0 | F43: 0 | G43: 0 | H43: 0 | I43: 0 | J43: 0 | K43: 0 | L43: 0 | M43: 0 | N43: 0 | O43: 0 | P43: 0 | Q43: 0 | R43: 0 | S43: 0 | T43: 0 | U43: 0 | V43: 0 | W43: 0
B44: =title216 -> Capital cost (USD/kW) | C44: =C43/C9 -> 
B47: =title199 -> Operating Year | C47: =title217 -> Appraisal | D47: 1 | E47: 2 | F47: 3 | G47: 4 | H47: 5 | I47: 6 | J47: 7 | K47: 8 | L47: 9 | M47: 10 | N47: 11 | O47: 12 | P47: 13 | Q47: 14 | R47: 15 | S47: 16 | T47: 17 | U47: 18 | V47: 19 | W47: 20
B48: =title218 -> Annual operating and maintenance cost
B49: =title219 -> Sub-total material cost (USD) | C49: =C50+C58+C61 ->  | D49: =D50+D58+D61 -> 
B50: =title220 -> Biomass cost (USD/year) | C50: =C51*C52 ->  | D50: =D51*D52 ->  | E50: =E51*E52 -> 
B51: =title221 -> Biomass consumption (t per year) | C51: =+COST_OIL3!$K$36 ->  | D51: =+C51 ->  | E51: =+D51 -> 
B52: =title222 -> Biomass total price (USD/t) | C52: =SUM(C53:C54) -> 0 | D52: =SUM(D53:D54) -> 0 | E52: 0 | F52: 0 | G52: 0 | H52: 0 | I52: 0 | J52: 0 | K52: 0 | L52: 0 | M52: 0 | N52: 0 | O52: 0 | P52: 0 | Q52: 0 | R52: 0 | S52: 0 | T52: 0 | U52: 0 | V52: 0 | W52: 0
B53: =title223 -> Biomass price (USD/t) | C53: =+COST_OIL3!$F$36 -> 0 | D53: =C53*(1+D78+D79) -> 0 | E53: 0 | F53: 0 | G53: 0 | H53: 0 | I53: 0 | J53: 0 | K53: 0 | L53: 0 | M53: 0 | N53: 0 | O53: 0 | P53: 0 | Q53: 0 | R53: 0 | S53: 0 | T53: 0 | U53: 0 | V53: 0 | W53: 0
B54: =title224 -> Biomass transportation cost (USD/t) | C54: =+C55*C56 -> 0 | D54: =C54*(1+D78+D79) -> 0 | E54: 0 | F54: 0 | G54: 0 | H54: 0 | I54: 0 | J54: 0 | K54: 0 | L54: 0 | M54: 0 | N54: 0 | O54: 0 | P54: 0 | Q54: 0 | R54: 0 | S54: 0 | T54: 0 | U54: 0 | V54: 0 | W54: 0
B55: =title225 -> Biomass from farm to plant (USD/t/km) | C55: =+COST_OIL3!$F$49 -> 0
B56: =title226 -> Transportation distant (km) | C56: =+COST_OIL3!$K$22 -> 0
B58: =title227 -> Diesel cost (USD/year) | C58: =C59*C60 ->  | D58: =D59*D60 -> 
B59: =title228 -> Diesel/fuel oil consumption (litres per year) | C59: =+COST_OIL3!$K$37 ->  | D59: =+C59 ->  | E59: =+D59 -> 
B60: =title229 -> Diesel/fuel oil price (USD per litre) | C60: =+COST_OIL3!$F$37 -> 0 | D60: =C60*(1+D78+D79) -> 0 | E60: 0 | F60: 0 | G60: 0 | H60: 0 | I60: 0 | J60: 0 | K60: 0 | L60: 0 | M60: 0 | N60: 0 | O60: 0 | P60: 0 | Q60: 0 | R60: 0 | S60: 0 | T60: 0 | U60: 0 | V60: 0 | W60: 0
B61: =title230 -> Storage cost (USD/year) | C61: =+COST_OIL3!$L$55 ->  | D61: =+C61 ->  | E61: =+D61 -> 
B62: =title231 -> Sub-total operating cost (USD) | C62: =C63+C65+C66 ->  | D62: =D63+D65+D66 -> 
B63: =title232 -> Labour cost (USD) | C63: =COST_OIL3!L45 -> 0 | D63: =C63*(1+D64) -> 0 | E63: 0 | F63: 0 | G63: 0 | H63: 0 | I63: 0 | J63: 0 | K63: 0 | L63: 0 | M63: 0 | N63: 0 | O63: 0 | P63: 0 | Q63: 0 | R63: 0 | S63: 0 | T63: 0 | U63: 0 | V63: 0 | W63: 0
B64: =title233 -> Escalation rate of labour cost (%) | D64: =+COST_OIL3!$P$165 -> 0 | E64: =D64 -> 0 | F64: 0 | G64: 0 | H64: 0 | I64: 0 | J64: 0 | K64: 0 | L64: 0 | M64: 0 | N64: 0 | O64: 0 | P64: 0 | Q64: 0 | R64: 0 | S64: 0 | T64: 0 | U64: 0 | V64: =U64 -> 0 | W64: 0
B65: =title124 -> Plant overhead | C65: =COST_OIL3!L70 ->  | D65: =C65 ->  | E65: =D65 -> 
B66: =title125 -> General and administrative cost | C66: =COST_OIL3!L71 ->  | D66: =C66 -> 
B67: =title234 -> Sub-total maintenance cost (USD) | C67: =COST_OIL3!L65 ->  | D67: =C67 -> 
B69: =title235 -> Sub-total of annual fixed cost (USD) | C69: =COST_OIL3!L64 ->  | D69: =C69 ->  | E69: =D69 -> 
B71: =title236 -> Sub-total of storage cost (USD) | C71: =+COST_OIL3!L55 ->  | D71: =C71 ->  | E71: =D71 -> 
B73: =title237 -> Total operation and maintenance cost (USD) | C73: =C49+C62+C67+C69+C71 -> 
B74: =title238 -> Operation and maintenance cost (USD/kWh) without loan interest | C74: =C73/C20 -> 
A76: =title54 -> Financial parameters
B77: =title199 -> Operating Year | C77: =title217 -> Appraisal | D77: 1 | E77: 2 | F77: 3 | G77: 4 | H77: 5 | I77: 6 | J77: 7 | K77: 8 | L77: 9 | M77: 10 | N77: 11 | O77: 12 | P77: 13 | Q77: 14 | R77: 15 | S77: 16 | T77: 17 | U77: 18 | V77: 19 | W77: 20
B78: =title239 -> Raw material cost escalation rate (%) | D78: =+COST_OIL3!$P$166 -> 0 | E78: =D78 -> 0 | F78: =E78 -> 0 | G78: 0 | H78: 0 | I78: 0 | J78: 0 | K78: 0 | L78: 0 | M78: 0 | N78: 0 | O78: 0 | P78: 0 | Q78: 0 | R78: 0 | S78: 0 | T78: 0 | U78: 0 | V78: =U78 -> 0 | W78: =V78 -> 0
B79: Inflation rate (%) | D79: =+COST_OIL3!$N$11 -> 0 | E79: =D79 -> 0 | F79: 0 | G79: 0 | H79: 0 | I79: 0 | J79: 0 | K79: 0 | L79: 0 | M79: 0 | N79: 0 | O79: 0 | P79: 0 | Q79: 0 | R79: 0 | S79: 0 | T79: 0 | U79: 0 | V79: =U79 -> 0 | W79: =V79 -> 0
B80: Discount rate (%) | C80: =+COST_OIL3!$N$10 -> 0
B81: Loan ratio (%) | C81: =+COST_OIL3!$N$13 -> 0
B83: =title313 -> Loan | D83: 1 | E83: 2 | F83: 3 | G83: 4 | H83: 5 | I83: 6 | J83: 7 | K83: 8 | L83: 9 | M83: 10 | N83: 11 | O83: 12 | P83: 13 | Q83: 14 | R83: 15 | S83: 16 | T83: 17 | U83: 18 | V83: 19 | W83: 20
B84: =title138&" (USD)" -> Loan amount (USD) | C84: =C81*C43 -> 
B85: Loan interest rate (%) | C85: =+COST_OIL3!$N$12 -> 0
B86: Loan term (years) | C86: =+COST_OIL3!$N$14 -> 0
B87: =title314 -> Loan payment (USD/month) | C87: =(PMT(C85/12,(12*C86),C84)) -> 
B88: =title315 -> Loan payment (USD/year) | D88: =IF(D77<=$C$86,$C$87*12,0) -> 0 | E88: =IF(E77<=$C$86,$C$87*12,0) -> 0 | F88: 0 | G88: 0 | H88: 0 | I88: 0 | J88: 0 | K88: 0 | L88: 0 | M88: 0 | N88: 0 | O88: 0 | P88: 0 | Q88: 0 | R88: 0 | S88: 0 | T88: 0 | U88: 0 | V88: 0 | W88: 0
B89: =title141&" (USD)" -> Total loan payment (USD) | C89: =SUM(D88:W88) -> 0
B90: =title316 -> Loan interest payment (USD) | C90: =C89+C84 ->  | D90: =title322 -> Average loan interest payment for project lifetime | G90: =C90/C28 ->  | H90: =title323 -> USD per year
A92: =title317 -> Income tax analysis
B93: =title199 -> Operating Year | C93: =title217 -> Appraisal | D93: 1 | E93: 2 | F93: 3 | G93: 4 | H93: 5 | I93: 6 | J93: 7 | K93: 8 | L93: 9 | M93: 10 | N93: 11 | O93: 12 | P93: 13 | Q93: 14 | R93: 15 | S93: 16 | T93: 17 | U93: 18 | V93: 19 | W93: 20
B94: =title318 -> Effective income tax rate (%) | C94: =+COST_OIL3!$F$73 -> 0 | D94: =C94 -> 0 | E94: =D94 -> 0 | F94: 0 | G94: 0 | H94: 0 | I94: 0 | J94: 0 | K94: 0 | L94: 0 | M94: 0 | N94: 0 | O94: 0 | P94: 0 | Q94: 0 | R94: 0 | S94: 0 | T94: 0 | U94: 0 | V94: 0 | W94: 0
B95: =title319 -> Income tax | D95: =IF(D119<0,0,-D94*D119) -> 
B96: =title320 -> Total income tax (USD) | C96: =SUM(D95:W95) -> 
B97: =title321 -> Income tax payment (USD per year) | C97: =C96/$C$28 -> 
A99: Depreciation
B100: =title199 -> Operating Year | C100: =title217 -> Appraisal | D100: 1 | E100: 2 | F100: 3 | G100: 4 | H100: 5 | I100: 6 | J100: 7 | K100: 8 | L100: 9 | M100: 10 | N100: 11 | O100: 12 | P100: 13 | Q100: 14 | R100: 15 | S100: 16 | T100: 17 | U100: 18 | V100: 19 | W100: 20
B101: =title324 -> Depreciation method | C101: =title325 -> Straight-line
B102: Total depreciation (USD) | D102: =COST_OIL3!L64 ->  | E102: =D102 ->  | F102: =E102 -> 
A104: =title326 -> Base case project
A105: =title327 -> Summary of this project - before tax
B106: =title199 -> Operating Year | C106: =title217 -> Appraisal | D106: 1 | E106: 2 | F106: 3 | G106: 4 | H106: 5 | I106: 6 | J106: 7 | K106: 8 | L106: 9 | M106: 10 | N106: 11 | O106: 12 | P106: 13 | Q106: 14 | R106: 15 | S106: 16 | T106: 17 | U106: 18 | V106: 19 | W106: 20
B107: =title328 -> Total revenue (USD) | D107: =D25 ->  | E107: =E25 -> 
B108: =title215 -> Total capital cost (USD) | C108: =-(C43-C84) -> 
B109: =title329 -> Total operating and maintenance cost (USD) | D109: =-D73+D69 -> 
B110: =title139&" (USD)" -> Loan payment (USD) | D110: =D88 -> 0 | E110: =E88 -> 0 | F110: 0 | G110: 0 | H110: 0 | I110: 0 | J110: 0 | K110: 0 | L110: 0 | M110: 0 | N110: 0 | O110: 0 | P110: 0 | Q110: 0 | R110: 0 | S110: 0 | T110: 0 | U110: 0 | V110: 0 | W110: 0
B111: =title330 -> Cash flow - before tax (USD) | C111: =SUM(C107:C110) ->  | D111: =SUM(D107:D110) -> 
A113: =title331 -> Summary of this project - after tax
B114: =title199 -> Operating Year | C114: =title217 -> Appraisal | D114: 1 | E114: 2 | F114: 3 | G114: 4 | H114: 5 | I114: 6 | J114: 7 | K114: 8 | L114: 9 | M114: 10 | N114: 11 | O114: 12 | P114: 13 | Q114: 14 | R114: 15 | S114: 16 | T114: 17 | U114: 18 | V114: 19 | W114: 20
B115: =B107 -> Total revenue (USD) | C115: =C107 -> 0 | D115: =D107 ->  | E115: =E107 -> 
B116: =title329 -> Total operating and maintenance cost (USD) | D116: =-D73+D69 -> 
B117: =title139&" (USD)" -> Loan payment (USD) | D117: =D88 -> 0 | E117: =E88 -> 0 | F117: 0 | G117: 0 | H117: 0 | I117: 0 | J117: 0 | K117: 0 | L117: 0 | M117: 0 | N117: 0 | O117: 0 | P117: 0 | Q117: 0 | R117: 0 | S117: 0 | T117: 0 | U117: 0 | V117: 0 | W117: 0
B118: =title332 -> Depreciation of fixed cost (USD) | D118: =-D102 ->  | E118: =-E102 -> 
B119: =title333 -> Net Profit - before tax (USD) for income tax calculation | C119: =SUM(C115:C118) -> 0 | D119: =SUM(D115:D118) -> 
B120: =title319 -> Income tax | D120: =D95 ->  | E120: =E95 -> 
B121: =title334 -> Cash flow - after tax (USD) | C121: =C108 ->  | D121: =D111+D120 ->  | E121: =E111+E120 -> 
A123: =title335 -> Cumulative value of Net Profit
B124: =title199 -> Operating Year | C124: =title217 -> Appraisal | D124: 1 | E124: 2 | F124: 3 | G124: 4 | H124: 5 | I124: 6 | J124: 7 | K124: 8 | L124: 9 | M124: 10 | N124: 11 | O124: 12 | P124: 13 | Q124: 14 | R124: 15 | S124: 16 | T124: 17 | U124: 18 | V124: 19 | W124: 20
B125: =title337 -> Cumulative value of Net Profit - before tax | C125: =C111 ->  | D125: =C125+(D111) -> 
B126: =title338 -> Cumulative value of Net Profit - after tax | C126: =C121 ->  | D126: =C126+(D121) -> 
A128: =title336 -> Financial Analysis Result
B130: =title339 -> Net Present Value (NPV) (USD) - before tax | C130: =NPV(C80,D111:W111)+C111 -> 
B131: =title340 -> Internal Rate of Return (IRR) (%) - before tax | C131: =IF(C130<0,title353,IRR(C111:W111,0.001)) -> 
B132: =title341 -> Payback period (years) | C132: =title345 -> Please see Figure of the cumulative value of Net Profit - before tax
B135: =title342 -> Net Present Value (NPV) (USD) - after tax | C135: =NPV(C80,D121:W121)+C121 -> 
B136: =title343 -> Internal Rate of Return (IRR) (%) - after tax | C136: =IF(C135<0,title353,IRR(C121:W121,0.000001)) -> 
B137: =title341 -> Payback period (years) | C137: =title346 -> Please see Figure of the cumulative value of Net Profit - after tax
B138: =title344 -> Total income tax payment of project lifetime | C138: =SUM(D120:W120) -> 

Sheet COST_OIL4
C3: =+UPPER(title72&" "&'Data Entry Needs'!$G$9) -> PROCESSING COSTS FOR SVO + RURAL ELECTRIFICATION FROM PLEASE SELECT
C6: =title17 -> Use white cells to input data | E6: =title18 -> Grey cells are used for calculations
C8: =title73 -> Summary of Feedstock and Storage | G8: =title74 -> Summary of Operational Parameters | K8: =PROPER(title54) -> Financial Parameters
C10: =title75 -> Feedstock available (t/year) | E10: =+'Data Entry Needs'!$G$10 -> 0 | G10: =title76 -> Capacity utilization factor | I10: =H31/8760 -> 0 | K10: =title55&" (%)" -> Discount rate (%) | N10: =+'Data Entry Needs'!$D$43 -> 0
C11: =title25 -> Feedstock storage cost (USD/t) | E11: =+'Data Entry Needs'!$G$14 -> 0 | G11: =title77 -> Calorific value (kWh/kg oil) | I11: =+VLOOKUP('Data Entry Needs'!$G$9,dummy_database!$G$2:$J$12,3,FALSE)/3.6 ->  | K11: =title70&" (%)" -> Inflation rate (%) | N11: =+'Data Entry Needs'!$D$47 -> 0
C12: =title22 -> Feedstock yield (t/ha) | E12: =+'Data Entry Needs'!$G$11 -> 0 | G12: =title78 -> Oil extraction efficiency | I12: =+VLOOKUP('Data Entry Needs'!$G$9,dummy_database!$G$4:$L$9,6,FALSE) ->  | K12: =title57&" (%)" -> Loan interest rate (%) | N12: =+'Data Entry Needs'!$D$45 -> 0
C13: =title23 -> Oil content (%) | E13: =+'Data Entry Needs'!$G$12 ->  | G13: =title79 -> Residual oil in cake/meal | I13: =+VLOOKUP('Data Entry Needs'!$G$9,dummy_database!$G$4:$M$9,7,FALSE) ->  | K13: =title56&" (%)" -> Loan ratio (%) | N13: =+'Data Entry Needs'!$D$44 -> 0
C14: =+IF(VLOOKUP('Data Entry Needs'!$G$9,dummy_database!$G$2:$K$13,5,FALSE)=title148,'Data Entry Needs'!$G$9&title149,"") ->  | G14: =title80 -> Engine efficiency (%) | K14: =title71 -> Loan term (years) | N14: =+'Data Entry Needs'!$D$46 -> 0
G15: =title81 -> Operating hours per day | K15: =+IF('Data Entry Needs'!$AA$80=1,'Data Entry Needs'!$C$20,'Data Entry Needs'!$C$24) -> Comparative production cost of electricity | N15: =+'Data Entry Needs'!$AB$80 -> 0
G16: =title82 -> Power loss in distribution network
G17: =title83 -> Power loss due to operation (%)
C20: =title85 -> Transport Distance of Feedstock | F20: =title88 -> Transport Quantity | I20: =title85 -> Transport Distance of Feedstock | L20: =title88 -> Transport Quantity
C22: =title86 -> Distance small scale production (km) | F22: =title89 -> Small scale (t/year) | H22: =+$G$36 ->  | I22: =title91 -> Distance large scale production (km) | L22: =title93 -> Large scale (t/year) | N22: =+$K$36 -> 
C23: =title87 -> Distance medium scale production (km) | F23: =title90 -> Medium scale (t/year) | H23: =+$I$36 ->  | I23: =title92 -> Transportation cost (USD/t/km) | N23: =$F$49 -> 0
C27: =title96 -> Production Cost Details
G29: =title97 -> Capacities (kW of power generation)
G30: 10 | I30: 40 | K30: 100
G31: =title98 -> Operating hours per year | H31: =$I$15*365 -> 0 | I31: =title98 -> Operating hours per year | J31: =$I$15*365 -> 0 | K31: =title98 -> Operating hours per year | L31: =$I$15*365 -> 0
D34: =title99 -> Inputs | E34: =title39 -> Unit | F34: =title103 -> Unit Price | G34: =title105 -> Quantity | H34: Total | I34: =title105 -> Quantity | J34: Total | K34: =title105 -> Quantity | L34: Total
F35: =title104 -> (USD/unit) | G35: =title106 -> (Unit/year) | H35: =title107 -> (USD/year) | I35: =title106 -> (Unit/year) | J35: =title107 -> (USD/year) | K35: =title106 -> (Unit/year) | L35: =title107 -> (USD/year)
